Workbook

Sheet Sensi
B1: I) Frais et commissions
B3: Frais | C3: Taux
B4: Frais Acquisition | C4: 0.004636765671
B5: Frais Gestion Sinistres | C5: 0.002600978427
B6: Frais Administration | C6: 0.002124767929
B7: Frais Financiers | C7: 0.00075859202
B8: Prélèvements Sociaux | C8: 0.172
B9: Clause PB | C9: 0.85
B11: 2) Chargements
B13: Chargements € (x100) | C13: 0.45
B14: Chargement UC (x100) | C14: 0.39
B15: Comm distrib. € (x100) | C15: 0.6
B16: Comm distrib UC (x100) | C16: 0.6
B20: Chargements | C20: Taux
B21: Frais Gestion Euro | C21: 0.0045
B22: Commissions Distributeur Euro | C22: 0.006
B23: Frais Gestion UC | C23: 0.0039
B24: Commissions Distributeur UC | C24: 0.006

Sheet Console
J3: Scénario | K3: BP_1
C4: Console | J4: Choc S2 | K4: Central
C8: Produits | D8: Assurance Vie | F8: TRUE
D9: PER | F9: TRUE
C11: Chocs S2 | D11: Central
D12: Up
D13: Down | G13: Longevity
D14: Equity T1 | E14: -0.39 | F14: Dampener | G14: 0
D15: Equity T2 | E15: -0.49 | G15: Laps Down
D16: Spread | G16: Mass Laps
D17: Longevity | E17: -0.2 | G17: Expense
D18: Mortality | E18: 0.15 | G18: CAT
D19: Laps Up | E19: 0.5 | G19: Up
D20: Laps Down | E20: -0.5 | G20: Down
D21: Mass Laps | E21: 0.4 | G21: Spread
D22: Expense | E22: 0.1 | F22: 0.01 | G22: Equity T1
D23: CAT | E23: 0.0015 | G23: Equity T2
C26: Scénario (max 5) | D26: BP_1
D27: BP_2
D28: BP_3
D29: BP_4
D30: BP_5
C32: Paramètres | D32: Âge départ retraite | E32: 65
D33: Taux d'imposition | E33: 0.25
D34: Cap IDP | E34: Oui

Sheet Hypothèses & Paramètres=>

Sheet Hypothèses
B2: Décès
B4: Âge | C4: 0 | D4: =C4+1 -> 1 | E4: 2 | F4: 3 | G4: 4 | H4: 5 | I4: 6 | J4: 7 | K4: 8 | L4: 9 | M4: 10 | N4: 11 | O4: 12 | P4: 13 | Q4: 14 | R4: 15 | S4: 16 | T4: 17 | U4: 18 | V4: 19 | W4: 20 | X4: 21 | Y4: 22 | Z4: 23 | AA4: 24 | AB4: 25 | AC4: 26 | AD4: 27 | AE4: 28 | AF4: 29 | AG4: 30 | AH4: 31 | AI4: 32 | AJ4: =AI4+1 -> 33 | AK4: 34 | AL4: 35 | AM4: 36 | AN4: 37 | AO4: 38 | AP4: 39 | AQ4: 40 | AR4: 41 | AS4: 42 | AT4: 43 | AU4: 44 | AV4: 45 | AW4: 46 | AX4: 47 | AY4: 48 | AZ4: 49 | BA4: 50 | BB4: 51 | BC4: 52 | BD4: 53 | BE4: 54 | BF4: 55 | BG4: 56 | BH4: 57 | BI4: 58 | BJ4: 59 | BK4: 60 | BL4: 61 | BM4: 62 | BN4: 63 | BO4: 64 | BP4: =BO4+1 -> 65 | BQ4: 66 | BR4: 67 | BS4: 68 | BT4: 69 | BU4: 70 | BV4: 71 | BW4: 72 | BX4: 73 | BY4: 74 | BZ4: 75 | CA4: 76 | CB4: 77 | CC4: 78 | CD4: 79 | CE4: 80 | CF4: 81 | CG4: 82 | CH4: 83 | CI4: 84 | CJ4: 85 | CK4: 86 | CL4: 87 | CM4: 88 | CN4: 89 | CO4: 90 | CP4: 91 | CQ4: 92 | CR4: 93 | CS4: 94 | CT4: 95 | CU4: 96 | CV4: =CU4+1 -> 97 | CW4: 98 | CX4: 99 | CY4: 100 | CZ4: 101 | DA4: 102 | DB4: 103 | DC4: 104 | DD4: 105 | DE4: 106 | DF4: 107 | DG4: 108 | DH4: 109 | DI4: 110 | DJ4: 111 | DK4: 112
B5: Lx Hommes | C5: 100000 | D5: 99511 | E5: 99473 | F5: 99446 | G5: 99424 | H5: 99406 | I5: 99390 | J5: 99376 | K5: 99363 | L5: 99350 | M5: 99338 | N5: 99325 | O5: 99312 | P5: 99296 | Q5: 99276 | R5: 99250 | S5: 99213 | T5: 99163 | U5: 99097 | V5: 99015 | W5: 98921 | X5: 98820 | Y5: 98716 | Z5: 98612 | AA5: 98509 | AB5: 98406 | AC5: 98303 | AD5: 98198 | AE5: 98091 | AF5: 97982 | AG5: 97870 | AH5: 97756 | AI5: 97639 | AJ5: 97517 | AK5: 97388 | AL5: 97249 | AM5: 97100 | AN5: 96939 | AO5: 96765 | AP5: 96576 | AQ5: 96369 | AR5: 96141 | AS5: 95887 | AT5: 95606 | AU5: 95295 | AV5: 94952 | AW5: 94575 | AX5: 94164 | AY5: 93720 | AZ5: 93244 | BA5: 92736 | BB5: 92196 | BC5: 91621 | BD5: 91009 | BE5: 90358 | BF5: 89665 | BG5: 88929 | BH5: 88151 | BI5: 87329 | BJ5: 86460 | BK5: 85538 | BL5: 84558 | BM5: 83514 | BN5: 82399 | BO5: 81206 | BP5: 79926 | BQ5: 78552 | BR5: 77078 | BS5: 75501 | BT5: 73816 | BU5: 72019 | BV5: 70105 | BW5: 68070 | BX5: 65914 | BY5: 63637 | BZ5: 61239 | CA5: 58718 | CB5: 56072 | CC5: 53303 | CD5: 50411 | CE5: 47390 | CF5: 44234 | CG5: 40946 | CH5: 37546 | CI5: 34072 | CJ5: 30575 | CK5: 27104 | CL5: 23707 | CM5: 20435 | CN5: 17338 | CO5: 14464 | CP5: 11852 | CQ5: 9526 | CR5: 7498 | CS5: 5769 | CT5: 4331 | CU5: 3166 | CV5: 2249 | CW5: 1549 | CX5: 1032 | CY5: 663 | CZ5: 410 | DA5: 244 | DB5: 139 | DC5: 75 | DD5: 39 | DE5: 19 | DF5: 9 | DG5: 4 | DH5: 2 | DI5: 1 | DJ5: 0 | DK5: 0
B6: Taux décès | C6: =IF(OR(D5=0,D5=""),1,(C5-D5)/C5) -> 0.00489 | D6: 0.0003818673312 | E6: 0.0002714304384 | F6: 0.0002212255898 | G6: 0.0001810428066 | H6: 0.0001609560791 | I6: 0.0001408592414 | J6: 0.0001308162937 | K6: 0.0001308334088 | L6: 0.0001207851032 | M6: 0.0001308663351 | N6: 0.0001308834634 | O6: 0.000161108426 | P6: 0.0002014179826 | Q6: 0.000261896128 | R6: 0.0003727959698 | S6: 0.0005039662141 | T6: 0.0006655708278 | U6: 0.0008274720728 | V6: 0.0009493511084 | W6: 0.001021016771 | X6: 0.001052418539 | Y6: 0.00105352729 | Z6: 0.001044497627 | AA6: 0.001045589743 | AB6: 0.001046684145 | AC6: 0.0010681261 | AD6: 0.001089635227 | AE6: 0.001111213057 | AF6: 0.001143067094 | AG6: 0.001164810463 | AH6: 0.001196857482 | AI6: =IF(OR(AJ5=0,AJ5=""),1,(AI5-AJ5)/AI5) -> 0.001249500712 | AJ6: 0.001322846273 | AK6: 0.001427280568 | AL6: 0.001532149431 | AM6: 0.001658084449 | AN6: 0.001794943212 | AO6: 0.001953185553 | AP6: 0.002143389662 | AQ6: 0.002365906049 | AR6: 0.002641952965 | AS6: 0.002930532815 | AT6: 0.003252933916 | AU6: 0.003599349389 | AV6: 0.003970427163 | AW6: 0.004345757335 | AX6: 0.004715177775 | AY6: 0.0050789586 | AZ6: 0.005448071726 | BA6: 0.005822981366 | BB6: 0.00623671309 | BC6: 0.006679691337 | BD6: 0.007153138701 | BE6: 0.007669492463 | BF6: 0.00820833101 | BG6: 0.008748552216 | BH6: 0.009324908396 | BI6: 0.009950875425 | BJ6: 0.01066389082 | BK6: 0.01145689635 | BL6: 0.01234655503 | BM6: 0.01335105491 | BN6: 0.01447833105 | BO6: =IF(OR(BP5=0,BP5=""),1,(BO5-BP5)/BO5) -> 0.01576238209 | BP6: 0.01719090158 | BQ6: 0.01876463998 | BR6: 0.02045979397 | BS6: 0.0223175852 | BT6: 0.0243443156 | BU6: 0.02657632014 | BV6: 0.02902788674 | BW6: 0.03167327751 | BX6: 0.0345450132 | BY6: 0.03768248032 | BZ6: 0.04116657685 | CA6: 0.04506284274 | CB6: 0.04938293622 | CC6: 0.05425585802 | CD6: 0.0599273968 | CE6: 0.06659632834 | CF6: 0.07433196184 | CG6: 0.08303619401 | CH6: 0.09252650083 | CI6: 0.1026355952 | CJ6: 0.113524121 | CK6: 0.1253320543 | CL6: 0.1380183068 | CM6: 0.1515537069 | CN6: 0.1657630638 | CO6: 0.1805862832 | CP6: 0.1962537968 | CQ6: 0.2128910351 | CR6: 0.2305948253 | CS6: 0.2492633039 | CT6: 0.2689909952 | CU6: =IF(OR(CV5=0,CV5=""),1,(CU5-CV5)/CU5) -> 0.2896399242 | CV6: 0.3112494442 | CW6: 0.3337637185 | CX6: 0.3575581395 | CY6: 0.3815987934 | CZ6: 0.4048780488 | DA6: 0.4303278689 | DB6: 0.4604316547 | DC6: 0.48 | DD6: 0.5128205128 | DE6: 0.5263157895 | DF6: 0.5555555556 | DG6: 0.5 | DH6: 0.5 | DI6: 1 | DJ6: 1 | DK6: 1
B8: Âge | C8: 0 | D8: =C8+1 -> 1 | E8: 2 | F8: 3 | G8: 4 | H8: 5 | I8: 6 | J8: 7 | K8: 8 | L8: 9 | M8: 10 | N8: 11 | O8: 12 | P8: 13 | Q8: 14 | R8: 15 | S8: 16 | T8: 17 | U8: 18 | V8: 19 | W8: 20 | X8: 21 | Y8: 22 | Z8: 23 | AA8: 24 | AB8: 25 | AC8: 26 | AD8: 27 | AE8: 28 | AF8: 29 | AG8: 30 | AH8: 31 | AI8: 32 | AJ8: =AI8+1 -> 33 | AK8: 34 | AL8: 35 | AM8: 36 | AN8: 37 | AO8: 38 | AP8: 39 | AQ8: 40 | AR8: 41 | AS8: 42 | AT8: 43 | AU8: 44 | AV8: 45 | AW8: 46 | AX8: 47 | AY8: 48 | AZ8: 49 | BA8: 50 | BB8: 51 | BC8: 52 | BD8: 53 | BE8: 54 | BF8: 55 | BG8: 56 | BH8: 57 | BI8: 58 | BJ8: 59 | BK8: 60 | BL8: 61 | BM8: 62 | BN8: 63 | BO8: 64 | BP8: =BO8+1 -> 65 | BQ8: 66 | BR8: 67 | BS8: 68 | BT8: 69 | BU8: 70 | BV8: 71 | BW8: 72 | BX8: 73 | BY8: 74 | BZ8: 75 | CA8: 76 | CB8: 77 | CC8: 78 | CD8: 79 | CE8: 80 | CF8: 81 | CG8: 82 | CH8: 83 | CI8: 84 | CJ8: 85 | CK8: 86 | CL8: 87 | CM8: 88 | CN8: 89 | CO8: 90 | CP8: 91 | CQ8: 92 | CR8: 93 | CS8: 94 | CT8: 95 | CU8: 96 | CV8: =CU8+1 -> 97 | CW8: 98 | CX8: 99 | CY8: 100 | CZ8: 101 | DA8: 102 | DB8: 103 | DC8: 104 | DD8: 105 | DE8: 106 | DF8: 107 | DG8: 108 | DH8: 109 | DI8: 110 | DJ8: 111 | DK8: 112
B9: Lx Femmes | C9: 100000 | D9: 99616 | E9: 99583 | F9: 99562 | G9: 99545 | H9: 99531 | I9: 99519 | J9: 99508 | K9: 99498 | L9: 99488 | M9: 99478 | N9: 99467 | O9: 99456 | P9: 99444 | Q9: 99431 | R9: 99415 | S9: 99395 | T9: 99371 | U9: 99342 | V9: 99309 | W9: 99274 | X9: 99239 | Y9: 99205 | Z9: 99171 | AA9: 99137 | AB9: 99103 | AC9: 99068 | AD9: 99033 | AE9: 98997 | AF9: 98960 | AG9: 98921 | AH9: 98879 | AI9: 98833 | AJ9: 98782 | AK9: 98725 | AL9: 98662 | AM9: 98593 | AN9: 98518 | AO9: 98435 | AP9: 98343 | AQ9: 98242 | AR9: 98130 | AS9: 98007 | AT9: 97872 | AU9: 97724 | AV9: 97563 | AW9: 97387 | AX9: 97197 | AY9: 96993 | AZ9: 96776 | BA9: 96546 | BB9: 96304 | BC9: 96049 | BD9: 95778 | BE9: 95489 | BF9: 95180 | BG9: 94851 | BH9: 94501 | BI9: 94131 | BJ9: 93741 | BK9: 93329 | BL9: 92892 | BM9: 92425 | BN9: 91923 | BO9: 91382 | BP9: 90797 | BQ9: 90164 | BR9: 89476 | BS9: 88726 | BT9: 87907 | BU9: 87010 | BV9: 86024 | BW9: 84941 | BX9: 83751 | BY9: 82442 | BZ9: 80998 | CA9: 79402 | CB9: 77633 | CC9: 75671 | CD9: 73496 | CE9: 71088 | CF9: 68423 | CG9: 65478 | CH9: 62233 | CI9: 58680 | CJ9: 54828 | CK9: 50706 | CL9: 46362 | CM9: 41868 | CN9: 37319 | CO9: 32821 | CP9: 28469 | CQ9: 24328 | CR9: 20444 | CS9: 16860 | CT9: 13618 | CU9: 10750 | CV9: 8277 | CW9: 6204 | CX9: 4516 | CY9: 3185 | CZ9: 2171 | DA9: 1426 | DB9: 900 | DC9: 544 | DD9: 314 | DE9: 172 | DF9: 89 | DG9: 44 | DH9: 20 | DI9: 9 | DJ9: 4 | DK9: 1
B10: Taux décès | C10: =IF(OR(D9=0,D9=""),1,(C9-D9)/C9) -> 0.00384 | D10: 0.0003312720848 | E10: 0.000210879367 | F10: 0.0001707478757 | G10: 0.0001406399116 | H10: 0.000120565452 | I10: 0.0001105316573 | J10: 0.0001004944326 | K10: 0.0001005045328 | L10: 0.0001005146349 | M10: 0.0001105772131 | N10: 0.0001105894417 | O10: 0.0001206563707 | P10: 0.0001307268412 | Q10: 0.0001609156098 | R10: 0.0002011768848 | S10: 0.0002414608381 | T10: 0.0002918356462 | U10: 0.0003321857824 | V10: 0.0003524353281 | W10: 0.0003525595826 | X10: 0.0003426072411 | Y10: 0.0003427246611 | Z10: 0.0003428421615 | AA10: 0.0003429597426 | AB10: 0.0003531679162 | AC10: 0.0003532926879 | AD10: 0.0003635151919 | AE10: 0.0003737486995 | AF10: 0.0003940986257 | AG10: 0.0004245812315 | AH10: 0.0004652150608 | AI10: =IF(OR(AJ9=0,AJ9=""),1,(AI9-AJ9)/AI9) -> 0.0005160219765 | AJ10: 0.0005770282035 | AK10: 0.000638136237 | AL10: 0.000699357402 | AM10: 0.0007607030925 | AN10: 0.0008424856371 | AO10: 0.0009346269112 | AP10: 0.001027017683 | AQ10: 0.001140041937 | AR10: 0.001253439315 | AS10: 0.001377452631 | AT10: 0.001512179173 | AU10: 0.001647497032 | AV10: 0.001803962568 | AW10: 0.001950979083 | AX10: 0.002098830211 | AY10: 0.002237274855 | AZ10: 0.002376622303 | BA10: 0.002506577176 | BB10: 0.002647865094 | BC10: 0.002821476538 | BD10: 0.003017394391 | BE10: 0.003235974824 | BF10: 0.003456608531 | BG10: 0.003689997997 | BH10: 0.003915302484 | BI10: 0.004143162189 | BJ10: 0.004395088595 | BK10: 0.004682360252 | BL10: 0.005027343582 | BM10: 0.00543143089 | BN10: 0.005885360574 | BO10: =IF(OR(BP9=0,BP9=""),1,(BO9-BP9)/BO9) -> 0.006401698365 | BP10: 0.006971595978 | BQ10: 0.007630539905 | BR10: 0.008382135992 | BS10: 0.009230665194 | BT10: 0.01020396555 | BU10: 0.0113320308 | BV10: 0.0125895099 | BW10: 0.0140097244 | BX10: 0.01562966412 | BY10: 0.01751534412 | BZ10: 0.01970419023 | CA10: 0.02227903579 | CB10: 0.02527275772 | CC10: 0.02874284733 | CD10: 0.03276368782 | CE10: 0.03748874634 | CF10: 0.04304108268 | CG10: 0.04955863038 | CH10: 0.05709189658 | CI10: 0.06564417178 | CJ10: 0.07518056467 | CK10: 0.08567033487 | CL10: 0.09693283292 | CM10: 0.1086509984 | CN10: 0.1205284172 | CO10: 0.1325980317 | CP10: 0.1454564614 | CQ10: 0.1596514305 | CR10: 0.1753081589 | CS10: 0.1922894425 | CT10: 0.2106036129 | CU10: =IF(OR(CV9=0,CV9=""),1,(CU9-CV9)/CU9) -> 0.2300465116 | CV10: 0.2504530627 | CW10: 0.2720825274 | CX10: 0.2947298494 | CY10: 0.3183673469 | CZ10: 0.3431598342 | DA10: 0.3688639551 | DB10: 0.3955555556 | DC10: 0.4227941176 | DD10: 0.4522292994 | DE10: 0.4825581395 | DF10: 0.5056179775 | DG10: 0.5454545455 | DH10: 0.55 | DI10: 0.5555555556 | DJ10: 0.75 | DK10: 1
B13: Rachats structurels
B15: Ancienneté | C15: 0 | D15: =C15+1 -> 1 | E15: =D15+1 -> 2 | F15: 3 | G15: 4 | H15: 5 | I15: 6 | J15: 7 | K15: 8 | L15: 9 | M15: 10 | N15: 11 | O15: 12 | P15: 13 | Q15: 14 | R15: 15 | S15: 16 | T15: 17 | U15: 18 | V15: 19 | W15: 20 | X15: 21 | Y15: 22 | Z15: 23 | AA15: 24 | AB15: 25 | AC15: 26 | AD15: 27 | AE15: 28 | AF15: 29 | AG15: 30 | AH15: 31 | AI15: 32 | AJ15: 33 | AK15: 34 | AL15: 35 | AM15: 36 | AN15: 37 | AO15: 38 | AP15: 39 | AQ15: 40 | AR15: 41 | AS15: 42 | AT15: 43 | AU15: 44 | AV15: 45 | AW15: 46 | AX15: 47 | AY15: 48 | AZ15: 49 | BA15: 50 | BB15: 51 | BC15: 52 | BD15: 53 | BE15: 54 | BF15: 55 | BG15: 56 | BH15: 57 | BI15: 58 | BJ15: 59 | BK15: 60 | BL15: 61 | BM15: 62 | BN15: 63 | BO15: 64 | BP15: 65 | BQ15: 66 | BR15: 67 | BS15: 68 | BT15: 69 | BU15: 70 | BV15: 71 | BW15: 72 | BX15: 73 | BY15: 74 | BZ15: 75 | CA15: 76 | CB15: 77 | CC15: 78 | CD15: 79 | CE15: 80 | CF15: 81 | CG15: 82 | CH15: 83 | CI15: 84 | CJ15: 85 | CK15: 86 | CL15: 87 | CM15: 88 | CN15: 89 | CO15: 90 | CP15: 91 | CQ15: 92 | CR15: 93 | CS15: 94 | CT15: 95 | CU15: 96 | CV15: 97 | CW15: 98 | CX15: 99 | CY15: 100
B16: A_VIE | C16: 0.04 | D16: 0.04 | E16: 0.04 | F16: 0.04 | G16: 0.04 | H16: 0.04 | I16: 0.04 | J16: 0.04 | K16: 0.08 | L16: 0.06 | M16: 0.06 | N16: 0.06 | O16: 0.06 | P16: 0.06 | Q16: 0.06 | R16: 0.06 | S16: 0.06 | T16: 0.06 | U16: 0.06 | V16: 0.06 | W16: 0.06 | X16: 0.06 | Y16: 0.06 | Z16: 0.06 | AA16: 0.06 | AB16: 0.06 | AC16: 0.06 | AD16: 0.06 | AE16: 0.06 | AF16: 0.06 | AG16: 0.06 | AH16: 0.06 | AI16: 0.06 | AJ16: 0.06 | AK16: 0.06 | AL16: 0.06 | AM16: 0.06 | AN16: 0.06 | AO16: 0.06 | AP16: 0.06 | AQ16: 0.06 | AR16: 0.06 | AS16: 0.06 | AT16: 0.06 | AU16: 0.06 | AV16: 0.06 | AW16: 0.06 | AX16: 0.06 | AY16: 0.06 | AZ16: 0.06 | BA16: 0.06 | BB16: 0.06 | BC16: 0.06 | BD16: 0.06 | BE16: 0.06 | BF16: 0.06 | BG16: 0.06 | BH16: 0.06 | BI16: 0.06 | BJ16: 0.06 | BK16: 0.06 | BL16: 0.06 | BM16: 0.06 | BN16: 0.06 | BO16: 0.06 | BP16: 0.06 | BQ16: 0.06 | BR16: 0.06 | BS16: 0.06 | BT16: 0.06 | BU16: 0.06 | BV16: 0.06 | BW16: 0.06 | BX16: 0.06 | BY16: 0.06 | BZ16: 0.06 | CA16: 0.06 | CB16: 0.06 | CC16: 0.06 | CD16: 0.06 | CE16: 0.06 | CF16: 0.06 | CG16: 0.06 | CH16: 0.06 | CI16: 0.06 | CJ16: 0.06 | CK16: 0.06 | CL16: 0.06 | CM16: 0.06 | CN16: 0.06 | CO16: 0.06 | CP16: 0.06 | CQ16: 0.06 | CR16: 0.06 | CS16: 0.06 | CT16: 0.06 | CU16: 0.06 | CV16: 0.06 | CW16: 0.06 | CX16: 0.06 | CY16: 0.06
B17: A_PER | C17: 0 | D17: 0 | E17: 0 | F17: 0 | G17: 0 | H17: 0 | I17: 0 | J17: 0 | K17: 0 | L17: 0 | M17: 0 | N17: 0 | O17: 0 | P17: 0 | Q17: 0 | R17: 0 | S17: 0 | T17: 0 | U17: 0 | V17: 0 | W17: 0 | X17: 0 | Y17: 0 | Z17: 0 | AA17: 0 | AB17: 0 | AC17: 0 | AD17: 0 | AE17: 0 | AF17: 0 | AG17: 0 | AH17: 0 | AI17: 0 | AJ17: 0 | AK17: 0 | AL17: 0 | AM17: 0 | AN17: 0 | AO17: 0 | AP17: 0 | AQ17: 0 | AR17: 0 | AS17: 0 | AT17: 0 | AU17: 0 | AV17: 0 | AW17: 0 | AX17: 0 | AY17: 0 | AZ17: 0 | BA17: 0 | BB17: 0 | BC17: 0 | BD17: 0 | BE17: 0 | BF17: 0 | BG17: 0 | BH17: 0 | BI17: 0 | BJ17: 0 | BK17: 0 | BL17: 0 | BM17: 0 | BN17: 0 | BO17: 0 | BP17: 0 | BQ17: 0 | BR17: 0 | BS17: 0 | BT17: 0 | BU17: 0 | BV17: 0 | BW17: 0 | BX17: 0 | BY17: 0 | BZ17: 0 | CA17: 0 | CB17: 0 | CC17: 0 | CD17: 0 | CE17: 0 | CF17: 0 | CG17: 0 | CH17: 0 | CI17: 0 | CJ17: 0 | CK17: 0 | CL17: 0 | CM17: 0 | CN17: 0 | CO17: 0 | CP17: 0 | CQ17: 0 | CR17: 0 | CS17: 0 | CT17: 0 | CU17: 0 | CV17: 0 | CW17: 0 | CX17: 0 | CY17: 0
B18: A_CAPI | C18: 0.04 | D18: 0.04 | E18: 0.04 | F18: 0.04 | G18: 0.04 | H18: 0.04 | I18: 0.04 | J18: 0.04 | K18: 0.08 | L18: 0.06 | M18: 0.06 | N18: 0.06 | O18: 0.06 | P18: 0.06 | Q18: 0.06 | R18: 0.06 | S18: 0.06 | T18: 0.06 | U18: 0.06 | V18: 0.06 | W18: 0.06 | X18: 0.06 | Y18: 0.06 | Z18: 0.06 | AA18: 0.06 | AB18: 0.06 | AC18: 0.06 | AD18: 0.06 | AE18: 0.06 | AF18: 0.06 | AG18: 0.06 | AH18: 0.06 | AI18: 0.06 | AJ18: 0.06 | AK18: 0.06 | AL18: 0.06 | AM18: 0.06 | AN18: 0.06 | AO18: 0.06 | AP18: 0.06 | AQ18: 0.06 | AR18: 0.06 | AS18: 0.06 | AT18: 0.06 | AU18: 0.06 | AV18: 0.06 | AW18: 0.06 | AX18: 0.06 | AY18: 0.06 | AZ18: 0.06 | BA18: 0.06 | BB18: 0.06 | BC18: 0.06 | BD18: 0.06 | BE18: 0.06 | BF18: 0.06 | BG18: 0.06 | BH18: 0.06 | BI18: 0.06 | BJ18: 0.06 | BK18: 0.06 | BL18: 0.06 | BM18: 0.06 | BN18: 0.06 | BO18: 0.06 | BP18: 0.06 | BQ18: 0.06 | BR18: 0.06 | BS18: 0.06 | BT18: 0.06 | BU18: 0.06 | BV18: 0.06 | BW18: 0.06 | BX18: 0.06 | BY18: 0.06 | BZ18: 0.06 | CA18: 0.06 | CB18: 0.06 | CC18: 0.06 | CD18: 0.06 | CE18: 0.06 | CF18: 0.06 | CG18: 0.06 | CH18: 0.06 | CI18: 0.06 | CJ18: 0.06 | CK18: 0.06 | CL18: 0.06 | CM18: 0.06 | CN18: 0.06 | CO18: 0.06 | CP18: 0.06 | CQ18: 0.06 | CR18: 0.06 | CS18: 0.06 | CT18: 0.06 | CU18: 0.06 | CV18: 0.06 | CW18: 0.06 | CX18: 0.06 | CY18: 0.06
B19: A_PEA | C19: 0.04 | D19: 0.04 | E19: 0.04 | F19: 0.04 | G19: 0.04 | H19: 0.04 | I19: 0.04 | J19: 0.04 | K19: 0.08 | L19: 0.06 | M19: 0.06 | N19: 0.06 | O19: 0.06 | P19: 0.06 | Q19: 0.06 | R19: 0.06 | S19: 0.06 | T19: 0.06 | U19: 0.06 | V19: 0.06 | W19: 0.06 | X19: 0.06 | Y19: 0.06 | Z19: 0.06 | AA19: 0.06 | AB19: 0.06 | AC19: 0.06 | AD19: 0.06 | AE19: 0.06 | AF19: 0.06 | AG19: 0.06 | AH19: 0.06 | AI19: 0.06 | AJ19: 0.06 | AK19: 0.06 | AL19: 0.06 | AM19: 0.06 | AN19: 0.06 | AO19: 0.06 | AP19: 0.06 | AQ19: 0.06 | AR19: 0.06 | AS19: 0.06 | AT19: 0.06 | AU19: 0.06 | AV19: 0.06 | AW19: 0.06 | AX19: 0.06 | AY19: 0.06 | AZ19: 0.06 | BA19: 0.06 | BB19: 0.06 | BC19: 0.06 | BD19: 0.06 | BE19: 0.06 | BF19: 0.06 | BG19: 0.06 | BH19: 0.06 | BI19: 0.06 | BJ19: 0.06 | BK19: 0.06 | BL19: 0.06 | BM19: 0.06 | BN19: 0.06 | BO19: 0.06 | BP19: 0.06 | BQ19: 0.06 | BR19: 0.06 | BS19: 0.06 | BT19: 0.06 | BU19: 0.06 | BV19: 0.06 | BW19: 0.06 | BX19: 0.06 | BY19: 0.06 | BZ19: 0.06 | CA19: 0.06 | CB19: 0.06 | CC19: 0.06 | CD19: 0.06 | CE19: 0.06 | CF19: 0.06 | CG19: 0.06 | CH19: 0.06 | CI19: 0.06 | CJ19: 0.06 | CK19: 0.06 | CL19: 0.06 | CM19: 0.06 | CN19: 0.06 | CO19: 0.06 | CP19: 0.06 | CQ19: 0.06 | CR19: 0.06 | CS19: 0.06 | CT19: 0.06 | CU19: 0.06 | CV19: 0.06 | CW19: 0.06 | CX19: 0.06 | CY19: 0.06
B22: Inflation
B24: Année projection | C24: 1 | D24: =C24+1 -> 2 | E24: =D24+1 -> 3 | F24: =E24+1 -> 4 | G24: =F24+1 -> 5 | H24: =G24+1 -> 6 | I24: =H24+1 -> 7 | J24: =I24+1 -> 8 | K24: =J24+1 -> 9 | L24: =K24+1 -> 10 | M24: =L24+1 -> 11 | N24: =M24+1 -> 12 | O24: =N24+1 -> 13 | P24: =O24+1 -> 14 | Q24: =P24+1 -> 15 | R24: =Q24+1 -> 16 | S24: =R24+1 -> 17 | T24: =S24+1 -> 18 | U24: =T24+1 -> 19 | V24: =U24+1 -> 20 | W24: =V24+1 -> 21 | X24: =W24+1 -> 22 | Y24: =X24+1 -> 23 | Z24: =Y24+1 -> 24 | AA24: =Z24+1 -> 25 | AB24: =AA24+1 -> 26 | AC24: =AB24+1 -> 27 | AD24: =AC24+1 -> 28 | AE24: =AD24+1 -> 29 | AF24: =AE24+1 -> 30 | AG24: =AF24+1 -> 31 | AH24: =AG24+1 -> 32 | AI24: =AH24+1 -> 33 | AJ24: =AI24+1 -> 34 | AK24: =AJ24+1 -> 35 | AL24: =AK24+1 -> 36 | AM24: =AL24+1 -> 37 | AN24: =AM24+1 -> 38 | AO24: =AN24+1 -> 39 | AP24: =AO24+1 -> 40
B25: Inflation | C25: 0.01 | D25: 0.01 | E25: 0.01 | F25: 0.01 | G25: 0.01 | H25: 0.01 | I25: 0.01 | J25: 0.01 | K25: 0.01 | L25: 0.01 | M25: 0.01 | N25: 0.01 | O25: 0.01 | P25: 0.01 | Q25: 0.01 | R25: 0.01 | S25: 0.01 | T25: 0.01 | U25: 0.01 | V25: 0.01 | W25: 0.01 | X25: 0.01 | Y25: 0.01 | Z25: 0.01 | AA25: 0.01 | AB25: 0.01 | AC25: 0.01 | AD25: 0.01 | AE25: 0.01 | AF25: 0.01 | AG25: 0.01 | AH25: 0.01 | AI25: 0.01 | AJ25: 0.01 | AK25: 0.01 | AL25: 0.01 | AM25: 0.01 | AN25: 0.01 | AO25: 0.01 | AP25: 0.01
B26: Inflation - choc frais | C26: =C25+Choc_exp_infln -> 0.02 | D26: 0.02 | E26: 0.02 | F26: 0.02 | G26: 0.02 | H26: 0.02 | I26: 0.02 | J26: 0.02 | K26: 0.02 | L26: 0.02 | M26: 0.02 | N26: 0.02 | O26: 0.02 | P26: 0.02 | Q26: 0.02 | R26: 0.02 | S26: 0.02 | T26: 0.02 | U26: 0.02 | V26: 0.02 | W26: 0.02 | X26: 0.02 | Y26: 0.02 | Z26: 0.02 | AA26: 0.02 | AB26: 0.02 | AC26: 0.02 | AD26: 0.02 | AE26: 0.02 | AF26: 0.02 | AG26: 0.02 | AH26: 0.02 | AI26: 0.02 | AJ26: 0.02 | AK26: 0.02 | AL26: 0.02 | AM26: 0.02 | AN26: 0.02 | AO26: 0.02 | AP26: 0.02
B27: Inflation Index | C27: =(1+C25)^C$24 -> 1.01 | D27: =(1+D25)^D$24 -> 1.0201 | E27: 1.030301 | F27: 1.04060401 | G27: 1.05101005 | H27: 1.061520151 | I27: 1.072135352 | J27: 1.082856706 | K27: 1.093685273 | L27: 1.104622125 | M27: 1.115668347 | N27: 1.12682503 | O27: 1.13809328 | P27: 1.149474213 | Q27: 1.160968955 | R27: 1.172578645 | S27: 1.184304431 | T27: 1.196147476 | U27: 1.20810895 | V27: 1.22019004 | W27: 1.23239194 | X27: 1.24471586 | Y27: 1.257163018 | Z27: 1.269734649 | AA27: 1.282431995 | AB27: 1.295256315 | AC27: 1.308208878 | AD27: 1.321290967 | AE27: 1.334503877 | AF27: 1.347848915 | AG27: 1.361327404 | AH27: 1.374940679 | AI27: 1.388690085 | AJ27: 1.402576986 | AK27: 1.416602756 | AL27: 1.430768784 | AM27: 1.445076471 | AN27: 1.459527236 | AO27: 1.474122509 | AP27: 1.488863734
B28: Inflation - choc frais - Index | C28: =(1+C26)^C$24 -> 1.02 | D28: 1.0404 | E28: 1.061208 | F28: 1.08243216 | G28: 1.104080803 | H28: 1.126162419 | I28: 1.148685668 | J28: 1.171659381 | K28: 1.195092569 | L28: 1.21899442 | M28: 1.243374308 | N28: 1.268241795 | O28: 1.29360663 | P28: 1.319478763 | Q28: 1.345868338 | R28: 1.372785705 | S28: 1.400241419 | T28: 1.428246248 | U28: 1.456811173 | V28: 1.485947396 | W28: 1.515666344 | X28: 1.545979671 | Y28: 1.576899264 | Z28: 1.608437249 | AA28: 1.640605994 | AB28: 1.673418114 | AC28: 1.706886477 | AD28: 1.741024206 | AE28: 1.77584469 | AF28: 1.811361584 | AG28: 1.847588816 | AH28: 1.884540592 | AI28: 1.922231404 | AJ28: 1.960676032 | AK28: 1.999889553 | AL28: 2.039887344 | AM28: 2.080685091 | AN28: 2.122298792 | AO28: 2.164744768 | AP28: 2.208039664

Sheet Corr_S2
B7: Market risk module - Up | C7: Interest rate | D7: Equity | E7: Property | F7: Spread | G7: Concentration | H7: Currency | K7: Market risk module - Down | L7: Interest rate | M7: Equity | N7: Property | O7: Spread | P7: Concentration | Q7: Currency
B8: Interest rate | C8: 1 | D8: 0 | E8: 0 | F8: 0 | G8: 0.25 | H8: 0 | K8: Interest rate | L8: 1 | M8: 0.5 | N8: 0.5 | O8: 0.5 | P8: 0.25 | Q8: 0
B9: Equity | C9: 0 | D9: 1 | E9: 0.75 | F9: 0.75 | G9: 0.25 | H9: 0 | K9: Equity | L9: 0.5 | M9: 1 | N9: 0.75 | O9: 0.75 | P9: 0.25 | Q9: 0
B10: Property | C10: 0 | D10: 0.75 | E10: 1 | F10: 0.5 | G10: 0.25 | H10: 0 | K10: Property | L10: 0.5 | M10: 0.75 | N10: 1 | O10: 0.5 | P10: 0.25 | Q10: 0
B11: Spread | C11: 0 | D11: 0.75 | E11: 0.5 | F11: 1 | G11: 0.25 | H11: 0 | K11: Spread | L11: 0.5 | M11: 0.75 | N11: 0.5 | O11: 1 | P11: 0.25 | Q11: 0
B12: Concentration | C12: 0.25 | D12: 0.25 | E12: 0.25 | F12: 0.25 | G12: 1 | H12: 0 | K12: Concentration | L12: 0.25 | M12: 0.25 | N12: 0.25 | O12: 0.25 | P12: 1 | Q12: 0
B13: Currency | C13: 0 | D13: 0 | E13: 0 | F13: 0 | G13: 0 | H13: 1 | K13: Currency | L13: 0 | M13: 0 | N13: 0 | O13: 0 | P13: 0 | Q13: 1
B15: Life underwriting risk module | C15: Mortality | D15: Longevity | E15: Disability | F15: Life Expense | G15: Revision | H15: Lapse | I15: Life catastrophe
B16: Mortality | C16: 1 | D16: -0.25 | E16: 0.25 | F16: 0.25 | G16: 0 | H16: 0 | I16: 0.25
B17: Longevity | C17: -0.25 | D17: 1 | E17: 0 | F17: 0.25 | G17: 0.25 | H17: 0.25 | I17: 0
B18: Disability | C18: 0.25 | D18: 0 | E18: 1 | F18: 0.5 | G18: 0 | H18: 0 | I18: 0.25
B19: Life Expense | C19: 0.25 | D19: 0.25 | E19: 0.5 | F19: 1 | G19: 0.5 | H19: 0.5 | I19: 0.25
B20: Revision | C20: 0 | D20: 0.25 | E20: 0 | F20: 0.5 | G20: 1 | H20: 0 | I20: 0
B21: Lapse | C21: 0 | D21: 0.25 | E21: 0 | F21: 0.5 | G21: 0 | H21: 1 | I21: 0.25
B22: Life catastrophe | C22: 0.25 | D22: 0 | E22: 0.25 | F22: 0.25 | G22: 0 | H22: 0.25 | I22: 1
B24: Equity risk sub-module | C24: Equity T1 | D24: Equity T2
B25: Equity T1 | C25: 1 | D25: 0.75
B26: Equity T2 | C26: 0.75 | D26: 1
B29: BSCR | C29: SCRmkt | D29: SCRdef | E29: SCRlife
B30: Market | C30: 1 | D30: 0.25 | E30: 0.25
B31: Default | C31: 0.25 | D31: 1 | E31: 0.25
B32: Life underwriting | C32: 0.25 | D32: 0.25 | E32: 1

Sheet INPUTS=>

Sheet Frais_BP_1
B2: I) Frais et commissions
B5: AVIE / PER / CAPI | D5: 2031-12-31
B6: Frais | C6: Taux | D6: Driver
B7: Frais Acquisition | C7: 0.004636765671 | D7: Primes
B8: Frais Gestion Sinistres | C8: 0.002600978427 | D8: Prestations
B9: Frais Administration | C9: 0.002124767929 | D9: PM | E9: exclusion C3S sur primes
B10: Frais Financiers | C10: 0.00075859202 | D10: VM | E10: MP 2029 car 2030 non calculés
B11: Prélèvements Sociaux | C11: 0.172 | D11: PB
B12: Clause PB | C12: 0.85 | D12: Produits financiers
B13: Frais d'acquisition : hors comm. distribution intégrées directement dans la projection des frais dans la maquette S2
B14: Frais Administration / Frais acq : montant de frais sur l'ensemble des périmètres => tx unique tout produit

Sheet Bilan_Social_BP_1
B2: I) Bilan Social
B5: AVIE + PER + CAPI + FP | C5: 2027-12-31
B7: ACTIF | C7: VNC | D7: VM | F7: PASSIF
B8: Capital souscrit non appelé ou compte de liaison avec le siège | C8: 0 | D8: 0 | F8: Capitaux Propres | G8: 15000000
B9: Actifs Incorporels | C9: 0 | D9: 0 | F9: Résultat de l'exercice | G9: -1654982.044
B10: Obligation Govies | C10: 33956423.25 | D10: 33956423.25 | F10: Passifs subordonnés | G10: 0
B11: Obligation Corporate | C11: 9055046.199 | D11: 9326697.585 | F11: Provisions techniques brutes | G11: 31930213.04
B12: Action | C12: 0 | D12: 0 | F12: PM | G12: 31930213.04 | J12: =ROUND(G12,2)=ROUND(SUM(Model_Points_BP_1!$C$7:$C$11,Model_Points_BP_1!$C$15:$C$19),2) -> TRUE
B13: Monétaire | C13: 2263761.55 | D13: 2263761.55 | F13: PSAP | G13: 0
B14: UC | C14: 60372937.8 | D14: 60372937.8 | F14: PPE | G14: 0 | I14: =C14=G15 -> TRUE
B15: Provisions sur placements | C15: 0 | D15: 0 | F15: Provision techniques des contrats en unité de comptes | G15: 60372937.8 | J15: =ROUND(G15,5)=ROUND(SUM(Model_Points_BP_1!$L$7:$L$11,Model_Points_BP_1!$L$15:$L$19),5) -> TRUE
B16: PDD | C16: 0 | D16: 0 | F16: Autres provisions techniques | G16: 0
B17: Part des cessionnaires et rétrocessionnaires dans les provisions techniques | C17: 0 | D17: 0 | F17: RC | G17: 0
B18: Créances | C18: 0 | D18: 0 | F18: PRE | G18: 0
B19: Autres Actifs | C19: 0 | D19: 0 | F19: Provisions (autres que techniques) | G19: 0
B20: Comptes de régularisation Actif | C20: 0 | D20: 0 | F20: Dettes pour dépôts en espèces reçues des cessionnaires | G20: 0
F21: Autres Dettes | G21: 0
F22: Comptes de régularisation Passif | G22: 0
C24: =C21-C22 -> 0

Sheet Model_Points_BP_1
B2: I) Model Points Actifs
B5: AVIE | C5: Euro | D5: 2027-12-31 | K5: AVIE / CAPI | L5: UC | M5: 2027-12-31 | Q5: AVIE / CAPI | R5: 2027-12-31
B6: Asset Type | C6: VNC | D6: VM | E6: COUPON_PC | F6: NOMINAL | G6: MATURITY_RESID | H6: SPREAD_PC | I6: DIV_PC | K6: Asset Type | L6: VNC | M6: VM | N6: DIV_PC | O6: UC_TYPE | Q6: Reserves | R6: VNC
B7: BONDS_GOV | C7: 22248338.55 | D7: 22248338.55 | E7: 0 | F7: 22248338.55 | G7: 7 | K7: OBLIG_CORP | L7: 7141641.072 | M7: 7141641.072 | N7: 0 | O7: 1 | P7: =M7/SUM($M$7:$M$11) -> 0.1272855134 | Q7: PPE | R7: 0
B8: BONDS_CORP | C8: 5932890.281 | D8: 6110876.99 | E8: 0 | F8: 5932890.281 | G8: 7 | K8: OBLIG_CORP_NR | L8: 4774246.242 | M8: 4774246.242 | N8: 0 | O8: 2 | P8: =M8/SUM($M$7:$M$11) -> 0.08509142053 | Q8: RC | R8: 0
B9: EQ_TYPE_1 | C9: 0 | D9: 0 | E9: 0 | I9: 0 | K9: EQ_TYPE_1 | L9: 37365381.74 | M9: 37365381.74 | N9: 0 | O9: 3 | P9: 0.6659634318 | Q9: PSAP | R9: 0
B10: EQ_TYPE_2 | C10: 0 | D10: 0 | E10: 0 | I10: 0 | K10: EQ_TYPE_2 | L10: 4616419.92 | M10: 4616419.92 | N10: 0 | O10: 4 | P10: 0.08227848101 | T10: PMVL ALL | U10: =SUM(D7:D11)-SUM(C7:C11)+SUM(D15:D19)-SUM(C15:C19) -> 191581.2782
B11: CASH | C11: 1483222.57 | D11: 1483222.57 | E11: 0 | K11: MONETAIRE | L11: 2209568.509 | M11: 2209568.509 | N11: 0 | O11: 5 | P11: 0.03938115331
B13: PER | C13: Euro | D13: 2027-12-31 | K13: PER | L13: UC | M13: 2027-12-31 | Q13: PER | R13: 2027-12-31
B14: Asset Type | C14: VNC | D14: VM | E14: COUPON_PC | F14: NOMINAL | G14: MATURITY_RESID | H14: SPREAD_PC | I14: DIV_PC | K14: Asset Type | L14: VNC | M14: VM | N14: DIV_PC | O14: UC_TYPE | Q14: Reserves | R14: VNC
B15: BONDS_GOV | C15: 1699321.223 | D15: 1699321.223 | E15: 0 | F15: 1699321.223 | G15: 7 | K15: OBLIG_CORP | L15: 542959.3081 | M15: 542959.3081 | N15: 0 | O15: 1 | Q15: PPE | R15: 0
B16: BONDS_CORP | C16: 453152.3261 | D16: 466746.8959 | E16: 0 | F16: 453152.3261 | G16: 7 | K16: OBLIG_CORP_NR | L16: 362972.7971 | M16: 362972.7971 | N16: 0 | O16: 2 | Q16: RC | R16: 0
B17: EQ_TYPE_1 | C17: 0 | D17: 0 | E17: 0 | I17: 0 | K17: EQ_TYPE_1 | L17: 2840787.098 | M17: 2840787.098 | N17: 0 | O17: 3 | Q17: PSAP | R17: 0
B18: EQ_TYPE_2 | C18: 0 | D18: 0 | E18: 0 | I18: 0 | K18: EQ_TYPE_2 | L18: 350973.6964 | M18: 350973.6964 | N18: 0 | O18: 4
B19: CASH | C19: 113288.0815 | D19: 113288.0815 | E19: 0 | K19: MONETAIRE | L19: 167987.4102 | M19: 167987.4102 | N19: 0 | O19: 5
B22: II) Model Points Passif
B25: Assurance Vie | C25: Euro - UC | D25: 2027-12-31
B26: ID | C26: AGE | D26: SOUSCRIPTION_YR | E26: SEXE | F26: PDT | G26: CHGT_GEST_EURO_PC | H26: CHGT_GEST_UC_PC | I26: COMM_DIST_EURO_PC | J26: COMM_DIST_UC_PC | K26: CLAUSE_PB_PC | L26: TMG_PC | M26: NO_POLS | N26: PM_EURO | O26: PM_UC_TOT | P26: PM_UC_1 | Q26: PM_UC_2 | R26: PM_UC_3 | S26: PM_UC_4 | T26: PM_UC_5
B27: #1 | C27: 18 | D27: 2026 | E27: H | F27: A_VIE | G27: 0.45 | H27: 0.39 | I27: 0.6 | J27: 0.6 | K27: 85 | L27: 0 | M27: 17 | N27: 148322.257 | O27: 279241.7891 | P27: 35543.43447 | Q27: 23761.0805 | R27: 185964.8201 | S27: 22975.59024 | T27: 10996.8637
B28: #2 | C28: 19 | D28: 2026 | E28: H | F28: A_VIE | G28: 0.45 | H28: 0.39 | I28: 0.6 | J28: 0.6 | K28: 85 | L28: 0 | M28: 17 | N28: 148322.257 | O28: 279241.7891 | P28: 35543.43447 | Q28: 23761.0805 | R28: 185964.8201 | S28: 22975.59024 | T28: 10996.8637
B29: #3 | C29: 20 | D29: 2026 | E29: F | F29: A_VIE | G29: 0.45 | H29: 0.39 | I29: 0.6 | J29: 0.6 | K29: 85 | L29: 0 | M29: 33 | N29: 296644.5141 | O29: 558483.5781 | P29: 71086.86895 | Q29: 47522.16101 | R29: 371929.6403 | S29: 45951.18048 | T29: 21993.72741
B30: #4 | C30: 21 | D30: 2026 | E30: H | F30: A_VIE | G30: 0.45 | H30: 0.39 | I30: 0.6 | J30: 0.6 | K30: 85 | L30: 0 | M30: 33 | N30: 296644.5141 | O30: 558483.5781 | P30: 71086.86895 | Q30: 47522.16101 | R30: 371929.6403 | S30: 45951.18048 | T30: 21993.72741
B31: #5 | C31: 22 | D31: 2026 | E31: H | F31: A_VIE | G31: 0.45 | H31: 0.39 | I31: 0.6 | J31: 0.6 | K31: 85 | L31: 0 | M31: 33 | N31: 296644.5141 | O31: 558483.5781 | P31: 71086.86895 | Q31: 47522.16101 | R31: 371929.6403 | S31: 45951.18048 | T31: 21993.72741
B32: #6 | C32: 23 | D32: 2026 | E32: F | F32: A_VIE | G32: 0.45 | H32: 0.39 | I32: 0.6 | J32: 0.6 | K32: 85 | L32: 0 | M32: 33 | N32: 296644.5141 | O32: 558483.5781 | P32: 71086.86895 | Q32: 47522.16101 | R32: 371929.6403 | S32: 45951.18048 | T32: 21993.72741
B33: #7 | C33: 24 | D33: 2026 | E33: H | F33: A_VIE | G33: 0.45 | H33: 0.39 | I33: 0.6 | J33: 0.6 | K33: 85 | L33: 0 | M33: 33 | N33: 296644.5141 | O33: 558483.5781 | P33: 71086.86895 | Q33: 47522.16101 | R33: 371929.6403 | S33: 45951.18048 | T33: 21993.72741
B34: #8 | C34: 25 | D34: 2026 | E34: H | F34: A_VIE | G34: 0.45 | H34: 0.39 | I34: 0.6 | J34: 0.6 | K34: 85 | L34: 0 | M34: 167 | N34: 1483222.57 | O34: 2792417.891 | P34: 355434.3447 | Q34: 237610.805 | R34: 1859648.201 | S34: 229755.9024 | T34: 109968.637
B35: #9 | C35: 26 | D35: 2026 | E35: F | F35: A_VIE | G35: 0.45 | H35: 0.39 | I35: 0.6 | J35: 0.6 | K35: 85 | L35: 0 | M35: 100 | N35: 889933.5422 | O35: 1675450.734 | P35: 213260.6068 | Q35: 142566.483 | R35: 1115788.921 | S35: 137853.5414 | T35: 65981.18223
B36: #10 | C36: 27 | D36: 2026 | E36: H | F36: A_VIE | G36: 0.45 | H36: 0.39 | I36: 0.6 | J36: 0.6 | K36: 85 | L36: 0 | M36: 100 | N36: 889933.5422 | O36: 1675450.734 | P36: 213260.6068 | Q36: 142566.483 | R36: 1115788.921 | S36: 137853.5414 | T36: 65981.18223
B37: #11 | C37: 28 | D37: 2026 | E37: H | F37: A_VIE | G37: 0.45 | H37: 0.39 | I37: 0.6 | J37: 0.6 | K37: 85 | L37: 0 | M37: 100 | N37: 889933.5422 | O37: 1675450.734 | P37: 213260.6068 | Q37: 142566.483 | R37: 1115788.921 | S37: 137853.5414 | T37: 65981.18223
B38: #12 | C38: 29 | D38: 2026 | E38: F | F38: A_VIE | G38: 0.45 | H38: 0.39 | I38: 0.6 | J38: 0.6 | K38: 85 | L38: 0 | M38: 100 | N38: 889933.5422 | O38: 1675450.734 | P38: 213260.6068 | Q38: 142566.483 | R38: 1115788.921 | S38: 137853.5414 | T38: 65981.18223
B39: #13 | C39: 30 | D39: 2026 | E39: H | F39: A_VIE | G39: 0.45 | H39: 0.39 | I39: 0.6 | J39: 0.6 | K39: 85 | L39: 0 | M39: 100 | N39: 889933.5422 | O39: 1675450.734 | P39: 213260.6068 | Q39: 142566.483 | R39: 1115788.921 | S39: 137853.5414 | T39: 65981.18223
B40: #14 | C40: 31 | D40: 2026 | E40: H | F40: A_VIE | G40: 0.45 | H40: 0.39 | I40: 0.6 | J40: 0.6 | K40: 85 | L40: 0 | M40: 100 | N40: 889933.5422 | O40: 1675450.734 | P40: 213260.6068 | Q40: 142566.483 | R40: 1115788.921 | S40: 137853.5414 | T40: 65981.18223
B41: #15 | C41: 32 | D41: 2026 | E41: F | F41: A_VIE | G41: 0.45 | H41: 0.39 | I41: 0.6 | J41: 0.6 | K41: 85 | L41: 0 | M41: 100 | N41: 889933.5422 | O41: 1675450.734 | P41: 213260.6068 | Q41: 142566.483 | R41: 1115788.921 | S41: 137853.5414 | T41: 65981.18223
B42: #16 | C42: 33 | D42: 2026 | E42: H | F42: A_VIE | G42: 0.45 | H42: 0.39 | I42: 0.6 | J42: 0.6 | K42: 85 | L42: 0 | M42: 100 | N42: 889933.5422 | O42: 1675450.734 | P42: 213260.6068 | Q42: 142566.483 | R42: 1115788.921 | S42: 137853.5414 | T42: 65981.18223
B43: #17 | C43: 34 | D43: 2026 | E43: H | F43: A_VIE | G43: 0.45 | H43: 0.39 | I43: 0.6 | J43: 0.6 | K43: 85 | L43: 0 | M43: 100 | N43: 889933.5422 | O43: 1675450.734 | P43: 213260.6068 | Q43: 142566.483 | R43: 1115788.921 | S43: 137853.5414 | T43: 65981.18223
B44: #18 | C44: 35 | D44: 2026 | E44: F | F44: A_VIE | G44: 0.45 | H44: 0.39 | I44: 0.6 | J44: 0.6 | K44: 85 | L44: 0 | M44: 100 | N44: 889933.5422 | O44: 1675450.734 | P44: 213260.6068 | Q44: 142566.483 | R44: 1115788.921 | S44: 137853.5414 | T44: 65981.18223
B45: #19 | C45: 36 | D45: 2026 | E45: H | F45: A_VIE | G45: 0.45 | H45: 0.39 | I45: 0.6 | J45: 0.6 | K45: 85 | L45: 0 | M45: 17 | N45: 148322.257 | O45: 279241.7891 | P45: 35543.43447 | Q45: 23761.0805 | R45: 185964.8201 | S45: 22975.59024 | T45: 10996.8637
B46: #20 | C46: 37 | D46: 2026 | E46: H | F46: A_VIE | G46: 0.45 | H46: 0.39 | I46: 0.6 | J46: 0.6 | K46: 85 | L46: 0 | M46: 17 | N46: 148322.257 | O46: 279241.7891 | P46: 35543.43447 | Q46: 23761.0805 | R46: 185964.8201 | S46: 22975.59024 | T46: 10996.8637
B47: #21 | C47: 38 | D47: 2026 | E47: F | F47: A_VIE | G47: 0.45 | H47: 0.39 | I47: 0.6 | J47: 0.6 | K47: 85 | L47: 0 | M47: 17 | N47: 148322.257 | O47: 279241.7891 | P47: 35543.43447 | Q47: 23761.0805 | R47: 185964.8201 | S47: 22975.59024 | T47: 10996.8637
B48: #22 | C48: 39 | D48: 2026 | E48: H | F48: A_VIE | G48: 0.45 | H48: 0.39 | I48: 0.6 | J48: 0.6 | K48: 85 | L48: 0 | M48: 17 | N48: 148322.257 | O48: 279241.7891 | P48: 35543.43447 | Q48: 23761.0805 | R48: 185964.8201 | S48: 22975.59024 | T48: 10996.8637
B49: #23 | C49: 40 | D49: 2026 | E49: H | F49: A_VIE | G49: 0.45 | H49: 0.39 | I49: 0.6 | J49: 0.6 | K49: 85 | L49: 0 | M49: 17 | N49: 148322.257 | O49: 279241.7891 | P49: 35543.43447 | Q49: 23761.0805 | R49: 185964.8201 | S49: 22975.59024 | T49: 10996.8637
B50: #24 | C50: 41 | D50: 2026 | E50: F | F50: A_VIE | G50: 0.45 | H50: 0.39 | I50: 0.6 | J50: 0.6 | K50: 85 | L50: 0 | M50: 17 | N50: 148322.257 | O50: 279241.7891 | P50: 35543.43447 | Q50: 23761.0805 | R50: 185964.8201 | S50: 22975.59024 | T50: 10996.8637
B51: #25 | C51: 42 | D51: 2026 | E51: H | F51: A_VIE | G51: 0.45 | H51: 0.39 | I51: 0.6 | J51: 0.6 | K51: 85 | L51: 0 | M51: 17 | N51: 148322.257 | O51: 279241.7891 | P51: 35543.43447 | Q51: 23761.0805 | R51: 185964.8201 | S51: 22975.59024 | T51: 10996.8637
B52: #26 | C52: 43 | D52: 2026 | E52: H | F52: A_VIE | G52: 0.45 | H52: 0.39 | I52: 0.6 | J52: 0.6 | K52: 85 | L52: 0 | M52: 17 | N52: 148322.257 | O52: 279241.7891 | P52: 35543.43447 | Q52: 23761.0805 | R52: 185964.8201 | S52: 22975.59024 | T52: 10996.8637
B53: #27 | C53: 44 | D53: 2026 | E53: F | F53: A_VIE | G53: 0.45 | H53: 0.39 | I53: 0.6 | J53: 0.6 | K53: 85 | L53: 0 | M53: 17 | N53: 148322.257 | O53: 279241.7891 | P53: 35543.43447 | Q53: 23761.0805 | R53: 185964.8201 | S53: 22975.59024 | T53: 10996.8637
B54: #28 | C54: 45 | D54: 2026 | E54: H | F54: A_VIE | G54: 0.45 | H54: 0.39 | I54: 0.6 | J54: 0.6 | K54: 85 | L54: 0 | M54: 17 | N54: 148322.257 | O54: 279241.7891 | P54: 35543.43447 | Q54: 23761.0805 | R54: 185964.8201 | S54: 22975.59024 | T54: 10996.8637
B55: #29 | C55: 46 | D55: 2026 | E55: H | F55: A_VIE | G55: 0.45 | H55: 0.39 | I55: 0.6 | J55: 0.6 | K55: 85 | L55: 0 | M55: 17 | N55: 148322.257 | O55: 279241.7891 | P55: 35543.43447 | Q55: 23761.0805 | R55: 185964.8201 | S55: 22975.59024 | T55: 10996.8637
B56: #30 | C56: 47 | D56: 2026 | E56: F | F56: A_VIE | G56: 0.45 | H56: 0.39 | I56: 0.6 | J56: 0.6 | K56: 85 | L56: 0 | M56: 17 | N56: 148322.257 | O56: 279241.7891 | P56: 35543.43447 | Q56: 23761.0805 | R56: 185964.8201 | S56: 22975.59024 | T56: 10996.8637
B57: #31 | C57: 48 | D57: 2026 | E57: H | F57: A_VIE | G57: 0.45 | H57: 0.39 | I57: 0.6 | J57: 0.6 | K57: 85 | L57: 0 | M57: 17 | N57: 148322.257 | O57: 279241.7891 | P57: 35543.43447 | Q57: 23761.0805 | R57: 185964.8201 | S57: 22975.59024 | T57: 10996.8637
B58: #32 | C58: 49 | D58: 2026 | E58: H | F58: A_VIE | G58: 0.45 | H58: 0.39 | I58: 0.6 | J58: 0.6 | K58: 85 | L58: 0 | M58: 17 | N58: 148322.257 | O58: 279241.7891 | P58: 35543.43447 | Q58: 23761.0805 | R58: 185964.8201 | S58: 22975.59024 | T58: 10996.8637
B59: #33 | C59: 50 | D59: 2026 | E59: F | F59: A_VIE | G59: 0.45 | H59: 0.39 | I59: 0.6 | J59: 0.6 | K59: 85 | L59: 0 | M59: 100 | N59: 889933.5422 | O59: 1675450.734 | P59: 213260.6068 | Q59: 142566.483 | R59: 1115788.921 | S59: 137853.5414 | T59: 65981.18223
B60: #34 | C60: 51 | D60: 2026 | E60: H | F60: A_VIE | G60: 0.45 | H60: 0.39 | I60: 0.6 | J60: 0.6 | K60: 85 | L60: 0 | M60: 100 | N60: 889933.5422 | O60: 1675450.734 | P60: 213260.6068 | Q60: 142566.483 | R60: 1115788.921 | S60: 137853.5414 | T60: 65981.18223
B61: #35 | C61: 52 | D61: 2026 | E61: H | F61: A_VIE | G61: 0.45 | H61: 0.39 | I61: 0.6 | J61: 0.6 | K61: 85 | L61: 0 | M61: 100 | N61: 889933.5422 | O61: 1675450.734 | P61: 213260.6068 | Q61: 142566.483 | R61: 1115788.921 | S61: 137853.5414 | T61: 65981.18223
B62: #36 | C62: 53 | D62: 2026 | E62: F | F62: A_VIE | G62: 0.45 | H62: 0.39 | I62: 0.6 | J62: 0.6 | K62: 85 | L62: 0 | M62: 100 | N62: 889933.5422 | O62: 1675450.734 | P62: 213260.6068 | Q62: 142566.483 | R62: 1115788.921 | S62: 137853.5414 | T62: 65981.18223
B63: #37 | C63: 54 | D63: 2026 | E63: H | F63: A_VIE | G63: 0.45 | H63: 0.39 | I63: 0.6 | J63: 0.6 | K63: 85 | L63: 0 | M63: 100 | N63: 889933.5422 | O63: 1675450.734 | P63: 213260.6068 | Q63: 142566.483 | R63: 1115788.921 | S63: 137853.5414 | T63: 65981.18223
B64: #38 | C64: 55 | D64: 2026 | E64: H | F64: A_VIE | G64: 0.45 | H64: 0.39 | I64: 0.6 | J64: 0.6 | K64: 85 | L64: 0 | M64: 100 | N64: 889933.5422 | O64: 1675450.734 | P64: 213260.6068 | Q64: 142566.483 | R64: 1115788.921 | S64: 137853.5414 | T64: 65981.18223
B65: #39 | C65: 56 | D65: 2026 | E65: F | F65: A_VIE | G65: 0.45 | H65: 0.39 | I65: 0.6 | J65: 0.6 | K65: 85 | L65: 0 | M65: 100 | N65: 889933.5422 | O65: 1675450.734 | P65: 213260.6068 | Q65: 142566.483 | R65: 1115788.921 | S65: 137853.5414 | T65: 65981.18223
B66: #40 | C66: 57 | D66: 2026 | E66: H | F66: A_VIE | G66: 0.45 | H66: 0.39 | I66: 0.6 | J66: 0.6 | K66: 85 | L66: 0 | M66: 100 | N66: 889933.5422 | O66: 1675450.734 | P66: 213260.6068 | Q66: 142566.483 | R66: 1115788.921 | S66: 137853.5414 | T66: 65981.18223
B67: #41 | C67: 58 | D67: 2026 | E67: H | F67: A_VIE | G67: 0.45 | H67: 0.39 | I67: 0.6 | J67: 0.6 | K67: 85 | L67: 0 | M67: 100 | N67: 889933.5422 | O67: 1675450.734 | P67: 213260.6068 | Q67: 142566.483 | R67: 1115788.921 | S67: 137853.5414 | T67: 65981.18223
B68: #42 | C68: 59 | D68: 2026 | E68: F | F68: A_VIE | G68: 0.45 | H68: 0.39 | I68: 0.6 | J68: 0.6 | K68: 85 | L68: 0 | M68: 100 | N68: 889933.5422 | O68: 1675450.734 | P68: 213260.6068 | Q68: 142566.483 | R68: 1115788.921 | S68: 137853.5414 | T68: 65981.18223
B69: #43 | C69: 60 | D69: 2026 | E69: H | F69: A_VIE | G69: 0.45 | H69: 0.39 | I69: 0.6 | J69: 0.6 | K69: 85 | L69: 0 | M69: 167 | N69: 1483222.57 | O69: 2792417.891 | P69: 355434.3447 | Q69: 237610.805 | R69: 1859648.201 | S69: 229755.9024 | T69: 109968.637
B70: #44 | C70: 61 | D70: 2026 | E70: H | F70: A_VIE | G70: 0.45 | H70: 0.39 | I70: 0.6 | J70: 0.6 | K70: 85 | L70: 0 | M70: 100 | N70: 889933.5422 | O70: 1675450.734 | P70: 213260.6068 | Q70: 142566.483 | R70: 1115788.921 | S70: 137853.5414 | T70: 65981.18223
B71: #45 | C71: 62 | D71: 2026 | E71: F | F71: A_VIE | G71: 0.45 | H71: 0.39 | I71: 0.6 | J71: 0.6 | K71: 85 | L71: 0 | M71: 100 | N71: 889933.5422 | O71: 1675450.734 | P71: 213260.6068 | Q71: 142566.483 | R71: 1115788.921 | S71: 137853.5414 | T71: 65981.18223
B72: #46 | C72: 63 | D72: 2026 | E72: H | F72: A_VIE | G72: 0.45 | H72: 0.39 | I72: 0.6 | J72: 0.6 | K72: 85 | L72: 0 | M72: 100 | N72: 889933.5422 | O72: 1675450.734 | P72: 213260.6068 | Q72: 142566.483 | R72: 1115788.921 | S72: 137853.5414 | T72: 65981.18223
B73: #47 | C73: 64 | D73: 2026 | E73: H | F73: A_VIE | G73: 0.45 | H73: 0.39 | I73: 0.6 | J73: 0.6 | K73: 85 | L73: 0 | M73: 100 | N73: 889933.5422 | O73: 1675450.734 | P73: 213260.6068 | Q73: 142566.483 | R73: 1115788.921 | S73: 137853.5414 | T73: 65981.18223
B74: #48 | C74: 65 | D74: 2026 | E74: F | F74: A_VIE | G74: 0.45 | H74: 0.39 | I74: 0.6 | J74: 0.6 | K74: 85 | L74: 0 | M74: 100 | N74: 889933.5422 | O74: 1675450.734 | P74: 213260.6068 | Q74: 142566.483 | R74: 1115788.921 | S74: 137853.5414 | T74: 65981.18223
B75: #49 | C75: 70 | D75: 2026 | E75: H | F75: A_VIE | G75: 0.45 | H75: 0.39 | I75: 0.6 | J75: 0.6 | K75: 85 | L75: 0 | M75: 17 | N75: 148322.257 | O75: 279241.7891 | P75: 35543.43447 | Q75: 23761.0805 | R75: 185964.8201 | S75: 22975.59024 | T75: 10996.8637
B76: #50 | C76: 75 | D76: 2026 | E76: H | F76: A_VIE | G76: 0.45 | H76: 0.39 | I76: 0.6 | J76: 0.6 | K76: 85 | L76: 0 | M76: 17 | N76: 148322.257 | O76: 279241.7891 | P76: 35543.43447 | Q76: 23761.0805 | R76: 185964.8201 | S76: 22975.59024 | T76: 10996.8637
B77: #51 | C77: 80 | D77: 2026 | E77: F | F77: A_VIE | G77: 0.45 | H77: 0.39 | I77: 0.6 | J77: 0.6 | K77: 85 | L77: 0 | M77: 17 | N77: 148322.257 | O77: 279241.7891 | P77: 35543.43447 | Q77: 23761.0805 | R77: 185964.8201 | S77: 22975.59024 | T77: 10996.8637
B78: #52 | C78: 85 | D78: 2026 | E78: H | F78: A_VIE | G78: 0.45 | H78: 0.39 | I78: 0.6 | J78: 0.6 | K78: 85 | L78: 0 | M78: 8 | N78: 74161.12852 | O78: 139620.8945 | P78: 17771.71724 | Q78: 11880.54025 | R78: 92982.41007 | S78: 11487.79512 | T78: 5498.431852
B79: #53 | C79: 90 | D79: 2026 | E79: H | F79: A_VIE | G79: 0.45 | H79: 0.39 | I79: 0.6 | J79: 0.6 | K79: 85 | L79: 0 | M79: 8 | N79: 74161.12852 | O79: 139620.8945 | P79: 17771.71724 | Q79: 11880.54025 | R79: 92982.41007 | S79: 11487.79512 | T79: 5498.431852
B80: #54 | C80: 18 | D80: 2026 | E80: H | F80: A_CAPI | G80: 0.45 | H80: 0.39 | I80: 0.6 | J80: 0.6 | K80: 85 | L80: 0 | M80: 0.05 | N80: 0 | O80: 1294.49836 | P80: 164.7708883 | Q80: 110.1507043 | R80: 862.0885702 | S80: 106.5093587 | T80: 50.97883837
B81: #55 | C81: 19 | D81: 2026 | E81: H | F81: A_CAPI | G81: 0.45 | H81: 0.39 | I81: 0.6 | J81: 0.6 | K81: 85 | L81: 0 | M81: 0.05 | N81: 0 | O81: 1294.49836 | P81: 164.7708883 | Q81: 110.1507043 | R81: 862.0885702 | S81: 106.5093587 | T81: 50.97883837
B82: #56 | C82: 20 | D82: 2026 | E82: F | F82: A_CAPI | G82: 0.45 | H82: 0.39 | I82: 0.6 | J82: 0.6 | K82: 85 | L82: 0 | M82: 0.1 | N82: 0 | O82: 2588.99672 | P82: 329.5417766 | Q82: 220.3014086 | R82: 1724.17714 | S82: 213.0187175 | T82: 101.9576767
B83: #57 | C83: 21 | D83: 2026 | E83: H | F83: A_CAPI | G83: 0.45 | H83: 0.39 | I83: 0.6 | J83: 0.6 | K83: 85 | L83: 0 | M83: 0.1 | N83: 0 | O83: 2588.99672 | P83: 329.5417766 | Q83: 220.3014086 | R83: 1724.17714 | S83: 213.0187175 | T83: 101.9576767
B84: #58 | C84: 22 | D84: 2026 | E84: H | F84: A_CAPI | G84: 0.45 | H84: 0.39 | I84: 0.6 | J84: 0.6 | K84: 85 | L84: 0 | M84: 0.1 | N84: 0 | O84: 2588.99672 | P84: 329.5417766 | Q84: 220.3014086 | R84: 1724.17714 | S84: 213.0187175 | T84: 101.9576767
B85: #59 | C85: 23 | D85: 2026 | E85: F | F85: A_CAPI | G85: 0.45 | H85: 0.39 | I85: 0.6 | J85: 0.6 | K85: 85 | L85: 0 | M85: 0.1 | N85: 0 | O85: 2588.99672 | P85: 329.5417766 | Q85: 220.3014086 | R85: 1724.17714 | S85: 213.0187175 | T85: 101.9576767
B86: #60 | C86: 24 | D86: 2026 | E86: H | F86: A_CAPI | G86: 0.45 | H86: 0.39 | I86: 0.6 | J86: 0.6 | K86: 85 | L86: 0 | M86: 0.1 | N86: 0 | O86: 2588.99672 | P86: 329.5417766 | Q86: 220.3014086 | R86: 1724.17714 | S86: 213.0187175 | T86: 101.9576767
B87: #61 | C87: 25 | D87: 2026 | E87: H | F87: A_CAPI | G87: 0.45 | H87: 0.39 | I87: 0.6 | J87: 0.6 | K87: 85 | L87: 0 | M87: 0.5 | N87: 0 | O87: 12944.9836 | P87: 1647.708883 | Q87: 1101.507043 | R87: 8620.885702 | S87: 1065.093587 | T87: 509.7883837
B88: #62 | C88: 26 | D88: 2026 | E88: F | F88: A_CAPI | G88: 0.45 | H88: 0.39 | I88: 0.6 | J88: 0.6 | K88: 85 | L88: 0 | M88: 0.3 | N88: 0 | O88: 7766.990159 | P88: 988.6253297 | Q88: 660.9042259 | R88: 5172.531421 | S88: 639.0561524 | T88: 305.8730302
B89: #63 | C89: 27 | D89: 2026 | E89: H | F89: A_CAPI | G89: 0.45 | H89: 0.39 | I89: 0.6 | J89: 0.6 | K89: 85 | L89: 0 | M89: 0.3 | N89: 0 | O89: 7766.990159 | P89: 988.6253297 | Q89: 660.9042259 | R89: 5172.531421 | S89: 639.0561524 | T89: 305.8730302
B90: #64 | C90: 28 | D90: 2026 | E90: H | F90: A_CAPI | G90: 0.45 | H90: 0.39 | I90: 0.6 | J90: 0.6 | K90: 85 | L90: 0 | M90: 0.3 | N90: 0 | O90: 7766.990159 | P90: 988.6253297 | Q90: 660.9042259 | R90: 5172.531421 | S90: 639.0561524 | T90: 305.8730302
B91: #65 | C91: 29 | D91: 2026 | E91: F | F91: A_CAPI | G91: 0.45 | H91: 0.39 | I91: 0.6 | J91: 0.6 | K91: 85 | L91: 0 | M91: 0.3 | N91: 0 | O91: 7766.990159 | P91: 988.6253297 | Q91: 660.9042259 | R91: 5172.531421 | S91: 639.0561524 | T91: 305.8730302
B92: #66 | C92: 30 | D92: 2026 | E92: H | F92: A_CAPI | G92: 0.45 | H92: 0.39 | I92: 0.6 | J92: 0.6 | K92: 85 | L92: 0 | M92: 0.3 | N92: 0 | O92: 7766.990159 | P92: 988.6253297 | Q92: 660.9042259 | R92: 5172.531421 | S92: 639.0561524 | T92: 305.8730302
B93: #67 | C93: 31 | D93: 2026 | E93: H | F93: A_CAPI | G93: 0.45 | H93: 0.39 | I93: 0.6 | J93: 0.6 | K93: 85 | L93: 0 | M93: 0.3 | N93: 0 | O93: 7766.990159 | P93: 988.6253297 | Q93: 660.9042259 | R93: 5172.531421 | S93: 639.0561524 | T93: 305.8730302
B94: #68 | C94: 32 | D94: 2026 | E94: F | F94: A_CAPI | G94: 0.45 | H94: 0.39 | I94: 0.6 | J94: 0.6 | K94: 85 | L94: 0 | M94: 0.3 | N94: 0 | O94: 7766.990159 | P94: 988.6253297 | Q94: 660.9042259 | R94: 5172.531421 | S94: 639.0561524 | T94: 305.8730302
B95: #69 | C95: 33 | D95: 2026 | E95: H | F95: A_CAPI | G95: 0.45 | H95: 0.39 | I95: 0.6 | J95: 0.6 | K95: 85 | L95: 0 | M95: 0.3 | N95: 0 | O95: 7766.990159 | P95: 988.6253297 | Q95: 660.9042259 | R95: 5172.531421 | S95: 639.0561524 | T95: 305.8730302
B96: #70 | C96: 34 | D96: 2026 | E96: H | F96: A_CAPI | G96: 0.45 | H96: 0.39 | I96: 0.6 | J96: 0.6 | K96: 85 | L96: 0 | M96: 0.3 | N96: 0 | O96: 7766.990159 | P96: 988.6253297 | Q96: 660.9042259 | R96: 5172.531421 | S96: 639.0561524 | T96: 305.8730302
B97: #71 | C97: 35 | D97: 2026 | E97: F | F97: A_CAPI | G97: 0.45 | H97: 0.39 | I97: 0.6 | J97: 0.6 | K97: 85 | L97: 0 | M97: 0.3 | N97: 0 | O97: 7766.990159 | P97: 988.6253297 | Q97: 660.9042259 | R97: 5172.531421 | S97: 639.0561524 | T97: 305.8730302
B98: #72 | C98: 36 | D98: 2026 | E98: H | F98: A_CAPI | G98: 0.45 | H98: 0.39 | I98: 0.6 | J98: 0.6 | K98: 85 | L98: 0 | M98: 0.05 | N98: 0 | O98: 1294.49836 | P98: 164.7708883 | Q98: 110.1507043 | R98: 862.0885702 | S98: 106.5093587 | T98: 50.97883837
B99: #73 | C99: 37 | D99: 2026 | E99: H | F99: A_CAPI | G99: 0.45 | H99: 0.39 | I99: 0.6 | J99: 0.6 | K99: 85 | L99: 0 | M99: 0.05 | N99: 0 | O99: 1294.49836 | P99: 164.7708883 | Q99: 110.1507043 | R99: 862.0885702 | S99: 106.5093587 | T99: 50.97883837
B100: #74 | C100: 38 | D100: 2026 | E100: F | F100: A_CAPI | G100: 0.45 | H100: 0.39 | I100: 0.6 | J100: 0.6 | K100: 85 | L100: 0 | M100: 0.05 | N100: 0 | O100: 1294.49836 | P100: 164.7708883 | Q100: 110.1507043 | R100: 862.0885702 | S100: 106.5093587 | T100: 50.97883837
B101: #75 | C101: 39 | D101: 2026 | E101: H | F101: A_CAPI | G101: 0.45 | H101: 0.39 | I101: 0.6 | J101: 0.6 | K101: 85 | L101: 0 | M101: 0.05 | N101: 0 | O101: 1294.49836 | P101: 164.7708883 | Q101: 110.1507043 | R101: 862.0885702 | S101: 106.5093587 | T101: 50.97883837
B102: #76 | C102: 40 | D102: 2026 | E102: H | F102: A_CAPI | G102: 0.45 | H102: 0.39 | I102: 0.6 | J102: 0.6 | K102: 85 | L102: 0 | M102: 0.05 | N102: 0 | O102: 1294.49836 | P102: 164.7708883 | Q102: 110.1507043 | R102: 862.0885702 | S102: 106.5093587 | T102: 50.97883837
B103: #77 | C103: 41 | D103: 2026 | E103: F | F103: A_CAPI | G103: 0.45 | H103: 0.39 | I103: 0.6 | J103: 0.6 | K103: 85 | L103: 0 | M103: 0.05 | N103: 0 | O103: 1294.49836 | P103: 164.7708883 | Q103: 110.1507043 | R103: 862.0885702 | S103: 106.5093587 | T103: 50.97883837
B104: #78 | C104: 42 | D104: 2026 | E104: H | F104: A_CAPI | G104: 0.45 | H104: 0.39 | I104: 0.6 | J104: 0.6 | K104: 85 | L104: 0 | M104: 0.05 | N104: 0 | O104: 1294.49836 | P104: 164.7708883 | Q104: 110.1507043 | R104: 862.0885702 | S104: 106.5093587 | T104: 50.97883837
B105: #79 | C105: 43 | D105: 2026 | E105: H | F105: A_CAPI | G105: 0.45 | H105: 0.39 | I105: 0.6 | J105: 0.6 | K105: 85 | L105: 0 | M105: 0.05 | N105: 0 | O105: 1294.49836 | P105: 164.7708883 | Q105: 110.1507043 | R105: 862.0885702 | S105: 106.5093587 | T105: 50.97883837
B106: #80 | C106: 44 | D106: 2026 | E106: F | F106: A_CAPI | G106: 0.45 | H106: 0.39 | I106: 0.6 | J106: 0.6 | K106: 85 | L106: 0 | M106: 0.05 | N106: 0 | O106: 1294.49836 | P106: 164.7708883 | Q106: 110.1507043 | R106: 862.0885702 | S106: 106.5093587 | T106: 50.97883837
B107: #81 | C107: 45 | D107: 2026 | E107: H | F107: A_CAPI | G107: 0.45 | H107: 0.39 | I107: 0.6 | J107: 0.6 | K107: 85 | L107: 0 | M107: 0.05 | N107: 0 | O107: 1294.49836 | P107: 164.7708883 | Q107: 110.1507043 | R107: 862.0885702 | S107: 106.5093587 | T107: 50.97883837
B108: #82 | C108: 46 | D108: 2026 | E108: H | F108: A_CAPI | G108: 0.45 | H108: 0.39 | I108: 0.6 | J108: 0.6 | K108: 85 | L108: 0 | M108: 0.05 | N108: 0 | O108: 1294.49836 | P108: 164.7708883 | Q108: 110.1507043 | R108: 862.0885702 | S108: 106.5093587 | T108: 50.97883837
B109: #83 | C109: 47 | D109: 2026 | E109: F | F109: A_CAPI | G109: 0.45 | H109: 0.39 | I109: 0.6 | J109: 0.6 | K109: 85 | L109: 0 | M109: 0.05 | N109: 0 | O109: 1294.49836 | P109: 164.7708883 | Q109: 110.1507043 | R109: 862.0885702 | S109: 106.5093587 | T109: 50.97883837
B110: #84 | C110: 48 | D110: 2026 | E110: H | F110: A_CAPI | G110: 0.45 | H110: 0.39 | I110: 0.6 | J110: 0.6 | K110: 85 | L110: 0 | M110: 0.05 | N110: 0 | O110: 1294.49836 | P110: 164.7708883 | Q110: 110.1507043 | R110: 862.0885702 | S110: 106.5093587 | T110: 50.97883837
B111: #85 | C111: 49 | D111: 2026 | E111: H | F111: A_CAPI | G111: 0.45 | H111: 0.39 | I111: 0.6 | J111: 0.6 | K111: 85 | L111: 0 | M111: 0.05 | N111: 0 | O111: 1294.49836 | P111: 164.7708883 | Q111: 110.1507043 | R111: 862.0885702 | S111: 106.5093587 | T111: 50.97883837
B112: #86 | C112: 50 | D112: 2026 | E112: F | F112: A_CAPI | G112: 0.45 | H112: 0.39 | I112: 0.6 | J112: 0.6 | K112: 85 | L112: 0 | M112: 0.3 | N112: 0 | O112: 7766.990159 | P112: 988.6253297 | Q112: 660.9042259 | R112: 5172.531421 | S112: 639.0561524 | T112: 305.8730302
B113: #87 | C113: 51 | D113: 2026 | E113: H | F113: A_CAPI | G113: 0.45 | H113: 0.39 | I113: 0.6 | J113: 0.6 | K113: 85 | L113: 0 | M113: 0.3 | N113: 0 | O113: 7766.990159 | P113: 988.6253297 | Q113: 660.9042259 | R113: 5172.531421 | S113: 639.0561524 | T113: 305.8730302
B114: #88 | C114: 52 | D114: 2026 | E114: H | F114: A_CAPI | G114: 0.45 | H114: 0.39 | I114: 0.6 | J114: 0.6 | K114: 85 | L114: 0 | M114: 0.3 | N114: 0 | O114: 7766.990159 | P114: 988.6253297 | Q114: 660.9042259 | R114: 5172.531421 | S114: 639.0561524 | T114: 305.8730302
B115: #89 | C115: 53 | D115: 2026 | E115: F | F115: A_CAPI | G115: 0.45 | H115: 0.39 | I115: 0.6 | J115: 0.6 | K115: 85 | L115: 0 | M115: 0.3 | N115: 0 | O115: 7766.990159 | P115: 988.6253297 | Q115: 660.9042259 | R115: 5172.531421 | S115: 639.0561524 | T115: 305.8730302
B116: #90 | C116: 54 | D116: 2026 | E116: H | F116: A_CAPI | G116: 0.45 | H116: 0.39 | I116: 0.6 | J116: 0.6 | K116: 85 | L116: 0 | M116: 0.3 | N116: 0 | O116: 7766.990159 | P116: 988.6253297 | Q116: 660.9042259 | R116: 5172.531421 | S116: 639.0561524 | T116: 305.8730302
B117: #91 | C117: 55 | D117: 2026 | E117: H | F117: A_CAPI | G117: 0.45 | H117: 0.39 | I117: 0.6 | J117: 0.6 | K117: 85 | L117: 0 | M117: 0.3 | N117: 0 | O117: 7766.990159 | P117: 988.6253297 | Q117: 660.9042259 | R117: 5172.531421 | S117: 639.0561524 | T117: 305.8730302
B118: #92 | C118: 56 | D118: 2026 | E118: F | F118: A_CAPI | G118: 0.45 | H118: 0.39 | I118: 0.6 | J118: 0.6 | K118: 85 | L118: 0 | M118: 0.3 | N118: 0 | O118: 7766.990159 | P118: 988.6253297 | Q118: 660.9042259 | R118: 5172.531421 | S118: 639.0561524 | T118: 305.8730302
B119: #93 | C119: 57 | D119: 2026 | E119: H | F119: A_CAPI | G119: 0.45 | H119: 0.39 | I119: 0.6 | J119: 0.6 | K119: 85 | L119: 0 | M119: 0.3 | N119: 0 | O119: 7766.990159 | P119: 988.6253297 | Q119: 660.9042259 | R119: 5172.531421 | S119: 639.0561524 | T119: 305.8730302
B120: #94 | C120: 58 | D120: 2026 | E120: H | F120: A_CAPI | G120: 0.45 | H120: 0.39 | I120: 0.6 | J120: 0.6 | K120: 85 | L120: 0 | M120: 0.3 | N120: 0 | O120: 7766.990159 | P120: 988.6253297 | Q120: 660.9042259 | R120: 5172.531421 | S120: 639.0561524 | T120: 305.8730302
B121: #95 | C121: 59 | D121: 2026 | E121: F | F121: A_CAPI | G121: 0.45 | H121: 0.39 | I121: 0.6 | J121: 0.6 | K121: 85 | L121: 0 | M121: 0.3 | N121: 0 | O121: 7766.990159 | P121: 988.6253297 | Q121: 660.9042259 | R121: 5172.531421 | S121: 639.0561524 | T121: 305.8730302
B122: #96 | C122: 60 | D122: 2026 | E122: H | F122: A_CAPI | G122: 0.45 | H122: 0.39 | I122: 0.6 | J122: 0.6 | K122: 85 | L122: 0 | M122: 0.5 | N122: 0 | O122: 12944.9836 | P122: 1647.708883 | Q122: 1101.507043 | R122: 8620.885702 | S122: 1065.093587 | T122: 509.7883837
B123: #97 | C123: 61 | D123: 2026 | E123: H | F123: A_CAPI | G123: 0.45 | H123: 0.39 | I123: 0.6 | J123: 0.6 | K123: 85 | L123: 0 | M123: 0.3 | N123: 0 | O123: 7766.990159 | P123: 988.6253297 | Q123: 660.9042259 | R123: 5172.531421 | S123: 639.0561524 | T123: 305.8730302
B124: #98 | C124: 62 | D124: 2026 | E124: F | F124: A_CAPI | G124: 0.45 | H124: 0.39 | I124: 0.6 | J124: 0.6 | K124: 85 | L124: 0 | M124: 0.3 | N124: 0 | O124: 7766.990159 | P124: 988.6253297 | Q124: 660.9042259 | R124: 5172.531421 | S124: 639.0561524 | T124: 305.8730302
B125: #99 | C125: 63 | D125: 2026 | E125: H | F125: A_CAPI | G125: 0.45 | H125: 0.39 | I125: 0.6 | J125: 0.6 | K125: 85 | L125: 0 | M125: 0.3 | N125: 0 | O125: 7766.990159 | P125: 988.6253297 | Q125: 660.9042259 | R125: 5172.531421 | S125: 639.0561524 | T125: 305.8730302
B126: #100 | C126: 64 | D126: 2026 | E126: H | F126: A_CAPI | G126: 0.45 | H126: 0.39 | I126: 0.6 | J126: 0.6 | K126: 85 | L126: 0 | M126: 0.3 | N126: 0 | O126: 7766.990159 | P126: 988.6253297 | Q126: 660.9042259 | R126: 5172.531421 | S126: 639.0561524 | T126: 305.8730302
B127: #101 | C127: 65 | D127: 2026 | E127: F | F127: A_CAPI | G127: 0.45 | H127: 0.39 | I127: 0.6 | J127: 0.6 | K127: 85 | L127: 0 | M127: 0.3 | N127: 0 | O127: 7766.990159 | P127: 988.6253297 | Q127: 660.9042259 | R127: 5172.531421 | S127: 639.0561524 | T127: 305.8730302
B128: #102 | C128: 70 | D128: 2026 | E128: H | F128: A_CAPI | G128: 0.45 | H128: 0.39 | I128: 0.6 | J128: 0.6 | K128: 85 | L128: 0 | M128: 0.05 | N128: 0 | O128: 1294.49836 | P128: 164.7708883 | Q128: 110.1507043 | R128: 862.0885702 | S128: 106.5093587 | T128: 50.97883837
B129: #103 | C129: 75 | D129: 2026 | E129: H | F129: A_CAPI | G129: 0.45 | H129: 0.39 | I129: 0.6 | J129: 0.6 | K129: 85 | L129: 0 | M129: 0.05 | N129: 0 | O129: 1294.49836 | P129: 164.7708883 | Q129: 110.1507043 | R129: 862.0885702 | S129: 106.5093587 | T129: 50.97883837
B130: #104 | C130: 80 | D130: 2026 | E130: F | F130: A_CAPI | G130: 0.45 | H130: 0.39 | I130: 0.6 | J130: 0.6 | K130: 85 | L130: 0 | M130: 0.05 | N130: 0 | O130: 1294.49836 | P130: 164.7708883 | Q130: 110.1507043 | R130: 862.0885702 | S130: 106.5093587 | T130: 50.97883837
B131: #105 | C131: 85 | D131: 2026 | E131: H | F131: A_CAPI | G131: 0.45 | H131: 0.39 | I131: 0.6 | J131: 0.6 | K131: 85 | L131: 0 | M131: 0.03 | N131: 0 | O131: 647.24918 | P131: 82.38544414 | Q131: 55.07535216 | R131: 431.0442851 | S131: 53.25467936 | T131: 25.48941918
B132: #106 | C132: 90 | D132: 2026 | E132: H | F132: A_CAPI | G132: 0.45 | H132: 0.39 | I132: 0.6 | J132: 0.6 | K132: 85 | L132: 0 | M132: 0.03 | N132: 0 | O132: 647.24918 | P132: 82.38544414 | Q132: 55.07535216 | R132: 431.0442851 | S132: 53.25467936 | T132: 25.48941918
B1029: PER | C1029: Euro - UC | D1029: 2027-12-31
B1030: ID | C1030: AGE | D1030: SOUSCRIPTION_YR | E1030: SEXE | F1030: PDT | G1030: CHGT_GEST_EURO_PC | H1030: CHGT_GEST_UC_PC | I1030: COMM_DIST_EURO_PC | J1030: COMM_DIST_UC_PC | K1030: CLAUSE_PB_PC | L1030: TMG_PC | M1030: NO_POLS | N1030: PM_EURO | O1030: PM_UC_TOT | P1030: PM_UC_1 | Q1030: PM_UC_2 | R1030: PM_UC_3 | S1030: PM_UC_4 | T1030: PM_UC_5
B1031: #1 | C1031: 18 | D1031: 2026 | E1031: H | F1031: A_PER | G1031: 0.45 | H1031: 0.39 | I1031: 0.6 | J1031: 0.6 | K1031: 85 | L1031: 0 | M1031: 2 | N1031: 11328.80815 | O1031: 21328.40155 | P1031: 2714.79654 | Q1031: 1814.863986 | R1031: 14203.93549 | S1031: 1754.868482 | T1031: 839.9370512
B1032: #2 | C1032: 19 | D1032: 2026 | E1032: H | F1032: A_PER | G1032: 0.45 | H1032: 0.39 | I1032: 0.6 | J1032: 0.6 | K1032: 85 | L1032: 0 | M1032: 2 | N1032: 11328.80815 | O1032: 21328.40155 | P1032: 2714.79654 | Q1032: 1814.863986 | R1032: 14203.93549 | S1032: 1754.868482 | T1032: 839.9370512
B1033: #3 | C1033: 20 | D1033: 2026 | E1033: F | F1033: A_PER | G1033: 0.45 | H1033: 0.39 | I1033: 0.6 | J1033: 0.6 | K1033: 85 | L1033: 0 | M1033: 2 | N1033: 11328.80815 | O1033: 21328.40155 | P1033: 2714.79654 | Q1033: 1814.863986 | R1033: 14203.93549 | S1033: 1754.868482 | T1033: 839.9370512
B1034: #4 | C1034: 21 | D1034: 2026 | E1034: H | F1034: A_PER | G1034: 0.45 | H1034: 0.39 | I1034: 0.6 | J1034: 0.6 | K1034: 85 | L1034: 0 | M1034: 2 | N1034: 11328.80815 | O1034: 21328.40155 | P1034: 2714.79654 | Q1034: 1814.863986 | R1034: 14203.93549 | S1034: 1754.868482 | T1034: 839.9370512
B1035: #5 | C1035: 22 | D1035: 2026 | E1035: H | F1035: A_PER | G1035: 0.45 | H1035: 0.39 | I1035: 0.6 | J1035: 0.6 | K1035: 85 | L1035: 0 | M1035: 2 | N1035: 11328.80815 | O1035: 21328.40155 | P1035: 2714.79654 | Q1035: 1814.863986 | R1035: 14203.93549 | S1035: 1754.868482 | T1035: 839.9370512
B1036: #6 | C1036: 23 | D1036: 2026 | E1036: F | F1036: A_PER | G1036: 0.45 | H1036: 0.39 | I1036: 0.6 | J1036: 0.6 | K1036: 85 | L1036: 0 | M1036: 2 | N1036: 11328.80815 | O1036: 21328.40155 | P1036: 2714.79654 | Q1036: 1814.863986 | R1036: 14203.93549 | S1036: 1754.868482 | T1036: 839.9370512
B1037: #7 | C1037: 24 | D1037: 2026 | E1037: H | F1037: A_PER | G1037: 0.45 | H1037: 0.39 | I1037: 0.6 | J1037: 0.6 | K1037: 85 | L1037: 0 | M1037: 2 | N1037: 11328.80815 | O1037: 21328.40155 | P1037: 2714.79654 | Q1037: 1814.863986 | R1037: 14203.93549 | S1037: 1754.868482 | T1037: 839.9370512
B1038: #8 | C1038: 25 | D1038: 2026 | E1038: H | F1038: A_PER | G1038: 0.45 | H1038: 0.39 | I1038: 0.6 | J1038: 0.6 | K1038: 85 | L1038: 0 | M1038: 2 | N1038: 11328.80815 | O1038: 21328.40155 | P1038: 2714.79654 | Q1038: 1814.863986 | R1038: 14203.93549 | S1038: 1754.868482 | T1038: 839.9370512
B1039: #9 | C1039: 26 | D1039: 2026 | E1039: F | F1039: A_PER | G1039: 0.45 | H1039: 0.39 | I1039: 0.6 | J1039: 0.6 | K1039: 85 | L1039: 0 | M1039: 5 | N1039: 33986.42446 | O1039: 63985.20465 | P1039: 8144.389621 | Q1039: 5444.591957 | R1039: 42611.80647 | S1039: 5264.605446 | T1039: 2519.811153
B1040: #10 | C1040: 27 | D1040: 2026 | E1040: H | F1040: A_PER | G1040: 0.45 | H1040: 0.39 | I1040: 0.6 | J1040: 0.6 | K1040: 85 | L1040: 0 | M1040: 5 | N1040: 33986.42446 | O1040: 63985.20465 | P1040: 8144.389621 | Q1040: 5444.591957 | R1040: 42611.80647 | S1040: 5264.605446 | T1040: 2519.811153
B1041: #11 | C1041: 28 | D1041: 2026 | E1041: H | F1041: A_PER | G1041: 0.45 | H1041: 0.39 | I1041: 0.6 | J1041: 0.6 | K1041: 85 | L1041: 0 | M1041: 5 | N1041: 33986.42446 | O1041: 63985.20465 | P1041: 8144.389621 | Q1041: 5444.591957 | R1041: 42611.80647 | S1041: 5264.605446 | T1041: 2519.811153
B1042: #12 | C1042: 29 | D1042: 2026 | E1042: F | F1042: A_PER | G1042: 0.45 | H1042: 0.39 | I1042: 0.6 | J1042: 0.6 | K1042: 85 | L1042: 0 | M1042: 5 | N1042: 33986.42446 | O1042: 63985.20465 | P1042: 8144.389621 | Q1042: 5444.591957 | R1042: 42611.80647 | S1042: 5264.605446 | T1042: 2519.811153
B1043: #13 | C1043: 30 | D1043: 2026 | E1043: H | F1043: A_PER | G1043: 0.45 | H1043: 0.39 | I1043: 0.6 | J1043: 0.6 | K1043: 85 | L1043: 0 | M1043: 5 | N1043: 33986.42446 | O1043: 63985.20465 | P1043: 8144.389621 | Q1043: 5444.591957 | R1043: 42611.80647 | S1043: 5264.605446 | T1043: 2519.811153
B1044: #14 | C1044: 31 | D1044: 2026 | E1044: H | F1044: A_PER | G1044: 0.45 | H1044: 0.39 | I1044: 0.6 | J1044: 0.6 | K1044: 85 | L1044: 0 | M1044: 5 | N1044: 33986.42446 | O1044: 63985.20465 | P1044: 8144.389621 | Q1044: 5444.591957 | R1044: 42611.80647 | S1044: 5264.605446 | T1044: 2519.811153
B1045: #15 | C1045: 32 | D1045: 2026 | E1045: F | F1045: A_PER | G1045: 0.45 | H1045: 0.39 | I1045: 0.6 | J1045: 0.6 | K1045: 85 | L1045: 0 | M1045: 5 | N1045: 33986.42446 | O1045: 63985.20465 | P1045: 8144.389621 | Q1045: 5444.591957 | R1045: 42611.80647 | S1045: 5264.605446 | T1045: 2519.811153
B1046: #16 | C1046: 33 | D1046: 2026 | E1046: H | F1046: A_PER | G1046: 0.45 | H1046: 0.39 | I1046: 0.6 | J1046: 0.6 | K1046: 85 | L1046: 0 | M1046: 5 | N1046: 33986.42446 | O1046: 63985.20465 | P1046: 8144.389621 | Q1046: 5444.591957 | R1046: 42611.80647 | S1046: 5264.605446 | T1046: 2519.811153
B1047: #17 | C1047: 34 | D1047: 2026 | E1047: H | F1047: A_PER | G1047: 0.45 | H1047: 0.39 | I1047: 0.6 | J1047: 0.6 | K1047: 85 | L1047: 0 | M1047: 5 | N1047: 33986.42446 | O1047: 63985.20465 | P1047: 8144.389621 | Q1047: 5444.591957 | R1047: 42611.80647 | S1047: 5264.605446 | T1047: 2519.811153
B1048: #18 | C1048: 35 | D1048: 2026 | E1048: F | F1048: A_PER | G1048: 0.45 | H1048: 0.39 | I1048: 0.6 | J1048: 0.6 | K1048: 85 | L1048: 0 | M1048: 5 | N1048: 33986.42446 | O1048: 63985.20465 | P1048: 8144.389621 | Q1048: 5444.591957 | R1048: 42611.80647 | S1048: 5264.605446 | T1048: 2519.811153
B1049: #19 | C1049: 36 | D1049: 2026 | E1049: H | F1049: A_PER | G1049: 0.45 | H1049: 0.39 | I1049: 0.6 | J1049: 0.6 | K1049: 85 | L1049: 0 | M1049: 5 | N1049: 33986.42446 | O1049: 63985.20465 | P1049: 8144.389621 | Q1049: 5444.591957 | R1049: 42611.80647 | S1049: 5264.605446 | T1049: 2519.811153
B1050: #20 | C1050: 37 | D1050: 2026 | E1050: H | F1050: A_PER | G1050: 0.45 | H1050: 0.39 | I1050: 0.6 | J1050: 0.6 | K1050: 85 | L1050: 0 | M1050: 5 | N1050: 33986.42446 | O1050: 63985.20465 | P1050: 8144.389621 | Q1050: 5444.591957 | R1050: 42611.80647 | S1050: 5264.605446 | T1050: 2519.811153
B1051: #21 | C1051: 38 | D1051: 2026 | E1051: F | F1051: A_PER | G1051: 0.45 | H1051: 0.39 | I1051: 0.6 | J1051: 0.6 | K1051: 85 | L1051: 0 | M1051: 9 | N1051: 67972.84892 | O1051: 127970.4093 | P1051: 16288.77924 | Q1051: 10889.18391 | R1051: 85223.61294 | S1051: 10529.21089 | T1051: 5039.622307
B1052: #22 | C1052: 39 | D1052: 2026 | E1052: H | F1052: A_PER | G1052: 0.45 | H1052: 0.39 | I1052: 0.6 | J1052: 0.6 | K1052: 85 | L1052: 0 | M1052: 9 | N1052: 67972.84892 | O1052: 127970.4093 | P1052: 16288.77924 | Q1052: 10889.18391 | R1052: 85223.61294 | S1052: 10529.21089 | T1052: 5039.622307
B1053: #23 | C1053: 40 | D1053: 2026 | E1053: H | F1053: A_PER | G1053: 0.45 | H1053: 0.39 | I1053: 0.6 | J1053: 0.6 | K1053: 85 | L1053: 0 | M1053: 9 | N1053: 67972.84892 | O1053: 127970.4093 | P1053: 16288.77924 | Q1053: 10889.18391 | R1053: 85223.61294 | S1053: 10529.21089 | T1053: 5039.622307
B1054: #24 | C1054: 41 | D1054: 2026 | E1054: F | F1054: A_PER | G1054: 0.45 | H1054: 0.39 | I1054: 0.6 | J1054: 0.6 | K1054: 85 | L1054: 0 | M1054: 12 | N1054: 90630.46522 | O1054: 170627.2124 | P1054: 21718.37232 | Q1054: 14518.91188 | R1054: 113631.4839 | S1054: 14038.94786 | T1054: 6719.496409
B1055: #25 | C1055: 42 | D1055: 2026 | E1055: H | F1055: A_PER | G1055: 0.45 | H1055: 0.39 | I1055: 0.6 | J1055: 0.6 | K1055: 85 | L1055: 0 | M1055: 12 | N1055: 90630.46522 | O1055: 170627.2124 | P1055: 21718.37232 | Q1055: 14518.91188 | R1055: 113631.4839 | S1055: 14038.94786 | T1055: 6719.496409
B1056: #26 | C1056: 43 | D1056: 2026 | E1056: H | F1056: A_PER | G1056: 0.45 | H1056: 0.39 | I1056: 0.6 | J1056: 0.6 | K1056: 85 | L1056: 0 | M1056: 12 | N1056: 90630.46522 | O1056: 170627.2124 | P1056: 21718.37232 | Q1056: 14518.91188 | R1056: 113631.4839 | S1056: 14038.94786 | T1056: 6719.496409
B1057: #27 | C1057: 44 | D1057: 2026 | E1057: F | F1057: A_PER | G1057: 0.45 | H1057: 0.39 | I1057: 0.6 | J1057: 0.6 | K1057: 85 | L1057: 0 | M1057: 15 | N1057: 113288.0815 | O1057: 213284.0155 | P1057: 27147.9654 | Q1057: 18148.63986 | R1057: 142039.3549 | S1057: 17548.68482 | T1057: 8399.370512
B1058: #28 | C1058: 45 | D1058: 2026 | E1058: H | F1058: A_PER | G1058: 0.45 | H1058: 0.39 | I1058: 0.6 | J1058: 0.6 | K1058: 85 | L1058: 0 | M1058: 15 | N1058: 113288.0815 | O1058: 213284.0155 | P1058: 27147.9654 | Q1058: 18148.63986 | R1058: 142039.3549 | S1058: 17548.68482 | T1058: 8399.370512
B1059: #29 | C1059: 46 | D1059: 2026 | E1059: H | F1059: A_PER | G1059: 0.45 | H1059: 0.39 | I1059: 0.6 | J1059: 0.6 | K1059: 85 | L1059: 0 | M1059: 15 | N1059: 113288.0815 | O1059: 213284.0155 | P1059: 27147.9654 | Q1059: 18148.63986 | R1059: 142039.3549 | S1059: 17548.68482 | T1059: 8399.370512
B1060: #30 | C1060: 47 | D1060: 2026 | E1060: F | F1060: A_PER | G1060: 0.45 | H1060: 0.39 | I1060: 0.6 | J1060: 0.6 | K1060: 85 | L1060: 0 | M1060: 12 | N1060: 90630.46522 | O1060: 170627.2124 | P1060: 21718.37232 | Q1060: 14518.91188 | R1060: 113631.4839 | S1060: 14038.94786 | T1060: 6719.496409
B1061: #31 | C1061: 48 | D1061: 2026 | E1061: H | F1061: A_PER | G1061: 0.45 | H1061: 0.39 | I1061: 0.6 | J1061: 0.6 | K1061: 85 | L1061: 0 | M1061: 12 | N1061: 90630.46522 | O1061: 170627.2124 | P1061: 21718.37232 | Q1061: 14518.91188 | R1061: 113631.4839 | S1061: 14038.94786 | T1061: 6719.496409
B1062: #32 | C1062: 49 | D1062: 2026 | E1062: H | F1062: A_PER | G1062: 0.45 | H1062: 0.39 | I1062: 0.6 | J1062: 0.6 | K1062: 85 | L1062: 0 | M1062: 12 | N1062: 90630.46522 | O1062: 170627.2124 | P1062: 21718.37232 | Q1062: 14518.91188 | R1062: 113631.4839 | S1062: 14038.94786 | T1062: 6719.496409
B1063: #33 | C1063: 50 | D1063: 2026 | E1063: F | F1063: A_PER | G1063: 0.45 | H1063: 0.39 | I1063: 0.6 | J1063: 0.6 | K1063: 85 | L1063: 0 | M1063: 12 | N1063: 90630.46522 | O1063: 170627.2124 | P1063: 21718.37232 | Q1063: 14518.91188 | R1063: 113631.4839 | S1063: 14038.94786 | T1063: 6719.496409
B1064: #34 | C1064: 51 | D1064: 2026 | E1064: H | F1064: A_PER | G1064: 0.45 | H1064: 0.39 | I1064: 0.6 | J1064: 0.6 | K1064: 85 | L1064: 0 | M1064: 12 | N1064: 90630.46522 | O1064: 170627.2124 | P1064: 21718.37232 | Q1064: 14518.91188 | R1064: 113631.4839 | S1064: 14038.94786 | T1064: 6719.496409
B1065: #35 | C1065: 52 | D1065: 2026 | E1065: H | F1065: A_PER | G1065: 0.45 | H1065: 0.39 | I1065: 0.6 | J1065: 0.6 | K1065: 85 | L1065: 0 | M1065: 12 | N1065: 90630.46522 | O1065: 170627.2124 | P1065: 21718.37232 | Q1065: 14518.91188 | R1065: 113631.4839 | S1065: 14038.94786 | T1065: 6719.496409
B1066: #36 | C1066: 53 | D1066: 2026 | E1066: F | F1066: A_PER | G1066: 0.45 | H1066: 0.39 | I1066: 0.6 | J1066: 0.6 | K1066: 85 | L1066: 0 | M1066: 12 | N1066: 90630.46522 | O1066: 170627.2124 | P1066: 21718.37232 | Q1066: 14518.91188 | R1066: 113631.4839 | S1066: 14038.94786 | T1066: 6719.496409
B1067: #37 | C1067: 54 | D1067: 2026 | E1067: H | F1067: A_PER | G1067: 0.45 | H1067: 0.39 | I1067: 0.6 | J1067: 0.6 | K1067: 85 | L1067: 0 | M1067: 12 | N1067: 90630.46522 | O1067: 170627.2124 | P1067: 21718.37232 | Q1067: 14518.91188 | R1067: 113631.4839 | S1067: 14038.94786 | T1067: 6719.496409
B1068: #38 | C1068: 55 | D1068: 2026 | E1068: H | F1068: A_PER | G1068: 0.45 | H1068: 0.39 | I1068: 0.6 | J1068: 0.6 | K1068: 85 | L1068: 0 | M1068: 12 | N1068: 90630.46522 | O1068: 170627.2124 | P1068: 21718.37232 | Q1068: 14518.91188 | R1068: 113631.4839 | S1068: 14038.94786 | T1068: 6719.496409
B1069: #39 | C1069: 56 | D1069: 2026 | E1069: F | F1069: A_PER | G1069: 0.45 | H1069: 0.39 | I1069: 0.6 | J1069: 0.6 | K1069: 85 | L1069: 0 | M1069: 6 | N1069: 45315.23261 | O1069: 85313.6062 | P1069: 10859.18616 | Q1069: 7259.455942 | R1069: 56815.74196 | S1069: 7019.473928 | T1069: 3359.748205
B1070: #40 | C1070: 57 | D1070: 2026 | E1070: H | F1070: A_PER | G1070: 0.45 | H1070: 0.39 | I1070: 0.6 | J1070: 0.6 | K1070: 85 | L1070: 0 | M1070: 3 | N1070: 22657.61631 | O1070: 42656.8031 | P1070: 5429.593081 | Q1070: 3629.727971 | R1070: 28407.87098 | S1070: 3509.736964 | T1070: 1679.874102
B1071: #41 | C1071: 58 | D1071: 2026 | E1071: H | F1071: A_PER | G1071: 0.45 | H1071: 0.39 | I1071: 0.6 | J1071: 0.6 | K1071: 85 | L1071: 0 | M1071: 3 | N1071: 22657.61631 | O1071: 42656.8031 | P1071: 5429.593081 | Q1071: 3629.727971 | R1071: 28407.87098 | S1071: 3509.736964 | T1071: 1679.874102
B1072: #42 | C1072: 59 | D1072: 2026 | E1072: F | F1072: A_PER | G1072: 0.45 | H1072: 0.39 | I1072: 0.6 | J1072: 0.6 | K1072: 85 | L1072: 0 | M1072: 3 | N1072: 22657.61631 | O1072: 42656.8031 | P1072: 5429.593081 | Q1072: 3629.727971 | R1072: 28407.87098 | S1072: 3509.736964 | T1072: 1679.874102
B1073: #43 | C1073: 60 | D1073: 2026 | E1073: H | F1073: A_PER | G1073: 0.45 | H1073: 0.39 | I1073: 0.6 | J1073: 0.6 | K1073: 85 | L1073: 0 | M1073: 3 | N1073: 22657.61631 | O1073: 42656.8031 | P1073: 5429.593081 | Q1073: 3629.727971 | R1073: 28407.87098 | S1073: 3509.736964 | T1073: 1679.874102

Sheet SCR_Op_BP_1
B2: I) Inputs pour SCR Opérationnel
B5: AVIE + CAPI + PER | D5: 2027-12-31
B6: Flux | C6: Euro | D6: UC
B7: Primes acquises pour les 12 derniers mois VIE UC (N) - Earn life-ul | C7: - | D7: 69756720
B8: Primes acquises pour les 12 derniers mois VIE Euros (N) - Earn life | C8: 28183280 | D8: -
B9: Primes acquises sur les 12 mois précédents les 12 derniers mois VIE UC (N-1) - pEarn life-ul | C9: - | D9: 0
B10: Primes acquises sur les 12 mois précédents les 12 derniers mois VIE Euros (N-1) - pEarn life | C10: 0 | D10: -
B11: Montant de frais engagé au titre des contrats UC (12 derniers mois) (Expul) | C11: - | D11: 1615745.063 | E11: répartition au regard du mix Euro / UC (idem split collecte) - yc comm distribution
B12: Montant de frais engagé au titre des contrats euros (12 derniers mois) | C12: 656751.5095 | D12: - | E12: répartition au regard du mix Euro / UC (idem split collecte) - yc comm distribution

Sheet RFR_BP_1
B2: Choc S2 | C2: 1 | D2: =C2+1 -> 2 | E2: 3 | F2: 4 | G2: 5 | H2: 6 | I2: 7 | J2: 8 | K2: 9 | L2: 10 | M2: 11 | N2: 12 | O2: 13 | P2: 14 | Q2: 15 | R2: 16 | S2: 17 | T2: 18 | U2: 19 | V2: 20 | W2: 21 | X2: 22 | Y2: 23 | Z2: 24 | AA2: 25 | AB2: 26 | AC2: 27 | AD2: 28 | AE2: 29 | AF2: 30 | AG2: 31 | AH2: 32 | AI2: 33 | AJ2: 34 | AK2: 35 | AL2: 36 | AM2: 37 | AN2: 38 | AO2: 39 | AP2: 40 | AQ2: 41 | AR2: 42 | AS2: 43 | AT2: 44 | AU2: 45 | AV2: 46 | AW2: 47 | AX2: 48 | AY2: 49 | AZ2: 50 | BA2: 51 | BB2: 52 | BC2: 53 | BD2: 54 | BE2: 55 | BF2: 56 | BG2: 57 | BH2: 58 | BI2: 59 | BJ2: 60 | BK2: 61 | BL2: 62 | BM2: 63 | BN2: 64 | BO2: 65 | BP2: =BO2+1 -> 66 | BQ2: 67 | BR2: 68 | BS2: 69 | BT2: 70 | BU2: 71 | BV2: 72 | BW2: 73 | BX2: 74 | BY2: 75 | BZ2: 76 | CA2: 77 | CB2: 78 | CC2: 79 | CD2: 80 | CE2: 81 | CF2: 82 | CG2: 83 | CH2: 84 | CI2: 85 | CJ2: 86 | CK2: 87 | CL2: 88 | CM2: 89 | CN2: 90 | CO2: 91 | CP2: 92 | CQ2: 93 | CR2: 94 | CS2: 95 | CT2: 96 | CU2: 97 | CV2: 98 | CW2: 99 | CX2: 100
B3: Central | C3: 0.02161 | D3: 0.02162 | E3: 0.02243 | F3: 0.02337 | G3: 0.0242 | H3: 0.02502 | I3: 0.02579 | J3: 0.02655 | K3: 0.02726 | L3: 0.02795 | M3: 0.02853 | N3: 0.02907 | O3: 0.02953 | P3: 0.02994 | Q3: 0.03027 | R3: 0.03051 | S3: 0.03068 | T3: 0.0308 | U3: 0.03089 | V3: 0.03097 | W3: 0.03104 | X3: 0.03111 | Y3: 0.03118 | Z3: 0.03124 | AA3: 0.03129 | AB3: 0.03135 | AC3: 0.03139 | AD3: 0.03144 | AE3: 0.03148 | AF3: 0.03152 | AG3: 0.03156 | AH3: 0.0316 | AI3: 0.03163 | AJ3: 0.03167 | AK3: 0.0317 | AL3: 0.03173 | AM3: 0.03176 | AN3: 0.03179 | AO3: 0.03181 | AP3: 0.03184 | AQ3: 0.03186 | AR3: 0.03188 | AS3: 0.03191 | AT3: 0.03193 | AU3: 0.03195 | AV3: 0.03197 | AW3: 0.03199 | AX3: 0.03201 | AY3: 0.03203 | AZ3: 0.03204 | BA3: 0.03206 | BB3: 0.03208 | BC3: 0.03209 | BD3: 0.03211 | BE3: 0.03212 | BF3: 0.03214 | BG3: 0.03215 | BH3: 0.03216 | BI3: 0.03218 | BJ3: 0.03219 | BK3: 0.0322 | BL3: 0.03221 | BM3: 0.03222 | BN3: 0.03224 | BO3: 0.03225 | BP3: 0.03226 | BQ3: 0.03227 | BR3: 0.03228 | BS3: 0.03229 | BT3: 0.0323 | BU3: 0.03231 | BV3: 0.03232 | BW3: 0.03233 | BX3: 0.03233 | BY3: 0.03234 | BZ3: 0.03235 | CA3: 0.03236 | CB3: 0.03237 | CC3: 0.03237 | CD3: 0.03238 | CE3: 0.03239 | CF3: 0.0324 | CG3: 0.0324 | CH3: 0.03241 | CI3: 0.03242 | CJ3: 0.03242 | CK3: 0.03243 | CL3: 0.03244 | CM3: 0.03244 | CN3: 0.03245 | CO3: 0.03245 | CP3: 0.03246 | CQ3: 0.03247 | CR3: 0.03247 | CS3: 0.03248 | CT3: 0.03248 | CU3: 0.03249 | CV3: 0.03249 | CW3: 0.0325 | CX3: 0.0325
B4: Up | C4: 0.03534 | D4: 0.03535 | E4: 0.03551 | F4: 0.03598 | G4: 0.03641 | H4: 0.03699 | I4: 0.03745 | J4: 0.03809 | K4: 0.03837 | L4: 0.03885 | M4: 0.03888 | N4: 0.03909 | O4: 0.03953 | P4: 0.03994 | Q4: 0.04027 | R4: 0.04051 | S4: 0.04068 | T4: 0.0408 | U4: 0.04089 | V4: 0.04097 | W4: 0.04104 | X4: 0.04111 | Y4: 0.04118 | Z4: 0.04124 | AA4: 0.04129 | AB4: 0.04135 | AC4: 0.04139 | AD4: 0.04144 | AE4: 0.04148 | AF4: 0.04152 | AG4: 0.04156 | AH4: 0.0416 | AI4: 0.04163 | AJ4: 0.04167 | AK4: 0.0417 | AL4: 0.04173 | AM4: 0.04176 | AN4: 0.04179 | AO4: 0.04181 | AP4: 0.04184 | AQ4: 0.04186 | AR4: 0.04188 | AS4: 0.04191 | AT4: 0.04193 | AU4: 0.04195 | AV4: 0.04197 | AW4: 0.04199 | AX4: 0.04201 | AY4: 0.04203 | AZ4: 0.04204 | BA4: 0.04206 | BB4: 0.04208 | BC4: 0.04209 | BD4: 0.04211 | BE4: 0.04212 | BF4: 0.04214 | BG4: 0.04215 | BH4: 0.04216 | BI4: 0.04218 | BJ4: 0.04219 | BK4: 0.0422 | BL4: 0.04221 | BM4: 0.04222 | BN4: 0.04224 | BO4: 0.04225 | BP4: 0.04226 | BQ4: 0.04227 | BR4: 0.04228 | BS4: 0.04229 | BT4: 0.0423 | BU4: 0.04231 | BV4: 0.04232 | BW4: 0.04233 | BX4: 0.04233 | BY4: 0.04234 | BZ4: 0.04235 | CA4: 0.04236 | CB4: 0.04237 | CC4: 0.04237 | CD4: 0.04238 | CE4: 0.04239 | CF4: 0.0424 | CG4: 0.0424 | CH4: 0.04241 | CI4: 0.04242 | CJ4: 0.04242 | CK4: 0.04243 | CL4: 0.04244 | CM4: 0.04244 | CN4: 0.04245 | CO4: 0.04245 | CP4: 0.04246 | CQ4: 0.04247 | CR4: 0.04247 | CS4: 0.04248 | CT4: 0.04248 | CU4: 0.04249 | CV4: 0.04249 | CW4: 0.0425 | CX4: 0.0425
B5: Down | C5: 0.0069 | D5: 0.00887 | E5: 0.01099 | F5: 0.01269 | G5: 0.01399 | H5: 0.01535 | I5: 0.01651 | J5: 0.01771 | K5: 0.01892 | L5: 0.01991 | M5: 0.02057 | N5: 0.02122 | O5: 0.02182 | P5: 0.02212 | Q5: 0.02264 | R5: 0.02253 | S5: 0.02265 | T5: 0.02274 | U5: 0.02251 | V5: 0.02257 | W5: 0.02265 | X5: 0.02274 | Y5: 0.02282 | Z5: 0.02289 | AA5: 0.02296 | AB5: 0.02303 | AC5: 0.02309 | AD5: 0.02316 | AE5: 0.02321 | AF5: 0.02327 | AG5: 0.02333 | AH5: 0.02339 | AI5: 0.02344 | AJ5: 0.0235 | AK5: 0.02355 | AL5: 0.02361 | AM5: 0.02366 | AN5: 0.02371 | AO5: 0.02376 | AP5: 0.02381 | AQ5: 0.02386 | AR5: 0.0239 | AS5: 0.02396 | AT5: 0.02401 | AU5: 0.02405 | AV5: 0.0241 | AW5: 0.02415 | AX5: 0.0242 | AY5: 0.02425 | AZ5: 0.02429 | BA5: 0.02434 | BB5: 0.02439 | BC5: 0.02443 | BD5: 0.02448 | BE5: 0.02452 | BF5: 0.02457 | BG5: 0.02462 | BH5: 0.02466 | BI5: 0.02471 | BJ5: 0.02475 | BK5: 0.0248 | BL5: 0.02484 | BM5: 0.02489 | BN5: 0.02494 | BO5: 0.02498 | BP5: 0.02503 | BQ5: 0.02507 | BR5: 0.02512 | BS5: 0.02516 | BT5: 0.02521 | BU5: 0.02525 | BV5: 0.0253 | BW5: 0.02535 | BX5: 0.02538 | BY5: 0.02543 | BZ5: 0.02547 | CA5: 0.02552 | CB5: 0.02557 | CC5: 0.0256 | CD5: 0.02565 | CE5: 0.0257 | CF5: 0.02574 | CG5: 0.02578 | CH5: 0.02583 | CI5: 0.02588 | CJ5: 0.02591 | CK5: 0.02596 | CL5: 0.02601 | CM5: 0.02605 | CN5: 0.0261 | CO5: 0.02609 | CP5: 0.0261 | CQ5: 0.02611 | CR5: 0.02611 | CS5: 0.02611 | CT5: 0.02611 | CU5: 0.02612 | CV5: 0.02612 | CW5: 0.02612 | CX5: 0.02612
B6: Central hors VA | C6: 0.01961 | D6: 0.01962 | E6: 0.02043 | F6: 0.02137 | G6: 0.0222 | H6: 0.02302 | I6: 0.02379 | J6: 0.02455 | K6: 0.02526 | L6: 0.02595 | M6: 0.02653 | N6: 0.02707 | O6: 0.02753 | P6: 0.02794 | Q6: 0.02827 | R6: 0.02851 | S6: 0.02868 | T6: 0.0288 | U6: 0.02889 | V6: 0.02897 | W6: 0.02905 | X6: 0.02913 | Y6: 0.02921 | Z6: 0.0293 | AA6: 0.02938 | AB6: 0.02946 | AC6: 0.02953 | AD6: 0.02961 | AE6: 0.02969 | AF6: 0.02976 | AG6: 0.02983 | AH6: 0.0299 | AI6: 0.02996 | AJ6: 0.03003 | AK6: 0.03009 | AL6: 0.03015 | AM6: 0.03021 | AN6: 0.03027 | AO6: 0.03033 | AP6: 0.03038 | AQ6: 0.03043 | AR6: 0.03048 | AS6: 0.03053 | AT6: 0.03058 | AU6: 0.03062 | AV6: 0.03067 | AW6: 0.03071 | AX6: 0.03075 | AY6: 0.0308 | AZ6: 0.03083 | BA6: 0.03087 | BB6: 0.03091 | BC6: 0.03095 | BD6: 0.03098 | BE6: 0.03101 | BF6: 0.03105 | BG6: 0.03108 | BH6: 0.03111 | BI6: 0.03114 | BJ6: 0.03117 | BK6: 0.0312 | BL6: 0.03122 | BM6: 0.03125 | BN6: 0.03128 | BO6: 0.0313 | BP6: 0.03133 | BQ6: 0.03135 | BR6: 0.03138 | BS6: 0.0314 | BT6: 0.03142 | BU6: 0.03144 | BV6: 0.03146 | BW6: 0.03148 | BX6: 0.0315 | BY6: 0.03152 | BZ6: 0.03154 | CA6: 0.03156 | CB6: 0.03158 | CC6: 0.0316 | CD6: 0.03161 | CE6: 0.03163 | CF6: 0.03165 | CG6: 0.03166 | CH6: 0.03168 | CI6: 0.03169 | CJ6: 0.03171 | CK6: 0.03172 | CL6: 0.03174 | CM6: 0.03175 | CN6: 0.03177 | CO6: 0.03178 | CP6: 0.03179 | CQ6: 0.03181 | CR6: 0.03182 | CS6: 0.03183 | CT6: 0.03184 | CU6: 0.03185 | CV6: 0.03187 | CW6: 0.03188 | CX6: 0.03189

Sheet Frais_BP_2
B2: I) Frais et commissions
B5: AVIE / PER / CAPI | D5: 2031-12-31
B6: Frais | C6: Taux | D6: Driver
B7: Frais Acquisition | C7: 0.004636765671 | D7: Primes
B8: Frais Gestion Sinistres | C8: 0.002600978427 | D8: Prestations
B9: Frais Administration | C9: 0.002124767929 | D9: PM | E9: exclusion C3S sur primes
B10: Frais Financiers | C10: 0.00075859202 | D10: VM | E10: MP 2029 car 2030 non calculés
B11: Prélèvements Sociaux | C11: 0.172 | D11: PB
B12: Clause PB | C12: 0.85 | D12: Produits financiers
B13: Frais d'acquisition : hors comm. distribution intégrées directement dans la projection des frais dans la maquette S2
B14: Frais Administration / Frais acq : montant de frais sur l'ensemble des périmètres => tx unique tout produit

Sheet Bilan_Social_BP_2
B2: I) Bilan Social
B5: AVIE + PER + CAPI + FP | C5: 2028-12-31
B7: ACTIF | C7: VNC | D7: VM | F7: PASSIF
B8: Capital souscrit non appelé ou compte de liaison avec le siège | C8: 0 | D8: 0 | F8: Capitaux Propres | G8: 13345017.96
B9: Actifs Incorporels | C9: 0 | D9: 0 | F9: Résultat de l'exercice | G9: -1023633.092
B10: Obligation Govies | C10: 64816398.96 | D10: 64816398.96 | F10: Passifs subordonnés | G10: 0
B11: Obligation Corporate | C11: 17284373.06 | D11: 17802904.25 | F11: Provisions techniques brutes | G11: 74100480.42
B12: Action | C12: 0 | D12: 0 | F12: PM | G12: 74100480.42 | J12: =ROUND(G12,2)=ROUND(SUM(Model_Points_BP_2!$C$7:$C$11,Model_Points_BP_2!$C$15:$C$19),2) -> TRUE
B13: Monétaire | C13: 4321093.264 | D13: 4321093.264 | F13: PSAP | G13: 0
B14: UC | C14: 141434317 | D14: 141434317 | F14: PPE | G14: 0 | I14: =C14=G15 -> TRUE
B15: Provisions sur placements | C15: 0 | D15: 0 | F15: Provision techniques des contrats en unité de comptes | G15: 141434317 | J15: =ROUND(G15,5)=ROUND(SUM(Model_Points_BP_2!$L$7:$L$11,Model_Points_BP_2!$L$15:$L$19),5) -> TRUE
B16: PDD | C16: 0 | D16: 0 | F16: Autres provisions techniques | G16: 0
B17: Part des cessionnaires et rétrocessionnaires dans les provisions techniques | C17: 0 | D17: 0 | F17: RC | G17: 0
B18: Créances | C18: 0 | D18: 0 | F18: PRE | G18: 0
B19: Autres Actifs | C19: 0 | D19: 0 | F19: Provisions (autres que techniques) | G19: 0
B20: Comptes de régularisation Actif | C20: 0 | D20: 0 | F20: Dettes pour dépôts en espèces reçues des cessionnaires | G20: 0
F21: Autres Dettes | G21: 0
F22: Comptes de régularisation Passif | G22: 0

Sheet Model_Points_BP_2
B2: I) Model Points Actifs
B5: AVIE | C5: Euro | D5: 2028-12-31 | K5: AVIE / CAPI | L5: UC | M5: 2028-12-31 | Q5: AVIE / CAPI | R5: 2028-12-31
B6: Asset Type | C6: VNC | D6: VM | E6: COUPON_PC | F6: NOMINAL | G6: MATURITY_RESID | H6: SPREAD_PC | I6: DIV_PC | K6: Asset Type | L6: VNC | M6: VM | N6: DIV_PC | O6: UC_TYPE | Q6: Reserves | R6: VNC
B7: BONDS_GOV | C7: 51451504.69 | D7: 51451504.69 | E7: 0 | F7: 51451504.69 | G7: 7 | K7: OBLIG_CORP | L7: 16672310.41 | M7: 16672310.41 | N7: 0 | O7: 1 | P7: =M7/SUM($M$7:$M$11) -> 0.1272855134 | Q7: PPE | R7: 0
B8: BONDS_CORP | C8: 13720401.25 | D8: 14132013.29 | E8: 0 | F8: 13720401.25 | G8: 7 | K8: OBLIG_CORP_NR | L8: 11145577.68 | M8: 11145577.68 | N8: 0 | O8: 2 | P8: =M8/SUM($M$7:$M$11) -> 0.08509142053 | Q8: RC | R8: 0
B9: EQ_TYPE_1 | C9: 0 | D9: 0 | E9: 0 | I9: 0 | K9: EQ_TYPE_1 | L9: 87230264.95 | M9: 87230264.95 | N9: 0 | O9: 3 | P9: 0.6659634318
B10: EQ_TYPE_2 | C10: 0 | D10: 0 | E10: 0 | I10: 0 | K10: EQ_TYPE_2 | L10: 10777128.83 | M10: 10777128.83 | N10: 0 | O10: 4 | P10: 0.08227848101 | T10: PMVL ALL | U10: =SUM(D7:D11)-SUM(C7:C11)+SUM(D15:D19)-SUM(C15:C19) -> 444602.8825
B11: CASH | C11: 3430100.313 | D11: 3430100.313 | E11: 0 | K11: MONETAIRE | L11: 5158283.883 | M11: 5158283.883 | N11: 0 | O11: 5 | P11: 0.03938115331
B13: PER | C13: Euro | D13: 2028-12-31 | K13: PER | L13: UC | M13: 2028-12-31 | Q13: PER | R13: 2028-12-31
B14: Asset Type | C14: VNC | D14: VM | E14: COUPON_PC | F14: NOMINAL | G14: MATURITY_RESID | H14: SPREAD_PC | I14: DIV_PC | K14: Asset Type | L14: VNC | M14: VM | N14: DIV_PC | O14: UC_TYPE | Q14: Reserves | R14: VNC
B15: BONDS_GOV | C15: 4123855.626 | D15: 4123855.626 | E15: 0 | F15: 4123855.626 | G15: 7 | K15: OBLIG_CORP | L15: 1330229.237 | M15: 1330229.237 | N15: 0 | O15: 1 | Q15: PPE | R15: 0
B16: BONDS_CORP | C16: 1099694.834 | D16: 1132685.679 | E16: 0 | F16: 1099694.834 | G16: 7 | K16: OBLIG_CORP_NR | L16: 889269.2692 | M16: 889269.2692 | N16: 0 | O16: 2 | Q16: RC | R16: 0
B17: EQ_TYPE_1 | C17: 0 | D17: 0 | E17: 0 | I17: 0 | K17: EQ_TYPE_1 | L17: 6959818.165 | M17: 6959818.165 | N17: 0 | O17: 3
B18: EQ_TYPE_2 | C18: 0 | D18: 0 | E18: 0 | I18: 0 | K18: EQ_TYPE_2 | L18: 859871.938 | M18: 859871.938 | N18: 0 | O18: 4
B19: CASH | C19: 274923.7084 | D19: 274923.7084 | E19: 0 | K19: MONETAIRE | L19: 411562.637 | M19: 411562.637 | N19: 0 | O19: 5
B22: II) Model Points Passif
B25: Assurance Vie | C25: Euro - UC | D25: 2028-12-31
B26: ID | C26: AGE | D26: SOUSCRIPTION_YR | E26: SEXE | F26: PDT | G26: CHGT_GEST_EURO_PC | H26: CHGT_GEST_UC_PC | I26: COMM_DIST_EURO_PC | J26: COMM_DIST_UC_PC | K26: CLAUSE_PB_PC | L26: TMG_PC | M26: NO_POLS | N26: PM_EURO | O26: PM_UC_TOT | P26: PM_UC_1 | Q26: PM_UC_2 | R26: PM_UC_3 | S26: PM_UC_4 | T26: PM_UC_5
B27: #1 | C27: 18 | D27: 2026 | E27: H | F27: A_VIE | G27: 0.45 | H27: 0.39 | I27: 0.6 | J27: 0.6 | K27: 85 | L27: 0 | M27: 11 | N27: 171505.0156 | O27: 325973.3885 | P27: 41491.69009 | Q27: 27737.53868 | R27: 217086.3565 | S27: 26820.59525 | T27: 12837.20798
B28: #2 | C28: 18 | D28: 2028 | E28: H | F28: A_VIE | G28: 0.45 | H28: 0.39 | I28: 0.6 | J28: 0.6 | K28: 85 | L28: 0 | M28: 11 | N28: 171505.0156 | O28: 325973.3885 | P28: 41491.69009 | Q28: 27737.53868 | R28: 217086.3565 | S28: 26820.59525 | T28: 12837.20798
B29: #3 | C29: 19 | D29: 2026 | E29: H | F29: A_VIE | G29: 0.45 | H29: 0.39 | I29: 0.6 | J29: 0.6 | K29: 85 | L29: 0 | M29: 11 | N29: 171505.0156 | O29: 325973.3885 | P29: 41491.69009 | Q29: 27737.53868 | R29: 217086.3565 | S29: 26820.59525 | T29: 12837.20798
B30: #4 | C30: 19 | D30: 2028 | E30: H | F30: A_VIE | G30: 0.45 | H30: 0.39 | I30: 0.6 | J30: 0.6 | K30: 85 | L30: 0 | M30: 11 | N30: 171505.0156 | O30: 325973.3885 | P30: 41491.69009 | Q30: 27737.53868 | R30: 217086.3565 | S30: 26820.59525 | T30: 12837.20798
B31: #5 | C31: 20 | D31: 2026 | E31: F | F31: A_VIE | G31: 0.45 | H31: 0.39 | I31: 0.6 | J31: 0.6 | K31: 85 | L31: 0 | M31: 22 | N31: 343010.0313 | O31: 651946.7769 | P31: 82983.38019 | Q31: 55475.07736 | R31: 434172.7129 | S31: 53641.19051 | T31: 25674.41597
B32: #6 | C32: 20 | D32: 2028 | E32: F | F32: A_VIE | G32: 0.45 | H32: 0.39 | I32: 0.6 | J32: 0.6 | K32: 85 | L32: 0 | M32: 22 | N32: 343010.0313 | O32: 651946.7769 | P32: 82983.38019 | Q32: 55475.07736 | R32: 434172.7129 | S32: 53641.19051 | T32: 25674.41597
B33: #7 | C33: 21 | D33: 2026 | E33: H | F33: A_VIE | G33: 0.45 | H33: 0.39 | I33: 0.6 | J33: 0.6 | K33: 85 | L33: 0 | M33: 22 | N33: 343010.0313 | O33: 651946.7769 | P33: 82983.38019 | Q33: 55475.07736 | R33: 434172.7129 | S33: 53641.19051 | T33: 25674.41597
B34: #8 | C34: 21 | D34: 2028 | E34: H | F34: A_VIE | G34: 0.45 | H34: 0.39 | I34: 0.6 | J34: 0.6 | K34: 85 | L34: 0 | M34: 22 | N34: 343010.0313 | O34: 651946.7769 | P34: 82983.38019 | Q34: 55475.07736 | R34: 434172.7129 | S34: 53641.19051 | T34: 25674.41597
B35: #9 | C35: 22 | D35: 2026 | E35: H | F35: A_VIE | G35: 0.45 | H35: 0.39 | I35: 0.6 | J35: 0.6 | K35: 85 | L35: 0 | M35: 22 | N35: 343010.0313 | O35: 651946.7769 | P35: 82983.38019 | Q35: 55475.07736 | R35: 434172.7129 | S35: 53641.19051 | T35: 25674.41597
B36: #10 | C36: 22 | D36: 2028 | E36: H | F36: A_VIE | G36: 0.45 | H36: 0.39 | I36: 0.6 | J36: 0.6 | K36: 85 | L36: 0 | M36: 22 | N36: 343010.0313 | O36: 651946.7769 | P36: 82983.38019 | Q36: 55475.07736 | R36: 434172.7129 | S36: 53641.19051 | T36: 25674.41597
B37: #11 | C37: 23 | D37: 2026 | E37: F | F37: A_VIE | G37: 0.45 | H37: 0.39 | I37: 0.6 | J37: 0.6 | K37: 85 | L37: 0 | M37: 22 | N37: 343010.0313 | O37: 651946.7769 | P37: 82983.38019 | Q37: 55475.07736 | R37: 434172.7129 | S37: 53641.19051 | T37: 25674.41597
B38: #12 | C38: 23 | D38: 2028 | E38: F | F38: A_VIE | G38: 0.45 | H38: 0.39 | I38: 0.6 | J38: 0.6 | K38: 85 | L38: 0 | M38: 22 | N38: 343010.0313 | O38: 651946.7769 | P38: 82983.38019 | Q38: 55475.07736 | R38: 434172.7129 | S38: 53641.19051 | T38: 25674.41597
B39: #13 | C39: 24 | D39: 2026 | E39: H | F39: A_VIE | G39: 0.45 | H39: 0.39 | I39: 0.6 | J39: 0.6 | K39: 85 | L39: 0 | M39: 22 | N39: 343010.0313 | O39: 651946.7769 | P39: 82983.38019 | Q39: 55475.07736 | R39: 434172.7129 | S39: 53641.19051 | T39: 25674.41597
B40: #14 | C40: 24 | D40: 2028 | E40: H | F40: A_VIE | G40: 0.45 | H40: 0.39 | I40: 0.6 | J40: 0.6 | K40: 85 | L40: 0 | M40: 22 | N40: 343010.0313 | O40: 651946.7769 | P40: 82983.38019 | Q40: 55475.07736 | R40: 434172.7129 | S40: 53641.19051 | T40: 25674.41597
B41: #15 | C41: 25 | D41: 2026 | E41: H | F41: A_VIE | G41: 0.45 | H41: 0.39 | I41: 0.6 | J41: 0.6 | K41: 85 | L41: 0 | M41: 112 | N41: 1715050.156 | O41: 3259733.885 | P41: 414916.9009 | Q41: 277375.3868 | R41: 2170863.565 | S41: 268205.9525 | T41: 128372.0798
B42: #16 | C42: 25 | D42: 2028 | E42: H | F42: A_VIE | G42: 0.45 | H42: 0.39 | I42: 0.6 | J42: 0.6 | K42: 85 | L42: 0 | M42: 112 | N42: 1715050.156 | O42: 3259733.885 | P42: 414916.9009 | Q42: 277375.3868 | R42: 2170863.565 | S42: 268205.9525 | T42: 128372.0798
B43: #17 | C43: 26 | D43: 2026 | E43: F | F43: A_VIE | G43: 0.45 | H43: 0.39 | I43: 0.6 | J43: 0.6 | K43: 85 | L43: 0 | M43: 67 | N43: 1029030.094 | O43: 1955840.331 | P43: 248950.1406 | Q43: 166425.2321 | R43: 1302518.139 | S43: 160923.5715 | T43: 77023.24791
B44: #18 | C44: 26 | D44: 2028 | E44: F | F44: A_VIE | G44: 0.45 | H44: 0.39 | I44: 0.6 | J44: 0.6 | K44: 85 | L44: 0 | M44: 67 | N44: 1029030.094 | O44: 1955840.331 | P44: 248950.1406 | Q44: 166425.2321 | R44: 1302518.139 | S44: 160923.5715 | T44: 77023.24791
B45: #19 | C45: 27 | D45: 2026 | E45: H | F45: A_VIE | G45: 0.45 | H45: 0.39 | I45: 0.6 | J45: 0.6 | K45: 85 | L45: 0 | M45: 67 | N45: 1029030.094 | O45: 1955840.331 | P45: 248950.1406 | Q45: 166425.2321 | R45: 1302518.139 | S45: 160923.5715 | T45: 77023.24791
B46: #20 | C46: 27 | D46: 2028 | E46: H | F46: A_VIE | G46: 0.45 | H46: 0.39 | I46: 0.6 | J46: 0.6 | K46: 85 | L46: 0 | M46: 67 | N46: 1029030.094 | O46: 1955840.331 | P46: 248950.1406 | Q46: 166425.2321 | R46: 1302518.139 | S46: 160923.5715 | T46: 77023.24791
B47: #21 | C47: 28 | D47: 2026 | E47: H | F47: A_VIE | G47: 0.45 | H47: 0.39 | I47: 0.6 | J47: 0.6 | K47: 85 | L47: 0 | M47: 67 | N47: 1029030.094 | O47: 1955840.331 | P47: 248950.1406 | Q47: 166425.2321 | R47: 1302518.139 | S47: 160923.5715 | T47: 77023.24791
B48: #22 | C48: 28 | D48: 2028 | E48: H | F48: A_VIE | G48: 0.45 | H48: 0.39 | I48: 0.6 | J48: 0.6 | K48: 85 | L48: 0 | M48: 67 | N48: 1029030.094 | O48: 1955840.331 | P48: 248950.1406 | Q48: 166425.2321 | R48: 1302518.139 | S48: 160923.5715 | T48: 77023.24791
B49: #23 | C49: 29 | D49: 2026 | E49: F | F49: A_VIE | G49: 0.45 | H49: 0.39 | I49: 0.6 | J49: 0.6 | K49: 85 | L49: 0 | M49: 67 | N49: 1029030.094 | O49: 1955840.331 | P49: 248950.1406 | Q49: 166425.2321 | R49: 1302518.139 | S49: 160923.5715 | T49: 77023.24791
B50: #24 | C50: 29 | D50: 2028 | E50: F | F50: A_VIE | G50: 0.45 | H50: 0.39 | I50: 0.6 | J50: 0.6 | K50: 85 | L50: 0 | M50: 67 | N50: 1029030.094 | O50: 1955840.331 | P50: 248950.1406 | Q50: 166425.2321 | R50: 1302518.139 | S50: 160923.5715 | T50: 77023.24791
B51: #25 | C51: 30 | D51: 2026 | E51: H | F51: A_VIE | G51: 0.45 | H51: 0.39 | I51: 0.6 | J51: 0.6 | K51: 85 | L51: 0 | M51: 67 | N51: 1029030.094 | O51: 1955840.331 | P51: 248950.1406 | Q51: 166425.2321 | R51: 1302518.139 | S51: 160923.5715 | T51: 77023.24791
B52: #26 | C52: 30 | D52: 2028 | E52: H | F52: A_VIE | G52: 0.45 | H52: 0.39 | I52: 0.6 | J52: 0.6 | K52: 85 | L52: 0 | M52: 67 | N52: 1029030.094 | O52: 1955840.331 | P52: 248950.1406 | Q52: 166425.2321 | R52: 1302518.139 | S52: 160923.5715 | T52: 77023.24791
B53: #27 | C53: 31 | D53: 2026 | E53: H | F53: A_VIE | G53: 0.45 | H53: 0.39 | I53: 0.6 | J53: 0.6 | K53: 85 | L53: 0 | M53: 67 | N53: 1029030.094 | O53: 1955840.331 | P53: 248950.1406 | Q53: 166425.2321 | R53: 1302518.139 | S53: 160923.5715 | T53: 77023.24791
B54: #28 | C54: 31 | D54: 2028 | E54: H | F54: A_VIE | G54: 0.45 | H54: 0.39 | I54: 0.6 | J54: 0.6 | K54: 85 | L54: 0 | M54: 67 | N54: 1029030.094 | O54: 1955840.331 | P54: 248950.1406 | Q54: 166425.2321 | R54: 1302518.139 | S54: 160923.5715 | T54: 77023.24791
B55: #29 | C55: 32 | D55: 2026 | E55: F | F55: A_VIE | G55: 0.45 | H55: 0.39 | I55: 0.6 | J55: 0.6 | K55: 85 | L55: 0 | M55: 67 | N55: 1029030.094 | O55: 1955840.331 | P55: 248950.1406 | Q55: 166425.2321 | R55: 1302518.139 | S55: 160923.5715 | T55: 77023.24791
B56: #30 | C56: 32 | D56: 2028 | E56: F | F56: A_VIE | G56: 0.45 | H56: 0.39 | I56: 0.6 | J56: 0.6 | K56: 85 | L56: 0 | M56: 67 | N56: 1029030.094 | O56: 1955840.331 | P56: 248950.1406 | Q56: 166425.2321 | R56: 1302518.139 | S56: 160923.5715 | T56: 77023.24791
B57: #31 | C57: 33 | D57: 2026 | E57: H | F57: A_VIE | G57: 0.45 | H57: 0.39 | I57: 0.6 | J57: 0.6 | K57: 85 | L57: 0 | M57: 67 | N57: 1029030.094 | O57: 1955840.331 | P57: 248950.1406 | Q57: 166425.2321 | R57: 1302518.139 | S57: 160923.5715 | T57: 77023.24791
B58: #32 | C58: 33 | D58: 2028 | E58: H | F58: A_VIE | G58: 0.45 | H58: 0.39 | I58: 0.6 | J58: 0.6 | K58: 85 | L58: 0 | M58: 67 | N58: 1029030.094 | O58: 1955840.331 | P58: 248950.1406 | Q58: 166425.2321 | R58: 1302518.139 | S58: 160923.5715 | T58: 77023.24791
B59: #33 | C59: 34 | D59: 2026 | E59: H | F59: A_VIE | G59: 0.45 | H59: 0.39 | I59: 0.6 | J59: 0.6 | K59: 85 | L59: 0 | M59: 67 | N59: 1029030.094 | O59: 1955840.331 | P59: 248950.1406 | Q59: 166425.2321 | R59: 1302518.139 | S59: 160923.5715 | T59: 77023.24791
B60: #34 | C60: 34 | D60: 2028 | E60: H | F60: A_VIE | G60: 0.45 | H60: 0.39 | I60: 0.6 | J60: 0.6 | K60: 85 | L60: 0 | M60: 67 | N60: 1029030.094 | O60: 1955840.331 | P60: 248950.1406 | Q60: 166425.2321 | R60: 1302518.139 | S60: 160923.5715 | T60: 77023.24791
B61: #35 | C61: 35 | D61: 2026 | E61: F | F61: A_VIE | G61: 0.45 | H61: 0.39 | I61: 0.6 | J61: 0.6 | K61: 85 | L61: 0 | M61: 67 | N61: 1029030.094 | O61: 1955840.331 | P61: 248950.1406 | Q61: 166425.2321 | R61: 1302518.139 | S61: 160923.5715 | T61: 77023.24791
B62: #36 | C62: 35 | D62: 2028 | E62: F | F62: A_VIE | G62: 0.45 | H62: 0.39 | I62: 0.6 | J62: 0.6 | K62: 85 | L62: 0 | M62: 67 | N62: 1029030.094 | O62: 1955840.331 | P62: 248950.1406 | Q62: 166425.2321 | R62: 1302518.139 | S62: 160923.5715 | T62: 77023.24791
B63: #37 | C63: 36 | D63: 2026 | E63: H | F63: A_VIE | G63: 0.45 | H63: 0.39 | I63: 0.6 | J63: 0.6 | K63: 85 | L63: 0 | M63: 11 | N63: 171505.0156 | O63: 325973.3885 | P63: 41491.69009 | Q63: 27737.53868 | R63: 217086.3565 | S63: 26820.59525 | T63: 12837.20798
B64: #38 | C64: 36 | D64: 2028 | E64: H | F64: A_VIE | G64: 0.45 | H64: 0.39 | I64: 0.6 | J64: 0.6 | K64: 85 | L64: 0 | M64: 11 | N64: 171505.0156 | O64: 325973.3885 | P64: 41491.69009 | Q64: 27737.53868 | R64: 217086.3565 | S64: 26820.59525 | T64: 12837.20798
B65: #39 | C65: 37 | D65: 2026 | E65: H | F65: A_VIE | G65: 0.45 | H65: 0.39 | I65: 0.6 | J65: 0.6 | K65: 85 | L65: 0 | M65: 11 | N65: 171505.0156 | O65: 325973.3885 | P65: 41491.69009 | Q65: 27737.53868 | R65: 217086.3565 | S65: 26820.59525 | T65: 12837.20798
B66: #40 | C66: 37 | D66: 2028 | E66: H | F66: A_VIE | G66: 0.45 | H66: 0.39 | I66: 0.6 | J66: 0.6 | K66: 85 | L66: 0 | M66: 11 | N66: 171505.0156 | O66: 325973.3885 | P66: 41491.69009 | Q66: 27737.53868 | R66: 217086.3565 | S66: 26820.59525 | T66: 12837.20798
B67: #41 | C67: 38 | D67: 2026 | E67: F | F67: A_VIE | G67: 0.45 | H67: 0.39 | I67: 0.6 | J67: 0.6 | K67: 85 | L67: 0 | M67: 11 | N67: 171505.0156 | O67: 325973.3885 | P67: 41491.69009 | Q67: 27737.53868 | R67: 217086.3565 | S67: 26820.59525 | T67: 12837.20798
B68: #42 | C68: 38 | D68: 2028 | E68: F | F68: A_VIE | G68: 0.45 | H68: 0.39 | I68: 0.6 | J68: 0.6 | K68: 85 | L68: 0 | M68: 11 | N68: 171505.0156 | O68: 325973.3885 | P68: 41491.69009 | Q68: 27737.53868 | R68: 217086.3565 | S68: 26820.59525 | T68: 12837.20798
B69: #43 | C69: 39 | D69: 2026 | E69: H | F69: A_VIE | G69: 0.45 | H69: 0.39 | I69: 0.6 | J69: 0.6 | K69: 85 | L69: 0 | M69: 11 | N69: 171505.0156 | O69: 325973.3885 | P69: 41491.69009 | Q69: 27737.53868 | R69: 217086.3565 | S69: 26820.59525 | T69: 12837.20798
B70: #44 | C70: 39 | D70: 2028 | E70: H | F70: A_VIE | G70: 0.45 | H70: 0.39 | I70: 0.6 | J70: 0.6 | K70: 85 | L70: 0 | M70: 11 | N70: 171505.0156 | O70: 325973.3885 | P70: 41491.69009 | Q70: 27737.53868 | R70: 217086.3565 | S70: 26820.59525 | T70: 12837.20798
B71: #45 | C71: 40 | D71: 2026 | E71: H | F71: A_VIE | G71: 0.45 | H71: 0.39 | I71: 0.6 | J71: 0.6 | K71: 85 | L71: 0 | M71: 11 | N71: 171505.0156 | O71: 325973.3885 | P71: 41491.69009 | Q71: 27737.53868 | R71: 217086.3565 | S71: 26820.59525 | T71: 12837.20798
B72: #46 | C72: 40 | D72: 2028 | E72: H | F72: A_VIE | G72: 0.45 | H72: 0.39 | I72: 0.6 | J72: 0.6 | K72: 85 | L72: 0 | M72: 11 | N72: 171505.0156 | O72: 325973.3885 | P72: 41491.69009 | Q72: 27737.53868 | R72: 217086.3565 | S72: 26820.59525 | T72: 12837.20798
B73: #47 | C73: 41 | D73: 2026 | E73: F | F73: A_VIE | G73: 0.45 | H73: 0.39 | I73: 0.6 | J73: 0.6 | K73: 85 | L73: 0 | M73: 11 | N73: 171505.0156 | O73: 325973.3885 | P73: 41491.69009 | Q73: 27737.53868 | R73: 217086.3565 | S73: 26820.59525 | T73: 12837.20798
B74: #48 | C74: 41 | D74: 2028 | E74: F | F74: A_VIE | G74: 0.45 | H74: 0.39 | I74: 0.6 | J74: 0.6 | K74: 85 | L74: 0 | M74: 11 | N74: 171505.0156 | O74: 325973.3885 | P74: 41491.69009 | Q74: 27737.53868 | R74: 217086.3565 | S74: 26820.59525 | T74: 12837.20798
B75: #49 | C75: 42 | D75: 2026 | E75: H | F75: A_VIE | G75: 0.45 | H75: 0.39 | I75: 0.6 | J75: 0.6 | K75: 85 | L75: 0 | M75: 11 | N75: 171505.0156 | O75: 325973.3885 | P75: 41491.69009 | Q75: 27737.53868 | R75: 217086.3565 | S75: 26820.59525 | T75: 12837.20798
B76: #50 | C76: 42 | D76: 2028 | E76: H | F76: A_VIE | G76: 0.45 | H76: 0.39 | I76: 0.6 | J76: 0.6 | K76: 85 | L76: 0 | M76: 11 | N76: 171505.0156 | O76: 325973.3885 | P76: 41491.69009 | Q76: 27737.53868 | R76: 217086.3565 | S76: 26820.59525 | T76: 12837.20798
B77: #51 | C77: 43 | D77: 2026 | E77: H | F77: A_VIE | G77: 0.45 | H77: 0.39 | I77: 0.6 | J77: 0.6 | K77: 85 | L77: 0 | M77: 11 | N77: 171505.0156 | O77: 325973.3885 | P77: 41491.69009 | Q77: 27737.53868 | R77: 217086.3565 | S77: 26820.59525 | T77: 12837.20798
B78: #52 | C78: 43 | D78: 2028 | E78: H | F78: A_VIE | G78: 0.45 | H78: 0.39 | I78: 0.6 | J78: 0.6 | K78: 85 | L78: 0 | M78: 11 | N78: 171505.0156 | O78: 325973.3885 | P78: 41491.69009 | Q78: 27737.53868 | R78: 217086.3565 | S78: 26820.59525 | T78: 12837.20798
B79: #53 | C79: 44 | D79: 2026 | E79: F | F79: A_VIE | G79: 0.45 | H79: 0.39 | I79: 0.6 | J79: 0.6 | K79: 85 | L79: 0 | M79: 11 | N79: 171505.0156 | O79: 325973.3885 | P79: 41491.69009 | Q79: 27737.53868 | R79: 217086.3565 | S79: 26820.59525 | T79: 12837.20798
B80: #54 | C80: 44 | D80: 2028 | E80: F | F80: A_VIE | G80: 0.45 | H80: 0.39 | I80: 0.6 | J80: 0.6 | K80: 85 | L80: 0 | M80: 11 | N80: 171505.0156 | O80: 325973.3885 | P80: 41491.69009 | Q80: 27737.53868 | R80: 217086.3565 | S80: 26820.59525 | T80: 12837.20798
B81: #55 | C81: 45 | D81: 2026 | E81: H | F81: A_VIE | G81: 0.45 | H81: 0.39 | I81: 0.6 | J81: 0.6 | K81: 85 | L81: 0 | M81: 11 | N81: 171505.0156 | O81: 325973.3885 | P81: 41491.69009 | Q81: 27737.53868 | R81: 217086.3565 | S81: 26820.59525 | T81: 12837.20798
B82: #56 | C82: 45 | D82: 2028 | E82: H | F82: A_VIE | G82: 0.45 | H82: 0.39 | I82: 0.6 | J82: 0.6 | K82: 85 | L82: 0 | M82: 11 | N82: 171505.0156 | O82: 325973.3885 | P82: 41491.69009 | Q82: 27737.53868 | R82: 217086.3565 | S82: 26820.59525 | T82: 12837.20798
B83: #57 | C83: 46 | D83: 2026 | E83: H | F83: A_VIE | G83: 0.45 | H83: 0.39 | I83: 0.6 | J83: 0.6 | K83: 85 | L83: 0 | M83: 11 | N83: 171505.0156 | O83: 325973.3885 | P83: 41491.69009 | Q83: 27737.53868 | R83: 217086.3565 | S83: 26820.59525 | T83: 12837.20798
B84: #58 | C84: 46 | D84: 2028 | E84: H | F84: A_VIE | G84: 0.45 | H84: 0.39 | I84: 0.6 | J84: 0.6 | K84: 85 | L84: 0 | M84: 11 | N84: 171505.0156 | O84: 325973.3885 | P84: 41491.69009 | Q84: 27737.53868 | R84: 217086.3565 | S84: 26820.59525 | T84: 12837.20798
B85: #59 | C85: 47 | D85: 2026 | E85: F | F85: A_VIE | G85: 0.45 | H85: 0.39 | I85: 0.6 | J85: 0.6 | K85: 85 | L85: 0 | M85: 11 | N85: 171505.0156 | O85: 325973.3885 | P85: 41491.69009 | Q85: 27737.53868 | R85: 217086.3565 | S85: 26820.59525 | T85: 12837.20798
B86: #60 | C86: 47 | D86: 2028 | E86: F | F86: A_VIE | G86: 0.45 | H86: 0.39 | I86: 0.6 | J86: 0.6 | K86: 85 | L86: 0 | M86: 11 | N86: 171505.0156 | O86: 325973.3885 | P86: 41491.69009 | Q86: 27737.53868 | R86: 217086.3565 | S86: 26820.59525 | T86: 12837.20798
B87: #61 | C87: 48 | D87: 2026 | E87: H | F87: A_VIE | G87: 0.45 | H87: 0.39 | I87: 0.6 | J87: 0.6 | K87: 85 | L87: 0 | M87: 11 | N87: 171505.0156 | O87: 325973.3885 | P87: 41491.69009 | Q87: 27737.53868 | R87: 217086.3565 | S87: 26820.59525 | T87: 12837.20798
B88: #62 | C88: 48 | D88: 2028 | E88: H | F88: A_VIE | G88: 0.45 | H88: 0.39 | I88: 0.6 | J88: 0.6 | K88: 85 | L88: 0 | M88: 11 | N88: 171505.0156 | O88: 325973.3885 | P88: 41491.69009 | Q88: 27737.53868 | R88: 217086.3565 | S88: 26820.59525 | T88: 12837.20798
B89: #63 | C89: 49 | D89: 2026 | E89: H | F89: A_VIE | G89: 0.45 | H89: 0.39 | I89: 0.6 | J89: 0.6 | K89: 85 | L89: 0 | M89: 11 | N89: 171505.0156 | O89: 325973.3885 | P89: 41491.69009 | Q89: 27737.53868 | R89: 217086.3565 | S89: 26820.59525 | T89: 12837.20798
B90: #64 | C90: 49 | D90: 2028 | E90: H | F90: A_VIE | G90: 0.45 | H90: 0.39 | I90: 0.6 | J90: 0.6 | K90: 85 | L90: 0 | M90: 11 | N90: 171505.0156 | O90: 325973.3885 | P90: 41491.69009 | Q90: 27737.53868 | R90: 217086.3565 | S90: 26820.59525 | T90: 12837.20798
B91: #65 | C91: 50 | D91: 2026 | E91: F | F91: A_VIE | G91: 0.45 | H91: 0.39 | I91: 0.6 | J91: 0.6 | K91: 85 | L91: 0 | M91: 67 | N91: 1029030.094 | O91: 1955840.331 | P91: 248950.1406 | Q91: 166425.2321 | R91: 1302518.139 | S91: 160923.5715 | T91: 77023.24791
B92: #66 | C92: 50 | D92: 2028 | E92: F | F92: A_VIE | G92: 0.45 | H92: 0.39 | I92: 0.6 | J92: 0.6 | K92: 85 | L92: 0 | M92: 67 | N92: 1029030.094 | O92: 1955840.331 | P92: 248950.1406 | Q92: 166425.2321 | R92: 1302518.139 | S92: 160923.5715 | T92: 77023.24791
B93: #67 | C93: 51 | D93: 2026 | E93: H | F93: A_VIE | G93: 0.45 | H93: 0.39 | I93: 0.6 | J93: 0.6 | K93: 85 | L93: 0 | M93: 67 | N93: 1029030.094 | O93: 1955840.331 | P93: 248950.1406 | Q93: 166425.2321 | R93: 1302518.139 | S93: 160923.5715 | T93: 77023.24791
B94: #68 | C94: 51 | D94: 2028 | E94: H | F94: A_VIE | G94: 0.45 | H94: 0.39 | I94: 0.6 | J94: 0.6 | K94: 85 | L94: 0 | M94: 67 | N94: 1029030.094 | O94: 1955840.331 | P94: 248950.1406 | Q94: 166425.2321 | R94: 1302518.139 | S94: 160923.5715 | T94: 77023.24791
B95: #69 | C95: 52 | D95: 2026 | E95: H | F95: A_VIE | G95: 0.45 | H95: 0.39 | I95: 0.6 | J95: 0.6 | K95: 85 | L95: 0 | M95: 67 | N95: 1029030.094 | O95: 1955840.331 | P95: 248950.1406 | Q95: 166425.2321 | R95: 1302518.139 | S95: 160923.5715 | T95: 77023.24791
B96: #70 | C96: 52 | D96: 2028 | E96: H | F96: A_VIE | G96: 0.45 | H96: 0.39 | I96: 0.6 | J96: 0.6 | K96: 85 | L96: 0 | M96: 67 | N96: 1029030.094 | O96: 1955840.331 | P96: 248950.1406 | Q96: 166425.2321 | R96: 1302518.139 | S96: 160923.5715 | T96: 77023.24791
B97: #71 | C97: 53 | D97: 2026 | E97: F | F97: A_VIE | G97: 0.45 | H97: 0.39 | I97: 0.6 | J97: 0.6 | K97: 85 | L97: 0 | M97: 67 | N97: 1029030.094 | O97: 1955840.331 | P97: 248950.1406 | Q97: 166425.2321 | R97: 1302518.139 | S97: 160923.5715 | T97: 77023.24791
B98: #72 | C98: 53 | D98: 2028 | E98: F | F98: A_VIE | G98: 0.45 | H98: 0.39 | I98: 0.6 | J98: 0.6 | K98: 85 | L98: 0 | M98: 67 | N98: 1029030.094 | O98: 1955840.331 | P98: 248950.1406 | Q98: 166425.2321 | R98: 1302518.139 | S98: 160923.5715 | T98: 77023.24791
B99: #73 | C99: 54 | D99: 2026 | E99: H | F99: A_VIE | G99: 0.45 | H99: 0.39 | I99: 0.6 | J99: 0.6 | K99: 85 | L99: 0 | M99: 67 | N99: 1029030.094 | O99: 1955840.331 | P99: 248950.1406 | Q99: 166425.2321 | R99: 1302518.139 | S99: 160923.5715 | T99: 77023.24791
B100: #74 | C100: 54 | D100: 2028 | E100: H | F100: A_VIE | G100: 0.45 | H100: 0.39 | I100: 0.6 | J100: 0.6 | K100: 85 | L100: 0 | M100: 67 | N100: 1029030.094 | O100: 1955840.331 | P100: 248950.1406 | Q100: 166425.2321 | R100: 1302518.139 | S100: 160923.5715 | T100: 77023.24791
B101: #75 | C101: 55 | D101: 2026 | E101: H | F101: A_VIE | G101: 0.45 | H101: 0.39 | I101: 0.6 | J101: 0.6 | K101: 85 | L101: 0 | M101: 67 | N101: 1029030.094 | O101: 1955840.331 | P101: 248950.1406 | Q101: 166425.2321 | R101: 1302518.139 | S101: 160923.5715 | T101: 77023.24791
B102: #76 | C102: 55 | D102: 2028 | E102: H | F102: A_VIE | G102: 0.45 | H102: 0.39 | I102: 0.6 | J102: 0.6 | K102: 85 | L102: 0 | M102: 67 | N102: 1029030.094 | O102: 1955840.331 | P102: 248950.1406 | Q102: 166425.2321 | R102: 1302518.139 | S102: 160923.5715 | T102: 77023.24791
B103: #77 | C103: 56 | D103: 2026 | E103: F | F103: A_VIE | G103: 0.45 | H103: 0.39 | I103: 0.6 | J103: 0.6 | K103: 85 | L103: 0 | M103: 67 | N103: 1029030.094 | O103: 1955840.331 | P103: 248950.1406 | Q103: 166425.2321 | R103: 1302518.139 | S103: 160923.5715 | T103: 77023.24791
B104: #78 | C104: 56 | D104: 2028 | E104: F | F104: A_VIE | G104: 0.45 | H104: 0.39 | I104: 0.6 | J104: 0.6 | K104: 85 | L104: 0 | M104: 67 | N104: 1029030.094 | O104: 1955840.331 | P104: 248950.1406 | Q104: 166425.2321 | R104: 1302518.139 | S104: 160923.5715 | T104: 77023.24791
B105: #79 | C105: 57 | D105: 2026 | E105: H | F105: A_VIE | G105: 0.45 | H105: 0.39 | I105: 0.6 | J105: 0.6 | K105: 85 | L105: 0 | M105: 67 | N105: 1029030.094 | O105: 1955840.331 | P105: 248950.1406 | Q105: 166425.2321 | R105: 1302518.139 | S105: 160923.5715 | T105: 77023.24791
B106: #80 | C106: 57 | D106: 2028 | E106: H | F106: A_VIE | G106: 0.45 | H106: 0.39 | I106: 0.6 | J106: 0.6 | K106: 85 | L106: 0 | M106: 67 | N106: 1029030.094 | O106: 1955840.331 | P106: 248950.1406 | Q106: 166425.2321 | R106: 1302518.139 | S106: 160923.5715 | T106: 77023.24791
B107: #81 | C107: 58 | D107: 2026 | E107: H | F107: A_VIE | G107: 0.45 | H107: 0.39 | I107: 0.6 | J107: 0.6 | K107: 85 | L107: 0 | M107: 67 | N107: 1029030.094 | O107: 1955840.331 | P107: 248950.1406 | Q107: 166425.2321 | R107: 1302518.139 | S107: 160923.5715 | T107: 77023.24791
B108: #82 | C108: 58 | D108: 2028 | E108: H | F108: A_VIE | G108: 0.45 | H108: 0.39 | I108: 0.6 | J108: 0.6 | K108: 85 | L108: 0 | M108: 67 | N108: 1029030.094 | O108: 1955840.331 | P108: 248950.1406 | Q108: 166425.2321 | R108: 1302518.139 | S108: 160923.5715 | T108: 77023.24791
B109: #83 | C109: 59 | D109: 2026 | E109: F | F109: A_VIE | G109: 0.45 | H109: 0.39 | I109: 0.6 | J109: 0.6 | K109: 85 | L109: 0 | M109: 67 | N109: 1029030.094 | O109: 1955840.331 | P109: 248950.1406 | Q109: 166425.2321 | R109: 1302518.139 | S109: 160923.5715 | T109: 77023.24791
B110: #84 | C110: 59 | D110: 2028 | E110: F | F110: A_VIE | G110: 0.45 | H110: 0.39 | I110: 0.6 | J110: 0.6 | K110: 85 | L110: 0 | M110: 67 | N110: 1029030.094 | O110: 1955840.331 | P110: 248950.1406 | Q110: 166425.2321 | R110: 1302518.139 | S110: 160923.5715 | T110: 77023.24791
B111: #85 | C111: 60 | D111: 2026 | E111: H | F111: A_VIE | G111: 0.45 | H111: 0.39 | I111: 0.6 | J111: 0.6 | K111: 85 | L111: 0 | M111: 112 | N111: 1715050.156 | O111: 3259733.885 | P111: 414916.9009 | Q111: 277375.3868 | R111: 2170863.565 | S111: 268205.9525 | T111: 128372.0798
B112: #86 | C112: 60 | D112: 2028 | E112: H | F112: A_VIE | G112: 0.45 | H112: 0.39 | I112: 0.6 | J112: 0.6 | K112: 85 | L112: 0 | M112: 112 | N112: 1715050.156 | O112: 3259733.885 | P112: 414916.9009 | Q112: 277375.3868 | R112: 2170863.565 | S112: 268205.9525 | T112: 128372.0798
B113: #87 | C113: 61 | D113: 2026 | E113: H | F113: A_VIE | G113: 0.45 | H113: 0.39 | I113: 0.6 | J113: 0.6 | K113: 85 | L113: 0 | M113: 67 | N113: 1029030.094 | O113: 1955840.331 | P113: 248950.1406 | Q113: 166425.2321 | R113: 1302518.139 | S113: 160923.5715 | T113: 77023.24791
B114: #88 | C114: 61 | D114: 2028 | E114: H | F114: A_VIE | G114: 0.45 | H114: 0.39 | I114: 0.6 | J114: 0.6 | K114: 85 | L114: 0 | M114: 67 | N114: 1029030.094 | O114: 1955840.331 | P114: 248950.1406 | Q114: 166425.2321 | R114: 1302518.139 | S114: 160923.5715 | T114: 77023.24791
B115: #89 | C115: 62 | D115: 2026 | E115: F | F115: A_VIE | G115: 0.45 | H115: 0.39 | I115: 0.6 | J115: 0.6 | K115: 85 | L115: 0 | M115: 67 | N115: 1029030.094 | O115: 1955840.331 | P115: 248950.1406 | Q115: 166425.2321 | R115: 1302518.139 | S115: 160923.5715 | T115: 77023.24791
B116: #90 | C116: 62 | D116: 2028 | E116: F | F116: A_VIE | G116: 0.45 | H116: 0.39 | I116: 0.6 | J116: 0.6 | K116: 85 | L116: 0 | M116: 67 | N116: 1029030.094 | O116: 1955840.331 | P116: 248950.1406 | Q116: 166425.2321 | R116: 1302518.139 | S116: 160923.5715 | T116: 77023.24791
B117: #91 | C117: 63 | D117: 2026 | E117: H | F117: A_VIE | G117: 0.45 | H117: 0.39 | I117: 0.6 | J117: 0.6 | K117: 85 | L117: 0 | M117: 67 | N117: 1029030.094 | O117: 1955840.331 | P117: 248950.1406 | Q117: 166425.2321 | R117: 1302518.139 | S117: 160923.5715 | T117: 77023.24791
B118: #92 | C118: 63 | D118: 2028 | E118: H | F118: A_VIE | G118: 0.45 | H118: 0.39 | I118: 0.6 | J118: 0.6 | K118: 85 | L118: 0 | M118: 67 | N118: 1029030.094 | O118: 1955840.331 | P118: 248950.1406 | Q118: 166425.2321 | R118: 1302518.139 | S118: 160923.5715 | T118: 77023.24791
B119: #93 | C119: 64 | D119: 2026 | E119: H | F119: A_VIE | G119: 0.45 | H119: 0.39 | I119: 0.6 | J119: 0.6 | K119: 85 | L119: 0 | M119: 67 | N119: 1029030.094 | O119: 1955840.331 | P119: 248950.1406 | Q119: 166425.2321 | R119: 1302518.139 | S119: 160923.5715 | T119: 77023.24791
B120: #94 | C120: 64 | D120: 2028 | E120: H | F120: A_VIE | G120: 0.45 | H120: 0.39 | I120: 0.6 | J120: 0.6 | K120: 85 | L120: 0 | M120: 67 | N120: 1029030.094 | O120: 1955840.331 | P120: 248950.1406 | Q120: 166425.2321 | R120: 1302518.139 | S120: 160923.5715 | T120: 77023.24791
B121: #95 | C121: 65 | D121: 2026 | E121: F | F121: A_VIE | G121: 0.45 | H121: 0.39 | I121: 0.6 | J121: 0.6 | K121: 85 | L121: 0 | M121: 67 | N121: 1029030.094 | O121: 1955840.331 | P121: 248950.1406 | Q121: 166425.2321 | R121: 1302518.139 | S121: 160923.5715 | T121: 77023.24791
B122: #96 | C122: 65 | D122: 2028 | E122: F | F122: A_VIE | G122: 0.45 | H122: 0.39 | I122: 0.6 | J122: 0.6 | K122: 85 | L122: 0 | M122: 67 | N122: 1029030.094 | O122: 1955840.331 | P122: 248950.1406 | Q122: 166425.2321 | R122: 1302518.139 | S122: 160923.5715 | T122: 77023.24791
B123: #97 | C123: 70 | D123: 2026 | E123: H | F123: A_VIE | G123: 0.45 | H123: 0.39 | I123: 0.6 | J123: 0.6 | K123: 85 | L123: 0 | M123: 11 | N123: 171505.0156 | O123: 325973.3885 | P123: 41491.69009 | Q123: 27737.53868 | R123: 217086.3565 | S123: 26820.59525 | T123: 12837.20798
B124: #98 | C124: 70 | D124: 2028 | E124: H | F124: A_VIE | G124: 0.45 | H124: 0.39 | I124: 0.6 | J124: 0.6 | K124: 85 | L124: 0 | M124: 11 | N124: 171505.0156 | O124: 325973.3885 | P124: 41491.69009 | Q124: 27737.53868 | R124: 217086.3565 | S124: 26820.59525 | T124: 12837.20798
B125: #99 | C125: 75 | D125: 2026 | E125: H | F125: A_VIE | G125: 0.45 | H125: 0.39 | I125: 0.6 | J125: 0.6 | K125: 85 | L125: 0 | M125: 11 | N125: 171505.0156 | O125: 325973.3885 | P125: 41491.69009 | Q125: 27737.53868 | R125: 217086.3565 | S125: 26820.59525 | T125: 12837.20798
B126: #100 | C126: 75 | D126: 2028 | E126: H | F126: A_VIE | G126: 0.45 | H126: 0.39 | I126: 0.6 | J126: 0.6 | K126: 85 | L126: 0 | M126: 11 | N126: 171505.0156 | O126: 325973.3885 | P126: 41491.69009 | Q126: 27737.53868 | R126: 217086.3565 | S126: 26820.59525 | T126: 12837.20798
B127: #101 | C127: 80 | D127: 2026 | E127: F | F127: A_VIE | G127: 0.45 | H127: 0.39 | I127: 0.6 | J127: 0.6 | K127: 85 | L127: 0 | M127: 11 | N127: 171505.0156 | O127: 325973.3885 | P127: 41491.69009 | Q127: 27737.53868 | R127: 217086.3565 | S127: 26820.59525 | T127: 12837.20798
B128: #102 | C128: 80 | D128: 2028 | E128: F | F128: A_VIE | G128: 0.45 | H128: 0.39 | I128: 0.6 | J128: 0.6 | K128: 85 | L128: 0 | M128: 11 | N128: 171505.0156 | O128: 325973.3885 | P128: 41491.69009 | Q128: 27737.53868 | R128: 217086.3565 | S128: 26820.59525 | T128: 12837.20798
B129: #103 | C129: 85 | D129: 2026 | E129: H | F129: A_VIE | G129: 0.45 | H129: 0.39 | I129: 0.6 | J129: 0.6 | K129: 85 | L129: 0 | M129: 6 | N129: 85752.50782 | O129: 162986.6942 | P129: 20745.84505 | Q129: 13868.76934 | R129: 108543.1782 | S129: 13410.29763 | T129: 6418.603992
B130: #104 | C130: 85 | D130: 2028 | E130: H | F130: A_VIE | G130: 0.45 | H130: 0.39 | I130: 0.6 | J130: 0.6 | K130: 85 | L130: 0 | M130: 6 | N130: 85752.50782 | O130: 162986.6942 | P130: 20745.84505 | Q130: 13868.76934 | R130: 108543.1782 | S130: 13410.29763 | T130: 6418.603992
B131: #105 | C131: 90 | D131: 2026 | E131: H | F131: A_VIE | G131: 0.45 | H131: 0.39 | I131: 0.6 | J131: 0.6 | K131: 85 | L131: 0 | M131: 6 | N131: 85752.50782 | O131: 162986.6942 | P131: 20745.84505 | Q131: 13868.76934 | R131: 108543.1782 | S131: 13410.29763 | T131: 6418.603992
B132: #106 | C132: 90 | D132: 2028 | E132: H | F132: A_VIE | G132: 0.45 | H132: 0.39 | I132: 0.6 | J132: 0.6 | K132: 85 | L132: 0 | M132: 6 | N132: 85752.50782 | O132: 162986.6942 | P132: 20745.84505 | Q132: 13868.76934 | R132: 108543.1782 | S132: 13410.29763 | T132: 6418.603992
B133: #107 | C133: 18 | D133: 2026 | E133: H | F133: A_CAPI | G133: 0.45 | H133: 0.39 | I133: 0.6 | J133: 0.6 | K133: 85 | L133: 0 | M133: 0.04 | N133: 0 | O133: 1485.525895 | P133: 189.0859262 | Q133: 126.4055087 | R133: 989.3059232 | S133: 122.2268142 | T133: 58.50172302
B134: #108 | C134: 18 | D134: 2028 | E134: H | F134: A_CAPI | G134: 0.45 | H134: 0.39 | I134: 0.6 | J134: 0.6 | K134: 85 | L134: 0 | M134: 0.04 | N134: 0 | O134: 1485.525895 | P134: 189.0859262 | Q134: 126.4055087 | R134: 989.3059232 | S134: 122.2268142 | T134: 58.50172302
B135: #109 | C135: 19 | D135: 2026 | E135: H | F135: A_CAPI | G135: 0.45 | H135: 0.39 | I135: 0.6 | J135: 0.6 | K135: 85 | L135: 0 | M135: 0.04 | N135: 0 | O135: 1485.525895 | P135: 189.0859262 | Q135: 126.4055087 | R135: 989.3059232 | S135: 122.2268142 | T135: 58.50172302
B136: #110 | C136: 19 | D136: 2028 | E136: H | F136: A_CAPI | G136: 0.45 | H136: 0.39 | I136: 0.6 | J136: 0.6 | K136: 85 | L136: 0 | M136: 0.04 | N136: 0 | O136: 1485.525895 | P136: 189.0859262 | Q136: 126.4055087 | R136: 989.3059232 | S136: 122.2268142 | T136: 58.50172302
B137: #111 | C137: 20 | D137: 2026 | E137: F | F137: A_CAPI | G137: 0.45 | H137: 0.39 | I137: 0.6 | J137: 0.6 | K137: 85 | L137: 0 | M137: 0.08 | N137: 0 | O137: 2971.051791 | P137: 378.1718524 | Q137: 252.8110173 | R137: 1978.611846 | S137: 244.4536283 | T137: 117.003446
B138: #112 | C138: 20 | D138: 2028 | E138: F | F138: A_CAPI | G138: 0.45 | H138: 0.39 | I138: 0.6 | J138: 0.6 | K138: 85 | L138: 0 | M138: 0.08 | N138: 0 | O138: 2971.051791 | P138: 378.1718524 | Q138: 252.8110173 | R138: 1978.611846 | S138: 244.4536283 | T138: 117.003446
B139: #113 | C139: 21 | D139: 2026 | E139: H | F139: A_CAPI | G139: 0.45 | H139: 0.39 | I139: 0.6 | J139: 0.6 | K139: 85 | L139: 0 | M139: 0.08 | N139: 0 | O139: 2971.051791 | P139: 378.1718524 | Q139: 252.8110173 | R139: 1978.611846 | S139: 244.4536283 | T139: 117.003446
B140: #114 | C140: 21 | D140: 2028 | E140: H | F140: A_CAPI | G140: 0.45 | H140: 0.39 | I140: 0.6 | J140: 0.6 | K140: 85 | L140: 0 | M140: 0.08 | N140: 0 | O140: 2971.051791 | P140: 378.1718524 | Q140: 252.8110173 | R140: 1978.611846 | S140: 244.4536283 | T140: 117.003446
B141: #115 | C141: 22 | D141: 2026 | E141: H | F141: A_CAPI | G141: 0.45 | H141: 0.39 | I141: 0.6 | J141: 0.6 | K141: 85 | L141: 0 | M141: 0.08 | N141: 0 | O141: 2971.051791 | P141: 378.1718524 | Q141: 252.8110173 | R141: 1978.611846 | S141: 244.4536283 | T141: 117.003446
B142: #116 | C142: 22 | D142: 2028 | E142: H | F142: A_CAPI | G142: 0.45 | H142: 0.39 | I142: 0.6 | J142: 0.6 | K142: 85 | L142: 0 | M142: 0.08 | N142: 0 | O142: 2971.051791 | P142: 378.1718524 | Q142: 252.8110173 | R142: 1978.611846 | S142: 244.4536283 | T142: 117.003446
B143: #117 | C143: 23 | D143: 2026 | E143: F | F143: A_CAPI | G143: 0.45 | H143: 0.39 | I143: 0.6 | J143: 0.6 | K143: 85 | L143: 0 | M143: 0.08 | N143: 0 | O143: 2971.051791 | P143: 378.1718524 | Q143: 252.8110173 | R143: 1978.611846 | S143: 244.4536283 | T143: 117.003446
B144: #118 | C144: 23 | D144: 2028 | E144: F | F144: A_CAPI | G144: 0.45 | H144: 0.39 | I144: 0.6 | J144: 0.6 | K144: 85 | L144: 0 | M144: 0.08 | N144: 0 | O144: 2971.051791 | P144: 378.1718524 | Q144: 252.8110173 | R144: 1978.611846 | S144: 244.4536283 | T144: 117.003446
B145: #119 | C145: 24 | D145: 2026 | E145: H | F145: A_CAPI | G145: 0.45 | H145: 0.39 | I145: 0.6 | J145: 0.6 | K145: 85 | L145: 0 | M145: 0.08 | N145: 0 | O145: 2971.051791 | P145: 378.1718524 | Q145: 252.8110173 | R145: 1978.611846 | S145: 244.4536283 | T145: 117.003446
B146: #120 | C146: 24 | D146: 2028 | E146: H | F146: A_CAPI | G146: 0.45 | H146: 0.39 | I146: 0.6 | J146: 0.6 | K146: 85 | L146: 0 | M146: 0.08 | N146: 0 | O146: 2971.051791 | P146: 378.1718524 | Q146: 252.8110173 | R146: 1978.611846 | S146: 244.4536283 | T146: 117.003446
B147: #121 | C147: 25 | D147: 2026 | E147: H | F147: A_CAPI | G147: 0.45 | H147: 0.39 | I147: 0.6 | J147: 0.6 | K147: 85 | L147: 0 | M147: 0.38 | N147: 0 | O147: 14855.25895 | P147: 1890.859262 | Q147: 1264.055087 | R147: 9893.059232 | S147: 1222.268142 | T147: 585.0172302
B148: #122 | C148: 25 | D148: 2028 | E148: H | F148: A_CAPI | G148: 0.45 | H148: 0.39 | I148: 0.6 | J148: 0.6 | K148: 85 | L148: 0 | M148: 0.38 | N148: 0 | O148: 14855.25895 | P148: 1890.859262 | Q148: 1264.055087 | R148: 9893.059232 | S148: 1222.268142 | T148: 585.0172302
B149: #123 | C149: 26 | D149: 2026 | E149: F | F149: A_CAPI | G149: 0.45 | H149: 0.39 | I149: 0.6 | J149: 0.6 | K149: 85 | L149: 0 | M149: 0.23 | N149: 0 | O149: 8913.155372 | P149: 1134.515557 | Q149: 758.433052 | R149: 5935.835539 | S149: 733.360885 | T149: 351.0103381
B150: #124 | C150: 26 | D150: 2028 | E150: F | F150: A_CAPI | G150: 0.45 | H150: 0.39 | I150: 0.6 | J150: 0.6 | K150: 85 | L150: 0 | M150: 0.23 | N150: 0 | O150: 8913.155372 | P150: 1134.515557 | Q150: 758.433052 | R150: 5935.835539 | S150: 733.360885 | T150: 351.0103381
B151: #125 | C151: 27 | D151: 2026 | E151: H | F151: A_CAPI | G151: 0.45 | H151: 0.39 | I151: 0.6 | J151: 0.6 | K151: 85 | L151: 0 | M151: 0.23 | N151: 0 | O151: 8913.155372 | P151: 1134.515557 | Q151: 758.433052 | R151: 5935.835539 | S151: 733.360885 | T151: 351.0103381
B152: #126 | C152: 27 | D152: 2028 | E152: H | F152: A_CAPI | G152: 0.45 | H152: 0.39 | I152: 0.6 | J152: 0.6 | K152: 85 | L152: 0 | M152: 0.23 | N152: 0 | O152: 8913.155372 | P152: 1134.515557 | Q152: 758.433052 | R152: 5935.835539 | S152: 733.360885 | T152: 351.0103381
B153: #127 | C153: 28 | D153: 2026 | E153: H | F153: A_CAPI | G153: 0.45 | H153: 0.39 | I153: 0.6 | J153: 0.6 | K153: 85 | L153: 0 | M153: 0.23 | N153: 0 | O153: 8913.155372 | P153: 1134.515557 | Q153: 758.433052 | R153: 5935.835539 | S153: 733.360885 | T153: 351.0103381
B154: #128 | C154: 28 | D154: 2028 | E154: H | F154: A_CAPI | G154: 0.45 | H154: 0.39 | I154: 0.6 | J154: 0.6 | K154: 85 | L154: 0 | M154: 0.23 | N154: 0 | O154: 8913.155372 | P154: 1134.515557 | Q154: 758.433052 | R154: 5935.835539 | S154: 733.360885 | T154: 351.0103381
B155: #129 | C155: 29 | D155: 2026 | E155: F | F155: A_CAPI | G155: 0.45 | H155: 0.39 | I155: 0.6 | J155: 0.6 | K155: 85 | L155: 0 | M155: 0.23 | N155: 0 | O155: 8913.155372 | P155: 1134.515557 | Q155: 758.433052 | R155: 5935.835539 | S155: 733.360885 | T155: 351.0103381
B156: #130 | C156: 29 | D156: 2028 | E156: F | F156: A_CAPI | G156: 0.45 | H156: 0.39 | I156: 0.6 | J156: 0.6 | K156: 85 | L156: 0 | M156: 0.23 | N156: 0 | O156: 8913.155372 | P156: 1134.515557 | Q156: 758.433052 | R156: 5935.835539 | S156: 733.360885 | T156: 351.0103381
B157: #131 | C157: 30 | D157: 2026 | E157: H | F157: A_CAPI | G157: 0.45 | H157: 0.39 | I157: 0.6 | J157: 0.6 | K157: 85 | L157: 0 | M157: 0.23 | N157: 0 | O157: 8913.155372 | P157: 1134.515557 | Q157: 758.433052 | R157: 5935.835539 | S157: 733.360885 | T157: 351.0103381
B158: #132 | C158: 30 | D158: 2028 | E158: H | F158: A_CAPI | G158: 0.45 | H158: 0.39 | I158: 0.6 | J158: 0.6 | K158: 85 | L158: 0 | M158: 0.23 | N158: 0 | O158: 8913.155372 | P158: 1134.515557 | Q158: 758.433052 | R158: 5935.835539 | S158: 733.360885 | T158: 351.0103381
B159: #133 | C159: 31 | D159: 2026 | E159: H | F159: A_CAPI | G159: 0.45 | H159: 0.39 | I159: 0.6 | J159: 0.6 | K159: 85 | L159: 0 | M159: 0.23 | N159: 0 | O159: 8913.155372 | P159: 1134.515557 | Q159: 758.433052 | R159: 5935.835539 | S159: 733.360885 | T159: 351.0103381
B160: #134 | C160: 31 | D160: 2028 | E160: H | F160: A_CAPI | G160: 0.45 | H160: 0.39 | I160: 0.6 | J160: 0.6 | K160: 85 | L160: 0 | M160: 0.23 | N160: 0 | O160: 8913.155372 | P160: 1134.515557 | Q160: 758.433052 | R160: 5935.835539 | S160: 733.360885 | T160: 351.0103381
B161: #135 | C161: 32 | D161: 2026 | E161: F | F161: A_CAPI | G161: 0.45 | H161: 0.39 | I161: 0.6 | J161: 0.6 | K161: 85 | L161: 0 | M161: 0.23 | N161: 0 | O161: 8913.155372 | P161: 1134.515557 | Q161: 758.433052 | R161: 5935.835539 | S161: 733.360885 | T161: 351.0103381
B162: #136 | C162: 32 | D162: 2028 | E162: F | F162: A_CAPI | G162: 0.45 | H162: 0.39 | I162: 0.6 | J162: 0.6 | K162: 85 | L162: 0 | M162: 0.23 | N162: 0 | O162: 8913.155372 | P162: 1134.515557 | Q162: 758.433052 | R162: 5935.835539 | S162: 733.360885 | T162: 351.0103381
B163: #137 | C163: 33 | D163: 2026 | E163: H | F163: A_CAPI | G163: 0.45 | H163: 0.39 | I163: 0.6 | J163: 0.6 | K163: 85 | L163: 0 | M163: 0.23 | N163: 0 | O163: 8913.155372 | P163: 1134.515557 | Q163: 758.433052 | R163: 5935.835539 | S163: 733.360885 | T163: 351.0103381
B164: #138 | C164: 33 | D164: 2028 | E164: H | F164: A_CAPI | G164: 0.45 | H164: 0.39 | I164: 0.6 | J164: 0.6 | K164: 85 | L164: 0 | M164: 0.23 | N164: 0 | O164: 8913.155372 | P164: 1134.515557 | Q164: 758.433052 | R164: 5935.835539 | S164: 733.360885 | T164: 351.0103381
B165: #139 | C165: 34 | D165: 2026 | E165: H | F165: A_CAPI | G165: 0.45 | H165: 0.39 | I165: 0.6 | J165: 0.6 | K165: 85 | L165: 0 | M165: 0.23 | N165: 0 | O165: 8913.155372 | P165: 1134.515557 | Q165: 758.433052 | R165: 5935.835539 | S165: 733.360885 | T165: 351.0103381
B166: #140 | C166: 34 | D166: 2028 | E166: H | F166: A_CAPI | G166: 0.45 | H166: 0.39 | I166: 0.6 | J166: 0.6 | K166: 85 | L166: 0 | M166: 0.23 | N166: 0 | O166: 8913.155372 | P166: 1134.515557 | Q166: 758.433052 | R166: 5935.835539 | S166: 733.360885 | T166: 351.0103381
B167: #141 | C167: 35 | D167: 2026 | E167: F | F167: A_CAPI | G167: 0.45 | H167: 0.39 | I167: 0.6 | J167: 0.6 | K167: 85 | L167: 0 | M167: 0.23 | N167: 0 | O167: 8913.155372 | P167: 1134.515557 | Q167: 758.433052 | R167: 5935.835539 | S167: 733.360885 | T167: 351.0103381
B168: #142 | C168: 35 | D168: 2028 | E168: F | F168: A_CAPI | G168: 0.45 | H168: 0.39 | I168: 0.6 | J168: 0.6 | K168: 85 | L168: 0 | M168: 0.23 | N168: 0 | O168: 8913.155372 | P168: 1134.515557 | Q168: 758.433052 | R168: 5935.835539 | S168: 733.360885 | T168: 351.0103381
B169: #143 | C169: 36 | D169: 2026 | E169: H | F169: A_CAPI | G169: 0.45 | H169: 0.39 | I169: 0.6 | J169: 0.6 | K169: 85 | L169: 0 | M169: 0.04 | N169: 0 | O169: 1485.525895 | P169: 189.0859262 | Q169: 126.4055087 | R169: 989.3059232 | S169: 122.2268142 | T169: 58.50172302
B170: #144 | C170: 36 | D170: 2028 | E170: H | F170: A_CAPI | G170: 0.45 | H170: 0.39 | I170: 0.6 | J170: 0.6 | K170: 85 | L170: 0 | M170: 0.04 | N170: 0 | O170: 1485.525895 | P170: 189.0859262 | Q170: 126.4055087 | R170: 989.3059232 | S170: 122.2268142 | T170: 58.50172302
B171: #145 | C171: 37 | D171: 2026 | E171: H | F171: A_CAPI | G171: 0.45 | H171: 0.39 | I171: 0.6 | J171: 0.6 | K171: 85 | L171: 0 | M171: 0.04 | N171: 0 | O171: 1485.525895 | P171: 189.0859262 | Q171: 126.4055087 | R171: 989.3059232 | S171: 122.2268142 | T171: 58.50172302
B172: #146 | C172: 37 | D172: 2028 | E172: H | F172: A_CAPI | G172: 0.45 | H172: 0.39 | I172: 0.6 | J172: 0.6 | K172: 85 | L172: 0 | M172: 0.04 | N172: 0 | O172: 1485.525895 | P172: 189.0859262 | Q172: 126.4055087 | R172: 989.3059232 | S172: 122.2268142 | T172: 58.50172302
B173: #147 | C173: 38 | D173: 2026 | E173: F | F173: A_CAPI | G173: 0.45 | H173: 0.39 | I173: 0.6 | J173: 0.6 | K173: 85 | L173: 0 | M173: 0.04 | N173: 0 | O173: 1485.525895 | P173: 189.0859262 | Q173: 126.4055087 | R173: 989.3059232 | S173: 122.2268142 | T173: 58.50172302
B174: #148 | C174: 38 | D174: 2028 | E174: F | F174: A_CAPI | G174: 0.45 | H174: 0.39 | I174: 0.6 | J174: 0.6 | K174: 85 | L174: 0 | M174: 0.04 | N174: 0 | O174: 1485.525895 | P174: 189.0859262 | Q174: 126.4055087 | R174: 989.3059232 | S174: 122.2268142 | T174: 58.50172302
B175: #149 | C175: 39 | D175: 2026 | E175: H | F175: A_CAPI | G175: 0.45 | H175: 0.39 | I175: 0.6 | J175: 0.6 | K175: 85 | L175: 0 | M175: 0.04 | N175: 0 | O175: 1485.525895 | P175: 189.0859262 | Q175: 126.4055087 | R175: 989.3059232 | S175: 122.2268142 | T175: 58.50172302
B176: #150 | C176: 39 | D176: 2028 | E176: H | F176: A_CAPI | G176: 0.45 | H176: 0.39 | I176: 0.6 | J176: 0.6 | K176: 85 | L176: 0 | M176: 0.04 | N176: 0 | O176: 1485.525895 | P176: 189.0859262 | Q176: 126.4055087 | R176: 989.3059232 | S176: 122.2268142 | T176: 58.50172302
B177: #151 | C177: 40 | D177: 2026 | E177: H | F177: A_CAPI | G177: 0.45 | H177: 0.39 | I177: 0.6 | J177: 0.6 | K177: 85 | L177: 0 | M177: 0.04 | N177: 0 | O177: 1485.525895 | P177: 189.0859262 | Q177: 126.4055087 | R177: 989.3059232 | S177: 122.2268142 | T177: 58.50172302
B178: #152 | C178: 40 | D178: 2028 | E178: H | F178: A_CAPI | G178: 0.45 | H178: 0.39 | I178: 0.6 | J178: 0.6 | K178: 85 | L178: 0 | M178: 0.04 | N178: 0 | O178: 1485.525895 | P178: 189.0859262 | Q178: 126.4055087 | R178: 989.3059232 | S178: 122.2268142 | T178: 58.50172302
B179: #153 | C179: 41 | D179: 2026 | E179: F | F179: A_CAPI | G179: 0.45 | H179: 0.39 | I179: 0.6 | J179: 0.6 | K179: 85 | L179: 0 | M179: 0.04 | N179: 0 | O179: 1485.525895 | P179: 189.0859262 | Q179: 126.4055087 | R179: 989.3059232 | S179: 122.2268142 | T179: 58.50172302
B180: #154 | C180: 41 | D180: 2028 | E180: F | F180: A_CAPI | G180: 0.45 | H180: 0.39 | I180: 0.6 | J180: 0.6 | K180: 85 | L180: 0 | M180: 0.04 | N180: 0 | O180: 1485.525895 | P180: 189.0859262 | Q180: 126.4055087 | R180: 989.3059232 | S180: 122.2268142 | T180: 58.50172302
B181: #155 | C181: 42 | D181: 2026 | E181: H | F181: A_CAPI | G181: 0.45 | H181: 0.39 | I181: 0.6 | J181: 0.6 | K181: 85 | L181: 0 | M181: 0.04 | N181: 0 | O181: 1485.525895 | P181: 189.0859262 | Q181: 126.4055087 | R181: 989.3059232 | S181: 122.2268142 | T181: 58.50172302
B182: #156 | C182: 42 | D182: 2028 | E182: H | F182: A_CAPI | G182: 0.45 | H182: 0.39 | I182: 0.6 | J182: 0.6 | K182: 85 | L182: 0 | M182: 0.04 | N182: 0 | O182: 1485.525895 | P182: 189.0859262 | Q182: 126.4055087 | R182: 989.3059232 | S182: 122.2268142 | T182: 58.50172302
B183: #157 | C183: 43 | D183: 2026 | E183: H | F183: A_CAPI | G183: 0.45 | H183: 0.39 | I183: 0.6 | J183: 0.6 | K183: 85 | L183: 0 | M183: 0.04 | N183: 0 | O183: 1485.525895 | P183: 189.0859262 | Q183: 126.4055087 | R183: 989.3059232 | S183: 122.2268142 | T183: 58.50172302
B184: #158 | C184: 43 | D184: 2028 | E184: H | F184: A_CAPI | G184: 0.45 | H184: 0.39 | I184: 0.6 | J184: 0.6 | K184: 85 | L184: 0 | M184: 0.04 | N184: 0 | O184: 1485.525895 | P184: 189.0859262 | Q184: 126.4055087 | R184: 989.3059232 | S184: 122.2268142 | T184: 58.50172302
B185: #159 | C185: 44 | D185: 2026 | E185: F | F185: A_CAPI | G185: 0.45 | H185: 0.39 | I185: 0.6 | J185: 0.6 | K185: 85 | L185: 0 | M185: 0.04 | N185: 0 | O185: 1485.525895 | P185: 189.0859262 | Q185: 126.4055087 | R185: 989.3059232 | S185: 122.2268142 | T185: 58.50172302
B186: #160 | C186: 44 | D186: 2028 | E186: F | F186: A_CAPI | G186: 0.45 | H186: 0.39 | I186: 0.6 | J186: 0.6 | K186: 85 | L186: 0 | M186: 0.04 | N186: 0 | O186: 1485.525895 | P186: 189.0859262 | Q186: 126.4055087 | R186: 989.3059232 | S186: 122.2268142 | T186: 58.50172302
B187: #161 | C187: 45 | D187: 2026 | E187: H | F187: A_CAPI | G187: 0.45 | H187: 0.39 | I187: 0.6 | J187: 0.6 | K187: 85 | L187: 0 | M187: 0.04 | N187: 0 | O187: 1485.525895 | P187: 189.0859262 | Q187: 126.4055087 | R187: 989.3059232 | S187: 122.2268142 | T187: 58.50172302
B188: #162 | C188: 45 | D188: 2028 | E188: H | F188: A_CAPI | G188: 0.45 | H188: 0.39 | I188: 0.6 | J188: 0.6 | K188: 85 | L188: 0 | M188: 0.04 | N188: 0 | O188: 1485.525895 | P188: 189.0859262 | Q188: 126.4055087 | R188: 989.3059232 | S188: 122.2268142 | T188: 58.50172302
B189: #163 | C189: 46 | D189: 2026 | E189: H | F189: A_CAPI | G189: 0.45 | H189: 0.39 | I189: 0.6 | J189: 0.6 | K189: 85 | L189: 0 | M189: 0.04 | N189: 0 | O189: 1485.525895 | P189: 189.0859262 | Q189: 126.4055087 | R189: 989.3059232 | S189: 122.2268142 | T189: 58.50172302
B190: #164 | C190: 46 | D190: 2028 | E190: H | F190: A_CAPI | G190: 0.45 | H190: 0.39 | I190: 0.6 | J190: 0.6 | K190: 85 | L190: 0 | M190: 0.04 | N190: 0 | O190: 1485.525895 | P190: 189.0859262 | Q190: 126.4055087 | R190: 989.3059232 | S190: 122.2268142 | T190: 58.50172302
B191: #165 | C191: 47 | D191: 2026 | E191: F | F191: A_CAPI | G191: 0.45 | H191: 0.39 | I191: 0.6 | J191: 0.6 | K191: 85 | L191: 0 | M191: 0.04 | N191: 0 | O191: 1485.525895 | P191: 189.0859262 | Q191: 126.4055087 | R191: 989.3059232 | S191: 122.2268142 | T191: 58.50172302
B192: #166 | C192: 47 | D192: 2028 | E192: F | F192: A_CAPI | G192: 0.45 | H192: 0.39 | I192: 0.6 | J192: 0.6 | K192: 85 | L192: 0 | M192: 0.04 | N192: 0 | O192: 1485.525895 | P192: 189.0859262 | Q192: 126.4055087 | R192: 989.3059232 | S192: 122.2268142 | T192: 58.50172302
B193: #167 | C193: 48 | D193: 2026 | E193: H | F193: A_CAPI | G193: 0.45 | H193: 0.39 | I193: 0.6 | J193: 0.6 | K193: 85 | L193: 0 | M193: 0.04 | N193: 0 | O193: 1485.525895 | P193: 189.0859262 | Q193: 126.4055087 | R193: 989.3059232 | S193: 122.2268142 | T193: 58.50172302
B194: #168 | C194: 48 | D194: 2028 | E194: H | F194: A_CAPI | G194: 0.45 | H194: 0.39 | I194: 0.6 | J194: 0.6 | K194: 85 | L194: 0 | M194: 0.04 | N194: 0 | O194: 1485.525895 | P194: 189.0859262 | Q194: 126.4055087 | R194: 989.3059232 | S194: 122.2268142 | T194: 58.50172302
B195: #169 | C195: 49 | D195: 2026 | E195: H | F195: A_CAPI | G195: 0.45 | H195: 0.39 | I195: 0.6 | J195: 0.6 | K195: 85 | L195: 0 | M195: 0.04 | N195: 0 | O195: 1485.525895 | P195: 189.0859262 | Q195: 126.4055087 | R195: 989.3059232 | S195: 122.2268142 | T195: 58.50172302
B196: #170 | C196: 49 | D196: 2028 | E196: H | F196: A_CAPI | G196: 0.45 | H196: 0.39 | I196: 0.6 | J196: 0.6 | K196: 85 | L196: 0 | M196: 0.04 | N196: 0 | O196: 1485.525895 | P196: 189.0859262 | Q196: 126.4055087 | R196: 989.3059232 | S196: 122.2268142 | T196: 58.50172302
B197: #171 | C197: 50 | D197: 2026 | E197: F | F197: A_CAPI | G197: 0.45 | H197: 0.39 | I197: 0.6 | J197: 0.6 | K197: 85 | L197: 0 | M197: 0.23 | N197: 0 | O197: 8913.155372 | P197: 1134.515557 | Q197: 758.433052 | R197: 5935.835539 | S197: 733.360885 | T197: 351.0103381
B198: #172 | C198: 50 | D198: 2028 | E198: F | F198: A_CAPI | G198: 0.45 | H198: 0.39 | I198: 0.6 | J198: 0.6 | K198: 85 | L198: 0 | M198: 0.23 | N198: 0 | O198: 8913.155372 | P198: 1134.515557 | Q198: 758.433052 | R198: 5935.835539 | S198: 733.360885 | T198: 351.0103381
B199: #173 | C199: 51 | D199: 2026 | E199: H | F199: A_CAPI | G199: 0.45 | H199: 0.39 | I199: 0.6 | J199: 0.6 | K199: 85 | L199: 0 | M199: 0.23 | N199: 0 | O199: 8913.155372 | P199: 1134.515557 | Q199: 758.433052 | R199: 5935.835539 | S199: 733.360885 | T199: 351.0103381
B200: #174 | C200: 51 | D200: 2028 | E200: H | F200: A_CAPI | G200: 0.45 | H200: 0.39 | I200: 0.6 | J200: 0.6 | K200: 85 | L200: 0 | M200: 0.23 | N200: 0 | O200: 8913.155372 | P200: 1134.515557 | Q200: 758.433052 | R200: 5935.835539 | S200: 733.360885 | T200: 351.0103381
B201: #175 | C201: 52 | D201: 2026 | E201: H | F201: A_CAPI | G201: 0.45 | H201: 0.39 | I201: 0.6 | J201: 0.6 | K201: 85 | L201: 0 | M201: 0.23 | N201: 0 | O201: 8913.155372 | P201: 1134.515557 | Q201: 758.433052 | R201: 5935.835539 | S201: 733.360885 | T201: 351.0103381
B202: #176 | C202: 52 | D202: 2028 | E202: H | F202: A_CAPI | G202: 0.45 | H202: 0.39 | I202: 0.6 | J202: 0.6 | K202: 85 | L202: 0 | M202: 0.23 | N202: 0 | O202: 8913.155372 | P202: 1134.515557 | Q202: 758.433052 | R202: 5935.835539 | S202: 733.360885 | T202: 351.0103381
B203: #177 | C203: 53 | D203: 2026 | E203: F | F203: A_CAPI | G203: 0.45 | H203: 0.39 | I203: 0.6 | J203: 0.6 | K203: 85 | L203: 0 | M203: 0.23 | N203: 0 | O203: 8913.155372 | P203: 1134.515557 | Q203: 758.433052 | R203: 5935.835539 | S203: 733.360885 | T203: 351.0103381
B204: #178 | C204: 53 | D204: 2028 | E204: F | F204: A_CAPI | G204: 0.45 | H204: 0.39 | I204: 0.6 | J204: 0.6 | K204: 85 | L204: 0 | M204: 0.23 | N204: 0 | O204: 8913.155372 | P204: 1134.515557 | Q204: 758.433052 | R204: 5935.835539 | S204: 733.360885 | T204: 351.0103381
B205: #179 | C205: 54 | D205: 2026 | E205: H | F205: A_CAPI | G205: 0.45 | H205: 0.39 | I205: 0.6 | J205: 0.6 | K205: 85 | L205: 0 | M205: 0.23 | N205: 0 | O205: 8913.155372 | P205: 1134.515557 | Q205: 758.433052 | R205: 5935.835539 | S205: 733.360885 | T205: 351.0103381
B206: #180 | C206: 54 | D206: 2028 | E206: H | F206: A_CAPI | G206: 0.45 | H206: 0.39 | I206: 0.6 | J206: 0.6 | K206: 85 | L206: 0 | M206: 0.23 | N206: 0 | O206: 8913.155372 | P206: 1134.515557 | Q206: 758.433052 | R206: 5935.835539 | S206: 733.360885 | T206: 351.0103381
B207: #181 | C207: 55 | D207: 2026 | E207: H | F207: A_CAPI | G207: 0.45 | H207: 0.39 | I207: 0.6 | J207: 0.6 | K207: 85 | L207: 0 | M207: 0.23 | N207: 0 | O207: 8913.155372 | P207: 1134.515557 | Q207: 758.433052 | R207: 5935.835539 | S207: 733.360885 | T207: 351.0103381
B208: #182 | C208: 55 | D208: 2028 | E208: H | F208: A_CAPI | G208: 0.45 | H208: 0.39 | I208: 0.6 | J208: 0.6 | K208: 85 | L208: 0 | M208: 0.23 | N208: 0 | O208: 8913.155372 | P208: 1134.515557 | Q208: 758.433052 | R208: 5935.835539 | S208: 733.360885 | T208: 351.0103381
... 118 more rows

Sheet SCR_Op_BP_2
B2: I) Inputs pour SCR Opérationnel
B5: AVIE + CAPI + PER | D5: 2028-12-31
B6: Flux | C6: Euro | D6: UC
B7: Primes acquises pour les 12 derniers mois VIE UC (N) - Earn life-ul | C7: - | D7: 94679290
B8: Primes acquises pour les 12 derniers mois VIE Euros (N) - Earn life | C8: 38260710 | D8: -
B9: Primes acquises sur les 12 mois précédents les 12 derniers mois VIE UC (N-1) - pEarn life-ul | C9: - | D9: 69756720
B10: Primes acquises sur les 12 mois précédents les 12 derniers mois VIE Euros (N-1) - pEarn life | C10: 28183280 | D10: -
B11: Montant de frais engagé au titre des contrats UC (12 derniers mois) (Expul) | C11: - | D11: 2056227.639 | E11: répartition au regard du mix Euro / UC (idem split collecte) - yc comm distribution
B12: Montant de frais engagé au titre des contrats euros (12 derniers mois) | C12: 835794.3568 | D12: - | E12: répartition au regard du mix Euro / UC (idem split collecte) - yc comm distribution

Sheet RFR_BP_2
B2: Choc S2 | C2: 1 | D2: =C2+1 -> 2 | E2: 3 | F2: 4 | G2: 5 | H2: 6 | I2: 7 | J2: 8 | K2: 9 | L2: 10 | M2: 11 | N2: 12 | O2: 13 | P2: 14 | Q2: 15 | R2: 16 | S2: 17 | T2: 18 | U2: 19 | V2: 20 | W2: 21 | X2: 22 | Y2: 23 | Z2: 24 | AA2: 25 | AB2: 26 | AC2: 27 | AD2: 28 | AE2: 29 | AF2: 30 | AG2: 31 | AH2: 32 | AI2: 33 | AJ2: 34 | AK2: 35 | AL2: 36 | AM2: 37 | AN2: 38 | AO2: 39 | AP2: 40 | AQ2: 41 | AR2: 42 | AS2: 43 | AT2: 44 | AU2: 45 | AV2: 46 | AW2: 47 | AX2: 48 | AY2: 49 | AZ2: 50 | BA2: 51 | BB2: 52 | BC2: 53 | BD2: 54 | BE2: 55 | BF2: 56 | BG2: 57 | BH2: 58 | BI2: 59 | BJ2: 60 | BK2: 61 | BL2: 62 | BM2: 63 | BN2: 64 | BO2: 65 | BP2: =BO2+1 -> 66 | BQ2: 67 | BR2: 68 | BS2: 69 | BT2: 70 | BU2: 71 | BV2: 72 | BW2: 73 | BX2: 74 | BY2: 75 | BZ2: 76 | CA2: 77 | CB2: 78 | CC2: 79 | CD2: 80 | CE2: 81 | CF2: 82 | CG2: 83 | CH2: 84 | CI2: 85 | CJ2: 86 | CK2: 87 | CL2: 88 | CM2: 89 | CN2: 90 | CO2: 91 | CP2: 92 | CQ2: 93 | CR2: 94 | CS2: 95 | CT2: 96 | CU2: 97 | CV2: 98 | CW2: 99 | CX2: 100
B3: Central | C3: 0.02161 | D3: 0.02162 | E3: 0.02243 | F3: 0.02337 | G3: 0.0242 | H3: 0.02502 | I3: 0.02579 | J3: 0.02655 | K3: 0.02726 | L3: 0.02795 | M3: 0.02853 | N3: 0.02907 | O3: 0.02953 | P3: 0.02994 | Q3: 0.03027 | R3: 0.03051 | S3: 0.03068 | T3: 0.0308 | U3: 0.03089 | V3: 0.03097 | W3: 0.03104 | X3: 0.03111 | Y3: 0.03118 | Z3: 0.03124 | AA3: 0.03129 | AB3: 0.03135 | AC3: 0.03139 | AD3: 0.03144 | AE3: 0.03148 | AF3: 0.03152 | AG3: 0.03156 | AH3: 0.0316 | AI3: 0.03163 | AJ3: 0.03167 | AK3: 0.0317 | AL3: 0.03173 | AM3: 0.03176 | AN3: 0.03179 | AO3: 0.03181 | AP3: 0.03184 | AQ3: 0.03186 | AR3: 0.03188 | AS3: 0.03191 | AT3: 0.03193 | AU3: 0.03195 | AV3: 0.03197 | AW3: 0.03199 | AX3: 0.03201 | AY3: 0.03203 | AZ3: 0.03204 | BA3: 0.03206 | BB3: 0.03208 | BC3: 0.03209 | BD3: 0.03211 | BE3: 0.03212 | BF3: 0.03214 | BG3: 0.03215 | BH3: 0.03216 | BI3: 0.03218 | BJ3: 0.03219 | BK3: 0.0322 | BL3: 0.03221 | BM3: 0.03222 | BN3: 0.03224 | BO3: 0.03225 | BP3: 0.03226 | BQ3: 0.03227 | BR3: 0.03228 | BS3: 0.03229 | BT3: 0.0323 | BU3: 0.03231 | BV3: 0.03232 | BW3: 0.03233 | BX3: 0.03233 | BY3: 0.03234 | BZ3: 0.03235 | CA3: 0.03236 | CB3: 0.03237 | CC3: 0.03237 | CD3: 0.03238 | CE3: 0.03239 | CF3: 0.0324 | CG3: 0.0324 | CH3: 0.03241 | CI3: 0.03242 | CJ3: 0.03242 | CK3: 0.03243 | CL3: 0.03244 | CM3: 0.03244 | CN3: 0.03245 | CO3: 0.03245 | CP3: 0.03246 | CQ3: 0.03247 | CR3: 0.03247 | CS3: 0.03248 | CT3: 0.03248 | CU3: 0.03249 | CV3: 0.03249 | CW3: 0.0325 | CX3: 0.0325
B4: Up | C4: 0.03534 | D4: 0.03535 | E4: 0.03551 | F4: 0.03598 | G4: 0.03641 | H4: 0.03699 | I4: 0.03745 | J4: 0.03809 | K4: 0.03837 | L4: 0.03885 | M4: 0.03888 | N4: 0.03909 | O4: 0.03953 | P4: 0.03994 | Q4: 0.04027 | R4: 0.04051 | S4: 0.04068 | T4: 0.0408 | U4: 0.04089 | V4: 0.04097 | W4: 0.04104 | X4: 0.04111 | Y4: 0.04118 | Z4: 0.04124 | AA4: 0.04129 | AB4: 0.04135 | AC4: 0.04139 | AD4: 0.04144 | AE4: 0.04148 | AF4: 0.04152 | AG4: 0.04156 | AH4: 0.0416 | AI4: 0.04163 | AJ4: 0.04167 | AK4: 0.0417 | AL4: 0.04173 | AM4: 0.04176 | AN4: 0.04179 | AO4: 0.04181 | AP4: 0.04184 | AQ4: 0.04186 | AR4: 0.04188 | AS4: 0.04191 | AT4: 0.04193 | AU4: 0.04195 | AV4: 0.04197 | AW4: 0.04199 | AX4: 0.04201 | AY4: 0.04203 | AZ4: 0.04204 | BA4: 0.04206 | BB4: 0.04208 | BC4: 0.04209 | BD4: 0.04211 | BE4: 0.04212 | BF4: 0.04214 | BG4: 0.04215 | BH4: 0.04216 | BI4: 0.04218 | BJ4: 0.04219 | BK4: 0.0422 | BL4: 0.04221 | BM4: 0.04222 | BN4: 0.04224 | BO4: 0.04225 | BP4: 0.04226 | BQ4: 0.04227 | BR4: 0.04228 | BS4: 0.04229 | BT4: 0.0423 | BU4: 0.04231 | BV4: 0.04232 | BW4: 0.04233 | BX4: 0.04233 | BY4: 0.04234 | BZ4: 0.04235 | CA4: 0.04236 | CB4: 0.04237 | CC4: 0.04237 | CD4: 0.04238 | CE4: 0.04239 | CF4: 0.0424 | CG4: 0.0424 | CH4: 0.04241 | CI4: 0.04242 | CJ4: 0.04242 | CK4: 0.04243 | CL4: 0.04244 | CM4: 0.04244 | CN4: 0.04245 | CO4: 0.04245 | CP4: 0.04246 | CQ4: 0.04247 | CR4: 0.04247 | CS4: 0.04248 | CT4: 0.04248 | CU4: 0.04249 | CV4: 0.04249 | CW4: 0.0425 | CX4: 0.0425
B5: Down | C5: 0.0069 | D5: 0.00887 | E5: 0.01099 | F5: 0.01269 | G5: 0.01399 | H5: 0.01535 | I5: 0.01651 | J5: 0.01771 | K5: 0.01892 | L5: 0.01991 | M5: 0.02057 | N5: 0.02122 | O5: 0.02182 | P5: 0.02212 | Q5: 0.02264 | R5: 0.02253 | S5: 0.02265 | T5: 0.02274 | U5: 0.02251 | V5: 0.02257 | W5: 0.02265 | X5: 0.02274 | Y5: 0.02282 | Z5: 0.02289 | AA5: 0.02296 | AB5: 0.02303 | AC5: 0.02309 | AD5: 0.02316 | AE5: 0.02321 | AF5: 0.02327 | AG5: 0.02333 | AH5: 0.02339 | AI5: 0.02344 | AJ5: 0.0235 | AK5: 0.02355 | AL5: 0.02361 | AM5: 0.02366 | AN5: 0.02371 | AO5: 0.02376 | AP5: 0.02381 | AQ5: 0.02386 | AR5: 0.0239 | AS5: 0.02396 | AT5: 0.02401 | AU5: 0.02405 | AV5: 0.0241 | AW5: 0.02415 | AX5: 0.0242 | AY5: 0.02425 | AZ5: 0.02429 | BA5: 0.02434 | BB5: 0.02439 | BC5: 0.02443 | BD5: 0.02448 | BE5: 0.02452 | BF5: 0.02457 | BG5: 0.02462 | BH5: 0.02466 | BI5: 0.02471 | BJ5: 0.02475 | BK5: 0.0248 | BL5: 0.02484 | BM5: 0.02489 | BN5: 0.02494 | BO5: 0.02498 | BP5: 0.02503 | BQ5: 0.02507 | BR5: 0.02512 | BS5: 0.02516 | BT5: 0.02521 | BU5: 0.02525 | BV5: 0.0253 | BW5: 0.02535 | BX5: 0.02538 | BY5: 0.02543 | BZ5: 0.02547 | CA5: 0.02552 | CB5: 0.02557 | CC5: 0.0256 | CD5: 0.02565 | CE5: 0.0257 | CF5: 0.02574 | CG5: 0.02578 | CH5: 0.02583 | CI5: 0.02588 | CJ5: 0.02591 | CK5: 0.02596 | CL5: 0.02601 | CM5: 0.02605 | CN5: 0.0261 | CO5: 0.02609 | CP5: 0.0261 | CQ5: 0.02611 | CR5: 0.02611 | CS5: 0.02611 | CT5: 0.02611 | CU5: 0.02612 | CV5: 0.02612 | CW5: 0.02612 | CX5: 0.02612
B6: Central hors VA | C6: 0.01961 | D6: 0.01962 | E6: 0.02043 | F6: 0.02137 | G6: 0.0222 | H6: 0.02302 | I6: 0.02379 | J6: 0.02455 | K6: 0.02526 | L6: 0.02595 | M6: 0.02653 | N6: 0.02707 | O6: 0.02753 | P6: 0.02794 | Q6: 0.02827 | R6: 0.02851 | S6: 0.02868 | T6: 0.0288 | U6: 0.02889 | V6: 0.02897 | W6: 0.02905 | X6: 0.02913 | Y6: 0.02921 | Z6: 0.0293 | AA6: 0.02938 | AB6: 0.02946 | AC6: 0.02953 | AD6: 0.02961 | AE6: 0.02969 | AF6: 0.02976 | AG6: 0.02983 | AH6: 0.0299 | AI6: 0.02996 | AJ6: 0.03003 | AK6: 0.03009 | AL6: 0.03015 | AM6: 0.03021 | AN6: 0.03027 | AO6: 0.03033 | AP6: 0.03038 | AQ6: 0.03043 | AR6: 0.03048 | AS6: 0.03053 | AT6: 0.03058 | AU6: 0.03062 | AV6: 0.03067 | AW6: 0.03071 | AX6: 0.03075 | AY6: 0.0308 | AZ6: 0.03083 | BA6: 0.03087 | BB6: 0.03091 | BC6: 0.03095 | BD6: 0.03098 | BE6: 0.03101 | BF6: 0.03105 | BG6: 0.03108 | BH6: 0.03111 | BI6: 0.03114 | BJ6: 0.03117 | BK6: 0.0312 | BL6: 0.03122 | BM6: 0.03125 | BN6: 0.03128 | BO6: 0.0313 | BP6: 0.03133 | BQ6: 0.03135 | BR6: 0.03138 | BS6: 0.0314 | BT6: 0.03142 | BU6: 0.03144 | BV6: 0.03146 | BW6: 0.03148 | BX6: 0.0315 | BY6: 0.03152 | BZ6: 0.03154 | CA6: 0.03156 | CB6: 0.03158 | CC6: 0.0316 | CD6: 0.03161 | CE6: 0.03163 | CF6: 0.03165 | CG6: 0.03166 | CH6: 0.03168 | CI6: 0.03169 | CJ6: 0.03171 | CK6: 0.03172 | CL6: 0.03174 | CM6: 0.03175 | CN6: 0.03177 | CO6: 0.03178 | CP6: 0.03179 | CQ6: 0.03181 | CR6: 0.03182 | CS6: 0.03183 | CT6: 0.03184 | CU6: 0.03185 | CV6: 0.03187 | CW6: 0.03188 | CX6: 0.03189

Sheet Frais_BP_3
B2: I) Frais et commissions
B5: AVIE / PER / CAPI | D5: 2031-12-31
B6: Frais | C6: Taux | D6: Driver
B7: Frais Acquisition | C7: 0.004636765671 | D7: Primes
B8: Frais Gestion Sinistres | C8: 0.002600978427 | D8: Prestations
B9: Frais Administration | C9: 0.002124767929 | D9: PM | E9: exclusion C3S sur primes
B10: Frais Financiers | C10: 0.00075859202 | D10: VM | E10: MP 2029 car 2030 non calculés
B11: Prélèvements Sociaux | C11: 0.172 | D11: PB
B12: Clause PB | C12: 0.85 | D12: Produits financiers
B13: Frais d'acquisition : hors comm. distribution intégrées directement dans la projection des frais dans la maquette S2
B14: Frais Administration / Frais acq : montant de frais sur l'ensemble des périmètres => tx unique tout produit

Sheet Bilan_Social_BP_3
B2: I) Bilan Social
B5: AVIE + PER + CAPI + FP | C5: 2029-12-31
B7: ACTIF | C7: VNC | D7: VM | F7: PASSIF
B8: Capital souscrit non appelé ou compte de liaison avec le siège | C8: 0 | D8: 0 | F8: Capitaux Propres | G8: 27321384.86
B9: Actifs Incorporels | C9: 0 | D9: 0 | F9: Résultat de l'exercice | G9: -217770.6834
B10: Obligation Govies | C10: 123803502.3 | D10: 123803502.3 | F10: Passifs subordonnés | G10: 0
B11: Obligation Corporate | C11: 33014267.27 | D11: 34004695.29 | F11: Provisions techniques brutes | G11: 137967722.2
B12: Action | C12: 0 | D12: 0 | F12: PM | G12: 137967722.2 | J12: =G12=SUM(Model_Points_BP_3!$C$7:$C$11,Model_Points_BP_3!$C$15:$C$19) -> TRUE
B13: Monétaire | C13: 8253566.819 | D13: 8253566.819 | F13: PSAP | G13: 0
B14: UC | C14: 266155651.5 | D14: 266155651.5 | F14: PPE | G14: 0 | I14: =C14=G15 -> TRUE
B15: Provisions sur placements | C15: 0 | D15: 0 | F15: Provision techniques des contrats en unité de comptes | G15: 266155651.5 | J15: =ROUND(G15,2)=ROUND(SUM(Model_Points_BP_3!$L$7:$L$11,Model_Points_BP_3!$L$15:$L$19),2) -> TRUE
B16: PDD | C16: 0 | D16: 0 | F16: Autres provisions techniques | G16: 0
B17: Part des cessionnaires et rétrocessionnaires dans les provisions techniques | C17: 0 | D17: 0 | F17: RC | G17: 0
B18: Créances | C18: 0 | D18: 0 | F18: PRE | G18: 0
B19: Autres Actifs | C19: 0 | D19: 0 | F19: Provisions (autres que techniques) | G19: 0
B20: Comptes de régularisation Actif | C20: 0 | D20: 0 | F20: Dettes pour dépôts en espèces reçues des cessionnaires | G20: 0
F21: Autres Dettes | G21: 0
F22: Comptes de régularisation Passif | G22: 0

Sheet Model_Points_BP_3
B2: I) Model Points Actifs
B5: AVIE | C5: Euro | D5: 2029-12-31 | K5: AVIE / CAPI | L5: UC | M5: 2029-12-31 | Q5: AVIE / CAPI | R5: 2028-12-31
B6: Asset Type | C6: VNC | D6: VM | E6: COUPON_PC | F6: NOMINAL | G6: MATURITY_RESID | H6: SPREAD_PC | I6: DIV_PC | K6: Asset Type | L6: VNC | M6: VM | N6: DIV_PC | O6: UC_TYPE | Q6: Reserves | R6: VNC
B7: BONDS_GOV | C7: 95177923.88 | D7: 95177923.88 | E7: 0 | F7: 95177923.88 | G7: 7 | K7: OBLIG_CORP | L7: 31177329.6 | M7: 31177329.6 | N7: 0 | O7: 1 | P7: =M7/SUM($M$7:$M$11) -> 0.1272855134 | Q7: PPE | R7: 0
B8: BONDS_CORP | C8: 25380779.7 | D8: 26142203.09 | E8: 0 | F8: 25380779.7 | G8: 7 | K8: OBLIG_CORP_NR | L8: 20842303.22 | M8: 20842303.22 | N8: 0 | O8: 2 | P8: =M8/SUM($M$7:$M$11) -> 0.08509142053 | Q8: RC | R8: 0
B9: EQ_TYPE_1 | C9: 0 | D9: 0 | E9: 0 | I9: 0 | K9: EQ_TYPE_1 | L9: 163121166.5 | M9: 163121166.5 | N9: 0 | O9: 3 | P9: 0.6659634318
B10: EQ_TYPE_2 | C10: 0 | D10: 0 | E10: 0 | I10: 0 | K10: EQ_TYPE_2 | L10: 20153301.46 | M10: 20153301.46 | N10: 0 | O10: 4 | P10: 0.08227848101 | T10: PMVL ALL | U10: =SUM(D7:D11)-SUM(C7:C11)+SUM(D15:D19)-SUM(C15:C19) -> 827806.3331
B11: CASH | C11: 6345194.925 | D11: 6345194.925 | E11: 0 | K11: MONETAIRE | L11: 9646024.629 | M11: 9646024.629 | N11: 0 | O11: 5 | P11: 0.03938115331
B13: PER | C13: Euro | D13: 2029-12-31 | K13: PER | L13: UC | M13: 2029-12-31 | Q13: PER | R13: 2028-12-31
B14: Asset Type | C14: VNC | D14: VM | E14: COUPON_PC | F14: NOMINAL | G14: MATURITY_RESID | H14: SPREAD_PC | I14: DIV_PC | K14: Asset Type | L14: VNC | M14: VM | N14: DIV_PC | O14: UC_TYPE | Q14: Reserves | R14: VNC
B15: BONDS_GOV | C15: 8297867.766 | D15: 8297867.766 | E15: 0 | F15: 8297867.766 | G15: 7 | K15: OBLIG_CORP | L15: 2700429.125 | M15: 2700429.125 | N15: 0 | O15: 1 | Q15: PPE | R15: 0
B16: BONDS_CORP | C16: 2212764.738 | D16: 2279147.68 | E16: 0 | F16: 2212764.738 | G16: 7 | K16: OBLIG_CORP_NR | L16: 1805259.249 | M16: 1805259.249 | N16: 0 | O16: 2 | Q16: RC | R16: 0
B17: EQ_TYPE_1 | C17: 0 | D17: 0 | E17: 0 | I17: 0 | K17: EQ_TYPE_1 | L17: 14128764.54 | M17: 14128764.54 | N17: 0 | O17: 3
B18: EQ_TYPE_2 | C18: 0 | D18: 0 | E18: 0 | I18: 0 | K18: EQ_TYPE_2 | L18: 1745581.258 | M18: 1745581.258 | N18: 0 | O18: 4
B19: CASH | C19: 553191.1844 | D19: 553191.1844 | E19: 0 | K19: MONETAIRE | L19: 835491.884 | M19: 835491.884 | N19: 0 | O19: 5
B22: II) Model Points Passif
B25: Assurance Vie | C25: Euro - UC | D25: 2029-12-31
B26: ID | C26: AGE | D26: SOUSCRIPTION_YR | E26: SEXE | F26: PDT | G26: CHGT_GEST_EURO_PC | H26: CHGT_GEST_UC_PC | I26: COMM_DIST_EURO_PC | J26: COMM_DIST_UC_PC | K26: CLAUSE_PB_PC | L26: TMG_PC | M26: NO_POLS | N26: PM_EURO | O26: PM_UC_TOT | P26: PM_UC_1 | Q26: PM_UC_2 | R26: PM_UC_3 | S26: PM_UC_4 | T26: PM_UC_5
B27: #1 | C27: 18 | D27: 2026 | E27: H | F27: A_VIE | G27: 0.45 | H27: 0.39 | I27: 0.6 | J27: 0.6 | K27: 85 | L27: 0 | M27: 11 | N27: 211506.4975 | O27: 405576.0228 | P27: 51623.95227 | Q27: 34511.03992 | R27: 270098.8 | S27: 33370.17909 | T27: 15972.05153
B28: #2 | C28: 18 | D28: 2028 | E28: H | F28: A_VIE | G28: 0.45 | H28: 0.39 | I28: 0.6 | J28: 0.6 | K28: 85 | L28: 0 | M28: 11 | N28: 211506.4975 | O28: 405576.0228 | P28: 51623.95227 | Q28: 34511.03992 | R28: 270098.8 | S28: 33370.17909 | T28: 15972.05153
B29: #3 | C29: 18 | D29: 2029 | E29: H | F29: A_VIE | G29: 0.45 | H29: 0.39 | I29: 0.6 | J29: 0.6 | K29: 85 | L29: 0 | M29: 11 | N29: 211506.4975 | O29: 405576.0228 | P29: 51623.95227 | Q29: 34511.03992 | R29: 270098.8 | S29: 33370.17909 | T29: 15972.05153
B30: #4 | C30: 19 | D30: 2026 | E30: H | F30: A_VIE | G30: 0.45 | H30: 0.39 | I30: 0.6 | J30: 0.6 | K30: 85 | L30: 0 | M30: 11 | N30: 211506.4975 | O30: 405576.0228 | P30: 51623.95227 | Q30: 34511.03992 | R30: 270098.8 | S30: 33370.17909 | T30: 15972.05153
B31: #5 | C31: 19 | D31: 2028 | E31: H | F31: A_VIE | G31: 0.45 | H31: 0.39 | I31: 0.6 | J31: 0.6 | K31: 85 | L31: 0 | M31: 11 | N31: 211506.4975 | O31: 405576.0228 | P31: 51623.95227 | Q31: 34511.03992 | R31: 270098.8 | S31: 33370.17909 | T31: 15972.05153
B32: #6 | C32: 19 | D32: 2029 | E32: H | F32: A_VIE | G32: 0.45 | H32: 0.39 | I32: 0.6 | J32: 0.6 | K32: 85 | L32: 0 | M32: 11 | N32: 211506.4975 | O32: 405576.0228 | P32: 51623.95227 | Q32: 34511.03992 | R32: 270098.8 | S32: 33370.17909 | T32: 15972.05153
B33: #7 | C33: 20 | D33: 2026 | E33: F | F33: A_VIE | G33: 0.45 | H33: 0.39 | I33: 0.6 | J33: 0.6 | K33: 85 | L33: 0 | M33: 23 | N33: 423012.995 | O33: 811152.0456 | P33: 103247.9045 | Q33: 69022.07983 | R33: 540197.6 | S33: 66740.35818 | T33: 31944.10306
B34: #8 | C34: 20 | D34: 2028 | E34: F | F34: A_VIE | G34: 0.45 | H34: 0.39 | I34: 0.6 | J34: 0.6 | K34: 85 | L34: 0 | M34: 23 | N34: 423012.995 | O34: 811152.0456 | P34: 103247.9045 | Q34: 69022.07983 | R34: 540197.6 | S34: 66740.35818 | T34: 31944.10306
B35: #9 | C35: 20 | D35: 2029 | E35: F | F35: A_VIE | G35: 0.45 | H35: 0.39 | I35: 0.6 | J35: 0.6 | K35: 85 | L35: 0 | M35: 23 | N35: 423012.995 | O35: 811152.0456 | P35: 103247.9045 | Q35: 69022.07983 | R35: 540197.6 | S35: 66740.35818 | T35: 31944.10306
B36: #10 | C36: 21 | D36: 2026 | E36: H | F36: A_VIE | G36: 0.45 | H36: 0.39 | I36: 0.6 | J36: 0.6 | K36: 85 | L36: 0 | M36: 23 | N36: 423012.995 | O36: 811152.0456 | P36: 103247.9045 | Q36: 69022.07983 | R36: 540197.6 | S36: 66740.35818 | T36: 31944.10306
B37: #11 | C37: 21 | D37: 2028 | E37: H | F37: A_VIE | G37: 0.45 | H37: 0.39 | I37: 0.6 | J37: 0.6 | K37: 85 | L37: 0 | M37: 23 | N37: 423012.995 | O37: 811152.0456 | P37: 103247.9045 | Q37: 69022.07983 | R37: 540197.6 | S37: 66740.35818 | T37: 31944.10306
B38: #12 | C38: 21 | D38: 2029 | E38: H | F38: A_VIE | G38: 0.45 | H38: 0.39 | I38: 0.6 | J38: 0.6 | K38: 85 | L38: 0 | M38: 23 | N38: 423012.995 | O38: 811152.0456 | P38: 103247.9045 | Q38: 69022.07983 | R38: 540197.6 | S38: 66740.35818 | T38: 31944.10306
B39: #13 | C39: 22 | D39: 2026 | E39: H | F39: A_VIE | G39: 0.45 | H39: 0.39 | I39: 0.6 | J39: 0.6 | K39: 85 | L39: 0 | M39: 23 | N39: 423012.995 | O39: 811152.0456 | P39: 103247.9045 | Q39: 69022.07983 | R39: 540197.6 | S39: 66740.35818 | T39: 31944.10306
B40: #14 | C40: 22 | D40: 2028 | E40: H | F40: A_VIE | G40: 0.45 | H40: 0.39 | I40: 0.6 | J40: 0.6 | K40: 85 | L40: 0 | M40: 23 | N40: 423012.995 | O40: 811152.0456 | P40: 103247.9045 | Q40: 69022.07983 | R40: 540197.6 | S40: 66740.35818 | T40: 31944.10306
B41: #15 | C41: 22 | D41: 2029 | E41: H | F41: A_VIE | G41: 0.45 | H41: 0.39 | I41: 0.6 | J41: 0.6 | K41: 85 | L41: 0 | M41: 23 | N41: 423012.995 | O41: 811152.0456 | P41: 103247.9045 | Q41: 69022.07983 | R41: 540197.6 | S41: 66740.35818 | T41: 31944.10306
B42: #16 | C42: 23 | D42: 2026 | E42: F | F42: A_VIE | G42: 0.45 | H42: 0.39 | I42: 0.6 | J42: 0.6 | K42: 85 | L42: 0 | M42: 23 | N42: 423012.995 | O42: 811152.0456 | P42: 103247.9045 | Q42: 69022.07983 | R42: 540197.6 | S42: 66740.35818 | T42: 31944.10306
B43: #17 | C43: 23 | D43: 2028 | E43: F | F43: A_VIE | G43: 0.45 | H43: 0.39 | I43: 0.6 | J43: 0.6 | K43: 85 | L43: 0 | M43: 23 | N43: 423012.995 | O43: 811152.0456 | P43: 103247.9045 | Q43: 69022.07983 | R43: 540197.6 | S43: 66740.35818 | T43: 31944.10306
B44: #18 | C44: 23 | D44: 2029 | E44: F | F44: A_VIE | G44: 0.45 | H44: 0.39 | I44: 0.6 | J44: 0.6 | K44: 85 | L44: 0 | M44: 23 | N44: 423012.995 | O44: 811152.0456 | P44: 103247.9045 | Q44: 69022.07983 | R44: 540197.6 | S44: 66740.35818 | T44: 31944.10306
B45: #19 | C45: 24 | D45: 2026 | E45: H | F45: A_VIE | G45: 0.45 | H45: 0.39 | I45: 0.6 | J45: 0.6 | K45: 85 | L45: 0 | M45: 23 | N45: 423012.995 | O45: 811152.0456 | P45: 103247.9045 | Q45: 69022.07983 | R45: 540197.6 | S45: 66740.35818 | T45: 31944.10306
B46: #20 | C46: 24 | D46: 2028 | E46: H | F46: A_VIE | G46: 0.45 | H46: 0.39 | I46: 0.6 | J46: 0.6 | K46: 85 | L46: 0 | M46: 23 | N46: 423012.995 | O46: 811152.0456 | P46: 103247.9045 | Q46: 69022.07983 | R46: 540197.6 | S46: 66740.35818 | T46: 31944.10306
B47: #21 | C47: 24 | D47: 2029 | E47: H | F47: A_VIE | G47: 0.45 | H47: 0.39 | I47: 0.6 | J47: 0.6 | K47: 85 | L47: 0 | M47: 23 | N47: 423012.995 | O47: 811152.0456 | P47: 103247.9045 | Q47: 69022.07983 | R47: 540197.6 | S47: 66740.35818 | T47: 31944.10306
B48: #22 | C48: 25 | D48: 2026 | E48: H | F48: A_VIE | G48: 0.45 | H48: 0.39 | I48: 0.6 | J48: 0.6 | K48: 85 | L48: 0 | M48: 114 | N48: 2115064.975 | O48: 4055760.228 | P48: 516239.5227 | Q48: 345110.3992 | R48: 2700988 | S48: 333701.7909 | T48: 159720.5153
B49: #23 | C49: 25 | D49: 2028 | E49: H | F49: A_VIE | G49: 0.45 | H49: 0.39 | I49: 0.6 | J49: 0.6 | K49: 85 | L49: 0 | M49: 114 | N49: 2115064.975 | O49: 4055760.228 | P49: 516239.5227 | Q49: 345110.3992 | R49: 2700988 | S49: 333701.7909 | T49: 159720.5153
B50: #24 | C50: 25 | D50: 2029 | E50: H | F50: A_VIE | G50: 0.45 | H50: 0.39 | I50: 0.6 | J50: 0.6 | K50: 85 | L50: 0 | M50: 114 | N50: 2115064.975 | O50: 4055760.228 | P50: 516239.5227 | Q50: 345110.3992 | R50: 2700988 | S50: 333701.7909 | T50: 159720.5153
B51: #25 | C51: 26 | D51: 2026 | E51: F | F51: A_VIE | G51: 0.45 | H51: 0.39 | I51: 0.6 | J51: 0.6 | K51: 85 | L51: 0 | M51: 68 | N51: 1269038.985 | O51: 2433456.137 | P51: 309743.7136 | Q51: 207066.2395 | R51: 1620592.8 | S51: 200221.0745 | T51: 95832.30919
B52: #26 | C52: 26 | D52: 2028 | E52: F | F52: A_VIE | G52: 0.45 | H52: 0.39 | I52: 0.6 | J52: 0.6 | K52: 85 | L52: 0 | M52: 68 | N52: 1269038.985 | O52: 2433456.137 | P52: 309743.7136 | Q52: 207066.2395 | R52: 1620592.8 | S52: 200221.0745 | T52: 95832.30919
B53: #27 | C53: 26 | D53: 2029 | E53: F | F53: A_VIE | G53: 0.45 | H53: 0.39 | I53: 0.6 | J53: 0.6 | K53: 85 | L53: 0 | M53: 68 | N53: 1269038.985 | O53: 2433456.137 | P53: 309743.7136 | Q53: 207066.2395 | R53: 1620592.8 | S53: 200221.0745 | T53: 95832.30919
B54: #28 | C54: 27 | D54: 2026 | E54: H | F54: A_VIE | G54: 0.45 | H54: 0.39 | I54: 0.6 | J54: 0.6 | K54: 85 | L54: 0 | M54: 68 | N54: 1269038.985 | O54: 2433456.137 | P54: 309743.7136 | Q54: 207066.2395 | R54: 1620592.8 | S54: 200221.0745 | T54: 95832.30919
B55: #29 | C55: 27 | D55: 2028 | E55: H | F55: A_VIE | G55: 0.45 | H55: 0.39 | I55: 0.6 | J55: 0.6 | K55: 85 | L55: 0 | M55: 68 | N55: 1269038.985 | O55: 2433456.137 | P55: 309743.7136 | Q55: 207066.2395 | R55: 1620592.8 | S55: 200221.0745 | T55: 95832.30919
B56: #30 | C56: 27 | D56: 2029 | E56: H | F56: A_VIE | G56: 0.45 | H56: 0.39 | I56: 0.6 | J56: 0.6 | K56: 85 | L56: 0 | M56: 68 | N56: 1269038.985 | O56: 2433456.137 | P56: 309743.7136 | Q56: 207066.2395 | R56: 1620592.8 | S56: 200221.0745 | T56: 95832.30919
B57: #31 | C57: 28 | D57: 2026 | E57: H | F57: A_VIE | G57: 0.45 | H57: 0.39 | I57: 0.6 | J57: 0.6 | K57: 85 | L57: 0 | M57: 68 | N57: 1269038.985 | O57: 2433456.137 | P57: 309743.7136 | Q57: 207066.2395 | R57: 1620592.8 | S57: 200221.0745 | T57: 95832.30919
B58: #32 | C58: 28 | D58: 2028 | E58: H | F58: A_VIE | G58: 0.45 | H58: 0.39 | I58: 0.6 | J58: 0.6 | K58: 85 | L58: 0 | M58: 68 | N58: 1269038.985 | O58: 2433456.137 | P58: 309743.7136 | Q58: 207066.2395 | R58: 1620592.8 | S58: 200221.0745 | T58: 95832.30919
B59: #33 | C59: 28 | D59: 2029 | E59: H | F59: A_VIE | G59: 0.45 | H59: 0.39 | I59: 0.6 | J59: 0.6 | K59: 85 | L59: 0 | M59: 68 | N59: 1269038.985 | O59: 2433456.137 | P59: 309743.7136 | Q59: 207066.2395 | R59: 1620592.8 | S59: 200221.0745 | T59: 95832.30919
B60: #34 | C60: 29 | D60: 2026 | E60: F | F60: A_VIE | G60: 0.45 | H60: 0.39 | I60: 0.6 | J60: 0.6 | K60: 85 | L60: 0 | M60: 68 | N60: 1269038.985 | O60: 2433456.137 | P60: 309743.7136 | Q60: 207066.2395 | R60: 1620592.8 | S60: 200221.0745 | T60: 95832.30919
B61: #35 | C61: 29 | D61: 2028 | E61: F | F61: A_VIE | G61: 0.45 | H61: 0.39 | I61: 0.6 | J61: 0.6 | K61: 85 | L61: 0 | M61: 68 | N61: 1269038.985 | O61: 2433456.137 | P61: 309743.7136 | Q61: 207066.2395 | R61: 1620592.8 | S61: 200221.0745 | T61: 95832.30919
B62: #36 | C62: 29 | D62: 2029 | E62: F | F62: A_VIE | G62: 0.45 | H62: 0.39 | I62: 0.6 | J62: 0.6 | K62: 85 | L62: 0 | M62: 68 | N62: 1269038.985 | O62: 2433456.137 | P62: 309743.7136 | Q62: 207066.2395 | R62: 1620592.8 | S62: 200221.0745 | T62: 95832.30919
B63: #37 | C63: 30 | D63: 2026 | E63: H | F63: A_VIE | G63: 0.45 | H63: 0.39 | I63: 0.6 | J63: 0.6 | K63: 85 | L63: 0 | M63: 68 | N63: 1269038.985 | O63: 2433456.137 | P63: 309743.7136 | Q63: 207066.2395 | R63: 1620592.8 | S63: 200221.0745 | T63: 95832.30919
B64: #38 | C64: 30 | D64: 2028 | E64: H | F64: A_VIE | G64: 0.45 | H64: 0.39 | I64: 0.6 | J64: 0.6 | K64: 85 | L64: 0 | M64: 68 | N64: 1269038.985 | O64: 2433456.137 | P64: 309743.7136 | Q64: 207066.2395 | R64: 1620592.8 | S64: 200221.0745 | T64: 95832.30919
B65: #39 | C65: 30 | D65: 2029 | E65: H | F65: A_VIE | G65: 0.45 | H65: 0.39 | I65: 0.6 | J65: 0.6 | K65: 85 | L65: 0 | M65: 68 | N65: 1269038.985 | O65: 2433456.137 | P65: 309743.7136 | Q65: 207066.2395 | R65: 1620592.8 | S65: 200221.0745 | T65: 95832.30919
B66: #40 | C66: 31 | D66: 2026 | E66: H | F66: A_VIE | G66: 0.45 | H66: 0.39 | I66: 0.6 | J66: 0.6 | K66: 85 | L66: 0 | M66: 68 | N66: 1269038.985 | O66: 2433456.137 | P66: 309743.7136 | Q66: 207066.2395 | R66: 1620592.8 | S66: 200221.0745 | T66: 95832.30919
B67: #41 | C67: 31 | D67: 2028 | E67: H | F67: A_VIE | G67: 0.45 | H67: 0.39 | I67: 0.6 | J67: 0.6 | K67: 85 | L67: 0 | M67: 68 | N67: 1269038.985 | O67: 2433456.137 | P67: 309743.7136 | Q67: 207066.2395 | R67: 1620592.8 | S67: 200221.0745 | T67: 95832.30919
B68: #42 | C68: 31 | D68: 2029 | E68: H | F68: A_VIE | G68: 0.45 | H68: 0.39 | I68: 0.6 | J68: 0.6 | K68: 85 | L68: 0 | M68: 68 | N68: 1269038.985 | O68: 2433456.137 | P68: 309743.7136 | Q68: 207066.2395 | R68: 1620592.8 | S68: 200221.0745 | T68: 95832.30919
B69: #43 | C69: 32 | D69: 2026 | E69: F | F69: A_VIE | G69: 0.45 | H69: 0.39 | I69: 0.6 | J69: 0.6 | K69: 85 | L69: 0 | M69: 68 | N69: 1269038.985 | O69: 2433456.137 | P69: 309743.7136 | Q69: 207066.2395 | R69: 1620592.8 | S69: 200221.0745 | T69: 95832.30919
B70: #44 | C70: 32 | D70: 2028 | E70: F | F70: A_VIE | G70: 0.45 | H70: 0.39 | I70: 0.6 | J70: 0.6 | K70: 85 | L70: 0 | M70: 68 | N70: 1269038.985 | O70: 2433456.137 | P70: 309743.7136 | Q70: 207066.2395 | R70: 1620592.8 | S70: 200221.0745 | T70: 95832.30919
B71: #45 | C71: 32 | D71: 2029 | E71: F | F71: A_VIE | G71: 0.45 | H71: 0.39 | I71: 0.6 | J71: 0.6 | K71: 85 | L71: 0 | M71: 68 | N71: 1269038.985 | O71: 2433456.137 | P71: 309743.7136 | Q71: 207066.2395 | R71: 1620592.8 | S71: 200221.0745 | T71: 95832.30919
B72: #46 | C72: 33 | D72: 2026 | E72: H | F72: A_VIE | G72: 0.45 | H72: 0.39 | I72: 0.6 | J72: 0.6 | K72: 85 | L72: 0 | M72: 68 | N72: 1269038.985 | O72: 2433456.137 | P72: 309743.7136 | Q72: 207066.2395 | R72: 1620592.8 | S72: 200221.0745 | T72: 95832.30919
B73: #47 | C73: 33 | D73: 2028 | E73: H | F73: A_VIE | G73: 0.45 | H73: 0.39 | I73: 0.6 | J73: 0.6 | K73: 85 | L73: 0 | M73: 68 | N73: 1269038.985 | O73: 2433456.137 | P73: 309743.7136 | Q73: 207066.2395 | R73: 1620592.8 | S73: 200221.0745 | T73: 95832.30919
B74: #48 | C74: 33 | D74: 2029 | E74: H | F74: A_VIE | G74: 0.45 | H74: 0.39 | I74: 0.6 | J74: 0.6 | K74: 85 | L74: 0 | M74: 68 | N74: 1269038.985 | O74: 2433456.137 | P74: 309743.7136 | Q74: 207066.2395 | R74: 1620592.8 | S74: 200221.0745 | T74: 95832.30919
B75: #49 | C75: 34 | D75: 2026 | E75: H | F75: A_VIE | G75: 0.45 | H75: 0.39 | I75: 0.6 | J75: 0.6 | K75: 85 | L75: 0 | M75: 68 | N75: 1269038.985 | O75: 2433456.137 | P75: 309743.7136 | Q75: 207066.2395 | R75: 1620592.8 | S75: 200221.0745 | T75: 95832.30919
B76: #50 | C76: 34 | D76: 2028 | E76: H | F76: A_VIE | G76: 0.45 | H76: 0.39 | I76: 0.6 | J76: 0.6 | K76: 85 | L76: 0 | M76: 68 | N76: 1269038.985 | O76: 2433456.137 | P76: 309743.7136 | Q76: 207066.2395 | R76: 1620592.8 | S76: 200221.0745 | T76: 95832.30919
B77: #51 | C77: 34 | D77: 2029 | E77: H | F77: A_VIE | G77: 0.45 | H77: 0.39 | I77: 0.6 | J77: 0.6 | K77: 85 | L77: 0 | M77: 68 | N77: 1269038.985 | O77: 2433456.137 | P77: 309743.7136 | Q77: 207066.2395 | R77: 1620592.8 | S77: 200221.0745 | T77: 95832.30919
B78: #52 | C78: 35 | D78: 2026 | E78: F | F78: A_VIE | G78: 0.45 | H78: 0.39 | I78: 0.6 | J78: 0.6 | K78: 85 | L78: 0 | M78: 68 | N78: 1269038.985 | O78: 2433456.137 | P78: 309743.7136 | Q78: 207066.2395 | R78: 1620592.8 | S78: 200221.0745 | T78: 95832.30919
B79: #53 | C79: 35 | D79: 2028 | E79: F | F79: A_VIE | G79: 0.45 | H79: 0.39 | I79: 0.6 | J79: 0.6 | K79: 85 | L79: 0 | M79: 68 | N79: 1269038.985 | O79: 2433456.137 | P79: 309743.7136 | Q79: 207066.2395 | R79: 1620592.8 | S79: 200221.0745 | T79: 95832.30919
B80: #54 | C80: 35 | D80: 2029 | E80: F | F80: A_VIE | G80: 0.45 | H80: 0.39 | I80: 0.6 | J80: 0.6 | K80: 85 | L80: 0 | M80: 68 | N80: 1269038.985 | O80: 2433456.137 | P80: 309743.7136 | Q80: 207066.2395 | R80: 1620592.8 | S80: 200221.0745 | T80: 95832.30919
B81: #55 | C81: 36 | D81: 2026 | E81: H | F81: A_VIE | G81: 0.45 | H81: 0.39 | I81: 0.6 | J81: 0.6 | K81: 85 | L81: 0 | M81: 11 | N81: 211506.4975 | O81: 405576.0228 | P81: 51623.95227 | Q81: 34511.03992 | R81: 270098.8 | S81: 33370.17909 | T81: 15972.05153
B82: #56 | C82: 36 | D82: 2028 | E82: H | F82: A_VIE | G82: 0.45 | H82: 0.39 | I82: 0.6 | J82: 0.6 | K82: 85 | L82: 0 | M82: 11 | N82: 211506.4975 | O82: 405576.0228 | P82: 51623.95227 | Q82: 34511.03992 | R82: 270098.8 | S82: 33370.17909 | T82: 15972.05153
B83: #57 | C83: 36 | D83: 2029 | E83: H | F83: A_VIE | G83: 0.45 | H83: 0.39 | I83: 0.6 | J83: 0.6 | K83: 85 | L83: 0 | M83: 11 | N83: 211506.4975 | O83: 405576.0228 | P83: 51623.95227 | Q83: 34511.03992 | R83: 270098.8 | S83: 33370.17909 | T83: 15972.05153
B84: #58 | C84: 37 | D84: 2026 | E84: H | F84: A_VIE | G84: 0.45 | H84: 0.39 | I84: 0.6 | J84: 0.6 | K84: 85 | L84: 0 | M84: 11 | N84: 211506.4975 | O84: 405576.0228 | P84: 51623.95227 | Q84: 34511.03992 | R84: 270098.8 | S84: 33370.17909 | T84: 15972.05153
B85: #59 | C85: 37 | D85: 2028 | E85: H | F85: A_VIE | G85: 0.45 | H85: 0.39 | I85: 0.6 | J85: 0.6 | K85: 85 | L85: 0 | M85: 11 | N85: 211506.4975 | O85: 405576.0228 | P85: 51623.95227 | Q85: 34511.03992 | R85: 270098.8 | S85: 33370.17909 | T85: 15972.05153
B86: #60 | C86: 37 | D86: 2029 | E86: H | F86: A_VIE | G86: 0.45 | H86: 0.39 | I86: 0.6 | J86: 0.6 | K86: 85 | L86: 0 | M86: 11 | N86: 211506.4975 | O86: 405576.0228 | P86: 51623.95227 | Q86: 34511.03992 | R86: 270098.8 | S86: 33370.17909 | T86: 15972.05153
B87: #61 | C87: 38 | D87: 2026 | E87: F | F87: A_VIE | G87: 0.45 | H87: 0.39 | I87: 0.6 | J87: 0.6 | K87: 85 | L87: 0 | M87: 11 | N87: 211506.4975 | O87: 405576.0228 | P87: 51623.95227 | Q87: 34511.03992 | R87: 270098.8 | S87: 33370.17909 | T87: 15972.05153
B88: #62 | C88: 38 | D88: 2028 | E88: F | F88: A_VIE | G88: 0.45 | H88: 0.39 | I88: 0.6 | J88: 0.6 | K88: 85 | L88: 0 | M88: 11 | N88: 211506.4975 | O88: 405576.0228 | P88: 51623.95227 | Q88: 34511.03992 | R88: 270098.8 | S88: 33370.17909 | T88: 15972.05153
B89: #63 | C89: 38 | D89: 2029 | E89: F | F89: A_VIE | G89: 0.45 | H89: 0.39 | I89: 0.6 | J89: 0.6 | K89: 85 | L89: 0 | M89: 11 | N89: 211506.4975 | O89: 405576.0228 | P89: 51623.95227 | Q89: 34511.03992 | R89: 270098.8 | S89: 33370.17909 | T89: 15972.05153
B90: #64 | C90: 39 | D90: 2026 | E90: H | F90: A_VIE | G90: 0.45 | H90: 0.39 | I90: 0.6 | J90: 0.6 | K90: 85 | L90: 0 | M90: 11 | N90: 211506.4975 | O90: 405576.0228 | P90: 51623.95227 | Q90: 34511.03992 | R90: 270098.8 | S90: 33370.17909 | T90: 15972.05153
B91: #65 | C91: 39 | D91: 2028 | E91: H | F91: A_VIE | G91: 0.45 | H91: 0.39 | I91: 0.6 | J91: 0.6 | K91: 85 | L91: 0 | M91: 11 | N91: 211506.4975 | O91: 405576.0228 | P91: 51623.95227 | Q91: 34511.03992 | R91: 270098.8 | S91: 33370.17909 | T91: 15972.05153
B92: #66 | C92: 39 | D92: 2029 | E92: H | F92: A_VIE | G92: 0.45 | H92: 0.39 | I92: 0.6 | J92: 0.6 | K92: 85 | L92: 0 | M92: 11 | N92: 211506.4975 | O92: 405576.0228 | P92: 51623.95227 | Q92: 34511.03992 | R92: 270098.8 | S92: 33370.17909 | T92: 15972.05153
B93: #67 | C93: 40 | D93: 2026 | E93: H | F93: A_VIE | G93: 0.45 | H93: 0.39 | I93: 0.6 | J93: 0.6 | K93: 85 | L93: 0 | M93: 11 | N93: 211506.4975 | O93: 405576.0228 | P93: 51623.95227 | Q93: 34511.03992 | R93: 270098.8 | S93: 33370.17909 | T93: 15972.05153
B94: #68 | C94: 40 | D94: 2028 | E94: H | F94: A_VIE | G94: 0.45 | H94: 0.39 | I94: 0.6 | J94: 0.6 | K94: 85 | L94: 0 | M94: 11 | N94: 211506.4975 | O94: 405576.0228 | P94: 51623.95227 | Q94: 34511.03992 | R94: 270098.8 | S94: 33370.17909 | T94: 15972.05153
B95: #69 | C95: 40 | D95: 2029 | E95: H | F95: A_VIE | G95: 0.45 | H95: 0.39 | I95: 0.6 | J95: 0.6 | K95: 85 | L95: 0 | M95: 11 | N95: 211506.4975 | O95: 405576.0228 | P95: 51623.95227 | Q95: 34511.03992 | R95: 270098.8 | S95: 33370.17909 | T95: 15972.05153
B96: #70 | C96: 41 | D96: 2026 | E96: F | F96: A_VIE | G96: 0.45 | H96: 0.39 | I96: 0.6 | J96: 0.6 | K96: 85 | L96: 0 | M96: 11 | N96: 211506.4975 | O96: 405576.0228 | P96: 51623.95227 | Q96: 34511.03992 | R96: 270098.8 | S96: 33370.17909 | T96: 15972.05153
B97: #71 | C97: 41 | D97: 2028 | E97: F | F97: A_VIE | G97: 0.45 | H97: 0.39 | I97: 0.6 | J97: 0.6 | K97: 85 | L97: 0 | M97: 11 | N97: 211506.4975 | O97: 405576.0228 | P97: 51623.95227 | Q97: 34511.03992 | R97: 270098.8 | S97: 33370.17909 | T97: 15972.05153
B98: #72 | C98: 41 | D98: 2029 | E98: F | F98: A_VIE | G98: 0.45 | H98: 0.39 | I98: 0.6 | J98: 0.6 | K98: 85 | L98: 0 | M98: 11 | N98: 211506.4975 | O98: 405576.0228 | P98: 51623.95227 | Q98: 34511.03992 | R98: 270098.8 | S98: 33370.17909 | T98: 15972.05153
B99: #73 | C99: 42 | D99: 2026 | E99: H | F99: A_VIE | G99: 0.45 | H99: 0.39 | I99: 0.6 | J99: 0.6 | K99: 85 | L99: 0 | M99: 11 | N99: 211506.4975 | O99: 405576.0228 | P99: 51623.95227 | Q99: 34511.03992 | R99: 270098.8 | S99: 33370.17909 | T99: 15972.05153
B100: #74 | C100: 42 | D100: 2028 | E100: H | F100: A_VIE | G100: 0.45 | H100: 0.39 | I100: 0.6 | J100: 0.6 | K100: 85 | L100: 0 | M100: 11 | N100: 211506.4975 | O100: 405576.0228 | P100: 51623.95227 | Q100: 34511.03992 | R100: 270098.8 | S100: 33370.17909 | T100: 15972.05153
B101: #75 | C101: 42 | D101: 2029 | E101: H | F101: A_VIE | G101: 0.45 | H101: 0.39 | I101: 0.6 | J101: 0.6 | K101: 85 | L101: 0 | M101: 11 | N101: 211506.4975 | O101: 405576.0228 | P101: 51623.95227 | Q101: 34511.03992 | R101: 270098.8 | S101: 33370.17909 | T101: 15972.05153
B102: #76 | C102: 43 | D102: 2026 | E102: H | F102: A_VIE | G102: 0.45 | H102: 0.39 | I102: 0.6 | J102: 0.6 | K102: 85 | L102: 0 | M102: 11 | N102: 211506.4975 | O102: 405576.0228 | P102: 51623.95227 | Q102: 34511.03992 | R102: 270098.8 | S102: 33370.17909 | T102: 15972.05153
B103: #77 | C103: 43 | D103: 2028 | E103: H | F103: A_VIE | G103: 0.45 | H103: 0.39 | I103: 0.6 | J103: 0.6 | K103: 85 | L103: 0 | M103: 11 | N103: 211506.4975 | O103: 405576.0228 | P103: 51623.95227 | Q103: 34511.03992 | R103: 270098.8 | S103: 33370.17909 | T103: 15972.05153
B104: #78 | C104: 43 | D104: 2029 | E104: H | F104: A_VIE | G104: 0.45 | H104: 0.39 | I104: 0.6 | J104: 0.6 | K104: 85 | L104: 0 | M104: 11 | N104: 211506.4975 | O104: 405576.0228 | P104: 51623.95227 | Q104: 34511.03992 | R104: 270098.8 | S104: 33370.17909 | T104: 15972.05153
B105: #79 | C105: 44 | D105: 2026 | E105: F | F105: A_VIE | G105: 0.45 | H105: 0.39 | I105: 0.6 | J105: 0.6 | K105: 85 | L105: 0 | M105: 11 | N105: 211506.4975 | O105: 405576.0228 | P105: 51623.95227 | Q105: 34511.03992 | R105: 270098.8 | S105: 33370.17909 | T105: 15972.05153
B106: #80 | C106: 44 | D106: 2028 | E106: F | F106: A_VIE | G106: 0.45 | H106: 0.39 | I106: 0.6 | J106: 0.6 | K106: 85 | L106: 0 | M106: 11 | N106: 211506.4975 | O106: 405576.0228 | P106: 51623.95227 | Q106: 34511.03992 | R106: 270098.8 | S106: 33370.17909 | T106: 15972.05153
B107: #81 | C107: 44 | D107: 2029 | E107: F | F107: A_VIE | G107: 0.45 | H107: 0.39 | I107: 0.6 | J107: 0.6 | K107: 85 | L107: 0 | M107: 11 | N107: 211506.4975 | O107: 405576.0228 | P107: 51623.95227 | Q107: 34511.03992 | R107: 270098.8 | S107: 33370.17909 | T107: 15972.05153
B108: #82 | C108: 45 | D108: 2026 | E108: H | F108: A_VIE | G108: 0.45 | H108: 0.39 | I108: 0.6 | J108: 0.6 | K108: 85 | L108: 0 | M108: 11 | N108: 211506.4975 | O108: 405576.0228 | P108: 51623.95227 | Q108: 34511.03992 | R108: 270098.8 | S108: 33370.17909 | T108: 15972.05153
B109: #83 | C109: 45 | D109: 2028 | E109: H | F109: A_VIE | G109: 0.45 | H109: 0.39 | I109: 0.6 | J109: 0.6 | K109: 85 | L109: 0 | M109: 11 | N109: 211506.4975 | O109: 405576.0228 | P109: 51623.95227 | Q109: 34511.03992 | R109: 270098.8 | S109: 33370.17909 | T109: 15972.05153
B110: #84 | C110: 45 | D110: 2029 | E110: H | F110: A_VIE | G110: 0.45 | H110: 0.39 | I110: 0.6 | J110: 0.6 | K110: 85 | L110: 0 | M110: 11 | N110: 211506.4975 | O110: 405576.0228 | P110: 51623.95227 | Q110: 34511.03992 | R110: 270098.8 | S110: 33370.17909 | T110: 15972.05153
B111: #85 | C111: 46 | D111: 2026 | E111: H | F111: A_VIE | G111: 0.45 | H111: 0.39 | I111: 0.6 | J111: 0.6 | K111: 85 | L111: 0 | M111: 11 | N111: 211506.4975 | O111: 405576.0228 | P111: 51623.95227 | Q111: 34511.03992 | R111: 270098.8 | S111: 33370.17909 | T111: 15972.05153
B112: #86 | C112: 46 | D112: 2028 | E112: H | F112: A_VIE | G112: 0.45 | H112: 0.39 | I112: 0.6 | J112: 0.6 | K112: 85 | L112: 0 | M112: 11 | N112: 211506.4975 | O112: 405576.0228 | P112: 51623.95227 | Q112: 34511.03992 | R112: 270098.8 | S112: 33370.17909 | T112: 15972.05153
B113: #87 | C113: 46 | D113: 2029 | E113: H | F113: A_VIE | G113: 0.45 | H113: 0.39 | I113: 0.6 | J113: 0.6 | K113: 85 | L113: 0 | M113: 11 | N113: 211506.4975 | O113: 405576.0228 | P113: 51623.95227 | Q113: 34511.03992 | R113: 270098.8 | S113: 33370.17909 | T113: 15972.05153
B114: #88 | C114: 47 | D114: 2026 | E114: F | F114: A_VIE | G114: 0.45 | H114: 0.39 | I114: 0.6 | J114: 0.6 | K114: 85 | L114: 0 | M114: 11 | N114: 211506.4975 | O114: 405576.0228 | P114: 51623.95227 | Q114: 34511.03992 | R114: 270098.8 | S114: 33370.17909 | T114: 15972.05153
B115: #89 | C115: 47 | D115: 2028 | E115: F | F115: A_VIE | G115: 0.45 | H115: 0.39 | I115: 0.6 | J115: 0.6 | K115: 85 | L115: 0 | M115: 11 | N115: 211506.4975 | O115: 405576.0228 | P115: 51623.95227 | Q115: 34511.03992 | R115: 270098.8 | S115: 33370.17909 | T115: 15972.05153
B116: #90 | C116: 47 | D116: 2029 | E116: F | F116: A_VIE | G116: 0.45 | H116: 0.39 | I116: 0.6 | J116: 0.6 | K116: 85 | L116: 0 | M116: 11 | N116: 211506.4975 | O116: 405576.0228 | P116: 51623.95227 | Q116: 34511.03992 | R116: 270098.8 | S116: 33370.17909 | T116: 15972.05153
B117: #91 | C117: 48 | D117: 2026 | E117: H | F117: A_VIE | G117: 0.45 | H117: 0.39 | I117: 0.6 | J117: 0.6 | K117: 85 | L117: 0 | M117: 11 | N117: 211506.4975 | O117: 405576.0228 | P117: 51623.95227 | Q117: 34511.03992 | R117: 270098.8 | S117: 33370.17909 | T117: 15972.05153
B118: #92 | C118: 48 | D118: 2028 | E118: H | F118: A_VIE | G118: 0.45 | H118: 0.39 | I118: 0.6 | J118: 0.6 | K118: 85 | L118: 0 | M118: 11 | N118: 211506.4975 | O118: 405576.0228 | P118: 51623.95227 | Q118: 34511.03992 | R118: 270098.8 | S118: 33370.17909 | T118: 15972.05153
B119: #93 | C119: 48 | D119: 2029 | E119: H | F119: A_VIE | G119: 0.45 | H119: 0.39 | I119: 0.6 | J119: 0.6 | K119: 85 | L119: 0 | M119: 11 | N119: 211506.4975 | O119: 405576.0228 | P119: 51623.95227 | Q119: 34511.03992 | R119: 270098.8 | S119: 33370.17909 | T119: 15972.05153
B120: #94 | C120: 49 | D120: 2026 | E120: H | F120: A_VIE | G120: 0.45 | H120: 0.39 | I120: 0.6 | J120: 0.6 | K120: 85 | L120: 0 | M120: 11 | N120: 211506.4975 | O120: 405576.0228 | P120: 51623.95227 | Q120: 34511.03992 | R120: 270098.8 | S120: 33370.17909 | T120: 15972.05153
B121: #95 | C121: 49 | D121: 2028 | E121: H | F121: A_VIE | G121: 0.45 | H121: 0.39 | I121: 0.6 | J121: 0.6 | K121: 85 | L121: 0 | M121: 11 | N121: 211506.4975 | O121: 405576.0228 | P121: 51623.95227 | Q121: 34511.03992 | R121: 270098.8 | S121: 33370.17909 | T121: 15972.05153
B122: #96 | C122: 49 | D122: 2029 | E122: H | F122: A_VIE | G122: 0.45 | H122: 0.39 | I122: 0.6 | J122: 0.6 | K122: 85 | L122: 0 | M122: 11 | N122: 211506.4975 | O122: 405576.0228 | P122: 51623.95227 | Q122: 34511.03992 | R122: 270098.8 | S122: 33370.17909 | T122: 15972.05153
B123: #97 | C123: 50 | D123: 2026 | E123: F | F123: A_VIE | G123: 0.45 | H123: 0.39 | I123: 0.6 | J123: 0.6 | K123: 85 | L123: 0 | M123: 68 | N123: 1269038.985 | O123: 2433456.137 | P123: 309743.7136 | Q123: 207066.2395 | R123: 1620592.8 | S123: 200221.0745 | T123: 95832.30919
B124: #98 | C124: 50 | D124: 2028 | E124: F | F124: A_VIE | G124: 0.45 | H124: 0.39 | I124: 0.6 | J124: 0.6 | K124: 85 | L124: 0 | M124: 68 | N124: 1269038.985 | O124: 2433456.137 | P124: 309743.7136 | Q124: 207066.2395 | R124: 1620592.8 | S124: 200221.0745 | T124: 95832.30919
B125: #99 | C125: 50 | D125: 2029 | E125: F | F125: A_VIE | G125: 0.45 | H125: 0.39 | I125: 0.6 | J125: 0.6 | K125: 85 | L125: 0 | M125: 68 | N125: 1269038.985 | O125: 2433456.137 | P125: 309743.7136 | Q125: 207066.2395 | R125: 1620592.8 | S125: 200221.0745 | T125: 95832.30919
B126: #100 | C126: 51 | D126: 2026 | E126: H | F126: A_VIE | G126: 0.45 | H126: 0.39 | I126: 0.6 | J126: 0.6 | K126: 85 | L126: 0 | M126: 68 | N126: 1269038.985 | O126: 2433456.137 | P126: 309743.7136 | Q126: 207066.2395 | R126: 1620592.8 | S126: 200221.0745 | T126: 95832.30919
B127: #101 | C127: 51 | D127: 2028 | E127: H | F127: A_VIE | G127: 0.45 | H127: 0.39 | I127: 0.6 | J127: 0.6 | K127: 85 | L127: 0 | M127: 68 | N127: 1269038.985 | O127: 2433456.137 | P127: 309743.7136 | Q127: 207066.2395 | R127: 1620592.8 | S127: 200221.0745 | T127: 95832.30919
B128: #102 | C128: 51 | D128: 2029 | E128: H | F128: A_VIE | G128: 0.45 | H128: 0.39 | I128: 0.6 | J128: 0.6 | K128: 85 | L128: 0 | M128: 68 | N128: 1269038.985 | O128: 2433456.137 | P128: 309743.7136 | Q128: 207066.2395 | R128: 1620592.8 | S128: 200221.0745 | T128: 95832.30919
B129: #103 | C129: 52 | D129: 2026 | E129: H | F129: A_VIE | G129: 0.45 | H129: 0.39 | I129: 0.6 | J129: 0.6 | K129: 85 | L129: 0 | M129: 68 | N129: 1269038.985 | O129: 2433456.137 | P129: 309743.7136 | Q129: 207066.2395 | R129: 1620592.8 | S129: 200221.0745 | T129: 95832.30919
B130: #104 | C130: 52 | D130: 2028 | E130: H | F130: A_VIE | G130: 0.45 | H130: 0.39 | I130: 0.6 | J130: 0.6 | K130: 85 | L130: 0 | M130: 68 | N130: 1269038.985 | O130: 2433456.137 | P130: 309743.7136 | Q130: 207066.2395 | R130: 1620592.8 | S130: 200221.0745 | T130: 95832.30919
B131: #105 | C131: 52 | D131: 2029 | E131: H | F131: A_VIE | G131: 0.45 | H131: 0.39 | I131: 0.6 | J131: 0.6 | K131: 85 | L131: 0 | M131: 68 | N131: 1269038.985 | O131: 2433456.137 | P131: 309743.7136 | Q131: 207066.2395 | R131: 1620592.8 | S131: 200221.0745 | T131: 95832.30919
B132: #106 | C132: 53 | D132: 2026 | E132: F | F132: A_VIE | G132: 0.45 | H132: 0.39 | I132: 0.6 | J132: 0.6 | K132: 85 | L132: 0 | M132: 68 | N132: 1269038.985 | O132: 2433456.137 | P132: 309743.7136 | Q132: 207066.2395 | R132: 1620592.8 | S132: 200221.0745 | T132: 95832.30919
B133: #107 | C133: 53 | D133: 2028 | E133: F | F133: A_VIE | G133: 0.45 | H133: 0.39 | I133: 0.6 | J133: 0.6 | K133: 85 | L133: 0 | M133: 68 | N133: 1269038.985 | O133: 2433456.137 | P133: 309743.7136 | Q133: 207066.2395 | R133: 1620592.8 | S133: 200221.0745 | T133: 95832.30919
B134: #108 | C134: 53 | D134: 2029 | E134: F | F134: A_VIE | G134: 0.45 | H134: 0.39 | I134: 0.6 | J134: 0.6 | K134: 85 | L134: 0 | M134: 68 | N134: 1269038.985 | O134: 2433456.137 | P134: 309743.7136 | Q134: 207066.2395 | R134: 1620592.8 | S134: 200221.0745 | T134: 95832.30919
B135: #109 | C135: 54 | D135: 2026 | E135: H | F135: A_VIE | G135: 0.45 | H135: 0.39 | I135: 0.6 | J135: 0.6 | K135: 85 | L135: 0 | M135: 68 | N135: 1269038.985 | O135: 2433456.137 | P135: 309743.7136 | Q135: 207066.2395 | R135: 1620592.8 | S135: 200221.0745 | T135: 95832.30919
B136: #110 | C136: 54 | D136: 2028 | E136: H | F136: A_VIE | G136: 0.45 | H136: 0.39 | I136: 0.6 | J136: 0.6 | K136: 85 | L136: 0 | M136: 68 | N136: 1269038.985 | O136: 2433456.137 | P136: 309743.7136 | Q136: 207066.2395 | R136: 1620592.8 | S136: 200221.0745 | T136: 95832.30919
B137: #111 | C137: 54 | D137: 2029 | E137: H | F137: A_VIE | G137: 0.45 | H137: 0.39 | I137: 0.6 | J137: 0.6 | K137: 85 | L137: 0 | M137: 68 | N137: 1269038.985 | O137: 2433456.137 | P137: 309743.7136 | Q137: 207066.2395 | R137: 1620592.8 | S137: 200221.0745 | T137: 95832.30919
B138: #112 | C138: 55 | D138: 2026 | E138: H | F138: A_VIE | G138: 0.45 | H138: 0.39 | I138: 0.6 | J138: 0.6 | K138: 85 | L138: 0 | M138: 68 | N138: 1269038.985 | O138: 2433456.137 | P138: 309743.7136 | Q138: 207066.2395 | R138: 1620592.8 | S138: 200221.0745 | T138: 95832.30919
B139: #113 | C139: 55 | D139: 2028 | E139: H | F139: A_VIE | G139: 0.45 | H139: 0.39 | I139: 0.6 | J139: 0.6 | K139: 85 | L139: 0 | M139: 68 | N139: 1269038.985 | O139: 2433456.137 | P139: 309743.7136 | Q139: 207066.2395 | R139: 1620592.8 | S139: 200221.0745 | T139: 95832.30919
B140: #114 | C140: 55 | D140: 2029 | E140: H | F140: A_VIE | G140: 0.45 | H140: 0.39 | I140: 0.6 | J140: 0.6 | K140: 85 | L140: 0 | M140: 68 | N140: 1269038.985 | O140: 2433456.137 | P140: 309743.7136 | Q140: 207066.2395 | R140: 1620592.8 | S140: 200221.0745 | T140: 95832.30919
B141: #115 | C141: 56 | D141: 2026 | E141: F | F141: A_VIE | G141: 0.45 | H141: 0.39 | I141: 0.6 | J141: 0.6 | K141: 85 | L141: 0 | M141: 68 | N141: 1269038.985 | O141: 2433456.137 | P141: 309743.7136 | Q141: 207066.2395 | R141: 1620592.8 | S141: 200221.0745 | T141: 95832.30919
B142: #116 | C142: 56 | D142: 2028 | E142: F | F142: A_VIE | G142: 0.45 | H142: 0.39 | I142: 0.6 | J142: 0.6 | K142: 85 | L142: 0 | M142: 68 | N142: 1269038.985 | O142: 2433456.137 | P142: 309743.7136 | Q142: 207066.2395 | R142: 1620592.8 | S142: 200221.0745 | T142: 95832.30919
B143: #117 | C143: 56 | D143: 2029 | E143: F | F143: A_VIE | G143: 0.45 | H143: 0.39 | I143: 0.6 | J143: 0.6 | K143: 85 | L143: 0 | M143: 68 | N143: 1269038.985 | O143: 2433456.137 | P143: 309743.7136 | Q143: 207066.2395 | R143: 1620592.8 | S143: 200221.0745 | T143: 95832.30919
B144: #118 | C144: 57 | D144: 2026 | E144: H | F144: A_VIE | G144: 0.45 | H144: 0.39 | I144: 0.6 | J144: 0.6 | K144: 85 | L144: 0 | M144: 68 | N144: 1269038.985 | O144: 2433456.137 | P144: 309743.7136 | Q144: 207066.2395 | R144: 1620592.8 | S144: 200221.0745 | T144: 95832.30919
B145: #119 | C145: 57 | D145: 2028 | E145: H | F145: A_VIE | G145: 0.45 | H145: 0.39 | I145: 0.6 | J145: 0.6 | K145: 85 | L145: 0 | M145: 68 | N145: 1269038.985 | O145: 2433456.137 | P145: 309743.7136 | Q145: 207066.2395 | R145: 1620592.8 | S145: 200221.0745 | T145: 95832.30919
B146: #120 | C146: 57 | D146: 2029 | E146: H | F146: A_VIE | G146: 0.45 | H146: 0.39 | I146: 0.6 | J146: 0.6 | K146: 85 | L146: 0 | M146: 68 | N146: 1269038.985 | O146: 2433456.137 | P146: 309743.7136 | Q146: 207066.2395 | R146: 1620592.8 | S146: 200221.0745 | T146: 95832.30919
B147: #121 | C147: 58 | D147: 2026 | E147: H | F147: A_VIE | G147: 0.45 | H147: 0.39 | I147: 0.6 | J147: 0.6 | K147: 85 | L147: 0 | M147: 68 | N147: 1269038.985 | O147: 2433456.137 | P147: 309743.7136 | Q147: 207066.2395 | R147: 1620592.8 | S147: 200221.0745 | T147: 95832.30919
B148: #122 | C148: 58 | D148: 2028 | E148: H | F148: A_VIE | G148: 0.45 | H148: 0.39 | I148: 0.6 | J148: 0.6 | K148: 85 | L148: 0 | M148: 68 | N148: 1269038.985 | O148: 2433456.137 | P148: 309743.7136 | Q148: 207066.2395 | R148: 1620592.8 | S148: 200221.0745 | T148: 95832.30919
B149: #123 | C149: 58 | D149: 2029 | E149: H | F149: A_VIE | G149: 0.45 | H149: 0.39 | I149: 0.6 | J149: 0.6 | K149: 85 | L149: 0 | M149: 68 | N149: 1269038.985 | O149: 2433456.137 | P149: 309743.7136 | Q149: 207066.2395 | R149: 1620592.8 | S149: 200221.0745 | T149: 95832.30919
B150: #124 | C150: 59 | D150: 2026 | E150: F | F150: A_VIE | G150: 0.45 | H150: 0.39 | I150: 0.6 | J150: 0.6 | K150: 85 | L150: 0 | M150: 68 | N150: 1269038.985 | O150: 2433456.137 | P150: 309743.7136 | Q150: 207066.2395 | R150: 1620592.8 | S150: 200221.0745 | T150: 95832.30919
B151: #125 | C151: 59 | D151: 2028 | E151: F | F151: A_VIE | G151: 0.45 | H151: 0.39 | I151: 0.6 | J151: 0.6 | K151: 85 | L151: 0 | M151: 68 | N151: 1269038.985 | O151: 2433456.137 | P151: 309743.7136 | Q151: 207066.2395 | R151: 1620592.8 | S151: 200221.0745 | T151: 95832.30919
B152: #126 | C152: 59 | D152: 2029 | E152: F | F152: A_VIE | G152: 0.45 | H152: 0.39 | I152: 0.6 | J152: 0.6 | K152: 85 | L152: 0 | M152: 68 | N152: 1269038.985 | O152: 2433456.137 | P152: 309743.7136 | Q152: 207066.2395 | R152: 1620592.8 | S152: 200221.0745 | T152: 95832.30919
B153: #127 | C153: 60 | D153: 2026 | E153: H | F153: A_VIE | G153: 0.45 | H153: 0.39 | I153: 0.6 | J153: 0.6 | K153: 85 | L153: 0 | M153: 114 | N153: 2115064.975 | O153: 4055760.228 | P153: 516239.5227 | Q153: 345110.3992 | R153: 2700988 | S153: 333701.7909 | T153: 159720.5153
B154: #128 | C154: 60 | D154: 2028 | E154: H | F154: A_VIE | G154: 0.45 | H154: 0.39 | I154: 0.6 | J154: 0.6 | K154: 85 | L154: 0 | M154: 114 | N154: 2115064.975 | O154: 4055760.228 | P154: 516239.5227 | Q154: 345110.3992 | R154: 2700988 | S154: 333701.7909 | T154: 159720.5153
B155: #129 | C155: 60 | D155: 2029 | E155: H | F155: A_VIE | G155: 0.45 | H155: 0.39 | I155: 0.6 | J155: 0.6 | K155: 85 | L155: 0 | M155: 114 | N155: 2115064.975 | O155: 4055760.228 | P155: 516239.5227 | Q155: 345110.3992 | R155: 2700988 | S155: 333701.7909 | T155: 159720.5153
B156: #130 | C156: 61 | D156: 2026 | E156: H | F156: A_VIE | G156: 0.45 | H156: 0.39 | I156: 0.6 | J156: 0.6 | K156: 85 | L156: 0 | M156: 68 | N156: 1269038.985 | O156: 2433456.137 | P156: 309743.7136 | Q156: 207066.2395 | R156: 1620592.8 | S156: 200221.0745 | T156: 95832.30919
B157: #131 | C157: 61 | D157: 2028 | E157: H | F157: A_VIE | G157: 0.45 | H157: 0.39 | I157: 0.6 | J157: 0.6 | K157: 85 | L157: 0 | M157: 68 | N157: 1269038.985 | O157: 2433456.137 | P157: 309743.7136 | Q157: 207066.2395 | R157: 1620592.8 | S157: 200221.0745 | T157: 95832.30919
B158: #132 | C158: 61 | D158: 2029 | E158: H | F158: A_VIE | G158: 0.45 | H158: 0.39 | I158: 0.6 | J158: 0.6 | K158: 85 | L158: 0 | M158: 68 | N158: 1269038.985 | O158: 2433456.137 | P158: 309743.7136 | Q158: 207066.2395 | R158: 1620592.8 | S158: 200221.0745 | T158: 95832.30919
B159: #133 | C159: 62 | D159: 2026 | E159: F | F159: A_VIE | G159: 0.45 | H159: 0.39 | I159: 0.6 | J159: 0.6 | K159: 85 | L159: 0 | M159: 68 | N159: 1269038.985 | O159: 2433456.137 | P159: 309743.7136 | Q159: 207066.2395 | R159: 1620592.8 | S159: 200221.0745 | T159: 95832.30919
B160: #134 | C160: 62 | D160: 2028 | E160: F | F160: A_VIE | G160: 0.45 | H160: 0.39 | I160: 0.6 | J160: 0.6 | K160: 85 | L160: 0 | M160: 68 | N160: 1269038.985 | O160: 2433456.137 | P160: 309743.7136 | Q160: 207066.2395 | R160: 1620592.8 | S160: 200221.0745 | T160: 95832.30919
B161: #135 | C161: 62 | D161: 2029 | E161: F | F161: A_VIE | G161: 0.45 | H161: 0.39 | I161: 0.6 | J161: 0.6 | K161: 85 | L161: 0 | M161: 68 | N161: 1269038.985 | O161: 2433456.137 | P161: 309743.7136 | Q161: 207066.2395 | R161: 1620592.8 | S161: 200221.0745 | T161: 95832.30919
B162: #136 | C162: 63 | D162: 2026 | E162: H | F162: A_VIE | G162: 0.45 | H162: 0.39 | I162: 0.6 | J162: 0.6 | K162: 85 | L162: 0 | M162: 68 | N162: 1269038.985 | O162: 2433456.137 | P162: 309743.7136 | Q162: 207066.2395 | R162: 1620592.8 | S162: 200221.0745 | T162: 95832.30919
B163: #137 | C163: 63 | D163: 2028 | E163: H | F163: A_VIE | G163: 0.45 | H163: 0.39 | I163: 0.6 | J163: 0.6 | K163: 85 | L163: 0 | M163: 68 | N163: 1269038.985 | O163: 2433456.137 | P163: 309743.7136 | Q163: 207066.2395 | R163: 1620592.8 | S163: 200221.0745 | T163: 95832.30919
B164: #138 | C164: 63 | D164: 2029 | E164: H | F164: A_VIE | G164: 0.45 | H164: 0.39 | I164: 0.6 | J164: 0.6 | K164: 85 | L164: 0 | M164: 68 | N164: 1269038.985 | O164: 2433456.137 | P164: 309743.7136 | Q164: 207066.2395 | R164: 1620592.8 | S164: 200221.0745 | T164: 95832.30919
B165: #139 | C165: 64 | D165: 2026 | E165: H | F165: A_VIE | G165: 0.45 | H165: 0.39 | I165: 0.6 | J165: 0.6 | K165: 85 | L165: 0 | M165: 68 | N165: 1269038.985 | O165: 2433456.137 | P165: 309743.7136 | Q165: 207066.2395 | R165: 1620592.8 | S165: 200221.0745 | T165: 95832.30919
B166: #140 | C166: 64 | D166: 2028 | E166: H | F166: A_VIE | G166: 0.45 | H166: 0.39 | I166: 0.6 | J166: 0.6 | K166: 85 | L166: 0 | M166: 68 | N166: 1269038.985 | O166: 2433456.137 | P166: 309743.7136 | Q166: 207066.2395 | R166: 1620592.8 | S166: 200221.0745 | T166: 95832.30919
B167: #141 | C167: 64 | D167: 2029 | E167: H | F167: A_VIE | G167: 0.45 | H167: 0.39 | I167: 0.6 | J167: 0.6 | K167: 85 | L167: 0 | M167: 68 | N167: 1269038.985 | O167: 2433456.137 | P167: 309743.7136 | Q167: 207066.2395 | R167: 1620592.8 | S167: 200221.0745 | T167: 95832.30919
B168: #142 | C168: 65 | D168: 2026 | E168: F | F168: A_VIE | G168: 0.45 | H168: 0.39 | I168: 0.6 | J168: 0.6 | K168: 85 | L168: 0 | M168: 68 | N168: 1269038.985 | O168: 2433456.137 | P168: 309743.7136 | Q168: 207066.2395 | R168: 1620592.8 | S168: 200221.0745 | T168: 95832.30919
B169: #143 | C169: 65 | D169: 2028 | E169: F | F169: A_VIE | G169: 0.45 | H169: 0.39 | I169: 0.6 | J169: 0.6 | K169: 85 | L169: 0 | M169: 68 | N169: 1269038.985 | O169: 2433456.137 | P169: 309743.7136 | Q169: 207066.2395 | R169: 1620592.8 | S169: 200221.0745 | T169: 95832.30919
B170: #144 | C170: 65 | D170: 2029 | E170: F | F170: A_VIE | G170: 0.45 | H170: 0.39 | I170: 0.6 | J170: 0.6 | K170: 85 | L170: 0 | M170: 68 | N170: 1269038.985 | O170: 2433456.137 | P170: 309743.7136 | Q170: 207066.2395 | R170: 1620592.8 | S170: 200221.0745 | T170: 95832.30919
B171: #145 | C171: 70 | D171: 2026 | E171: H | F171: A_VIE | G171: 0.45 | H171: 0.39 | I171: 0.6 | J171: 0.6 | K171: 85 | L171: 0 | M171: 11 | N171: 211506.4975 | O171: 405576.0228 | P171: 51623.95227 | Q171: 34511.03992 | R171: 270098.8 | S171: 33370.17909 | T171: 15972.05153
B172: #146 | C172: 70 | D172: 2028 | E172: H | F172: A_VIE | G172: 0.45 | H172: 0.39 | I172: 0.6 | J172: 0.6 | K172: 85 | L172: 0 | M172: 11 | N172: 211506.4975 | O172: 405576.0228 | P172: 51623.95227 | Q172: 34511.03992 | R172: 270098.8 | S172: 33370.17909 | T172: 15972.05153
B173: #147 | C173: 70 | D173: 2029 | E173: H | F173: A_VIE | G173: 0.45 | H173: 0.39 | I173: 0.6 | J173: 0.6 | K173: 85 | L173: 0 | M173: 11 | N173: 211506.4975 | O173: 405576.0228 | P173: 51623.95227 | Q173: 34511.03992 | R173: 270098.8 | S173: 33370.17909 | T173: 15972.05153
B174: #148 | C174: 75 | D174: 2026 | E174: H | F174: A_VIE | G174: 0.45 | H174: 0.39 | I174: 0.6 | J174: 0.6 | K174: 85 | L174: 0 | M174: 11 | N174: 211506.4975 | O174: 405576.0228 | P174: 51623.95227 | Q174: 34511.03992 | R174: 270098.8 | S174: 33370.17909 | T174: 15972.05153
B175: #149 | C175: 75 | D175: 2028 | E175: H | F175: A_VIE | G175: 0.45 | H175: 0.39 | I175: 0.6 | J175: 0.6 | K175: 85 | L175: 0 | M175: 11 | N175: 211506.4975 | O175: 405576.0228 | P175: 51623.95227 | Q175: 34511.03992 | R175: 270098.8 | S175: 33370.17909 | T175: 15972.05153
B176: #150 | C176: 75 | D176: 2029 | E176: H | F176: A_VIE | G176: 0.45 | H176: 0.39 | I176: 0.6 | J176: 0.6 | K176: 85 | L176: 0 | M176: 11 | N176: 211506.4975 | O176: 405576.0228 | P176: 51623.95227 | Q176: 34511.03992 | R176: 270098.8 | S176: 33370.17909 | T176: 15972.05153
B177: #151 | C177: 80 | D177: 2026 | E177: F | F177: A_VIE | G177: 0.45 | H177: 0.39 | I177: 0.6 | J177: 0.6 | K177: 85 | L177: 0 | M177: 11 | N177: 211506.4975 | O177: 405576.0228 | P177: 51623.95227 | Q177: 34511.03992 | R177: 270098.8 | S177: 33370.17909 | T177: 15972.05153
B178: #152 | C178: 80 | D178: 2028 | E178: F | F178: A_VIE | G178: 0.45 | H178: 0.39 | I178: 0.6 | J178: 0.6 | K178: 85 | L178: 0 | M178: 11 | N178: 211506.4975 | O178: 405576.0228 | P178: 51623.95227 | Q178: 34511.03992 | R178: 270098.8 | S178: 33370.17909 | T178: 15972.05153
B179: #153 | C179: 80 | D179: 2029 | E179: F | F179: A_VIE | G179: 0.45 | H179: 0.39 | I179: 0.6 | J179: 0.6 | K179: 85 | L179: 0 | M179: 11 | N179: 211506.4975 | O179: 405576.0228 | P179: 51623.95227 | Q179: 34511.03992 | R179: 270098.8 | S179: 33370.17909 | T179: 15972.05153
B180: #154 | C180: 85 | D180: 2026 | E180: H | F180: A_VIE | G180: 0.45 | H180: 0.39 | I180: 0.6 | J180: 0.6 | K180: 85 | L180: 0 | M180: 6 | N180: 105753.2488 | O180: 202788.0114 | P180: 25811.97613 | Q180: 17255.51996 | R180: 135049.4 | S180: 16685.08955 | T180: 7986.025766
B181: #155 | C181: 85 | D181: 2028 | E181: H | F181: A_VIE | G181: 0.45 | H181: 0.39 | I181: 0.6 | J181: 0.6 | K181: 85 | L181: 0 | M181: 6 | N181: 105753.2488 | O181: 202788.0114 | P181: 25811.97613 | Q181: 17255.51996 | R181: 135049.4 | S181: 16685.08955 | T181: 7986.025766
B182: #156 | C182: 85 | D182: 2029 | E182: H | F182: A_VIE | G182: 0.45 | H182: 0.39 | I182: 0.6 | J182: 0.6 | K182: 85 | L182: 0 | M182: 6 | N182: 105753.2488 | O182: 202788.0114 | P182: 25811.97613 | Q182: 17255.51996 | R182: 135049.4 | S182: 16685.08955 | T182: 7986.025766
B183: #157 | C183: 90 | D183: 2026 | E183: H | F183: A_VIE | G183: 0.45 | H183: 0.39 | I183: 0.6 | J183: 0.6 | K183: 85 | L183: 0 | M183: 6 | N183: 105753.2488 | O183: 202788.0114 | P183: 25811.97613 | Q183: 17255.51996 | R183: 135049.4 | S183: 16685.08955 | T183: 7986.025766
B184: #158 | C184: 90 | D184: 2028 | E184: H | F184: A_VIE | G184: 0.45 | H184: 0.39 | I184: 0.6 | J184: 0.6 | K184: 85 | L184: 0 | M184: 6 | N184: 105753.2488 | O184: 202788.0114 | P184: 25811.97613 | Q184: 17255.51996 | R184: 135049.4 | S184: 16685.08955 | T184: 7986.025766
B185: #159 | C185: 90 | D185: 2029 | E185: H | F185: A_VIE | G185: 0.45 | H185: 0.39 | I185: 0.6 | J185: 0.6 | K185: 85 | L185: 0 | M185: 6 | N185: 105753.2488 | O185: 202788.0114 | P185: 25811.97613 | Q185: 17255.51996 | R185: 135049.4 | S185: 16685.08955 | T185: 7986.025766
B186: #160 | C186: 18 | D186: 2026 | E186: H | F186: A_CAPI | G186: 0.45 | H186: 0.39 | I186: 0.6 | J186: 0.6 | K186: 85 | L186: 0 | M186: 0.08 | N186: 0 | O186: 2657.519519 | P186: 338.2637363 | Q186: 226.132111 | R186: 1769.810819 | S186: 218.6566693 | T186: 104.6561836
B187: #161 | C187: 18 | D187: 2028 | E187: H | F187: A_CAPI | G187: 0.45 | H187: 0.39 | I187: 0.6 | J187: 0.6 | K187: 85 | L187: 0 | M187: 0.08 | N187: 0 | O187: 2657.519519 | P187: 338.2637363 | Q187: 226.132111 | R187: 1769.810819 | S187: 218.6566693 | T187: 104.6561836
B188: #162 | C188: 18 | D188: 2029 | E188: H | F188: A_CAPI | G188: 0.45 | H188: 0.39 | I188: 0.6 | J188: 0.6 | K188: 85 | L188: 0 | M188: 0.08 | N188: 0 | O188: 2657.519519 | P188: 338.2637363 | Q188: 226.132111 | R188: 1769.810819 | S188: 218.6566693 | T188: 104.6561836
B189: #163 | C189: 19 | D189: 2026 | E189: H | F189: A_CAPI | G189: 0.45 | H189: 0.39 | I189: 0.6 | J189: 0.6 | K189: 85 | L189: 0 | M189: 0.08 | N189: 0 | O189: 2657.519519 | P189: 338.2637363 | Q189: 226.132111 | R189: 1769.810819 | S189: 218.6566693 | T189: 104.6561836
B190: #164 | C190: 19 | D190: 2028 | E190: H | F190: A_CAPI | G190: 0.45 | H190: 0.39 | I190: 0.6 | J190: 0.6 | K190: 85 | L190: 0 | M190: 0.08 | N190: 0 | O190: 2657.519519 | P190: 338.2637363 | Q190: 226.132111 | R190: 1769.810819 | S190: 218.6566693 | T190: 104.6561836
B191: #165 | C191: 19 | D191: 2029 | E191: H | F191: A_CAPI | G191: 0.45 | H191: 0.39 | I191: 0.6 | J191: 0.6 | K191: 85 | L191: 0 | M191: 0.08 | N191: 0 | O191: 2657.519519 | P191: 338.2637363 | Q191: 226.132111 | R191: 1769.810819 | S191: 218.6566693 | T191: 104.6561836
B192: #166 | C192: 20 | D192: 2026 | E192: F | F192: A_CAPI | G192: 0.45 | H192: 0.39 | I192: 0.6 | J192: 0.6 | K192: 85 | L192: 0 | M192: 0.15 | N192: 0 | O192: 5315.039038 | P192: 676.5274725 | Q192: 452.264222 | R192: 3539.621638 | S192: 437.3133386 | T192: 209.3123672
B193: #167 | C193: 20 | D193: 2028 | E193: F | F193: A_CAPI | G193: 0.45 | H193: 0.39 | I193: 0.6 | J193: 0.6 | K193: 85 | L193: 0 | M193: 0.15 | N193: 0 | O193: 5315.039038 | P193: 676.5274725 | Q193: 452.264222 | R193: 3539.621638 | S193: 437.3133386 | T193: 209.3123672
B194: #168 | C194: 20 | D194: 2029 | E194: F | F194: A_CAPI | G194: 0.45 | H194: 0.39 | I194: 0.6 | J194: 0.6 | K194: 85 | L194: 0 | M194: 0.15 | N194: 0 | O194: 5315.039038 | P194: 676.5274725 | Q194: 452.264222 | R194: 3539.621638 | S194: 437.3133386 | T194: 209.3123672
B195: #169 | C195: 21 | D195: 2026 | E195: H | F195: A_CAPI | G195: 0.45 | H195: 0.39 | I195: 0.6 | J195: 0.6 | K195: 85 | L195: 0 | M195: 0.15 | N195: 0 | O195: 5315.039038 | P195: 676.5274725 | Q195: 452.264222 | R195: 3539.621638 | S195: 437.3133386 | T195: 209.3123672
B196: #170 | C196: 21 | D196: 2028 | E196: H | F196: A_CAPI | G196: 0.45 | H196: 0.39 | I196: 0.6 | J196: 0.6 | K196: 85 | L196: 0 | M196: 0.15 | N196: 0 | O196: 5315.039038 | P196: 676.5274725 | Q196: 452.264222 | R196: 3539.621638 | S196: 437.3133386 | T196: 209.3123672
B197: #171 | C197: 21 | D197: 2029 | E197: H | F197: A_CAPI | G197: 0.45 | H197: 0.39 | I197: 0.6 | J197: 0.6 | K197: 85 | L197: 0 | M197: 0.15 | N197: 0 | O197: 5315.039038 | P197: 676.5274725 | Q197: 452.264222 | R197: 3539.621638 | S197: 437.3133386 | T197: 209.3123672
B198: #172 | C198: 22 | D198: 2026 | E198: H | F198: A_CAPI | G198: 0.45 | H198: 0.39 | I198: 0.6 | J198: 0.6 | K198: 85 | L198: 0 | M198: 0.15 | N198: 0 | O198: 5315.039038 | P198: 676.5274725 | Q198: 452.264222 | R198: 3539.621638 | S198: 437.3133386 | T198: 209.3123672
B199: #173 | C199: 22 | D199: 2028 | E199: H | F199: A_CAPI | G199: 0.45 | H199: 0.39 | I199: 0.6 | J199: 0.6 | K199: 85 | L199: 0 | M199: 0.15 | N199: 0 | O199: 5315.039038 | P199: 676.5274725 | Q199: 452.264222 | R199: 3539.621638 | S199: 437.3133386 | T199: 209.3123672
B200: #174 | C200: 22 | D200: 2029 | E200: H | F200: A_CAPI | G200: 0.45 | H200: 0.39 | I200: 0.6 | J200: 0.6 | K200: 85 | L200: 0 | M200: 0.15 | N200: 0 | O200: 5315.039038 | P200: 676.5274725 | Q200: 452.264222 | R200: 3539.621638 | S200: 437.3133386 | T200: 209.3123672
B201: #175 | C201: 23 | D201: 2026 | E201: F | F201: A_CAPI | G201: 0.45 | H201: 0.39 | I201: 0.6 | J201: 0.6 | K201: 85 | L201: 0 | M201: 0.15 | N201: 0 | O201: 5315.039038 | P201: 676.5274725 | Q201: 452.264222 | R201: 3539.621638 | S201: 437.3133386 | T201: 209.3123672
B202: #176 | C202: 23 | D202: 2028 | E202: F | F202: A_CAPI | G202: 0.45 | H202: 0.39 | I202: 0.6 | J202: 0.6 | K202: 85 | L202: 0 | M202: 0.15 | N202: 0 | O202: 5315.039038 | P202: 676.5274725 | Q202: 452.264222 | R202: 3539.621638 | S202: 437.3133386 | T202: 209.3123672
B203: #177 | C203: 23 | D203: 2029 | E203: F | F203: A_CAPI | G203: 0.45 | H203: 0.39 | I203: 0.6 | J203: 0.6 | K203: 85 | L203: 0 | M203: 0.15 | N203: 0 | O203: 5315.039038 | P203: 676.5274725 | Q203: 452.264222 | R203: 3539.621638 | S203: 437.3133386 | T203: 209.3123672
B204: #178 | C204: 24 | D204: 2026 | E204: H | F204: A_CAPI | G204: 0.45 | H204: 0.39 | I204: 0.6 | J204: 0.6 | K204: 85 | L204: 0 | M204: 0.15 | N204: 0 | O204: 5315.039038 | P204: 676.5274725 | Q204: 452.264222 | R204: 3539.621638 | S204: 437.3133386 | T204: 209.3123672
B205: #179 | C205: 24 | D205: 2028 | E205: H | F205: A_CAPI | G205: 0.45 | H205: 0.39 | I205: 0.6 | J205: 0.6 | K205: 85 | L205: 0 | M205: 0.15 | N205: 0 | O205: 5315.039038 | P205: 676.5274725 | Q205: 452.264222 | R205: 3539.621638 | S205: 437.3133386 | T205: 209.3123672
B206: #180 | C206: 24 | D206: 2029 | E206: H | F206: A_CAPI | G206: 0.45 | H206: 0.39 | I206: 0.6 | J206: 0.6 | K206: 85 | L206: 0 | M206: 0.15 | N206: 0 | O206: 5315.039038 | P206: 676.5274725 | Q206: 452.264222 | R206: 3539.621638 | S206: 437.3133386 | T206: 209.3123672
B207: #181 | C207: 25 | D207: 2026 | E207: H | F207: A_CAPI | G207: 0.45 | H207: 0.39 | I207: 0.6 | J207: 0.6 | K207: 85 | L207: 0 | M207: 0.75 | N207: 0 | O207: 26575.19519 | P207: 3382.637363 | Q207: 2261.32111 | R207: 17698.10819 | S207: 2186.566693 | T207: 1046.561836
B208: #182 | C208: 25 | D208: 2028 | E208: H | F208: A_CAPI | G208: 0.45 | H208: 0.39 | I208: 0.6 | J208: 0.6 | K208: 85 | L208: 0 | M208: 0.75 | N208: 0 | O208: 26575.19519 | P208: 3382.637363 | Q208: 2261.32111 | R208: 17698.10819 | S208: 2186.566693 | T208: 1046.561836
... 267 more rows

Sheet SCR_Op_BP_3
B2: I) Inputs pour SCR Opérationnel
B5: AVIE + CAPI + PER | D5: 2029-12-31
B6: Flux | C6: Euro | D6: UC
B7: Primes acquises pour les 12 derniers mois VIE UC (N) - Earn life-ul | C7: - | D7: 147262800
B8: Primes acquises pour les 12 derniers mois VIE Euros (N) - Earn life | C8: 59187200 | D8: -
B9: Primes acquises sur les 12 mois précédents les 12 derniers mois VIE UC (N-1) - pEarn life-ul | C9: - | D9: 94679290
B10: Primes acquises sur les 12 mois précédents les 12 derniers mois VIE Euros (N-1) - pEarn life | C10: 38260710 | D10: -
B11: Montant de frais engagé au titre des contrats UC (12 derniers mois) (Expul) | C11: - | D11: 3061775.868 | E11: répartition au regard du mix Euro / UC (idem split collecte) - yc comm distribution
B12: Montant de frais engagé au titre des contrats euros (12 derniers mois) | C12: 1244519.305 | D12: - | E12: répartition au regard du mix Euro / UC (idem split collecte) - yc comm distribution

Sheet RFR_BP_3
B2: Choc S2 | C2: 1 | D2: =C2+1 -> 2 | E2: 3 | F2: 4 | G2: 5 | H2: 6 | I2: 7 | J2: 8 | K2: 9 | L2: 10 | M2: 11 | N2: 12 | O2: 13 | P2: 14 | Q2: 15 | R2: 16 | S2: 17 | T2: 18 | U2: 19 | V2: 20 | W2: 21 | X2: 22 | Y2: 23 | Z2: 24 | AA2: 25 | AB2: 26 | AC2: 27 | AD2: 28 | AE2: 29 | AF2: 30 | AG2: 31 | AH2: 32 | AI2: 33 | AJ2: 34 | AK2: 35 | AL2: 36 | AM2: 37 | AN2: 38 | AO2: 39 | AP2: 40 | AQ2: 41 | AR2: 42 | AS2: 43 | AT2: 44 | AU2: 45 | AV2: 46 | AW2: 47 | AX2: 48 | AY2: 49 | AZ2: 50 | BA2: 51 | BB2: 52 | BC2: 53 | BD2: 54 | BE2: 55 | BF2: 56 | BG2: 57 | BH2: 58 | BI2: 59 | BJ2: 60 | BK2: 61 | BL2: 62 | BM2: 63 | BN2: 64 | BO2: 65 | BP2: =BO2+1 -> 66 | BQ2: 67 | BR2: 68 | BS2: 69 | BT2: 70 | BU2: 71 | BV2: 72 | BW2: 73 | BX2: 74 | BY2: 75 | BZ2: 76 | CA2: 77 | CB2: 78 | CC2: 79 | CD2: 80 | CE2: 81 | CF2: 82 | CG2: 83 | CH2: 84 | CI2: 85 | CJ2: 86 | CK2: 87 | CL2: 88 | CM2: 89 | CN2: 90 | CO2: 91 | CP2: 92 | CQ2: 93 | CR2: 94 | CS2: 95 | CT2: 96 | CU2: 97 | CV2: 98 | CW2: 99 | CX2: 100
B3: Central | C3: 0.02161 | D3: 0.02162 | E3: 0.02243 | F3: 0.02337 | G3: 0.0242 | H3: 0.02502 | I3: 0.02579 | J3: 0.02655 | K3: 0.02726 | L3: 0.02795 | M3: 0.02853 | N3: 0.02907 | O3: 0.02953 | P3: 0.02994 | Q3: 0.03027 | R3: 0.03051 | S3: 0.03068 | T3: 0.0308 | U3: 0.03089 | V3: 0.03097 | W3: 0.03104 | X3: 0.03111 | Y3: 0.03118 | Z3: 0.03124 | AA3: 0.03129 | AB3: 0.03135 | AC3: 0.03139 | AD3: 0.03144 | AE3: 0.03148 | AF3: 0.03152 | AG3: 0.03156 | AH3: 0.0316 | AI3: 0.03163 | AJ3: 0.03167 | AK3: 0.0317 | AL3: 0.03173 | AM3: 0.03176 | AN3: 0.03179 | AO3: 0.03181 | AP3: 0.03184 | AQ3: 0.03186 | AR3: 0.03188 | AS3: 0.03191 | AT3: 0.03193 | AU3: 0.03195 | AV3: 0.03197 | AW3: 0.03199 | AX3: 0.03201 | AY3: 0.03203 | AZ3: 0.03204 | BA3: 0.03206 | BB3: 0.03208 | BC3: 0.03209 | BD3: 0.03211 | BE3: 0.03212 | BF3: 0.03214 | BG3: 0.03215 | BH3: 0.03216 | BI3: 0.03218 | BJ3: 0.03219 | BK3: 0.0322 | BL3: 0.03221 | BM3: 0.03222 | BN3: 0.03224 | BO3: 0.03225 | BP3: 0.03226 | BQ3: 0.03227 | BR3: 0.03228 | BS3: 0.03229 | BT3: 0.0323 | BU3: 0.03231 | BV3: 0.03232 | BW3: 0.03233 | BX3: 0.03233 | BY3: 0.03234 | BZ3: 0.03235 | CA3: 0.03236 | CB3: 0.03237 | CC3: 0.03237 | CD3: 0.03238 | CE3: 0.03239 | CF3: 0.0324 | CG3: 0.0324 | CH3: 0.03241 | CI3: 0.03242 | CJ3: 0.03242 | CK3: 0.03243 | CL3: 0.03244 | CM3: 0.03244 | CN3: 0.03245 | CO3: 0.03245 | CP3: 0.03246 | CQ3: 0.03247 | CR3: 0.03247 | CS3: 0.03248 | CT3: 0.03248 | CU3: 0.03249 | CV3: 0.03249 | CW3: 0.0325 | CX3: 0.0325
B4: Up | C4: 0.03534 | D4: 0.03535 | E4: 0.03551 | F4: 0.03598 | G4: 0.03641 | H4: 0.03699 | I4: 0.03745 | J4: 0.03809 | K4: 0.03837 | L4: 0.03885 | M4: 0.03888 | N4: 0.03909 | O4: 0.03953 | P4: 0.03994 | Q4: 0.04027 | R4: 0.04051 | S4: 0.04068 | T4: 0.0408 | U4: 0.04089 | V4: 0.04097 | W4: 0.04104 | X4: 0.04111 | Y4: 0.04118 | Z4: 0.04124 | AA4: 0.04129 | AB4: 0.04135 | AC4: 0.04139 | AD4: 0.04144 | AE4: 0.04148 | AF4: 0.04152 | AG4: 0.04156 | AH4: 0.0416 | AI4: 0.04163 | AJ4: 0.04167 | AK4: 0.0417 | AL4: 0.04173 | AM4: 0.04176 | AN4: 0.04179 | AO4: 0.04181 | AP4: 0.04184 | AQ4: 0.04186 | AR4: 0.04188 | AS4: 0.04191 | AT4: 0.04193 | AU4: 0.04195 | AV4: 0.04197 | AW4: 0.04199 | AX4: 0.04201 | AY4: 0.04203 | AZ4: 0.04204 | BA4: 0.04206 | BB4: 0.04208 | BC4: 0.04209 | BD4: 0.04211 | BE4: 0.04212 | BF4: 0.04214 | BG4: 0.04215 | BH4: 0.04216 | BI4: 0.04218 | BJ4: 0.04219 | BK4: 0.0422 | BL4: 0.04221 | BM4: 0.04222 | BN4: 0.04224 | BO4: 0.04225 | BP4: 0.04226 | BQ4: 0.04227 | BR4: 0.04228 | BS4: 0.04229 | BT4: 0.0423 | BU4: 0.04231 | BV4: 0.04232 | BW4: 0.04233 | BX4: 0.04233 | BY4: 0.04234 | BZ4: 0.04235 | CA4: 0.04236 | CB4: 0.04237 | CC4: 0.04237 | CD4: 0.04238 | CE4: 0.04239 | CF4: 0.0424 | CG4: 0.0424 | CH4: 0.04241 | CI4: 0.04242 | CJ4: 0.04242 | CK4: 0.04243 | CL4: 0.04244 | CM4: 0.04244 | CN4: 0.04245 | CO4: 0.04245 | CP4: 0.04246 | CQ4: 0.04247 | CR4: 0.04247 | CS4: 0.04248 | CT4: 0.04248 | CU4: 0.04249 | CV4: 0.04249 | CW4: 0.0425 | CX4: 0.0425
B5: Down | C5: 0.0069 | D5: 0.00887 | E5: 0.01099 | F5: 0.01269 | G5: 0.01399 | H5: 0.01535 | I5: 0.01651 | J5: 0.01771 | K5: 0.01892 | L5: 0.01991 | M5: 0.02057 | N5: 0.02122 | O5: 0.02182 | P5: 0.02212 | Q5: 0.02264 | R5: 0.02253 | S5: 0.02265 | T5: 0.02274 | U5: 0.02251 | V5: 0.02257 | W5: 0.02265 | X5: 0.02274 | Y5: 0.02282 | Z5: 0.02289 | AA5: 0.02296 | AB5: 0.02303 | AC5: 0.02309 | AD5: 0.02316 | AE5: 0.02321 | AF5: 0.02327 | AG5: 0.02333 | AH5: 0.02339 | AI5: 0.02344 | AJ5: 0.0235 | AK5: 0.02355 | AL5: 0.02361 | AM5: 0.02366 | AN5: 0.02371 | AO5: 0.02376 | AP5: 0.02381 | AQ5: 0.02386 | AR5: 0.0239 | AS5: 0.02396 | AT5: 0.02401 | AU5: 0.02405 | AV5: 0.0241 | AW5: 0.02415 | AX5: 0.0242 | AY5: 0.02425 | AZ5: 0.02429 | BA5: 0.02434 | BB5: 0.02439 | BC5: 0.02443 | BD5: 0.02448 | BE5: 0.02452 | BF5: 0.02457 | BG5: 0.02462 | BH5: 0.02466 | BI5: 0.02471 | BJ5: 0.02475 | BK5: 0.0248 | BL5: 0.02484 | BM5: 0.02489 | BN5: 0.02494 | BO5: 0.02498 | BP5: 0.02503 | BQ5: 0.02507 | BR5: 0.02512 | BS5: 0.02516 | BT5: 0.02521 | BU5: 0.02525 | BV5: 0.0253 | BW5: 0.02535 | BX5: 0.02538 | BY5: 0.02543 | BZ5: 0.02547 | CA5: 0.02552 | CB5: 0.02557 | CC5: 0.0256 | CD5: 0.02565 | CE5: 0.0257 | CF5: 0.02574 | CG5: 0.02578 | CH5: 0.02583 | CI5: 0.02588 | CJ5: 0.02591 | CK5: 0.02596 | CL5: 0.02601 | CM5: 0.02605 | CN5: 0.0261 | CO5: 0.02609 | CP5: 0.0261 | CQ5: 0.02611 | CR5: 0.02611 | CS5: 0.02611 | CT5: 0.02611 | CU5: 0.02612 | CV5: 0.02612 | CW5: 0.02612 | CX5: 0.02612
B6: Central hors VA | C6: 0.01961 | D6: 0.01962 | E6: 0.02043 | F6: 0.02137 | G6: 0.0222 | H6: 0.02302 | I6: 0.02379 | J6: 0.02455 | K6: 0.02526 | L6: 0.02595 | M6: 0.02653 | N6: 0.02707 | O6: 0.02753 | P6: 0.02794 | Q6: 0.02827 | R6: 0.02851 | S6: 0.02868 | T6: 0.0288 | U6: 0.02889 | V6: 0.02897 | W6: 0.02905 | X6: 0.02913 | Y6: 0.02921 | Z6: 0.0293 | AA6: 0.02938 | AB6: 0.02946 | AC6: 0.02953 | AD6: 0.02961 | AE6: 0.02969 | AF6: 0.02976 | AG6: 0.02983 | AH6: 0.0299 | AI6: 0.02996 | AJ6: 0.03003 | AK6: 0.03009 | AL6: 0.03015 | AM6: 0.03021 | AN6: 0.03027 | AO6: 0.03033 | AP6: 0.03038 | AQ6: 0.03043 | AR6: 0.03048 | AS6: 0.03053 | AT6: 0.03058 | AU6: 0.03062 | AV6: 0.03067 | AW6: 0.03071 | AX6: 0.03075 | AY6: 0.0308 | AZ6: 0.03083 | BA6: 0.03087 | BB6: 0.03091 | BC6: 0.03095 | BD6: 0.03098 | BE6: 0.03101 | BF6: 0.03105 | BG6: 0.03108 | BH6: 0.03111 | BI6: 0.03114 | BJ6: 0.03117 | BK6: 0.0312 | BL6: 0.03122 | BM6: 0.03125 | BN6: 0.03128 | BO6: 0.0313 | BP6: 0.03133 | BQ6: 0.03135 | BR6: 0.03138 | BS6: 0.0314 | BT6: 0.03142 | BU6: 0.03144 | BV6: 0.03146 | BW6: 0.03148 | BX6: 0.0315 | BY6: 0.03152 | BZ6: 0.03154 | CA6: 0.03156 | CB6: 0.03158 | CC6: 0.0316 | CD6: 0.03161 | CE6: 0.03163 | CF6: 0.03165 | CG6: 0.03166 | CH6: 0.03168 | CI6: 0.03169 | CJ6: 0.03171 | CK6: 0.03172 | CL6: 0.03174 | CM6: 0.03175 | CN6: 0.03177 | CO6: 0.03178 | CP6: 0.03179 | CQ6: 0.03181 | CR6: 0.03182 | CS6: 0.03183 | CT6: 0.03184 | CU6: 0.03185 | CV6: 0.03187 | CW6: 0.03188 | CX6: 0.03189

Sheet Frais_BP_4
B2: I) Frais et commissions
B5: AVIE / PER / CAPI | D5: 2031-12-31
B6: Frais | C6: Taux | D6: Driver
B7: Frais Acquisition | C7: 0.004636765671 | D7: Primes
B8: Frais Gestion Sinistres | C8: 0.002600978427 | D8: Prestations
B9: Frais Administration | C9: 0.002124767929 | D9: PM | E9: exclusion C3S sur primes
B10: Frais Financiers | C10: 0.00075859202 | D10: VM | E10: MP 2029 car 2030 non calculés
B11: Prélèvements Sociaux | C11: 0.172 | D11: PB
B12: Clause PB | C12: 0.85 | D12: Produits financiers
B13: Frais d'acquisition : hors comm. distribution intégrées directement dans la projection des frais dans la maquette S2
B14: Frais Administration / Frais acq : montant de frais sur l'ensemble des périmètres => tx unique tout produit

Sheet Bilan_Social_BP_4
B2: I) Bilan Social
B5: AVIE + PER + CAPI + FP | C5: 2030-12-31
B7: ACTIF | C7: VNC | D7: VM | F7: PASSIF
B8: Capital souscrit non appelé ou compte de liaison avec le siège | C8: 0 | D8: 0 | F8: Capitaux Propres | G8: 27103614.18
B9: Actifs Incorporels | C9: 0 | D9: 0 | F9: Résultat de l'exercice | G9: 421092.4944
B10: Obligation Govies | C10: 191998334.2 | D10: 191998334.2 | F10: Passifs subordonnés | G10: 0
B11: Obligation Corporate | C11: 51199555.8 | D11: 52735542.47 | F11: Provisions techniques brutes | G11: 228473072.3
B12: Action | C12: 0 | D12: 0 | F12: PM | G12: 228473072.3 | J12: =G12=SUM(Model_Points_BP_4!$C$7:$C$11,Model_Points_BP_4!$C$15:$C$19) -> TRUE
B13: Monétaire | C13: 12799888.95 | D13: 12799888.95 | F13: PSAP | G13: 0
B14: UC | C14: 445373262.1 | D14: 445373262.1 | F14: PPE | G14: 0 | I14: =C14=G15 -> TRUE
B15: Provisions sur placements | C15: 0 | D15: 0 | F15: Provision techniques des contrats en unité de comptes | G15: 445373262.1 | J15: =ROUND(G15,5)=ROUND(SUM(Model_Points_BP_4!$L$7:$L$11,Model_Points_BP_4!$L$15:$L$19),5) -> TRUE
B16: PDD | C16: 0 | D16: 0 | F16: Autres provisions techniques | G16: 0
B17: Part des cessionnaires et rétrocessionnaires dans les provisions techniques | C17: 0 | D17: 0 | F17: RC | G17: 0
B18: Créances | C18: 0 | D18: 0 | F18: PRE | G18: 0
B19: Autres Actifs | C19: 0 | D19: 0 | F19: Provisions (autres que techniques) | G19: 0
B20: Comptes de régularisation Actif | C20: 0 | D20: 0 | F20: Dettes pour dépôts en espèces reçues des cessionnaires | G20: 0
F21: Autres Dettes | G21: 0
F22: Comptes de régularisation Passif | G22: 0

Sheet Model_Points_BP_4
B2: I) Model Points Actifs
B5: AVIE | C5: Euro | D5: 2030-12-31 | K5: AVIE / CAPI | L5: UC | M5: 2030-12-31 | Q5: AVIE / CAPI | R5: 2027-12-31
B6: Asset Type | C6: VNC | D6: VM | E6: COUPON_PC | F6: NOMINAL | G6: MATURITY_RESID | H6: SPREAD_PC | I6: DIV_PC | K6: Asset Type | L6: VNC | M6: VM | N6: DIV_PC | O6: UC_TYPE | Q6: Reserves | R6: VNC
B7: BONDS_GOV | C7: 156683163.9 | D7: 156683163.9 | E7: 0 | F7: 156683163.9 | G7: 7 | K7: OBLIG_CORP | L7: 51875147.42 | M7: 51875147.42 | N7: 0 | O7: 1 | P7: =M7/SUM($M$7:$M$11) -> 0.1272855134 | Q7: PPE | R7: 0
B8: BONDS_CORP | C8: 41782177.04 | D8: 43035642.35 | E8: 0 | F8: 41782177.04 | G8: 7 | K8: OBLIG_CORP_NR | L8: 34678965.96 | M8: 34678965.96 | N8: 0 | O8: 2 | P8: =M8/SUM($M$7:$M$11) -> 0.08509142053 | Q8: RC | R8: 0
B9: EQ_TYPE_1 | C9: 0 | D9: 0 | E9: 0 | I9: 0 | K9: EQ_TYPE_1 | L9: 271413064.1 | M9: 271413064.1 | N9: 0 | O9: 3 | P9: 0.6659634318 | Q9: PSAP | R9: 0
B10: EQ_TYPE_2 | C10: 0 | D10: 0 | E10: 0 | I10: 0 | K10: EQ_TYPE_2 | L10: 33532553.86 | M10: 33532553.86 | N10: 0 | O10: 4 | P10: 0.08227848101 | T10: PMVL ALL | U10: =SUM(D7:D11)-SUM(C7:C11)+SUM(D15:D19)-SUM(C15:C19) -> 1370838.434
B11: CASH | C11: 10445544.26 | D11: 10445544.26 | E11: 0 | K11: MONETAIRE | L11: 16049769.37 | M11: 16049769.37 | N11: 0 | O11: 5 | P11: 0.03938115331
B13: PER | C13: Euro | D13: 2030-12-31 | K13: PER | L13: UC | M13: 2030-12-31 | Q13: PER | R13: 2027-12-31
B14: Asset Type | C14: VNC | D14: VM | E14: COUPON_PC | F14: NOMINAL | G14: MATURITY_RESID | H14: SPREAD_PC | I14: DIV_PC | K14: Asset Type | L14: VNC | M14: VM | N14: DIV_PC | O14: UC_TYPE | Q14: Reserves | R14: VNC
B15: BONDS_GOV | C15: 14671640.34 | D15: 14671640.34 | E15: 0 | F15: 14671640.34 | G15: 7 | K15: OBLIG_CORP | L15: 4814416.879 | M15: 4814416.879 | N15: 0 | O15: 1 | Q15: PPE | R15: 0
B16: BONDS_CORP | C16: 3912437.423 | D16: 4029810.546 | E16: 0 | F16: 3912437.423 | G16: 7 | K16: OBLIG_CORP_NR | L16: 3218477.582 | M16: 3218477.582 | N16: 0 | O16: 2 | Q16: RC | R16: 0
B17: EQ_TYPE_1 | C17: 0 | D17: 0 | E17: 0 | I17: 0 | K17: EQ_TYPE_1 | L17: 25189241.9 | M17: 25189241.9 | N17: 0 | O17: 3 | Q17: PSAP | R17: 0
B18: EQ_TYPE_2 | C18: 0 | D18: 0 | E18: 0 | I18: 0 | K18: EQ_TYPE_2 | L18: 3112081.629 | M18: 3112081.629 | N18: 0 | O18: 4
B19: CASH | C19: 978109.3558 | D19: 978109.3558 | E19: 0 | K19: MONETAIRE | L19: 1489543.344 | M19: 1489543.344 | N19: 0 | O19: 5
B22: II) Model Points Passif
B25: Assurance Vie | C25: Euro - UC | D25: 2030-12-31
B26: ID | C26: AGE | D26: SOUSCRIPTION_YR | E26: SEXE | F26: PDT | G26: CHGT_GEST_EURO_PC | H26: CHGT_GEST_UC_PC | I26: COMM_DIST_EURO_PC | J26: COMM_DIST_UC_PC | K26: CLAUSE_PB_PC | L26: TMG_PC | M26: NO_POLS | N26: PM_EURO | O26: PM_UC_TOT | P26: PM_UC_1 | Q26: PM_UC_2 | R26: PM_UC_3 | S26: PM_UC_4 | T26: PM_UC_5
B27: #1 | C27: 18 | D27: 2026 | E27: H | F27: A_VIE | G27: 0.45 | H27: 0.39 | I27: 0.6 | J27: 0.6 | K27: 85 | L27: 0 | M27: 12 | N27: 261138.6065 | O27: 504915.1339 | P27: 64268.38202 | Q27: 42963.94599 | R27: 336255.0153 | S27: 41543.65026 | T27: 19884.14029
B28: #2 | C28: 18 | D28: 2028 | E28: H | F28: A_VIE | G28: 0.45 | H28: 0.39 | I28: 0.6 | J28: 0.6 | K28: 85 | L28: 0 | M28: 12 | N28: 261138.6065 | O28: 504915.1339 | P28: 64268.38202 | Q28: 42963.94599 | R28: 336255.0153 | S28: 41543.65026 | T28: 19884.14029
B29: #3 | C29: 18 | D29: 2029 | E29: H | F29: A_VIE | G29: 0.45 | H29: 0.39 | I29: 0.6 | J29: 0.6 | K29: 85 | L29: 0 | M29: 12 | N29: 261138.6065 | O29: 504915.1339 | P29: 64268.38202 | Q29: 42963.94599 | R29: 336255.0153 | S29: 41543.65026 | T29: 19884.14029
B30: #4 | C30: 18 | D30: 2030 | E30: H | F30: A_VIE | G30: 0.45 | H30: 0.39 | I30: 0.6 | J30: 0.6 | K30: 85 | L30: 0 | M30: 12 | N30: 261138.6065 | O30: 504915.1339 | P30: 64268.38202 | Q30: 42963.94599 | R30: 336255.0153 | S30: 41543.65026 | T30: 19884.14029
B31: #5 | C31: 19 | D31: 2026 | E31: H | F31: A_VIE | G31: 0.45 | H31: 0.39 | I31: 0.6 | J31: 0.6 | K31: 85 | L31: 0 | M31: 12 | N31: 261138.6065 | O31: 504915.1339 | P31: 64268.38202 | Q31: 42963.94599 | R31: 336255.0153 | S31: 41543.65026 | T31: 19884.14029
B32: #6 | C32: 19 | D32: 2028 | E32: H | F32: A_VIE | G32: 0.45 | H32: 0.39 | I32: 0.6 | J32: 0.6 | K32: 85 | L32: 0 | M32: 12 | N32: 261138.6065 | O32: 504915.1339 | P32: 64268.38202 | Q32: 42963.94599 | R32: 336255.0153 | S32: 41543.65026 | T32: 19884.14029
B33: #7 | C33: 19 | D33: 2029 | E33: H | F33: A_VIE | G33: 0.45 | H33: 0.39 | I33: 0.6 | J33: 0.6 | K33: 85 | L33: 0 | M33: 12 | N33: 261138.6065 | O33: 504915.1339 | P33: 64268.38202 | Q33: 42963.94599 | R33: 336255.0153 | S33: 41543.65026 | T33: 19884.14029
B34: #8 | C34: 19 | D34: 2030 | E34: H | F34: A_VIE | G34: 0.45 | H34: 0.39 | I34: 0.6 | J34: 0.6 | K34: 85 | L34: 0 | M34: 12 | N34: 261138.6065 | O34: 504915.1339 | P34: 64268.38202 | Q34: 42963.94599 | R34: 336255.0153 | S34: 41543.65026 | T34: 19884.14029
B35: #9 | C35: 20 | D35: 2026 | E35: F | F35: A_VIE | G35: 0.45 | H35: 0.39 | I35: 0.6 | J35: 0.6 | K35: 85 | L35: 0 | M35: 24 | N35: 522277.213 | O35: 1009830.268 | P35: 128536.764 | Q35: 85927.89198 | R35: 672510.0306 | S35: 83087.30051 | T35: 39768.28059
B36: #10 | C36: 20 | D36: 2028 | E36: F | F36: A_VIE | G36: 0.45 | H36: 0.39 | I36: 0.6 | J36: 0.6 | K36: 85 | L36: 0 | M36: 24 | N36: 522277.213 | O36: 1009830.268 | P36: 128536.764 | Q36: 85927.89198 | R36: 672510.0306 | S36: 83087.30051 | T36: 39768.28059
B37: #11 | C37: 20 | D37: 2029 | E37: F | F37: A_VIE | G37: 0.45 | H37: 0.39 | I37: 0.6 | J37: 0.6 | K37: 85 | L37: 0 | M37: 24 | N37: 522277.213 | O37: 1009830.268 | P37: 128536.764 | Q37: 85927.89198 | R37: 672510.0306 | S37: 83087.30051 | T37: 39768.28059
B38: #12 | C38: 20 | D38: 2030 | E38: F | F38: A_VIE | G38: 0.45 | H38: 0.39 | I38: 0.6 | J38: 0.6 | K38: 85 | L38: 0 | M38: 24 | N38: 522277.213 | O38: 1009830.268 | P38: 128536.764 | Q38: 85927.89198 | R38: 672510.0306 | S38: 83087.30051 | T38: 39768.28059
B39: #13 | C39: 21 | D39: 2026 | E39: H | F39: A_VIE | G39: 0.45 | H39: 0.39 | I39: 0.6 | J39: 0.6 | K39: 85 | L39: 0 | M39: 24 | N39: 522277.213 | O39: 1009830.268 | P39: 128536.764 | Q39: 85927.89198 | R39: 672510.0306 | S39: 83087.30051 | T39: 39768.28059
B40: #14 | C40: 21 | D40: 2028 | E40: H | F40: A_VIE | G40: 0.45 | H40: 0.39 | I40: 0.6 | J40: 0.6 | K40: 85 | L40: 0 | M40: 24 | N40: 522277.213 | O40: 1009830.268 | P40: 128536.764 | Q40: 85927.89198 | R40: 672510.0306 | S40: 83087.30051 | T40: 39768.28059
B41: #15 | C41: 21 | D41: 2029 | E41: H | F41: A_VIE | G41: 0.45 | H41: 0.39 | I41: 0.6 | J41: 0.6 | K41: 85 | L41: 0 | M41: 24 | N41: 522277.213 | O41: 1009830.268 | P41: 128536.764 | Q41: 85927.89198 | R41: 672510.0306 | S41: 83087.30051 | T41: 39768.28059
B42: #16 | C42: 21 | D42: 2030 | E42: H | F42: A_VIE | G42: 0.45 | H42: 0.39 | I42: 0.6 | J42: 0.6 | K42: 85 | L42: 0 | M42: 24 | N42: 522277.213 | O42: 1009830.268 | P42: 128536.764 | Q42: 85927.89198 | R42: 672510.0306 | S42: 83087.30051 | T42: 39768.28059
B43: #17 | C43: 22 | D43: 2026 | E43: H | F43: A_VIE | G43: 0.45 | H43: 0.39 | I43: 0.6 | J43: 0.6 | K43: 85 | L43: 0 | M43: 24 | N43: 522277.213 | O43: 1009830.268 | P43: 128536.764 | Q43: 85927.89198 | R43: 672510.0306 | S43: 83087.30051 | T43: 39768.28059
B44: #18 | C44: 22 | D44: 2028 | E44: H | F44: A_VIE | G44: 0.45 | H44: 0.39 | I44: 0.6 | J44: 0.6 | K44: 85 | L44: 0 | M44: 24 | N44: 522277.213 | O44: 1009830.268 | P44: 128536.764 | Q44: 85927.89198 | R44: 672510.0306 | S44: 83087.30051 | T44: 39768.28059
B45: #19 | C45: 22 | D45: 2029 | E45: H | F45: A_VIE | G45: 0.45 | H45: 0.39 | I45: 0.6 | J45: 0.6 | K45: 85 | L45: 0 | M45: 24 | N45: 522277.213 | O45: 1009830.268 | P45: 128536.764 | Q45: 85927.89198 | R45: 672510.0306 | S45: 83087.30051 | T45: 39768.28059
B46: #20 | C46: 22 | D46: 2030 | E46: H | F46: A_VIE | G46: 0.45 | H46: 0.39 | I46: 0.6 | J46: 0.6 | K46: 85 | L46: 0 | M46: 24 | N46: 522277.213 | O46: 1009830.268 | P46: 128536.764 | Q46: 85927.89198 | R46: 672510.0306 | S46: 83087.30051 | T46: 39768.28059
B47: #21 | C47: 23 | D47: 2026 | E47: F | F47: A_VIE | G47: 0.45 | H47: 0.39 | I47: 0.6 | J47: 0.6 | K47: 85 | L47: 0 | M47: 24 | N47: 522277.213 | O47: 1009830.268 | P47: 128536.764 | Q47: 85927.89198 | R47: 672510.0306 | S47: 83087.30051 | T47: 39768.28059
B48: #22 | C48: 23 | D48: 2028 | E48: F | F48: A_VIE | G48: 0.45 | H48: 0.39 | I48: 0.6 | J48: 0.6 | K48: 85 | L48: 0 | M48: 24 | N48: 522277.213 | O48: 1009830.268 | P48: 128536.764 | Q48: 85927.89198 | R48: 672510.0306 | S48: 83087.30051 | T48: 39768.28059
B49: #23 | C49: 23 | D49: 2029 | E49: F | F49: A_VIE | G49: 0.45 | H49: 0.39 | I49: 0.6 | J49: 0.6 | K49: 85 | L49: 0 | M49: 24 | N49: 522277.213 | O49: 1009830.268 | P49: 128536.764 | Q49: 85927.89198 | R49: 672510.0306 | S49: 83087.30051 | T49: 39768.28059
B50: #24 | C50: 23 | D50: 2030 | E50: F | F50: A_VIE | G50: 0.45 | H50: 0.39 | I50: 0.6 | J50: 0.6 | K50: 85 | L50: 0 | M50: 24 | N50: 522277.213 | O50: 1009830.268 | P50: 128536.764 | Q50: 85927.89198 | R50: 672510.0306 | S50: 83087.30051 | T50: 39768.28059
B51: #25 | C51: 24 | D51: 2026 | E51: H | F51: A_VIE | G51: 0.45 | H51: 0.39 | I51: 0.6 | J51: 0.6 | K51: 85 | L51: 0 | M51: 24 | N51: 522277.213 | O51: 1009830.268 | P51: 128536.764 | Q51: 85927.89198 | R51: 672510.0306 | S51: 83087.30051 | T51: 39768.28059
B52: #26 | C52: 24 | D52: 2028 | E52: H | F52: A_VIE | G52: 0.45 | H52: 0.39 | I52: 0.6 | J52: 0.6 | K52: 85 | L52: 0 | M52: 24 | N52: 522277.213 | O52: 1009830.268 | P52: 128536.764 | Q52: 85927.89198 | R52: 672510.0306 | S52: 83087.30051 | T52: 39768.28059
B53: #27 | C53: 24 | D53: 2029 | E53: H | F53: A_VIE | G53: 0.45 | H53: 0.39 | I53: 0.6 | J53: 0.6 | K53: 85 | L53: 0 | M53: 24 | N53: 522277.213 | O53: 1009830.268 | P53: 128536.764 | Q53: 85927.89198 | R53: 672510.0306 | S53: 83087.30051 | T53: 39768.28059
B54: #28 | C54: 24 | D54: 2030 | E54: H | F54: A_VIE | G54: 0.45 | H54: 0.39 | I54: 0.6 | J54: 0.6 | K54: 85 | L54: 0 | M54: 24 | N54: 522277.213 | O54: 1009830.268 | P54: 128536.764 | Q54: 85927.89198 | R54: 672510.0306 | S54: 83087.30051 | T54: 39768.28059
B55: #29 | C55: 25 | D55: 2026 | E55: H | F55: A_VIE | G55: 0.45 | H55: 0.39 | I55: 0.6 | J55: 0.6 | K55: 85 | L55: 0 | M55: 119 | N55: 2611386.065 | O55: 5049151.339 | P55: 642683.8202 | Q55: 429639.4599 | R55: 3362550.153 | S55: 415436.5026 | T55: 198841.4029
B56: #30 | C56: 25 | D56: 2028 | E56: H | F56: A_VIE | G56: 0.45 | H56: 0.39 | I56: 0.6 | J56: 0.6 | K56: 85 | L56: 0 | M56: 119 | N56: 2611386.065 | O56: 5049151.339 | P56: 642683.8202 | Q56: 429639.4599 | R56: 3362550.153 | S56: 415436.5026 | T56: 198841.4029
B57: #31 | C57: 25 | D57: 2029 | E57: H | F57: A_VIE | G57: 0.45 | H57: 0.39 | I57: 0.6 | J57: 0.6 | K57: 85 | L57: 0 | M57: 119 | N57: 2611386.065 | O57: 5049151.339 | P57: 642683.8202 | Q57: 429639.4599 | R57: 3362550.153 | S57: 415436.5026 | T57: 198841.4029
B58: #32 | C58: 25 | D58: 2030 | E58: H | F58: A_VIE | G58: 0.45 | H58: 0.39 | I58: 0.6 | J58: 0.6 | K58: 85 | L58: 0 | M58: 119 | N58: 2611386.065 | O58: 5049151.339 | P58: 642683.8202 | Q58: 429639.4599 | R58: 3362550.153 | S58: 415436.5026 | T58: 198841.4029
B59: #33 | C59: 26 | D59: 2026 | E59: F | F59: A_VIE | G59: 0.45 | H59: 0.39 | I59: 0.6 | J59: 0.6 | K59: 85 | L59: 0 | M59: 71 | N59: 1566831.639 | O59: 3029490.803 | P59: 385610.2921 | Q59: 257783.6759 | R59: 2017530.092 | S59: 249261.9015 | T59: 119304.8418
B60: #34 | C60: 26 | D60: 2028 | E60: F | F60: A_VIE | G60: 0.45 | H60: 0.39 | I60: 0.6 | J60: 0.6 | K60: 85 | L60: 0 | M60: 71 | N60: 1566831.639 | O60: 3029490.803 | P60: 385610.2921 | Q60: 257783.6759 | R60: 2017530.092 | S60: 249261.9015 | T60: 119304.8418
B61: #35 | C61: 26 | D61: 2029 | E61: F | F61: A_VIE | G61: 0.45 | H61: 0.39 | I61: 0.6 | J61: 0.6 | K61: 85 | L61: 0 | M61: 71 | N61: 1566831.639 | O61: 3029490.803 | P61: 385610.2921 | Q61: 257783.6759 | R61: 2017530.092 | S61: 249261.9015 | T61: 119304.8418
B62: #36 | C62: 26 | D62: 2030 | E62: F | F62: A_VIE | G62: 0.45 | H62: 0.39 | I62: 0.6 | J62: 0.6 | K62: 85 | L62: 0 | M62: 71 | N62: 1566831.639 | O62: 3029490.803 | P62: 385610.2921 | Q62: 257783.6759 | R62: 2017530.092 | S62: 249261.9015 | T62: 119304.8418
B63: #37 | C63: 27 | D63: 2026 | E63: H | F63: A_VIE | G63: 0.45 | H63: 0.39 | I63: 0.6 | J63: 0.6 | K63: 85 | L63: 0 | M63: 71 | N63: 1566831.639 | O63: 3029490.803 | P63: 385610.2921 | Q63: 257783.6759 | R63: 2017530.092 | S63: 249261.9015 | T63: 119304.8418
B64: #38 | C64: 27 | D64: 2028 | E64: H | F64: A_VIE | G64: 0.45 | H64: 0.39 | I64: 0.6 | J64: 0.6 | K64: 85 | L64: 0 | M64: 71 | N64: 1566831.639 | O64: 3029490.803 | P64: 385610.2921 | Q64: 257783.6759 | R64: 2017530.092 | S64: 249261.9015 | T64: 119304.8418
B65: #39 | C65: 27 | D65: 2029 | E65: H | F65: A_VIE | G65: 0.45 | H65: 0.39 | I65: 0.6 | J65: 0.6 | K65: 85 | L65: 0 | M65: 71 | N65: 1566831.639 | O65: 3029490.803 | P65: 385610.2921 | Q65: 257783.6759 | R65: 2017530.092 | S65: 249261.9015 | T65: 119304.8418
B66: #40 | C66: 27 | D66: 2030 | E66: H | F66: A_VIE | G66: 0.45 | H66: 0.39 | I66: 0.6 | J66: 0.6 | K66: 85 | L66: 0 | M66: 71 | N66: 1566831.639 | O66: 3029490.803 | P66: 385610.2921 | Q66: 257783.6759 | R66: 2017530.092 | S66: 249261.9015 | T66: 119304.8418
B67: #41 | C67: 28 | D67: 2026 | E67: H | F67: A_VIE | G67: 0.45 | H67: 0.39 | I67: 0.6 | J67: 0.6 | K67: 85 | L67: 0 | M67: 71 | N67: 1566831.639 | O67: 3029490.803 | P67: 385610.2921 | Q67: 257783.6759 | R67: 2017530.092 | S67: 249261.9015 | T67: 119304.8418
B68: #42 | C68: 28 | D68: 2028 | E68: H | F68: A_VIE | G68: 0.45 | H68: 0.39 | I68: 0.6 | J68: 0.6 | K68: 85 | L68: 0 | M68: 71 | N68: 1566831.639 | O68: 3029490.803 | P68: 385610.2921 | Q68: 257783.6759 | R68: 2017530.092 | S68: 249261.9015 | T68: 119304.8418
B69: #43 | C69: 28 | D69: 2029 | E69: H | F69: A_VIE | G69: 0.45 | H69: 0.39 | I69: 0.6 | J69: 0.6 | K69: 85 | L69: 0 | M69: 71 | N69: 1566831.639 | O69: 3029490.803 | P69: 385610.2921 | Q69: 257783.6759 | R69: 2017530.092 | S69: 249261.9015 | T69: 119304.8418
B70: #44 | C70: 28 | D70: 2030 | E70: H | F70: A_VIE | G70: 0.45 | H70: 0.39 | I70: 0.6 | J70: 0.6 | K70: 85 | L70: 0 | M70: 71 | N70: 1566831.639 | O70: 3029490.803 | P70: 385610.2921 | Q70: 257783.6759 | R70: 2017530.092 | S70: 249261.9015 | T70: 119304.8418
B71: #45 | C71: 29 | D71: 2026 | E71: F | F71: A_VIE | G71: 0.45 | H71: 0.39 | I71: 0.6 | J71: 0.6 | K71: 85 | L71: 0 | M71: 71 | N71: 1566831.639 | O71: 3029490.803 | P71: 385610.2921 | Q71: 257783.6759 | R71: 2017530.092 | S71: 249261.9015 | T71: 119304.8418
B72: #46 | C72: 29 | D72: 2028 | E72: F | F72: A_VIE | G72: 0.45 | H72: 0.39 | I72: 0.6 | J72: 0.6 | K72: 85 | L72: 0 | M72: 71 | N72: 1566831.639 | O72: 3029490.803 | P72: 385610.2921 | Q72: 257783.6759 | R72: 2017530.092 | S72: 249261.9015 | T72: 119304.8418
B73: #47 | C73: 29 | D73: 2029 | E73: F | F73: A_VIE | G73: 0.45 | H73: 0.39 | I73: 0.6 | J73: 0.6 | K73: 85 | L73: 0 | M73: 71 | N73: 1566831.639 | O73: 3029490.803 | P73: 385610.2921 | Q73: 257783.6759 | R73: 2017530.092 | S73: 249261.9015 | T73: 119304.8418
B74: #48 | C74: 29 | D74: 2030 | E74: F | F74: A_VIE | G74: 0.45 | H74: 0.39 | I74: 0.6 | J74: 0.6 | K74: 85 | L74: 0 | M74: 71 | N74: 1566831.639 | O74: 3029490.803 | P74: 385610.2921 | Q74: 257783.6759 | R74: 2017530.092 | S74: 249261.9015 | T74: 119304.8418
B75: #49 | C75: 30 | D75: 2026 | E75: H | F75: A_VIE | G75: 0.45 | H75: 0.39 | I75: 0.6 | J75: 0.6 | K75: 85 | L75: 0 | M75: 71 | N75: 1566831.639 | O75: 3029490.803 | P75: 385610.2921 | Q75: 257783.6759 | R75: 2017530.092 | S75: 249261.9015 | T75: 119304.8418
B76: #50 | C76: 30 | D76: 2028 | E76: H | F76: A_VIE | G76: 0.45 | H76: 0.39 | I76: 0.6 | J76: 0.6 | K76: 85 | L76: 0 | M76: 71 | N76: 1566831.639 | O76: 3029490.803 | P76: 385610.2921 | Q76: 257783.6759 | R76: 2017530.092 | S76: 249261.9015 | T76: 119304.8418
B77: #51 | C77: 30 | D77: 2029 | E77: H | F77: A_VIE | G77: 0.45 | H77: 0.39 | I77: 0.6 | J77: 0.6 | K77: 85 | L77: 0 | M77: 71 | N77: 1566831.639 | O77: 3029490.803 | P77: 385610.2921 | Q77: 257783.6759 | R77: 2017530.092 | S77: 249261.9015 | T77: 119304.8418
B78: #52 | C78: 30 | D78: 2030 | E78: H | F78: A_VIE | G78: 0.45 | H78: 0.39 | I78: 0.6 | J78: 0.6 | K78: 85 | L78: 0 | M78: 71 | N78: 1566831.639 | O78: 3029490.803 | P78: 385610.2921 | Q78: 257783.6759 | R78: 2017530.092 | S78: 249261.9015 | T78: 119304.8418
B79: #53 | C79: 31 | D79: 2026 | E79: H | F79: A_VIE | G79: 0.45 | H79: 0.39 | I79: 0.6 | J79: 0.6 | K79: 85 | L79: 0 | M79: 71 | N79: 1566831.639 | O79: 3029490.803 | P79: 385610.2921 | Q79: 257783.6759 | R79: 2017530.092 | S79: 249261.9015 | T79: 119304.8418
B80: #54 | C80: 31 | D80: 2028 | E80: H | F80: A_VIE | G80: 0.45 | H80: 0.39 | I80: 0.6 | J80: 0.6 | K80: 85 | L80: 0 | M80: 71 | N80: 1566831.639 | O80: 3029490.803 | P80: 385610.2921 | Q80: 257783.6759 | R80: 2017530.092 | S80: 249261.9015 | T80: 119304.8418
B81: #55 | C81: 31 | D81: 2029 | E81: H | F81: A_VIE | G81: 0.45 | H81: 0.39 | I81: 0.6 | J81: 0.6 | K81: 85 | L81: 0 | M81: 71 | N81: 1566831.639 | O81: 3029490.803 | P81: 385610.2921 | Q81: 257783.6759 | R81: 2017530.092 | S81: 249261.9015 | T81: 119304.8418
B82: #56 | C82: 31 | D82: 2030 | E82: H | F82: A_VIE | G82: 0.45 | H82: 0.39 | I82: 0.6 | J82: 0.6 | K82: 85 | L82: 0 | M82: 71 | N82: 1566831.639 | O82: 3029490.803 | P82: 385610.2921 | Q82: 257783.6759 | R82: 2017530.092 | S82: 249261.9015 | T82: 119304.8418
B83: #57 | C83: 32 | D83: 2026 | E83: F | F83: A_VIE | G83: 0.45 | H83: 0.39 | I83: 0.6 | J83: 0.6 | K83: 85 | L83: 0 | M83: 71 | N83: 1566831.639 | O83: 3029490.803 | P83: 385610.2921 | Q83: 257783.6759 | R83: 2017530.092 | S83: 249261.9015 | T83: 119304.8418
B84: #58 | C84: 32 | D84: 2028 | E84: F | F84: A_VIE | G84: 0.45 | H84: 0.39 | I84: 0.6 | J84: 0.6 | K84: 85 | L84: 0 | M84: 71 | N84: 1566831.639 | O84: 3029490.803 | P84: 385610.2921 | Q84: 257783.6759 | R84: 2017530.092 | S84: 249261.9015 | T84: 119304.8418
B85: #59 | C85: 32 | D85: 2029 | E85: F | F85: A_VIE | G85: 0.45 | H85: 0.39 | I85: 0.6 | J85: 0.6 | K85: 85 | L85: 0 | M85: 71 | N85: 1566831.639 | O85: 3029490.803 | P85: 385610.2921 | Q85: 257783.6759 | R85: 2017530.092 | S85: 249261.9015 | T85: 119304.8418
B86: #60 | C86: 32 | D86: 2030 | E86: F | F86: A_VIE | G86: 0.45 | H86: 0.39 | I86: 0.6 | J86: 0.6 | K86: 85 | L86: 0 | M86: 71 | N86: 1566831.639 | O86: 3029490.803 | P86: 385610.2921 | Q86: 257783.6759 | R86: 2017530.092 | S86: 249261.9015 | T86: 119304.8418
B87: #61 | C87: 33 | D87: 2026 | E87: H | F87: A_VIE | G87: 0.45 | H87: 0.39 | I87: 0.6 | J87: 0.6 | K87: 85 | L87: 0 | M87: 71 | N87: 1566831.639 | O87: 3029490.803 | P87: 385610.2921 | Q87: 257783.6759 | R87: 2017530.092 | S87: 249261.9015 | T87: 119304.8418
B88: #62 | C88: 33 | D88: 2028 | E88: H | F88: A_VIE | G88: 0.45 | H88: 0.39 | I88: 0.6 | J88: 0.6 | K88: 85 | L88: 0 | M88: 71 | N88: 1566831.639 | O88: 3029490.803 | P88: 385610.2921 | Q88: 257783.6759 | R88: 2017530.092 | S88: 249261.9015 | T88: 119304.8418
B89: #63 | C89: 33 | D89: 2029 | E89: H | F89: A_VIE | G89: 0.45 | H89: 0.39 | I89: 0.6 | J89: 0.6 | K89: 85 | L89: 0 | M89: 71 | N89: 1566831.639 | O89: 3029490.803 | P89: 385610.2921 | Q89: 257783.6759 | R89: 2017530.092 | S89: 249261.9015 | T89: 119304.8418
B90: #64 | C90: 33 | D90: 2030 | E90: H | F90: A_VIE | G90: 0.45 | H90: 0.39 | I90: 0.6 | J90: 0.6 | K90: 85 | L90: 0 | M90: 71 | N90: 1566831.639 | O90: 3029490.803 | P90: 385610.2921 | Q90: 257783.6759 | R90: 2017530.092 | S90: 249261.9015 | T90: 119304.8418
B91: #65 | C91: 34 | D91: 2026 | E91: H | F91: A_VIE | G91: 0.45 | H91: 0.39 | I91: 0.6 | J91: 0.6 | K91: 85 | L91: 0 | M91: 71 | N91: 1566831.639 | O91: 3029490.803 | P91: 385610.2921 | Q91: 257783.6759 | R91: 2017530.092 | S91: 249261.9015 | T91: 119304.8418
B92: #66 | C92: 34 | D92: 2028 | E92: H | F92: A_VIE | G92: 0.45 | H92: 0.39 | I92: 0.6 | J92: 0.6 | K92: 85 | L92: 0 | M92: 71 | N92: 1566831.639 | O92: 3029490.803 | P92: 385610.2921 | Q92: 257783.6759 | R92: 2017530.092 | S92: 249261.9015 | T92: 119304.8418
B93: #67 | C93: 34 | D93: 2029 | E93: H | F93: A_VIE | G93: 0.45 | H93: 0.39 | I93: 0.6 | J93: 0.6 | K93: 85 | L93: 0 | M93: 71 | N93: 1566831.639 | O93: 3029490.803 | P93: 385610.2921 | Q93: 257783.6759 | R93: 2017530.092 | S93: 249261.9015 | T93: 119304.8418
B94: #68 | C94: 34 | D94: 2030 | E94: H | F94: A_VIE | G94: 0.45 | H94: 0.39 | I94: 0.6 | J94: 0.6 | K94: 85 | L94: 0 | M94: 71 | N94: 1566831.639 | O94: 3029490.803 | P94: 385610.2921 | Q94: 257783.6759 | R94: 2017530.092 | S94: 249261.9015 | T94: 119304.8418
B95: #69 | C95: 35 | D95: 2026 | E95: F | F95: A_VIE | G95: 0.45 | H95: 0.39 | I95: 0.6 | J95: 0.6 | K95: 85 | L95: 0 | M95: 71 | N95: 1566831.639 | O95: 3029490.803 | P95: 385610.2921 | Q95: 257783.6759 | R95: 2017530.092 | S95: 249261.9015 | T95: 119304.8418
B96: #70 | C96: 35 | D96: 2028 | E96: F | F96: A_VIE | G96: 0.45 | H96: 0.39 | I96: 0.6 | J96: 0.6 | K96: 85 | L96: 0 | M96: 71 | N96: 1566831.639 | O96: 3029490.803 | P96: 385610.2921 | Q96: 257783.6759 | R96: 2017530.092 | S96: 249261.9015 | T96: 119304.8418
B97: #71 | C97: 35 | D97: 2029 | E97: F | F97: A_VIE | G97: 0.45 | H97: 0.39 | I97: 0.6 | J97: 0.6 | K97: 85 | L97: 0 | M97: 71 | N97: 1566831.639 | O97: 3029490.803 | P97: 385610.2921 | Q97: 257783.6759 | R97: 2017530.092 | S97: 249261.9015 | T97: 119304.8418
B98: #72 | C98: 35 | D98: 2030 | E98: F | F98: A_VIE | G98: 0.45 | H98: 0.39 | I98: 0.6 | J98: 0.6 | K98: 85 | L98: 0 | M98: 71 | N98: 1566831.639 | O98: 3029490.803 | P98: 385610.2921 | Q98: 257783.6759 | R98: 2017530.092 | S98: 249261.9015 | T98: 119304.8418
B99: #73 | C99: 36 | D99: 2026 | E99: H | F99: A_VIE | G99: 0.45 | H99: 0.39 | I99: 0.6 | J99: 0.6 | K99: 85 | L99: 0 | M99: 12 | N99: 261138.6065 | O99: 504915.1339 | P99: 64268.38202 | Q99: 42963.94599 | R99: 336255.0153 | S99: 41543.65026 | T99: 19884.14029
B100: #74 | C100: 36 | D100: 2028 | E100: H | F100: A_VIE | G100: 0.45 | H100: 0.39 | I100: 0.6 | J100: 0.6 | K100: 85 | L100: 0 | M100: 12 | N100: 261138.6065 | O100: 504915.1339 | P100: 64268.38202 | Q100: 42963.94599 | R100: 336255.0153 | S100: 41543.65026 | T100: 19884.14029
B101: #75 | C101: 36 | D101: 2029 | E101: H | F101: A_VIE | G101: 0.45 | H101: 0.39 | I101: 0.6 | J101: 0.6 | K101: 85 | L101: 0 | M101: 12 | N101: 261138.6065 | O101: 504915.1339 | P101: 64268.38202 | Q101: 42963.94599 | R101: 336255.0153 | S101: 41543.65026 | T101: 19884.14029
B102: #76 | C102: 36 | D102: 2030 | E102: H | F102: A_VIE | G102: 0.45 | H102: 0.39 | I102: 0.6 | J102: 0.6 | K102: 85 | L102: 0 | M102: 12 | N102: 261138.6065 | O102: 504915.1339 | P102: 64268.38202 | Q102: 42963.94599 | R102: 336255.0153 | S102: 41543.65026 | T102: 19884.14029
B103: #77 | C103: 37 | D103: 2026 | E103: H | F103: A_VIE | G103: 0.45 | H103: 0.39 | I103: 0.6 | J103: 0.6 | K103: 85 | L103: 0 | M103: 12 | N103: 261138.6065 | O103: 504915.1339 | P103: 64268.38202 | Q103: 42963.94599 | R103: 336255.0153 | S103: 41543.65026 | T103: 19884.14029
B104: #78 | C104: 37 | D104: 2028 | E104: H | F104: A_VIE | G104: 0.45 | H104: 0.39 | I104: 0.6 | J104: 0.6 | K104: 85 | L104: 0 | M104: 12 | N104: 261138.6065 | O104: 504915.1339 | P104: 64268.38202 | Q104: 42963.94599 | R104: 336255.0153 | S104: 41543.65026 | T104: 19884.14029
B105: #79 | C105: 37 | D105: 2029 | E105: H | F105: A_VIE | G105: 0.45 | H105: 0.39 | I105: 0.6 | J105: 0.6 | K105: 85 | L105: 0 | M105: 12 | N105: 261138.6065 | O105: 504915.1339 | P105: 64268.38202 | Q105: 42963.94599 | R105: 336255.0153 | S105: 41543.65026 | T105: 19884.14029
B106: #80 | C106: 37 | D106: 2030 | E106: H | F106: A_VIE | G106: 0.45 | H106: 0.39 | I106: 0.6 | J106: 0.6 | K106: 85 | L106: 0 | M106: 12 | N106: 261138.6065 | O106: 504915.1339 | P106: 64268.38202 | Q106: 42963.94599 | R106: 336255.0153 | S106: 41543.65026 | T106: 19884.14029
B107: #81 | C107: 38 | D107: 2026 | E107: F | F107: A_VIE | G107: 0.45 | H107: 0.39 | I107: 0.6 | J107: 0.6 | K107: 85 | L107: 0 | M107: 12 | N107: 261138.6065 | O107: 504915.1339 | P107: 64268.38202 | Q107: 42963.94599 | R107: 336255.0153 | S107: 41543.65026 | T107: 19884.14029
B108: #82 | C108: 38 | D108: 2028 | E108: F | F108: A_VIE | G108: 0.45 | H108: 0.39 | I108: 0.6 | J108: 0.6 | K108: 85 | L108: 0 | M108: 12 | N108: 261138.6065 | O108: 504915.1339 | P108: 64268.38202 | Q108: 42963.94599 | R108: 336255.0153 | S108: 41543.65026 | T108: 19884.14029
B109: #83 | C109: 38 | D109: 2029 | E109: F | F109: A_VIE | G109: 0.45 | H109: 0.39 | I109: 0.6 | J109: 0.6 | K109: 85 | L109: 0 | M109: 12 | N109: 261138.6065 | O109: 504915.1339 | P109: 64268.38202 | Q109: 42963.94599 | R109: 336255.0153 | S109: 41543.65026 | T109: 19884.14029
B110: #84 | C110: 38 | D110: 2030 | E110: F | F110: A_VIE | G110: 0.45 | H110: 0.39 | I110: 0.6 | J110: 0.6 | K110: 85 | L110: 0 | M110: 12 | N110: 261138.6065 | O110: 504915.1339 | P110: 64268.38202 | Q110: 42963.94599 | R110: 336255.0153 | S110: 41543.65026 | T110: 19884.14029
B111: #85 | C111: 39 | D111: 2026 | E111: H | F111: A_VIE | G111: 0.45 | H111: 0.39 | I111: 0.6 | J111: 0.6 | K111: 85 | L111: 0 | M111: 12 | N111: 261138.6065 | O111: 504915.1339 | P111: 64268.38202 | Q111: 42963.94599 | R111: 336255.0153 | S111: 41543.65026 | T111: 19884.14029
B112: #86 | C112: 39 | D112: 2028 | E112: H | F112: A_VIE | G112: 0.45 | H112: 0.39 | I112: 0.6 | J112: 0.6 | K112: 85 | L112: 0 | M112: 12 | N112: 261138.6065 | O112: 504915.1339 | P112: 64268.38202 | Q112: 42963.94599 | R112: 336255.0153 | S112: 41543.65026 | T112: 19884.14029
B113: #87 | C113: 39 | D113: 2029 | E113: H | F113: A_VIE | G113: 0.45 | H113: 0.39 | I113: 0.6 | J113: 0.6 | K113: 85 | L113: 0 | M113: 12 | N113: 261138.6065 | O113: 504915.1339 | P113: 64268.38202 | Q113: 42963.94599 | R113: 336255.0153 | S113: 41543.65026 | T113: 19884.14029
B114: #88 | C114: 39 | D114: 2030 | E114: H | F114: A_VIE | G114: 0.45 | H114: 0.39 | I114: 0.6 | J114: 0.6 | K114: 85 | L114: 0 | M114: 12 | N114: 261138.6065 | O114: 504915.1339 | P114: 64268.38202 | Q114: 42963.94599 | R114: 336255.0153 | S114: 41543.65026 | T114: 19884.14029
B115: #89 | C115: 40 | D115: 2026 | E115: H | F115: A_VIE | G115: 0.45 | H115: 0.39 | I115: 0.6 | J115: 0.6 | K115: 85 | L115: 0 | M115: 12 | N115: 261138.6065 | O115: 504915.1339 | P115: 64268.38202 | Q115: 42963.94599 | R115: 336255.0153 | S115: 41543.65026 | T115: 19884.14029
B116: #90 | C116: 40 | D116: 2028 | E116: H | F116: A_VIE | G116: 0.45 | H116: 0.39 | I116: 0.6 | J116: 0.6 | K116: 85 | L116: 0 | M116: 12 | N116: 261138.6065 | O116: 504915.1339 | P116: 64268.38202 | Q116: 42963.94599 | R116: 336255.0153 | S116: 41543.65026 | T116: 19884.14029
B117: #91 | C117: 40 | D117: 2029 | E117: H | F117: A_VIE | G117: 0.45 | H117: 0.39 | I117: 0.6 | J117: 0.6 | K117: 85 | L117: 0 | M117: 12 | N117: 261138.6065 | O117: 504915.1339 | P117: 64268.38202 | Q117: 42963.94599 | R117: 336255.0153 | S117: 41543.65026 | T117: 19884.14029
B118: #92 | C118: 40 | D118: 2030 | E118: H | F118: A_VIE | G118: 0.45 | H118: 0.39 | I118: 0.6 | J118: 0.6 | K118: 85 | L118: 0 | M118: 12 | N118: 261138.6065 | O118: 504915.1339 | P118: 64268.38202 | Q118: 42963.94599 | R118: 336255.0153 | S118: 41543.65026 | T118: 19884.14029
B119: #93 | C119: 41 | D119: 2026 | E119: F | F119: A_VIE | G119: 0.45 | H119: 0.39 | I119: 0.6 | J119: 0.6 | K119: 85 | L119: 0 | M119: 12 | N119: 261138.6065 | O119: 504915.1339 | P119: 64268.38202 | Q119: 42963.94599 | R119: 336255.0153 | S119: 41543.65026 | T119: 19884.14029
B120: #94 | C120: 41 | D120: 2028 | E120: F | F120: A_VIE | G120: 0.45 | H120: 0.39 | I120: 0.6 | J120: 0.6 | K120: 85 | L120: 0 | M120: 12 | N120: 261138.6065 | O120: 504915.1339 | P120: 64268.38202 | Q120: 42963.94599 | R120: 336255.0153 | S120: 41543.65026 | T120: 19884.14029
B121: #95 | C121: 41 | D121: 2029 | E121: F | F121: A_VIE | G121: 0.45 | H121: 0.39 | I121: 0.6 | J121: 0.6 | K121: 85 | L121: 0 | M121: 12 | N121: 261138.6065 | O121: 504915.1339 | P121: 64268.38202 | Q121: 42963.94599 | R121: 336255.0153 | S121: 41543.65026 | T121: 19884.14029
B122: #96 | C122: 41 | D122: 2030 | E122: F | F122: A_VIE | G122: 0.45 | H122: 0.39 | I122: 0.6 | J122: 0.6 | K122: 85 | L122: 0 | M122: 12 | N122: 261138.6065 | O122: 504915.1339 | P122: 64268.38202 | Q122: 42963.94599 | R122: 336255.0153 | S122: 41543.65026 | T122: 19884.14029
B123: #97 | C123: 42 | D123: 2026 | E123: H | F123: A_VIE | G123: 0.45 | H123: 0.39 | I123: 0.6 | J123: 0.6 | K123: 85 | L123: 0 | M123: 12 | N123: 261138.6065 | O123: 504915.1339 | P123: 64268.38202 | Q123: 42963.94599 | R123: 336255.0153 | S123: 41543.65026 | T123: 19884.14029
B124: #98 | C124: 42 | D124: 2028 | E124: H | F124: A_VIE | G124: 0.45 | H124: 0.39 | I124: 0.6 | J124: 0.6 | K124: 85 | L124: 0 | M124: 12 | N124: 261138.6065 | O124: 504915.1339 | P124: 64268.38202 | Q124: 42963.94599 | R124: 336255.0153 | S124: 41543.65026 | T124: 19884.14029
B125: #99 | C125: 42 | D125: 2029 | E125: H | F125: A_VIE | G125: 0.45 | H125: 0.39 | I125: 0.6 | J125: 0.6 | K125: 85 | L125: 0 | M125: 12 | N125: 261138.6065 | O125: 504915.1339 | P125: 64268.38202 | Q125: 42963.94599 | R125: 336255.0153 | S125: 41543.65026 | T125: 19884.14029
B126: #100 | C126: 42 | D126: 2030 | E126: H | F126: A_VIE | G126: 0.45 | H126: 0.39 | I126: 0.6 | J126: 0.6 | K126: 85 | L126: 0 | M126: 12 | N126: 261138.6065 | O126: 504915.1339 | P126: 64268.38202 | Q126: 42963.94599 | R126: 336255.0153 | S126: 41543.65026 | T126: 19884.14029
B127: #101 | C127: 43 | D127: 2026 | E127: H | F127: A_VIE | G127: 0.45 | H127: 0.39 | I127: 0.6 | J127: 0.6 | K127: 85 | L127: 0 | M127: 12 | N127: 261138.6065 | O127: 504915.1339 | P127: 64268.38202 | Q127: 42963.94599 | R127: 336255.0153 | S127: 41543.65026 | T127: 19884.14029
B128: #102 | C128: 43 | D128: 2028 | E128: H | F128: A_VIE | G128: 0.45 | H128: 0.39 | I128: 0.6 | J128: 0.6 | K128: 85 | L128: 0 | M128: 12 | N128: 261138.6065 | O128: 504915.1339 | P128: 64268.38202 | Q128: 42963.94599 | R128: 336255.0153 | S128: 41543.65026 | T128: 19884.14029
B129: #103 | C129: 43 | D129: 2029 | E129: H | F129: A_VIE | G129: 0.45 | H129: 0.39 | I129: 0.6 | J129: 0.6 | K129: 85 | L129: 0 | M129: 12 | N129: 261138.6065 | O129: 504915.1339 | P129: 64268.38202 | Q129: 42963.94599 | R129: 336255.0153 | S129: 41543.65026 | T129: 19884.14029
B130: #104 | C130: 43 | D130: 2030 | E130: H | F130: A_VIE | G130: 0.45 | H130: 0.39 | I130: 0.6 | J130: 0.6 | K130: 85 | L130: 0 | M130: 12 | N130: 261138.6065 | O130: 504915.1339 | P130: 64268.38202 | Q130: 42963.94599 | R130: 336255.0153 | S130: 41543.65026 | T130: 19884.14029
B131: #105 | C131: 44 | D131: 2026 | E131: F | F131: A_VIE | G131: 0.45 | H131: 0.39 | I131: 0.6 | J131: 0.6 | K131: 85 | L131: 0 | M131: 12 | N131: 261138.6065 | O131: 504915.1339 | P131: 64268.38202 | Q131: 42963.94599 | R131: 336255.0153 | S131: 41543.65026 | T131: 19884.14029
B132: #106 | C132: 44 | D132: 2028 | E132: F | F132: A_VIE | G132: 0.45 | H132: 0.39 | I132: 0.6 | J132: 0.6 | K132: 85 | L132: 0 | M132: 12 | N132: 261138.6065 | O132: 504915.1339 | P132: 64268.38202 | Q132: 42963.94599 | R132: 336255.0153 | S132: 41543.65026 | T132: 19884.14029
B133: #107 | C133: 44 | D133: 2029 | E133: F | F133: A_VIE | G133: 0.45 | H133: 0.39 | I133: 0.6 | J133: 0.6 | K133: 85 | L133: 0 | M133: 12 | N133: 261138.6065 | O133: 504915.1339 | P133: 64268.38202 | Q133: 42963.94599 | R133: 336255.0153 | S133: 41543.65026 | T133: 19884.14029
B134: #108 | C134: 44 | D134: 2030 | E134: F | F134: A_VIE | G134: 0.45 | H134: 0.39 | I134: 0.6 | J134: 0.6 | K134: 85 | L134: 0 | M134: 12 | N134: 261138.6065 | O134: 504915.1339 | P134: 64268.38202 | Q134: 42963.94599 | R134: 336255.0153 | S134: 41543.65026 | T134: 19884.14029
B135: #109 | C135: 45 | D135: 2026 | E135: H | F135: A_VIE | G135: 0.45 | H135: 0.39 | I135: 0.6 | J135: 0.6 | K135: 85 | L135: 0 | M135: 12 | N135: 261138.6065 | O135: 504915.1339 | P135: 64268.38202 | Q135: 42963.94599 | R135: 336255.0153 | S135: 41543.65026 | T135: 19884.14029
B136: #110 | C136: 45 | D136: 2028 | E136: H | F136: A_VIE | G136: 0.45 | H136: 0.39 | I136: 0.6 | J136: 0.6 | K136: 85 | L136: 0 | M136: 12 | N136: 261138.6065 | O136: 504915.1339 | P136: 64268.38202 | Q136: 42963.94599 | R136: 336255.0153 | S136: 41543.65026 | T136: 19884.14029
B137: #111 | C137: 45 | D137: 2029 | E137: H | F137: A_VIE | G137: 0.45 | H137: 0.39 | I137: 0.6 | J137: 0.6 | K137: 85 | L137: 0 | M137: 12 | N137: 261138.6065 | O137: 504915.1339 | P137: 64268.38202 | Q137: 42963.94599 | R137: 336255.0153 | S137: 41543.65026 | T137: 19884.14029
B138: #112 | C138: 45 | D138: 2030 | E138: H | F138: A_VIE | G138: 0.45 | H138: 0.39 | I138: 0.6 | J138: 0.6 | K138: 85 | L138: 0 | M138: 12 | N138: 261138.6065 | O138: 504915.1339 | P138: 64268.38202 | Q138: 42963.94599 | R138: 336255.0153 | S138: 41543.65026 | T138: 19884.14029
B139: #113 | C139: 46 | D139: 2026 | E139: H | F139: A_VIE | G139: 0.45 | H139: 0.39 | I139: 0.6 | J139: 0.6 | K139: 85 | L139: 0 | M139: 12 | N139: 261138.6065 | O139: 504915.1339 | P139: 64268.38202 | Q139: 42963.94599 | R139: 336255.0153 | S139: 41543.65026 | T139: 19884.14029
B140: #114 | C140: 46 | D140: 2028 | E140: H | F140: A_VIE | G140: 0.45 | H140: 0.39 | I140: 0.6 | J140: 0.6 | K140: 85 | L140: 0 | M140: 12 | N140: 261138.6065 | O140: 504915.1339 | P140: 64268.38202 | Q140: 42963.94599 | R140: 336255.0153 | S140: 41543.65026 | T140: 19884.14029
B141: #115 | C141: 46 | D141: 2029 | E141: H | F141: A_VIE | G141: 0.45 | H141: 0.39 | I141: 0.6 | J141: 0.6 | K141: 85 | L141: 0 | M141: 12 | N141: 261138.6065 | O141: 504915.1339 | P141: 64268.38202 | Q141: 42963.94599 | R141: 336255.0153 | S141: 41543.65026 | T141: 19884.14029
B142: #116 | C142: 46 | D142: 2030 | E142: H | F142: A_VIE | G142: 0.45 | H142: 0.39 | I142: 0.6 | J142: 0.6 | K142: 85 | L142: 0 | M142: 12 | N142: 261138.6065 | O142: 504915.1339 | P142: 64268.38202 | Q142: 42963.94599 | R142: 336255.0153 | S142: 41543.65026 | T142: 19884.14029
B143: #117 | C143: 47 | D143: 2026 | E143: F | F143: A_VIE | G143: 0.45 | H143: 0.39 | I143: 0.6 | J143: 0.6 | K143: 85 | L143: 0 | M143: 12 | N143: 261138.6065 | O143: 504915.1339 | P143: 64268.38202 | Q143: 42963.94599 | R143: 336255.0153 | S143: 41543.65026 | T143: 19884.14029
B144: #118 | C144: 47 | D144: 2028 | E144: F | F144: A_VIE | G144: 0.45 | H144: 0.39 | I144: 0.6 | J144: 0.6 | K144: 85 | L144: 0 | M144: 12 | N144: 261138.6065 | O144: 504915.1339 | P144: 64268.38202 | Q144: 42963.94599 | R144: 336255.0153 | S144: 41543.65026 | T144: 19884.14029
B145: #119 | C145: 47 | D145: 2029 | E145: F | F145: A_VIE | G145: 0.45 | H145: 0.39 | I145: 0.6 | J145: 0.6 | K145: 85 | L145: 0 | M145: 12 | N145: 261138.6065 | O145: 504915.1339 | P145: 64268.38202 | Q145: 42963.94599 | R145: 336255.0153 | S145: 41543.65026 | T145: 19884.14029
B146: #120 | C146: 47 | D146: 2030 | E146: F | F146: A_VIE | G146: 0.45 | H146: 0.39 | I146: 0.6 | J146: 0.6 | K146: 85 | L146: 0 | M146: 12 | N146: 261138.6065 | O146: 504915.1339 | P146: 64268.38202 | Q146: 42963.94599 | R146: 336255.0153 | S146: 41543.65026 | T146: 19884.14029
B147: #121 | C147: 48 | D147: 2026 | E147: H | F147: A_VIE | G147: 0.45 | H147: 0.39 | I147: 0.6 | J147: 0.6 | K147: 85 | L147: 0 | M147: 12 | N147: 261138.6065 | O147: 504915.1339 | P147: 64268.38202 | Q147: 42963.94599 | R147: 336255.0153 | S147: 41543.65026 | T147: 19884.14029
B148: #122 | C148: 48 | D148: 2028 | E148: H | F148: A_VIE | G148: 0.45 | H148: 0.39 | I148: 0.6 | J148: 0.6 | K148: 85 | L148: 0 | M148: 12 | N148: 261138.6065 | O148: 504915.1339 | P148: 64268.38202 | Q148: 42963.94599 | R148: 336255.0153 | S148: 41543.65026 | T148: 19884.14029
B149: #123 | C149: 48 | D149: 2029 | E149: H | F149: A_VIE | G149: 0.45 | H149: 0.39 | I149: 0.6 | J149: 0.6 | K149: 85 | L149: 0 | M149: 12 | N149: 261138.6065 | O149: 504915.1339 | P149: 64268.38202 | Q149: 42963.94599 | R149: 336255.0153 | S149: 41543.65026 | T149: 19884.14029
B150: #124 | C150: 48 | D150: 2030 | E150: H | F150: A_VIE | G150: 0.45 | H150: 0.39 | I150: 0.6 | J150: 0.6 | K150: 85 | L150: 0 | M150: 12 | N150: 261138.6065 | O150: 504915.1339 | P150: 64268.38202 | Q150: 42963.94599 | R150: 336255.0153 | S150: 41543.65026 | T150: 19884.14029
B151: #125 | C151: 49 | D151: 2026 | E151: H | F151: A_VIE | G151: 0.45 | H151: 0.39 | I151: 0.6 | J151: 0.6 | K151: 85 | L151: 0 | M151: 12 | N151: 261138.6065 | O151: 504915.1339 | P151: 64268.38202 | Q151: 42963.94599 | R151: 336255.0153 | S151: 41543.65026 | T151: 19884.14029
B152: #126 | C152: 49 | D152: 2028 | E152: H | F152: A_VIE | G152: 0.45 | H152: 0.39 | I152: 0.6 | J152: 0.6 | K152: 85 | L152: 0 | M152: 12 | N152: 261138.6065 | O152: 504915.1339 | P152: 64268.38202 | Q152: 42963.94599 | R152: 336255.0153 | S152: 41543.65026 | T152: 19884.14029
B153: #127 | C153: 49 | D153: 2029 | E153: H | F153: A_VIE | G153: 0.45 | H153: 0.39 | I153: 0.6 | J153: 0.6 | K153: 85 | L153: 0 | M153: 12 | N153: 261138.6065 | O153: 504915.1339 | P153: 64268.38202 | Q153: 42963.94599 | R153: 336255.0153 | S153: 41543.65026 | T153: 19884.14029
B154: #128 | C154: 49 | D154: 2030 | E154: H | F154: A_VIE | G154: 0.45 | H154: 0.39 | I154: 0.6 | J154: 0.6 | K154: 85 | L154: 0 | M154: 12 | N154: 261138.6065 | O154: 504915.1339 | P154: 64268.38202 | Q154: 42963.94599 | R154: 336255.0153 | S154: 41543.65026 | T154: 19884.14029
B155: #129 | C155: 50 | D155: 2026 | E155: F | F155: A_VIE | G155: 0.45 | H155: 0.39 | I155: 0.6 | J155: 0.6 | K155: 85 | L155: 0 | M155: 71 | N155: 1566831.639 | O155: 3029490.803 | P155: 385610.2921 | Q155: 257783.6759 | R155: 2017530.092 | S155: 249261.9015 | T155: 119304.8418
B156: #130 | C156: 50 | D156: 2028 | E156: F | F156: A_VIE | G156: 0.45 | H156: 0.39 | I156: 0.6 | J156: 0.6 | K156: 85 | L156: 0 | M156: 71 | N156: 1566831.639 | O156: 3029490.803 | P156: 385610.2921 | Q156: 257783.6759 | R156: 2017530.092 | S156: 249261.9015 | T156: 119304.8418
B157: #131 | C157: 50 | D157: 2029 | E157: F | F157: A_VIE | G157: 0.45 | H157: 0.39 | I157: 0.6 | J157: 0.6 | K157: 85 | L157: 0 | M157: 71 | N157: 1566831.639 | O157: 3029490.803 | P157: 385610.2921 | Q157: 257783.6759 | R157: 2017530.092 | S157: 249261.9015 | T157: 119304.8418
B158: #132 | C158: 50 | D158: 2030 | E158: F | F158: A_VIE | G158: 0.45 | H158: 0.39 | I158: 0.6 | J158: 0.6 | K158: 85 | L158: 0 | M158: 71 | N158: 1566831.639 | O158: 3029490.803 | P158: 385610.2921 | Q158: 257783.6759 | R158: 2017530.092 | S158: 249261.9015 | T158: 119304.8418
B159: #133 | C159: 51 | D159: 2026 | E159: H | F159: A_VIE | G159: 0.45 | H159: 0.39 | I159: 0.6 | J159: 0.6 | K159: 85 | L159: 0 | M159: 71 | N159: 1566831.639 | O159: 3029490.803 | P159: 385610.2921 | Q159: 257783.6759 | R159: 2017530.092 | S159: 249261.9015 | T159: 119304.8418
B160: #134 | C160: 51 | D160: 2028 | E160: H | F160: A_VIE | G160: 0.45 | H160: 0.39 | I160: 0.6 | J160: 0.6 | K160: 85 | L160: 0 | M160: 71 | N160: 1566831.639 | O160: 3029490.803 | P160: 385610.2921 | Q160: 257783.6759 | R160: 2017530.092 | S160: 249261.9015 | T160: 119304.8418
B161: #135 | C161: 51 | D161: 2029 | E161: H | F161: A_VIE | G161: 0.45 | H161: 0.39 | I161: 0.6 | J161: 0.6 | K161: 85 | L161: 0 | M161: 71 | N161: 1566831.639 | O161: 3029490.803 | P161: 385610.2921 | Q161: 257783.6759 | R161: 2017530.092 | S161: 249261.9015 | T161: 119304.8418
B162: #136 | C162: 51 | D162: 2030 | E162: H | F162: A_VIE | G162: 0.45 | H162: 0.39 | I162: 0.6 | J162: 0.6 | K162: 85 | L162: 0 | M162: 71 | N162: 1566831.639 | O162: 3029490.803 | P162: 385610.2921 | Q162: 257783.6759 | R162: 2017530.092 | S162: 249261.9015 | T162: 119304.8418
B163: #137 | C163: 52 | D163: 2026 | E163: H | F163: A_VIE | G163: 0.45 | H163: 0.39 | I163: 0.6 | J163: 0.6 | K163: 85 | L163: 0 | M163: 71 | N163: 1566831.639 | O163: 3029490.803 | P163: 385610.2921 | Q163: 257783.6759 | R163: 2017530.092 | S163: 249261.9015 | T163: 119304.8418
B164: #138 | C164: 52 | D164: 2028 | E164: H | F164: A_VIE | G164: 0.45 | H164: 0.39 | I164: 0.6 | J164: 0.6 | K164: 85 | L164: 0 | M164: 71 | N164: 1566831.639 | O164: 3029490.803 | P164: 385610.2921 | Q164: 257783.6759 | R164: 2017530.092 | S164: 249261.9015 | T164: 119304.8418
B165: #139 | C165: 52 | D165: 2029 | E165: H | F165: A_VIE | G165: 0.45 | H165: 0.39 | I165: 0.6 | J165: 0.6 | K165: 85 | L165: 0 | M165: 71 | N165: 1566831.639 | O165: 3029490.803 | P165: 385610.2921 | Q165: 257783.6759 | R165: 2017530.092 | S165: 249261.9015 | T165: 119304.8418
B166: #140 | C166: 52 | D166: 2030 | E166: H | F166: A_VIE | G166: 0.45 | H166: 0.39 | I166: 0.6 | J166: 0.6 | K166: 85 | L166: 0 | M166: 71 | N166: 1566831.639 | O166: 3029490.803 | P166: 385610.2921 | Q166: 257783.6759 | R166: 2017530.092 | S166: 249261.9015 | T166: 119304.8418
B167: #141 | C167: 53 | D167: 2026 | E167: F | F167: A_VIE | G167: 0.45 | H167: 0.39 | I167: 0.6 | J167: 0.6 | K167: 85 | L167: 0 | M167: 71 | N167: 1566831.639 | O167: 3029490.803 | P167: 385610.2921 | Q167: 257783.6759 | R167: 2017530.092 | S167: 249261.9015 | T167: 119304.8418
B168: #142 | C168: 53 | D168: 2028 | E168: F | F168: A_VIE | G168: 0.45 | H168: 0.39 | I168: 0.6 | J168: 0.6 | K168: 85 | L168: 0 | M168: 71 | N168: 1566831.639 | O168: 3029490.803 | P168: 385610.2921 | Q168: 257783.6759 | R168: 2017530.092 | S168: 249261.9015 | T168: 119304.8418
B169: #143 | C169: 53 | D169: 2029 | E169: F | F169: A_VIE | G169: 0.45 | H169: 0.39 | I169: 0.6 | J169: 0.6 | K169: 85 | L169: 0 | M169: 71 | N169: 1566831.639 | O169: 3029490.803 | P169: 385610.2921 | Q169: 257783.6759 | R169: 2017530.092 | S169: 249261.9015 | T169: 119304.8418
B170: #144 | C170: 53 | D170: 2030 | E170: F | F170: A_VIE | G170: 0.45 | H170: 0.39 | I170: 0.6 | J170: 0.6 | K170: 85 | L170: 0 | M170: 71 | N170: 1566831.639 | O170: 3029490.803 | P170: 385610.2921 | Q170: 257783.6759 | R170: 2017530.092 | S170: 249261.9015 | T170: 119304.8418
B171: #145 | C171: 54 | D171: 2026 | E171: H | F171: A_VIE | G171: 0.45 | H171: 0.39 | I171: 0.6 | J171: 0.6 | K171: 85 | L171: 0 | M171: 71 | N171: 1566831.639 | O171: 3029490.803 | P171: 385610.2921 | Q171: 257783.6759 | R171: 2017530.092 | S171: 249261.9015 | T171: 119304.8418
B172: #146 | C172: 54 | D172: 2028 | E172: H | F172: A_VIE | G172: 0.45 | H172: 0.39 | I172: 0.6 | J172: 0.6 | K172: 85 | L172: 0 | M172: 71 | N172: 1566831.639 | O172: 3029490.803 | P172: 385610.2921 | Q172: 257783.6759 | R172: 2017530.092 | S172: 249261.9015 | T172: 119304.8418
B173: #147 | C173: 54 | D173: 2029 | E173: H | F173: A_VIE | G173: 0.45 | H173: 0.39 | I173: 0.6 | J173: 0.6 | K173: 85 | L173: 0 | M173: 71 | N173: 1566831.639 | O173: 3029490.803 | P173: 385610.2921 | Q173: 257783.6759 | R173: 2017530.092 | S173: 249261.9015 | T173: 119304.8418
B174: #148 | C174: 54 | D174: 2030 | E174: H | F174: A_VIE | G174: 0.45 | H174: 0.39 | I174: 0.6 | J174: 0.6 | K174: 85 | L174: 0 | M174: 71 | N174: 1566831.639 | O174: 3029490.803 | P174: 385610.2921 | Q174: 257783.6759 | R174: 2017530.092 | S174: 249261.9015 | T174: 119304.8418
B175: #149 | C175: 55 | D175: 2026 | E175: H | F175: A_VIE | G175: 0.45 | H175: 0.39 | I175: 0.6 | J175: 0.6 | K175: 85 | L175: 0 | M175: 71 | N175: 1566831.639 | O175: 3029490.803 | P175: 385610.2921 | Q175: 257783.6759 | R175: 2017530.092 | S175: 249261.9015 | T175: 119304.8418
B176: #150 | C176: 55 | D176: 2028 | E176: H | F176: A_VIE | G176: 0.45 | H176: 0.39 | I176: 0.6 | J176: 0.6 | K176: 85 | L176: 0 | M176: 71 | N176: 1566831.639 | O176: 3029490.803 | P176: 385610.2921 | Q176: 257783.6759 | R176: 2017530.092 | S176: 249261.9015 | T176: 119304.8418
B177: #151 | C177: 55 | D177: 2029 | E177: H | F177: A_VIE | G177: 0.45 | H177: 0.39 | I177: 0.6 | J177: 0.6 | K177: 85 | L177: 0 | M177: 71 | N177: 1566831.639 | O177: 3029490.803 | P177: 385610.2921 | Q177: 257783.6759 | R177: 2017530.092 | S177: 249261.9015 | T177: 119304.8418
B178: #152 | C178: 55 | D178: 2030 | E178: H | F178: A_VIE | G178: 0.45 | H178: 0.39 | I178: 0.6 | J178: 0.6 | K178: 85 | L178: 0 | M178: 71 | N178: 1566831.639 | O178: 3029490.803 | P178: 385610.2921 | Q178: 257783.6759 | R178: 2017530.092 | S178: 249261.9015 | T178: 119304.8418
B179: #153 | C179: 56 | D179: 2026 | E179: F | F179: A_VIE | G179: 0.45 | H179: 0.39 | I179: 0.6 | J179: 0.6 | K179: 85 | L179: 0 | M179: 71 | N179: 1566831.639 | O179: 3029490.803 | P179: 385610.2921 | Q179: 257783.6759 | R179: 2017530.092 | S179: 249261.9015 | T179: 119304.8418
B180: #154 | C180: 56 | D180: 2028 | E180: F | F180: A_VIE | G180: 0.45 | H180: 0.39 | I180: 0.6 | J180: 0.6 | K180: 85 | L180: 0 | M180: 71 | N180: 1566831.639 | O180: 3029490.803 | P180: 385610.2921 | Q180: 257783.6759 | R180: 2017530.092 | S180: 249261.9015 | T180: 119304.8418
B181: #155 | C181: 56 | D181: 2029 | E181: F | F181: A_VIE | G181: 0.45 | H181: 0.39 | I181: 0.6 | J181: 0.6 | K181: 85 | L181: 0 | M181: 71 | N181: 1566831.639 | O181: 3029490.803 | P181: 385610.2921 | Q181: 257783.6759 | R181: 2017530.092 | S181: 249261.9015 | T181: 119304.8418
B182: #156 | C182: 56 | D182: 2030 | E182: F | F182: A_VIE | G182: 0.45 | H182: 0.39 | I182: 0.6 | J182: 0.6 | K182: 85 | L182: 0 | M182: 71 | N182: 1566831.639 | O182: 3029490.803 | P182: 385610.2921 | Q182: 257783.6759 | R182: 2017530.092 | S182: 249261.9015 | T182: 119304.8418
B183: #157 | C183: 57 | D183: 2026 | E183: H | F183: A_VIE | G183: 0.45 | H183: 0.39 | I183: 0.6 | J183: 0.6 | K183: 85 | L183: 0 | M183: 71 | N183: 1566831.639 | O183: 3029490.803 | P183: 385610.2921 | Q183: 257783.6759 | R183: 2017530.092 | S183: 249261.9015 | T183: 119304.8418
B184: #158 | C184: 57 | D184: 2028 | E184: H | F184: A_VIE | G184: 0.45 | H184: 0.39 | I184: 0.6 | J184: 0.6 | K184: 85 | L184: 0 | M184: 71 | N184: 1566831.639 | O184: 3029490.803 | P184: 385610.2921 | Q184: 257783.6759 | R184: 2017530.092 | S184: 249261.9015 | T184: 119304.8418
B185: #159 | C185: 57 | D185: 2029 | E185: H | F185: A_VIE | G185: 0.45 | H185: 0.39 | I185: 0.6 | J185: 0.6 | K185: 85 | L185: 0 | M185: 71 | N185: 1566831.639 | O185: 3029490.803 | P185: 385610.2921 | Q185: 257783.6759 | R185: 2017530.092 | S185: 249261.9015 | T185: 119304.8418
B186: #160 | C186: 57 | D186: 2030 | E186: H | F186: A_VIE | G186: 0.45 | H186: 0.39 | I186: 0.6 | J186: 0.6 | K186: 85 | L186: 0 | M186: 71 | N186: 1566831.639 | O186: 3029490.803 | P186: 385610.2921 | Q186: 257783.6759 | R186: 2017530.092 | S186: 249261.9015 | T186: 119304.8418
B187: #161 | C187: 58 | D187: 2026 | E187: H | F187: A_VIE | G187: 0.45 | H187: 0.39 | I187: 0.6 | J187: 0.6 | K187: 85 | L187: 0 | M187: 71 | N187: 1566831.639 | O187: 3029490.803 | P187: 385610.2921 | Q187: 257783.6759 | R187: 2017530.092 | S187: 249261.9015 | T187: 119304.8418
B188: #162 | C188: 58 | D188: 2028 | E188: H | F188: A_VIE | G188: 0.45 | H188: 0.39 | I188: 0.6 | J188: 0.6 | K188: 85 | L188: 0 | M188: 71 | N188: 1566831.639 | O188: 3029490.803 | P188: 385610.2921 | Q188: 257783.6759 | R188: 2017530.092 | S188: 249261.9015 | T188: 119304.8418
B189: #163 | C189: 58 | D189: 2029 | E189: H | F189: A_VIE | G189: 0.45 | H189: 0.39 | I189: 0.6 | J189: 0.6 | K189: 85 | L189: 0 | M189: 71 | N189: 1566831.639 | O189: 3029490.803 | P189: 385610.2921 | Q189: 257783.6759 | R189: 2017530.092 | S189: 249261.9015 | T189: 119304.8418
B190: #164 | C190: 58 | D190: 2030 | E190: H | F190: A_VIE | G190: 0.45 | H190: 0.39 | I190: 0.6 | J190: 0.6 | K190: 85 | L190: 0 | M190: 71 | N190: 1566831.639 | O190: 3029490.803 | P190: 385610.2921 | Q190: 257783.6759 | R190: 2017530.092 | S190: 249261.9015 | T190: 119304.8418
B191: #165 | C191: 59 | D191: 2026 | E191: F | F191: A_VIE | G191: 0.45 | H191: 0.39 | I191: 0.6 | J191: 0.6 | K191: 85 | L191: 0 | M191: 71 | N191: 1566831.639 | O191: 3029490.803 | P191: 385610.2921 | Q191: 257783.6759 | R191: 2017530.092 | S191: 249261.9015 | T191: 119304.8418
B192: #166 | C192: 59 | D192: 2028 | E192: F | F192: A_VIE | G192: 0.45 | H192: 0.39 | I192: 0.6 | J192: 0.6 | K192: 85 | L192: 0 | M192: 71 | N192: 1566831.639 | O192: 3029490.803 | P192: 385610.2921 | Q192: 257783.6759 | R192: 2017530.092 | S192: 249261.9015 | T192: 119304.8418
B193: #167 | C193: 59 | D193: 2029 | E193: F | F193: A_VIE | G193: 0.45 | H193: 0.39 | I193: 0.6 | J193: 0.6 | K193: 85 | L193: 0 | M193: 71 | N193: 1566831.639 | O193: 3029490.803 | P193: 385610.2921 | Q193: 257783.6759 | R193: 2017530.092 | S193: 249261.9015 | T193: 119304.8418
B194: #168 | C194: 59 | D194: 2030 | E194: F | F194: A_VIE | G194: 0.45 | H194: 0.39 | I194: 0.6 | J194: 0.6 | K194: 85 | L194: 0 | M194: 71 | N194: 1566831.639 | O194: 3029490.803 | P194: 385610.2921 | Q194: 257783.6759 | R194: 2017530.092 | S194: 249261.9015 | T194: 119304.8418
B195: #169 | C195: 60 | D195: 2026 | E195: H | F195: A_VIE | G195: 0.45 | H195: 0.39 | I195: 0.6 | J195: 0.6 | K195: 85 | L195: 0 | M195: 119 | N195: 2611386.065 | O195: 5049151.339 | P195: 642683.8202 | Q195: 429639.4599 | R195: 3362550.153 | S195: 415436.5026 | T195: 198841.4029
B196: #170 | C196: 60 | D196: 2028 | E196: H | F196: A_VIE | G196: 0.45 | H196: 0.39 | I196: 0.6 | J196: 0.6 | K196: 85 | L196: 0 | M196: 119 | N196: 2611386.065 | O196: 5049151.339 | P196: 642683.8202 | Q196: 429639.4599 | R196: 3362550.153 | S196: 415436.5026 | T196: 198841.4029
B197: #171 | C197: 60 | D197: 2029 | E197: H | F197: A_VIE | G197: 0.45 | H197: 0.39 | I197: 0.6 | J197: 0.6 | K197: 85 | L197: 0 | M197: 119 | N197: 2611386.065 | O197: 5049151.339 | P197: 642683.8202 | Q197: 429639.4599 | R197: 3362550.153 | S197: 415436.5026 | T197: 198841.4029
B198: #172 | C198: 60 | D198: 2030 | E198: H | F198: A_VIE | G198: 0.45 | H198: 0.39 | I198: 0.6 | J198: 0.6 | K198: 85 | L198: 0 | M198: 119 | N198: 2611386.065 | O198: 5049151.339 | P198: 642683.8202 | Q198: 429639.4599 | R198: 3362550.153 | S198: 415436.5026 | T198: 198841.4029
B199: #173 | C199: 61 | D199: 2026 | E199: H | F199: A_VIE | G199: 0.45 | H199: 0.39 | I199: 0.6 | J199: 0.6 | K199: 85 | L199: 0 | M199: 71 | N199: 1566831.639 | O199: 3029490.803 | P199: 385610.2921 | Q199: 257783.6759 | R199: 2017530.092 | S199: 249261.9015 | T199: 119304.8418
B200: #174 | C200: 61 | D200: 2028 | E200: H | F200: A_VIE | G200: 0.45 | H200: 0.39 | I200: 0.6 | J200: 0.6 | K200: 85 | L200: 0 | M200: 71 | N200: 1566831.639 | O200: 3029490.803 | P200: 385610.2921 | Q200: 257783.6759 | R200: 2017530.092 | S200: 249261.9015 | T200: 119304.8418
B201: #175 | C201: 61 | D201: 2029 | E201: H | F201: A_VIE | G201: 0.45 | H201: 0.39 | I201: 0.6 | J201: 0.6 | K201: 85 | L201: 0 | M201: 71 | N201: 1566831.639 | O201: 3029490.803 | P201: 385610.2921 | Q201: 257783.6759 | R201: 2017530.092 | S201: 249261.9015 | T201: 119304.8418
B202: #176 | C202: 61 | D202: 2030 | E202: H | F202: A_VIE | G202: 0.45 | H202: 0.39 | I202: 0.6 | J202: 0.6 | K202: 85 | L202: 0 | M202: 71 | N202: 1566831.639 | O202: 3029490.803 | P202: 385610.2921 | Q202: 257783.6759 | R202: 2017530.092 | S202: 249261.9015 | T202: 119304.8418
B203: #177 | C203: 62 | D203: 2026 | E203: F | F203: A_VIE | G203: 0.45 | H203: 0.39 | I203: 0.6 | J203: 0.6 | K203: 85 | L203: 0 | M203: 71 | N203: 1566831.639 | O203: 3029490.803 | P203: 385610.2921 | Q203: 257783.6759 | R203: 2017530.092 | S203: 249261.9015 | T203: 119304.8418
B204: #178 | C204: 62 | D204: 2028 | E204: F | F204: A_VIE | G204: 0.45 | H204: 0.39 | I204: 0.6 | J204: 0.6 | K204: 85 | L204: 0 | M204: 71 | N204: 1566831.639 | O204: 3029490.803 | P204: 385610.2921 | Q204: 257783.6759 | R204: 2017530.092 | S204: 249261.9015 | T204: 119304.8418
B205: #179 | C205: 62 | D205: 2029 | E205: F | F205: A_VIE | G205: 0.45 | H205: 0.39 | I205: 0.6 | J205: 0.6 | K205: 85 | L205: 0 | M205: 71 | N205: 1566831.639 | O205: 3029490.803 | P205: 385610.2921 | Q205: 257783.6759 | R205: 2017530.092 | S205: 249261.9015 | T205: 119304.8418
B206: #180 | C206: 62 | D206: 2030 | E206: F | F206: A_VIE | G206: 0.45 | H206: 0.39 | I206: 0.6 | J206: 0.6 | K206: 85 | L206: 0 | M206: 71 | N206: 1566831.639 | O206: 3029490.803 | P206: 385610.2921 | Q206: 257783.6759 | R206: 2017530.092 | S206: 249261.9015 | T206: 119304.8418
B207: #181 | C207: 63 | D207: 2026 | E207: H | F207: A_VIE | G207: 0.45 | H207: 0.39 | I207: 0.6 | J207: 0.6 | K207: 85 | L207: 0 | M207: 71 | N207: 1566831.639 | O207: 3029490.803 | P207: 385610.2921 | Q207: 257783.6759 | R207: 2017530.092 | S207: 249261.9015 | T207: 119304.8418
B208: #182 | C208: 63 | D208: 2028 | E208: H | F208: A_VIE | G208: 0.45 | H208: 0.39 | I208: 0.6 | J208: 0.6 | K208: 85 | L208: 0 | M208: 71 | N208: 1566831.639 | O208: 3029490.803 | P208: 385610.2921 | Q208: 257783.6759 | R208: 2017530.092 | S208: 249261.9015 | T208: 119304.8418
... 416 more rows

Sheet SCR_Op_BP_4
B2: I) Inputs pour SCR Opérationnel
B5: AVIE + CAPI + PER | D5: 2030-12-31
B6: Flux | C6: Euro | D6: UC
B7: Primes acquises pour les 12 derniers mois VIE UC (N) - Earn life-ul | C7: - | D7: 208238640
B8: Primes acquises pour les 12 derniers mois VIE Euros (N) - Earn life | C8: 83301360 | D8: -
B9: Primes acquises sur les 12 mois précédents les 12 derniers mois VIE UC (N-1) - pEarn life-ul | C9: - | D9: 147262800
B10: Primes acquises sur les 12 mois précédents les 12 derniers mois VIE Euros (N-1) - pEarn life | C10: 59187200 | D10: -
B11: Montant de frais engagé au titre des contrats UC (12 derniers mois) (Expul) | C11: - | D11: 4473549.045 | E11: répartition au regard du mix Euro / UC (idem split collecte) - yc comm distribution
B12: Montant de frais engagé au titre des contrats euros (12 derniers mois) | C12: 1818362.411 | D12: - | E12: répartition au regard du mix Euro / UC (idem split collecte) - yc comm distribution

Sheet RFR_BP_4
B2: Choc S2 | C2: 1 | D2: =C2+1 -> 2 | E2: 3 | F2: 4 | G2: 5 | H2: 6 | I2: 7 | J2: 8 | K2: 9 | L2: 10 | M2: 11 | N2: 12 | O2: 13 | P2: 14 | Q2: 15 | R2: 16 | S2: 17 | T2: 18 | U2: 19 | V2: 20 | W2: 21 | X2: 22 | Y2: 23 | Z2: 24 | AA2: 25 | AB2: 26 | AC2: 27 | AD2: 28 | AE2: 29 | AF2: 30 | AG2: 31 | AH2: 32 | AI2: 33 | AJ2: 34 | AK2: 35 | AL2: 36 | AM2: 37 | AN2: 38 | AO2: 39 | AP2: 40 | AQ2: 41 | AR2: 42 | AS2: 43 | AT2: 44 | AU2: 45 | AV2: 46 | AW2: 47 | AX2: 48 | AY2: 49 | AZ2: 50 | BA2: 51 | BB2: 52 | BC2: 53 | BD2: 54 | BE2: 55 | BF2: 56 | BG2: 57 | BH2: 58 | BI2: 59 | BJ2: 60 | BK2: 61 | BL2: 62 | BM2: 63 | BN2: 64 | BO2: 65 | BP2: =BO2+1 -> 66 | BQ2: 67 | BR2: 68 | BS2: 69 | BT2: 70 | BU2: 71 | BV2: 72 | BW2: 73 | BX2: 74 | BY2: 75 | BZ2: 76 | CA2: 77 | CB2: 78 | CC2: 79 | CD2: 80 | CE2: 81 | CF2: 82 | CG2: 83 | CH2: 84 | CI2: 85 | CJ2: 86 | CK2: 87 | CL2: 88 | CM2: 89 | CN2: 90 | CO2: 91 | CP2: 92 | CQ2: 93 | CR2: 94 | CS2: 95 | CT2: 96 | CU2: 97 | CV2: 98 | CW2: 99 | CX2: 100
B3: Central | C3: 0.02161 | D3: 0.02162 | E3: 0.02243 | F3: 0.02337 | G3: 0.0242 | H3: 0.02502 | I3: 0.02579 | J3: 0.02655 | K3: 0.02726 | L3: 0.02795 | M3: 0.02853 | N3: 0.02907 | O3: 0.02953 | P3: 0.02994 | Q3: 0.03027 | R3: 0.03051 | S3: 0.03068 | T3: 0.0308 | U3: 0.03089 | V3: 0.03097 | W3: 0.03104 | X3: 0.03111 | Y3: 0.03118 | Z3: 0.03124 | AA3: 0.03129 | AB3: 0.03135 | AC3: 0.03139 | AD3: 0.03144 | AE3: 0.03148 | AF3: 0.03152 | AG3: 0.03156 | AH3: 0.0316 | AI3: 0.03163 | AJ3: 0.03167 | AK3: 0.0317 | AL3: 0.03173 | AM3: 0.03176 | AN3: 0.03179 | AO3: 0.03181 | AP3: 0.03184 | AQ3: 0.03186 | AR3: 0.03188 | AS3: 0.03191 | AT3: 0.03193 | AU3: 0.03195 | AV3: 0.03197 | AW3: 0.03199 | AX3: 0.03201 | AY3: 0.03203 | AZ3: 0.03204 | BA3: 0.03206 | BB3: 0.03208 | BC3: 0.03209 | BD3: 0.03211 | BE3: 0.03212 | BF3: 0.03214 | BG3: 0.03215 | BH3: 0.03216 | BI3: 0.03218 | BJ3: 0.03219 | BK3: 0.0322 | BL3: 0.03221 | BM3: 0.03222 | BN3: 0.03224 | BO3: 0.03225 | BP3: 0.03226 | BQ3: 0.03227 | BR3: 0.03228 | BS3: 0.03229 | BT3: 0.0323 | BU3: 0.03231 | BV3: 0.03232 | BW3: 0.03233 | BX3: 0.03233 | BY3: 0.03234 | BZ3: 0.03235 | CA3: 0.03236 | CB3: 0.03237 | CC3: 0.03237 | CD3: 0.03238 | CE3: 0.03239 | CF3: 0.0324 | CG3: 0.0324 | CH3: 0.03241 | CI3: 0.03242 | CJ3: 0.03242 | CK3: 0.03243 | CL3: 0.03244 | CM3: 0.03244 | CN3: 0.03245 | CO3: 0.03245 | CP3: 0.03246 | CQ3: 0.03247 | CR3: 0.03247 | CS3: 0.03248 | CT3: 0.03248 | CU3: 0.03249 | CV3: 0.03249 | CW3: 0.0325 | CX3: 0.0325
B4: Up | C4: 0.03534 | D4: 0.03535 | E4: 0.03551 | F4: 0.03598 | G4: 0.03641 | H4: 0.03699 | I4: 0.03745 | J4: 0.03809 | K4: 0.03837 | L4: 0.03885 | M4: 0.03888 | N4: 0.03909 | O4: 0.03953 | P4: 0.03994 | Q4: 0.04027 | R4: 0.04051 | S4: 0.04068 | T4: 0.0408 | U4: 0.04089 | V4: 0.04097 | W4: 0.04104 | X4: 0.04111 | Y4: 0.04118 | Z4: 0.04124 | AA4: 0.04129 | AB4: 0.04135 | AC4: 0.04139 | AD4: 0.04144 | AE4: 0.04148 | AF4: 0.04152 | AG4: 0.04156 | AH4: 0.0416 | AI4: 0.04163 | AJ4: 0.04167 | AK4: 0.0417 | AL4: 0.04173 | AM4: 0.04176 | AN4: 0.04179 | AO4: 0.04181 | AP4: 0.04184 | AQ4: 0.04186 | AR4: 0.04188 | AS4: 0.04191 | AT4: 0.04193 | AU4: 0.04195 | AV4: 0.04197 | AW4: 0.04199 | AX4: 0.04201 | AY4: 0.04203 | AZ4: 0.04204 | BA4: 0.04206 | BB4: 0.04208 | BC4: 0.04209 | BD4: 0.04211 | BE4: 0.04212 | BF4: 0.04214 | BG4: 0.04215 | BH4: 0.04216 | BI4: 0.04218 | BJ4: 0.04219 | BK4: 0.0422 | BL4: 0.04221 | BM4: 0.04222 | BN4: 0.04224 | BO4: 0.04225 | BP4: 0.04226 | BQ4: 0.04227 | BR4: 0.04228 | BS4: 0.04229 | BT4: 0.0423 | BU4: 0.04231 | BV4: 0.04232 | BW4: 0.04233 | BX4: 0.04233 | BY4: 0.04234 | BZ4: 0.04235 | CA4: 0.04236 | CB4: 0.04237 | CC4: 0.04237 | CD4: 0.04238 | CE4: 0.04239 | CF4: 0.0424 | CG4: 0.0424 | CH4: 0.04241 | CI4: 0.04242 | CJ4: 0.04242 | CK4: 0.04243 | CL4: 0.04244 | CM4: 0.04244 | CN4: 0.04245 | CO4: 0.04245 | CP4: 0.04246 | CQ4: 0.04247 | CR4: 0.04247 | CS4: 0.04248 | CT4: 0.04248 | CU4: 0.04249 | CV4: 0.04249 | CW4: 0.0425 | CX4: 0.0425
B5: Down | C5: 0.0069 | D5: 0.00887 | E5: 0.01099 | F5: 0.01269 | G5: 0.01399 | H5: 0.01535 | I5: 0.01651 | J5: 0.01771 | K5: 0.01892 | L5: 0.01991 | M5: 0.02057 | N5: 0.02122 | O5: 0.02182 | P5: 0.02212 | Q5: 0.02264 | R5: 0.02253 | S5: 0.02265 | T5: 0.02274 | U5: 0.02251 | V5: 0.02257 | W5: 0.02265 | X5: 0.02274 | Y5: 0.02282 | Z5: 0.02289 | AA5: 0.02296 | AB5: 0.02303 | AC5: 0.02309 | AD5: 0.02316 | AE5: 0.02321 | AF5: 0.02327 | AG5: 0.02333 | AH5: 0.02339 | AI5: 0.02344 | AJ5: 0.0235 | AK5: 0.02355 | AL5: 0.02361 | AM5: 0.02366 | AN5: 0.02371 | AO5: 0.02376 | AP5: 0.02381 | AQ5: 0.02386 | AR5: 0.0239 | AS5: 0.02396 | AT5: 0.02401 | AU5: 0.02405 | AV5: 0.0241 | AW5: 0.02415 | AX5: 0.0242 | AY5: 0.02425 | AZ5: 0.02429 | BA5: 0.02434 | BB5: 0.02439 | BC5: 0.02443 | BD5: 0.02448 | BE5: 0.02452 | BF5: 0.02457 | BG5: 0.02462 | BH5: 0.02466 | BI5: 0.02471 | BJ5: 0.02475 | BK5: 0.0248 | BL5: 0.02484 | BM5: 0.02489 | BN5: 0.02494 | BO5: 0.02498 | BP5: 0.02503 | BQ5: 0.02507 | BR5: 0.02512 | BS5: 0.02516 | BT5: 0.02521 | BU5: 0.02525 | BV5: 0.0253 | BW5: 0.02535 | BX5: 0.02538 | BY5: 0.02543 | BZ5: 0.02547 | CA5: 0.02552 | CB5: 0.02557 | CC5: 0.0256 | CD5: 0.02565 | CE5: 0.0257 | CF5: 0.02574 | CG5: 0.02578 | CH5: 0.02583 | CI5: 0.02588 | CJ5: 0.02591 | CK5: 0.02596 | CL5: 0.02601 | CM5: 0.02605 | CN5: 0.0261 | CO5: 0.02609 | CP5: 0.0261 | CQ5: 0.02611 | CR5: 0.02611 | CS5: 0.02611 | CT5: 0.02611 | CU5: 0.02612 | CV5: 0.02612 | CW5: 0.02612 | CX5: 0.02612
B6: Central hors VA | C6: 0.01961 | D6: 0.01962 | E6: 0.02043 | F6: 0.02137 | G6: 0.0222 | H6: 0.02302 | I6: 0.02379 | J6: 0.02455 | K6: 0.02526 | L6: 0.02595 | M6: 0.02653 | N6: 0.02707 | O6: 0.02753 | P6: 0.02794 | Q6: 0.02827 | R6: 0.02851 | S6: 0.02868 | T6: 0.0288 | U6: 0.02889 | V6: 0.02897 | W6: 0.02905 | X6: 0.02913 | Y6: 0.02921 | Z6: 0.0293 | AA6: 0.02938 | AB6: 0.02946 | AC6: 0.02953 | AD6: 0.02961 | AE6: 0.02969 | AF6: 0.02976 | AG6: 0.02983 | AH6: 0.0299 | AI6: 0.02996 | AJ6: 0.03003 | AK6: 0.03009 | AL6: 0.03015 | AM6: 0.03021 | AN6: 0.03027 | AO6: 0.03033 | AP6: 0.03038 | AQ6: 0.03043 | AR6: 0.03048 | AS6: 0.03053 | AT6: 0.03058 | AU6: 0.03062 | AV6: 0.03067 | AW6: 0.03071 | AX6: 0.03075 | AY6: 0.0308 | AZ6: 0.03083 | BA6: 0.03087 | BB6: 0.03091 | BC6: 0.03095 | BD6: 0.03098 | BE6: 0.03101 | BF6: 0.03105 | BG6: 0.03108 | BH6: 0.03111 | BI6: 0.03114 | BJ6: 0.03117 | BK6: 0.0312 | BL6: 0.03122 | BM6: 0.03125 | BN6: 0.03128 | BO6: 0.0313 | BP6: 0.03133 | BQ6: 0.03135 | BR6: 0.03138 | BS6: 0.0314 | BT6: 0.03142 | BU6: 0.03144 | BV6: 0.03146 | BW6: 0.03148 | BX6: 0.0315 | BY6: 0.03152 | BZ6: 0.03154 | CA6: 0.03156 | CB6: 0.03158 | CC6: 0.0316 | CD6: 0.03161 | CE6: 0.03163 | CF6: 0.03165 | CG6: 0.03166 | CH6: 0.03168 | CI6: 0.03169 | CJ6: 0.03171 | CK6: 0.03172 | CL6: 0.03174 | CM6: 0.03175 | CN6: 0.03177 | CO6: 0.03178 | CP6: 0.03179 | CQ6: 0.03181 | CR6: 0.03182 | CS6: 0.03183 | CT6: 0.03184 | CU6: 0.03185 | CV6: 0.03187 | CW6: 0.03188 | CX6: 0.03189

Sheet Frais_BP_5
B2: I) Frais et commissions
B5: AVIE / PER / CAPI | D5: 2031-12-31
B6: Frais | C6: Taux | D6: Driver
B7: Frais Acquisition | C7: 0.004636765671 | D7: Primes
B8: Frais Gestion Sinistres | C8: 0.002600978427 | D8: Prestations
B9: Frais Administration | C9: 0.002124767929 | D9: PM | E9: exclusion C3S sur primes
B10: Frais Financiers | C10: 0.00075859202 | D10: VM | E10: MP 2029 car 2030 non calculés
B11: Prélèvements Sociaux | C11: 0.172 | D11: PB
B12: Clause PB | C12: 0.85 | D12: Produits financiers
B13: Frais d'acquisition : hors comm. distribution intégrées directement dans la projection des frais dans la maquette S2
B14: Frais Administration / Frais acq : montant de frais sur l'ensemble des périmètres => tx unique tout produit

Sheet Bilan_Social_BP_5
B2: I) Bilan Social
B5: AVIE + PER + CAPI + FP | C5: 2031-12-31
B7: ACTIF | C7: VNC | D7: VM | F7: PASSIF
B8: Capital souscrit non appelé ou compte de liaison avec le siège | C8: 0 | D8: 0 | F8: Capitaux Propres | G8: 27524706.67
B9: Actifs Incorporels | C9: 0 | D9: 0 | F9: Résultat de l'exercice | G9: 1889510.299
B10: Obligation Govies | C10: 275366592.8 | D10: 275366592.8 | F10: Passifs subordonnés | G10: 0
B11: Obligation Corporate | C11: 73431091.41 | D11: 75634024.15 | F11: Provisions techniques brutes | G11: 337741240.1
B12: Action | C12: 0 | D12: 0 | F12: PM | G12: 337741240.1 | J12: =ROUND(G12,2)=ROUND(SUM(Model_Points_BP_5!$C$7:$C$11,Model_Points_BP_5!$C$15:$C$19),2) -> TRUE
B13: Monétaire | C13: 18357772.85 | D13: 18357772.85 | F13: PSAP | G13: 0
B14: UC | C14: 665511240.3 | D14: 665511240.3 | F14: PPE | G14: 0 | I14: =C14=G15 -> TRUE
B15: Provisions sur placements | C15: 0 | D15: 0 | F15: Provision techniques des contrats en unité de comptes | G15: 665511240.3 | J15: =ROUND(G15,2)=ROUND(SUM(Model_Points_BP_5!$L$7:$L$11,Model_Points_BP_5!$L$15:$L$19),2) -> TRUE
B16: PDD | C16: 0 | D16: 0 | F16: Autres provisions techniques | G16: 0
B17: Part des cessionnaires et rétrocessionnaires dans les provisions techniques | C17: 0 | D17: 0 | F17: RC | G17: 0
B18: Créances | C18: 0 | D18: 0 | F18: PRE | G18: 0
B19: Autres Actifs | C19: 0 | D19: 0 | F19: Provisions (autres que techniques) | G19: 0
B20: Comptes de régularisation Actif | C20: 0 | D20: 0 | F20: Dettes pour dépôts en espèces reçues des cessionnaires | G20: 0
F21: Autres Dettes | G21: 0
F22: Comptes de régularisation Passif | G22: 0

Sheet Model_Points_BP_5
B2: I) Model Points Actifs
B5: AVIE | C5: Euro | D5: 2031-12-31 | K5: AVIE / CAPI | L5: UC | M5: 2031-12-31 | Q5: AVIE / CAPI | R5: 2028-12-31
B6: Asset Type | C6: VNC | D6: VM | E6: COUPON_PC | F6: NOMINAL | G6: MATURITY_RESID | H6: SPREAD_PC | I6: DIV_PC | K6: Asset Type | L6: VNC | M6: VM | N6: DIV_PC | O6: UC_TYPE | Q6: Reserves | R6: VNC
B7: BONDS_GOV | C7: 230304849.2 | D7: 230304849.2 | E7: 0 | F7: 230304849.2 | G7: 7 | K7: OBLIG_CORP | L7: 77094495.64 | M7: 77094495.64 | N7: 0 | O7: 1 | P7: =M7/SUM($M$7:$M$11) -> 0.1272855134 | Q7: PPE | R7: 0
B8: BONDS_CORP | C8: 61414626.47 | D8: 63257065.26 | E8: 0 | F8: 61414626.47 | G8: 7 | K8: OBLIG_CORP_NR | L8: 51538309.24 | M8: 51538309.24 | N8: 0 | O8: 2 | P8: =M8/SUM($M$7:$M$11) -> 0.08509142053 | Q8: RC | R8: 0
B9: EQ_TYPE_1 | C9: 0 | D9: 0 | E9: 0 | I9: 0 | K9: EQ_TYPE_1 | L9: 403361808.7 | M9: 403361808.7 | N9: 0 | O9: 3 | P9: 0.6659634318
B10: EQ_TYPE_2 | C10: 0 | D10: 0 | E10: 0 | I10: 0 | K10: EQ_TYPE_2 | L10: 49834563.48 | M10: 49834563.48 | N10: 0 | O10: 4 | P10: 0.08227848101 | T10: PMVL ALL | U10: =SUM(D7:D11)-SUM(C7:C11)+SUM(D15:D19)-SUM(C15:C19) -> 2026447.44
B11: CASH | C11: 15353656.62 | D11: 15353656.62 | E11: 0 | K11: MONETAIRE | L11: 23852440.64 | M11: 23852440.64 | N11: 0 | O11: 5 | P11: 0.03938115331
B13: PER | C13: Euro | D13: 2031-12-31 | K13: PER | L13: UC | M13: 2031-12-31 | Q13: PER | R13: 2028-12-31
B14: Asset Type | C14: VNC | D14: VM | E14: COUPON_PC | F14: NOMINAL | G14: MATURITY_RESID | H14: SPREAD_PC | I14: DIV_PC | K14: Asset Type | L14: VNC | M14: VM | N14: DIV_PC | O14: UC_TYPE | Q14: Reserves | R14: VNC
B15: BONDS_GOV | C15: 23001080.8 | D15: 23001080.8 | E15: 0 | F15: 23001080.8 | G15: 7 | K15: OBLIG_CORP | L15: 7615444.234 | M15: 7615444.234 | N15: 0 | O15: 1 | Q15: PPE | R15: 0
B16: BONDS_CORP | C16: 6133621.547 | D16: 6317630.194 | E16: 0 | F16: 6133621.547 | G16: 7 | K16: OBLIG_CORP_NR | L16: 5090987.582 | M16: 5090987.582 | N16: 0 | O16: 2 | Q16: RC | R16: 0
B17: EQ_TYPE_1 | C17: 0 | D17: 0 | E17: 0 | I17: 0 | K17: EQ_TYPE_1 | L17: 39844340.83 | M17: 39844340.83 | N17: 0 | O17: 3
B18: EQ_TYPE_2 | C18: 0 | D18: 0 | E18: 0 | I18: 0 | K18: EQ_TYPE_2 | L18: 4922690.472 | M18: 4922690.472 | N18: 0 | O18: 4
B19: CASH | C19: 1533405.387 | D19: 1533405.387 | E19: 0 | K19: MONETAIRE | L19: 2356159.542 | M19: 2356159.542 | N19: 0 | O19: 5
B22: II) Model Points Passif
B25: Assurance Vie | C25: Euro - UC | D25: 2031-12-31
B26: ID | C26: AGE | D26: SOUSCRIPTION_YR | E26: SEXE | F26: PDT | G26: CHGT_GEST_EURO_PC | H26: CHGT_GEST_UC_PC | I26: COMM_DIST_EURO_PC | J26: COMM_DIST_UC_PC | K26: CLAUSE_PB_PC | L26: TMG_PC | M26: NO_POLS | N26: PM_EURO | O26: PM_UC_TOT | P26: PM_UC_1 | Q26: PM_UC_2 | R26: PM_UC_3 | S26: PM_UC_4 | T26: PM_UC_5
B27: #1 | C27: 18 | D27: 2026 | E27: H | F27: A_VIE | G27: 0.45 | H27: 0.39 | I27: 0.6 | J27: 0.6 | K27: 85 | L27: 0 | M27: 11 | N27: 307073.1323 | O27: 599061.0765 | P27: 76251.79666 | Q27: 50974.95799 | R27: 398952.7704 | S27: 49289.83541 | T27: 23591.71609
B28: #2 | C28: 18 | D28: 2028 | E28: H | F28: A_VIE | G28: 0.45 | H28: 0.39 | I28: 0.6 | J28: 0.6 | K28: 85 | L28: 0 | M28: 11 | N28: 307073.1323 | O28: 599061.0765 | P28: 76251.79666 | Q28: 50974.95799 | R28: 398952.7704 | S28: 49289.83541 | T28: 23591.71609
B29: #3 | C29: 18 | D29: 2029 | E29: H | F29: A_VIE | G29: 0.45 | H29: 0.39 | I29: 0.6 | J29: 0.6 | K29: 85 | L29: 0 | M29: 11 | N29: 307073.1323 | O29: 599061.0765 | P29: 76251.79666 | Q29: 50974.95799 | R29: 398952.7704 | S29: 49289.83541 | T29: 23591.71609
B30: #4 | C30: 18 | D30: 2030 | E30: H | F30: A_VIE | G30: 0.45 | H30: 0.39 | I30: 0.6 | J30: 0.6 | K30: 85 | L30: 0 | M30: 11 | N30: 307073.1323 | O30: 599061.0765 | P30: 76251.79666 | Q30: 50974.95799 | R30: 398952.7704 | S30: 49289.83541 | T30: 23591.71609
B31: #5 | C31: 18 | D31: 2031 | E31: H | F31: A_VIE | G31: 0.45 | H31: 0.39 | I31: 0.6 | J31: 0.6 | K31: 85 | L31: 0 | M31: 11 | N31: 307073.1323 | O31: 599061.0765 | P31: 76251.79666 | Q31: 50974.95799 | R31: 398952.7704 | S31: 49289.83541 | T31: 23591.71609
B32: #6 | C32: 19 | D32: 2026 | E32: H | F32: A_VIE | G32: 0.45 | H32: 0.39 | I32: 0.6 | J32: 0.6 | K32: 85 | L32: 0 | M32: 11 | N32: 307073.1323 | O32: 599061.0765 | P32: 76251.79666 | Q32: 50974.95799 | R32: 398952.7704 | S32: 49289.83541 | T32: 23591.71609
B33: #7 | C33: 19 | D33: 2028 | E33: H | F33: A_VIE | G33: 0.45 | H33: 0.39 | I33: 0.6 | J33: 0.6 | K33: 85 | L33: 0 | M33: 11 | N33: 307073.1323 | O33: 599061.0765 | P33: 76251.79666 | Q33: 50974.95799 | R33: 398952.7704 | S33: 49289.83541 | T33: 23591.71609
B34: #8 | C34: 19 | D34: 2029 | E34: H | F34: A_VIE | G34: 0.45 | H34: 0.39 | I34: 0.6 | J34: 0.6 | K34: 85 | L34: 0 | M34: 11 | N34: 307073.1323 | O34: 599061.0765 | P34: 76251.79666 | Q34: 50974.95799 | R34: 398952.7704 | S34: 49289.83541 | T34: 23591.71609
B35: #9 | C35: 19 | D35: 2030 | E35: H | F35: A_VIE | G35: 0.45 | H35: 0.39 | I35: 0.6 | J35: 0.6 | K35: 85 | L35: 0 | M35: 11 | N35: 307073.1323 | O35: 599061.0765 | P35: 76251.79666 | Q35: 50974.95799 | R35: 398952.7704 | S35: 49289.83541 | T35: 23591.71609
B36: #10 | C36: 19 | D36: 2031 | E36: H | F36: A_VIE | G36: 0.45 | H36: 0.39 | I36: 0.6 | J36: 0.6 | K36: 85 | L36: 0 | M36: 11 | N36: 307073.1323 | O36: 599061.0765 | P36: 76251.79666 | Q36: 50974.95799 | R36: 398952.7704 | S36: 49289.83541 | T36: 23591.71609
B37: #11 | C37: 20 | D37: 2026 | E37: F | F37: A_VIE | G37: 0.45 | H37: 0.39 | I37: 0.6 | J37: 0.6 | K37: 85 | L37: 0 | M37: 23 | N37: 614146.2647 | O37: 1198122.153 | P37: 152503.5933 | Q37: 101949.916 | R37: 797905.5407 | S37: 98579.67082 | T37: 47183.43219
B38: #12 | C38: 20 | D38: 2028 | E38: F | F38: A_VIE | G38: 0.45 | H38: 0.39 | I38: 0.6 | J38: 0.6 | K38: 85 | L38: 0 | M38: 23 | N38: 614146.2647 | O38: 1198122.153 | P38: 152503.5933 | Q38: 101949.916 | R38: 797905.5407 | S38: 98579.67082 | T38: 47183.43219
B39: #13 | C39: 20 | D39: 2029 | E39: F | F39: A_VIE | G39: 0.45 | H39: 0.39 | I39: 0.6 | J39: 0.6 | K39: 85 | L39: 0 | M39: 23 | N39: 614146.2647 | O39: 1198122.153 | P39: 152503.5933 | Q39: 101949.916 | R39: 797905.5407 | S39: 98579.67082 | T39: 47183.43219
B40: #14 | C40: 20 | D40: 2030 | E40: F | F40: A_VIE | G40: 0.45 | H40: 0.39 | I40: 0.6 | J40: 0.6 | K40: 85 | L40: 0 | M40: 23 | N40: 614146.2647 | O40: 1198122.153 | P40: 152503.5933 | Q40: 101949.916 | R40: 797905.5407 | S40: 98579.67082 | T40: 47183.43219
B41: #15 | C41: 20 | D41: 2031 | E41: F | F41: A_VIE | G41: 0.45 | H41: 0.39 | I41: 0.6 | J41: 0.6 | K41: 85 | L41: 0 | M41: 23 | N41: 614146.2647 | O41: 1198122.153 | P41: 152503.5933 | Q41: 101949.916 | R41: 797905.5407 | S41: 98579.67082 | T41: 47183.43219
B42: #16 | C42: 21 | D42: 2026 | E42: H | F42: A_VIE | G42: 0.45 | H42: 0.39 | I42: 0.6 | J42: 0.6 | K42: 85 | L42: 0 | M42: 23 | N42: 614146.2647 | O42: 1198122.153 | P42: 152503.5933 | Q42: 101949.916 | R42: 797905.5407 | S42: 98579.67082 | T42: 47183.43219
B43: #17 | C43: 21 | D43: 2028 | E43: H | F43: A_VIE | G43: 0.45 | H43: 0.39 | I43: 0.6 | J43: 0.6 | K43: 85 | L43: 0 | M43: 23 | N43: 614146.2647 | O43: 1198122.153 | P43: 152503.5933 | Q43: 101949.916 | R43: 797905.5407 | S43: 98579.67082 | T43: 47183.43219
B44: #18 | C44: 21 | D44: 2029 | E44: H | F44: A_VIE | G44: 0.45 | H44: 0.39 | I44: 0.6 | J44: 0.6 | K44: 85 | L44: 0 | M44: 23 | N44: 614146.2647 | O44: 1198122.153 | P44: 152503.5933 | Q44: 101949.916 | R44: 797905.5407 | S44: 98579.67082 | T44: 47183.43219
B45: #19 | C45: 21 | D45: 2030 | E45: H | F45: A_VIE | G45: 0.45 | H45: 0.39 | I45: 0.6 | J45: 0.6 | K45: 85 | L45: 0 | M45: 23 | N45: 614146.2647 | O45: 1198122.153 | P45: 152503.5933 | Q45: 101949.916 | R45: 797905.5407 | S45: 98579.67082 | T45: 47183.43219
B46: #20 | C46: 21 | D46: 2031 | E46: H | F46: A_VIE | G46: 0.45 | H46: 0.39 | I46: 0.6 | J46: 0.6 | K46: 85 | L46: 0 | M46: 23 | N46: 614146.2647 | O46: 1198122.153 | P46: 152503.5933 | Q46: 101949.916 | R46: 797905.5407 | S46: 98579.67082 | T46: 47183.43219
B47: #21 | C47: 22 | D47: 2026 | E47: H | F47: A_VIE | G47: 0.45 | H47: 0.39 | I47: 0.6 | J47: 0.6 | K47: 85 | L47: 0 | M47: 23 | N47: 614146.2647 | O47: 1198122.153 | P47: 152503.5933 | Q47: 101949.916 | R47: 797905.5407 | S47: 98579.67082 | T47: 47183.43219
B48: #22 | C48: 22 | D48: 2028 | E48: H | F48: A_VIE | G48: 0.45 | H48: 0.39 | I48: 0.6 | J48: 0.6 | K48: 85 | L48: 0 | M48: 23 | N48: 614146.2647 | O48: 1198122.153 | P48: 152503.5933 | Q48: 101949.916 | R48: 797905.5407 | S48: 98579.67082 | T48: 47183.43219
B49: #23 | C49: 22 | D49: 2029 | E49: H | F49: A_VIE | G49: 0.45 | H49: 0.39 | I49: 0.6 | J49: 0.6 | K49: 85 | L49: 0 | M49: 23 | N49: 614146.2647 | O49: 1198122.153 | P49: 152503.5933 | Q49: 101949.916 | R49: 797905.5407 | S49: 98579.67082 | T49: 47183.43219
B50: #24 | C50: 22 | D50: 2030 | E50: H | F50: A_VIE | G50: 0.45 | H50: 0.39 | I50: 0.6 | J50: 0.6 | K50: 85 | L50: 0 | M50: 23 | N50: 614146.2647 | O50: 1198122.153 | P50: 152503.5933 | Q50: 101949.916 | R50: 797905.5407 | S50: 98579.67082 | T50: 47183.43219
B51: #25 | C51: 22 | D51: 2031 | E51: H | F51: A_VIE | G51: 0.45 | H51: 0.39 | I51: 0.6 | J51: 0.6 | K51: 85 | L51: 0 | M51: 23 | N51: 614146.2647 | O51: 1198122.153 | P51: 152503.5933 | Q51: 101949.916 | R51: 797905.5407 | S51: 98579.67082 | T51: 47183.43219
B52: #26 | C52: 23 | D52: 2026 | E52: F | F52: A_VIE | G52: 0.45 | H52: 0.39 | I52: 0.6 | J52: 0.6 | K52: 85 | L52: 0 | M52: 23 | N52: 614146.2647 | O52: 1198122.153 | P52: 152503.5933 | Q52: 101949.916 | R52: 797905.5407 | S52: 98579.67082 | T52: 47183.43219
B53: #27 | C53: 23 | D53: 2028 | E53: F | F53: A_VIE | G53: 0.45 | H53: 0.39 | I53: 0.6 | J53: 0.6 | K53: 85 | L53: 0 | M53: 23 | N53: 614146.2647 | O53: 1198122.153 | P53: 152503.5933 | Q53: 101949.916 | R53: 797905.5407 | S53: 98579.67082 | T53: 47183.43219
B54: #28 | C54: 23 | D54: 2029 | E54: F | F54: A_VIE | G54: 0.45 | H54: 0.39 | I54: 0.6 | J54: 0.6 | K54: 85 | L54: 0 | M54: 23 | N54: 614146.2647 | O54: 1198122.153 | P54: 152503.5933 | Q54: 101949.916 | R54: 797905.5407 | S54: 98579.67082 | T54: 47183.43219
B55: #29 | C55: 23 | D55: 2030 | E55: F | F55: A_VIE | G55: 0.45 | H55: 0.39 | I55: 0.6 | J55: 0.6 | K55: 85 | L55: 0 | M55: 23 | N55: 614146.2647 | O55: 1198122.153 | P55: 152503.5933 | Q55: 101949.916 | R55: 797905.5407 | S55: 98579.67082 | T55: 47183.43219
B56: #30 | C56: 23 | D56: 2031 | E56: F | F56: A_VIE | G56: 0.45 | H56: 0.39 | I56: 0.6 | J56: 0.6 | K56: 85 | L56: 0 | M56: 23 | N56: 614146.2647 | O56: 1198122.153 | P56: 152503.5933 | Q56: 101949.916 | R56: 797905.5407 | S56: 98579.67082 | T56: 47183.43219
B57: #31 | C57: 24 | D57: 2026 | E57: H | F57: A_VIE | G57: 0.45 | H57: 0.39 | I57: 0.6 | J57: 0.6 | K57: 85 | L57: 0 | M57: 23 | N57: 614146.2647 | O57: 1198122.153 | P57: 152503.5933 | Q57: 101949.916 | R57: 797905.5407 | S57: 98579.67082 | T57: 47183.43219
B58: #32 | C58: 24 | D58: 2028 | E58: H | F58: A_VIE | G58: 0.45 | H58: 0.39 | I58: 0.6 | J58: 0.6 | K58: 85 | L58: 0 | M58: 23 | N58: 614146.2647 | O58: 1198122.153 | P58: 152503.5933 | Q58: 101949.916 | R58: 797905.5407 | S58: 98579.67082 | T58: 47183.43219
B59: #33 | C59: 24 | D59: 2029 | E59: H | F59: A_VIE | G59: 0.45 | H59: 0.39 | I59: 0.6 | J59: 0.6 | K59: 85 | L59: 0 | M59: 23 | N59: 614146.2647 | O59: 1198122.153 | P59: 152503.5933 | Q59: 101949.916 | R59: 797905.5407 | S59: 98579.67082 | T59: 47183.43219
B60: #34 | C60: 24 | D60: 2030 | E60: H | F60: A_VIE | G60: 0.45 | H60: 0.39 | I60: 0.6 | J60: 0.6 | K60: 85 | L60: 0 | M60: 23 | N60: 614146.2647 | O60: 1198122.153 | P60: 152503.5933 | Q60: 101949.916 | R60: 797905.5407 | S60: 98579.67082 | T60: 47183.43219
B61: #35 | C61: 24 | D61: 2031 | E61: H | F61: A_VIE | G61: 0.45 | H61: 0.39 | I61: 0.6 | J61: 0.6 | K61: 85 | L61: 0 | M61: 23 | N61: 614146.2647 | O61: 1198122.153 | P61: 152503.5933 | Q61: 101949.916 | R61: 797905.5407 | S61: 98579.67082 | T61: 47183.43219
B62: #36 | C62: 25 | D62: 2026 | E62: H | F62: A_VIE | G62: 0.45 | H62: 0.39 | I62: 0.6 | J62: 0.6 | K62: 85 | L62: 0 | M62: 114 | N62: 3070731.323 | O62: 5990610.765 | P62: 762517.9666 | Q62: 509749.5799 | R62: 3989527.704 | S62: 492898.3541 | T62: 235917.1609
B63: #37 | C63: 25 | D63: 2028 | E63: H | F63: A_VIE | G63: 0.45 | H63: 0.39 | I63: 0.6 | J63: 0.6 | K63: 85 | L63: 0 | M63: 114 | N63: 3070731.323 | O63: 5990610.765 | P63: 762517.9666 | Q63: 509749.5799 | R63: 3989527.704 | S63: 492898.3541 | T63: 235917.1609
B64: #38 | C64: 25 | D64: 2029 | E64: H | F64: A_VIE | G64: 0.45 | H64: 0.39 | I64: 0.6 | J64: 0.6 | K64: 85 | L64: 0 | M64: 114 | N64: 3070731.323 | O64: 5990610.765 | P64: 762517.9666 | Q64: 509749.5799 | R64: 3989527.704 | S64: 492898.3541 | T64: 235917.1609
B65: #39 | C65: 25 | D65: 2030 | E65: H | F65: A_VIE | G65: 0.45 | H65: 0.39 | I65: 0.6 | J65: 0.6 | K65: 85 | L65: 0 | M65: 114 | N65: 3070731.323 | O65: 5990610.765 | P65: 762517.9666 | Q65: 509749.5799 | R65: 3989527.704 | S65: 492898.3541 | T65: 235917.1609
B66: #40 | C66: 25 | D66: 2031 | E66: H | F66: A_VIE | G66: 0.45 | H66: 0.39 | I66: 0.6 | J66: 0.6 | K66: 85 | L66: 0 | M66: 114 | N66: 3070731.323 | O66: 5990610.765 | P66: 762517.9666 | Q66: 509749.5799 | R66: 3989527.704 | S66: 492898.3541 | T66: 235917.1609
B67: #41 | C67: 26 | D67: 2026 | E67: F | F67: A_VIE | G67: 0.45 | H67: 0.39 | I67: 0.6 | J67: 0.6 | K67: 85 | L67: 0 | M67: 68 | N67: 1842438.794 | O67: 3594366.459 | P67: 457510.7799 | Q67: 305849.7479 | R67: 2393716.622 | S67: 295739.0125 | T67: 141550.2966
B68: #42 | C68: 26 | D68: 2028 | E68: F | F68: A_VIE | G68: 0.45 | H68: 0.39 | I68: 0.6 | J68: 0.6 | K68: 85 | L68: 0 | M68: 68 | N68: 1842438.794 | O68: 3594366.459 | P68: 457510.7799 | Q68: 305849.7479 | R68: 2393716.622 | S68: 295739.0125 | T68: 141550.2966
B69: #43 | C69: 26 | D69: 2029 | E69: F | F69: A_VIE | G69: 0.45 | H69: 0.39 | I69: 0.6 | J69: 0.6 | K69: 85 | L69: 0 | M69: 68 | N69: 1842438.794 | O69: 3594366.459 | P69: 457510.7799 | Q69: 305849.7479 | R69: 2393716.622 | S69: 295739.0125 | T69: 141550.2966
B70: #44 | C70: 26 | D70: 2030 | E70: F | F70: A_VIE | G70: 0.45 | H70: 0.39 | I70: 0.6 | J70: 0.6 | K70: 85 | L70: 0 | M70: 68 | N70: 1842438.794 | O70: 3594366.459 | P70: 457510.7799 | Q70: 305849.7479 | R70: 2393716.622 | S70: 295739.0125 | T70: 141550.2966
B71: #45 | C71: 26 | D71: 2031 | E71: F | F71: A_VIE | G71: 0.45 | H71: 0.39 | I71: 0.6 | J71: 0.6 | K71: 85 | L71: 0 | M71: 68 | N71: 1842438.794 | O71: 3594366.459 | P71: 457510.7799 | Q71: 305849.7479 | R71: 2393716.622 | S71: 295739.0125 | T71: 141550.2966
B72: #46 | C72: 27 | D72: 2026 | E72: H | F72: A_VIE | G72: 0.45 | H72: 0.39 | I72: 0.6 | J72: 0.6 | K72: 85 | L72: 0 | M72: 68 | N72: 1842438.794 | O72: 3594366.459 | P72: 457510.7799 | Q72: 305849.7479 | R72: 2393716.622 | S72: 295739.0125 | T72: 141550.2966
B73: #47 | C73: 27 | D73: 2028 | E73: H | F73: A_VIE | G73: 0.45 | H73: 0.39 | I73: 0.6 | J73: 0.6 | K73: 85 | L73: 0 | M73: 68 | N73: 1842438.794 | O73: 3594366.459 | P73: 457510.7799 | Q73: 305849.7479 | R73: 2393716.622 | S73: 295739.0125 | T73: 141550.2966
B74: #48 | C74: 27 | D74: 2029 | E74: H | F74: A_VIE | G74: 0.45 | H74: 0.39 | I74: 0.6 | J74: 0.6 | K74: 85 | L74: 0 | M74: 68 | N74: 1842438.794 | O74: 3594366.459 | P74: 457510.7799 | Q74: 305849.7479 | R74: 2393716.622 | S74: 295739.0125 | T74: 141550.2966
B75: #49 | C75: 27 | D75: 2030 | E75: H | F75: A_VIE | G75: 0.45 | H75: 0.39 | I75: 0.6 | J75: 0.6 | K75: 85 | L75: 0 | M75: 68 | N75: 1842438.794 | O75: 3594366.459 | P75: 457510.7799 | Q75: 305849.7479 | R75: 2393716.622 | S75: 295739.0125 | T75: 141550.2966
B76: #50 | C76: 27 | D76: 2031 | E76: H | F76: A_VIE | G76: 0.45 | H76: 0.39 | I76: 0.6 | J76: 0.6 | K76: 85 | L76: 0 | M76: 68 | N76: 1842438.794 | O76: 3594366.459 | P76: 457510.7799 | Q76: 305849.7479 | R76: 2393716.622 | S76: 295739.0125 | T76: 141550.2966
B77: #51 | C77: 28 | D77: 2026 | E77: H | F77: A_VIE | G77: 0.45 | H77: 0.39 | I77: 0.6 | J77: 0.6 | K77: 85 | L77: 0 | M77: 68 | N77: 1842438.794 | O77: 3594366.459 | P77: 457510.7799 | Q77: 305849.7479 | R77: 2393716.622 | S77: 295739.0125 | T77: 141550.2966
B78: #52 | C78: 28 | D78: 2028 | E78: H | F78: A_VIE | G78: 0.45 | H78: 0.39 | I78: 0.6 | J78: 0.6 | K78: 85 | L78: 0 | M78: 68 | N78: 1842438.794 | O78: 3594366.459 | P78: 457510.7799 | Q78: 305849.7479 | R78: 2393716.622 | S78: 295739.0125 | T78: 141550.2966
B79: #53 | C79: 28 | D79: 2029 | E79: H | F79: A_VIE | G79: 0.45 | H79: 0.39 | I79: 0.6 | J79: 0.6 | K79: 85 | L79: 0 | M79: 68 | N79: 1842438.794 | O79: 3594366.459 | P79: 457510.7799 | Q79: 305849.7479 | R79: 2393716.622 | S79: 295739.0125 | T79: 141550.2966
B80: #54 | C80: 28 | D80: 2030 | E80: H | F80: A_VIE | G80: 0.45 | H80: 0.39 | I80: 0.6 | J80: 0.6 | K80: 85 | L80: 0 | M80: 68 | N80: 1842438.794 | O80: 3594366.459 | P80: 457510.7799 | Q80: 305849.7479 | R80: 2393716.622 | S80: 295739.0125 | T80: 141550.2966
B81: #55 | C81: 28 | D81: 2031 | E81: H | F81: A_VIE | G81: 0.45 | H81: 0.39 | I81: 0.6 | J81: 0.6 | K81: 85 | L81: 0 | M81: 68 | N81: 1842438.794 | O81: 3594366.459 | P81: 457510.7799 | Q81: 305849.7479 | R81: 2393716.622 | S81: 295739.0125 | T81: 141550.2966
B82: #56 | C82: 29 | D82: 2026 | E82: F | F82: A_VIE | G82: 0.45 | H82: 0.39 | I82: 0.6 | J82: 0.6 | K82: 85 | L82: 0 | M82: 68 | N82: 1842438.794 | O82: 3594366.459 | P82: 457510.7799 | Q82: 305849.7479 | R82: 2393716.622 | S82: 295739.0125 | T82: 141550.2966
B83: #57 | C83: 29 | D83: 2028 | E83: F | F83: A_VIE | G83: 0.45 | H83: 0.39 | I83: 0.6 | J83: 0.6 | K83: 85 | L83: 0 | M83: 68 | N83: 1842438.794 | O83: 3594366.459 | P83: 457510.7799 | Q83: 305849.7479 | R83: 2393716.622 | S83: 295739.0125 | T83: 141550.2966
B84: #58 | C84: 29 | D84: 2029 | E84: F | F84: A_VIE | G84: 0.45 | H84: 0.39 | I84: 0.6 | J84: 0.6 | K84: 85 | L84: 0 | M84: 68 | N84: 1842438.794 | O84: 3594366.459 | P84: 457510.7799 | Q84: 305849.7479 | R84: 2393716.622 | S84: 295739.0125 | T84: 141550.2966
B85: #59 | C85: 29 | D85: 2030 | E85: F | F85: A_VIE | G85: 0.45 | H85: 0.39 | I85: 0.6 | J85: 0.6 | K85: 85 | L85: 0 | M85: 68 | N85: 1842438.794 | O85: 3594366.459 | P85: 457510.7799 | Q85: 305849.7479 | R85: 2393716.622 | S85: 295739.0125 | T85: 141550.2966
B86: #60 | C86: 29 | D86: 2031 | E86: F | F86: A_VIE | G86: 0.45 | H86: 0.39 | I86: 0.6 | J86: 0.6 | K86: 85 | L86: 0 | M86: 68 | N86: 1842438.794 | O86: 3594366.459 | P86: 457510.7799 | Q86: 305849.7479 | R86: 2393716.622 | S86: 295739.0125 | T86: 141550.2966
B87: #61 | C87: 30 | D87: 2026 | E87: H | F87: A_VIE | G87: 0.45 | H87: 0.39 | I87: 0.6 | J87: 0.6 | K87: 85 | L87: 0 | M87: 68 | N87: 1842438.794 | O87: 3594366.459 | P87: 457510.7799 | Q87: 305849.7479 | R87: 2393716.622 | S87: 295739.0125 | T87: 141550.2966
B88: #62 | C88: 30 | D88: 2028 | E88: H | F88: A_VIE | G88: 0.45 | H88: 0.39 | I88: 0.6 | J88: 0.6 | K88: 85 | L88: 0 | M88: 68 | N88: 1842438.794 | O88: 3594366.459 | P88: 457510.7799 | Q88: 305849.7479 | R88: 2393716.622 | S88: 295739.0125 | T88: 141550.2966
B89: #63 | C89: 30 | D89: 2029 | E89: H | F89: A_VIE | G89: 0.45 | H89: 0.39 | I89: 0.6 | J89: 0.6 | K89: 85 | L89: 0 | M89: 68 | N89: 1842438.794 | O89: 3594366.459 | P89: 457510.7799 | Q89: 305849.7479 | R89: 2393716.622 | S89: 295739.0125 | T89: 141550.2966
B90: #64 | C90: 30 | D90: 2030 | E90: H | F90: A_VIE | G90: 0.45 | H90: 0.39 | I90: 0.6 | J90: 0.6 | K90: 85 | L90: 0 | M90: 68 | N90: 1842438.794 | O90: 3594366.459 | P90: 457510.7799 | Q90: 305849.7479 | R90: 2393716.622 | S90: 295739.0125 | T90: 141550.2966
B91: #65 | C91: 30 | D91: 2031 | E91: H | F91: A_VIE | G91: 0.45 | H91: 0.39 | I91: 0.6 | J91: 0.6 | K91: 85 | L91: 0 | M91: 68 | N91: 1842438.794 | O91: 3594366.459 | P91: 457510.7799 | Q91: 305849.7479 | R91: 2393716.622 | S91: 295739.0125 | T91: 141550.2966
B92: #66 | C92: 31 | D92: 2026 | E92: H | F92: A_VIE | G92: 0.45 | H92: 0.39 | I92: 0.6 | J92: 0.6 | K92: 85 | L92: 0 | M92: 68 | N92: 1842438.794 | O92: 3594366.459 | P92: 457510.7799 | Q92: 305849.7479 | R92: 2393716.622 | S92: 295739.0125 | T92: 141550.2966
B93: #67 | C93: 31 | D93: 2028 | E93: H | F93: A_VIE | G93: 0.45 | H93: 0.39 | I93: 0.6 | J93: 0.6 | K93: 85 | L93: 0 | M93: 68 | N93: 1842438.794 | O93: 3594366.459 | P93: 457510.7799 | Q93: 305849.7479 | R93: 2393716.622 | S93: 295739.0125 | T93: 141550.2966
B94: #68 | C94: 31 | D94: 2029 | E94: H | F94: A_VIE | G94: 0.45 | H94: 0.39 | I94: 0.6 | J94: 0.6 | K94: 85 | L94: 0 | M94: 68 | N94: 1842438.794 | O94: 3594366.459 | P94: 457510.7799 | Q94: 305849.7479 | R94: 2393716.622 | S94: 295739.0125 | T94: 141550.2966
B95: #69 | C95: 31 | D95: 2030 | E95: H | F95: A_VIE | G95: 0.45 | H95: 0.39 | I95: 0.6 | J95: 0.6 | K95: 85 | L95: 0 | M95: 68 | N95: 1842438.794 | O95: 3594366.459 | P95: 457510.7799 | Q95: 305849.7479 | R95: 2393716.622 | S95: 295739.0125 | T95: 141550.2966
B96: #70 | C96: 31 | D96: 2031 | E96: H | F96: A_VIE | G96: 0.45 | H96: 0.39 | I96: 0.6 | J96: 0.6 | K96: 85 | L96: 0 | M96: 68 | N96: 1842438.794 | O96: 3594366.459 | P96: 457510.7799 | Q96: 305849.7479 | R96: 2393716.622 | S96: 295739.0125 | T96: 141550.2966
B97: #71 | C97: 32 | D97: 2026 | E97: F | F97: A_VIE | G97: 0.45 | H97: 0.39 | I97: 0.6 | J97: 0.6 | K97: 85 | L97: 0 | M97: 68 | N97: 1842438.794 | O97: 3594366.459 | P97: 457510.7799 | Q97: 305849.7479 | R97: 2393716.622 | S97: 295739.0125 | T97: 141550.2966
B98: #72 | C98: 32 | D98: 2028 | E98: F | F98: A_VIE | G98: 0.45 | H98: 0.39 | I98: 0.6 | J98: 0.6 | K98: 85 | L98: 0 | M98: 68 | N98: 1842438.794 | O98: 3594366.459 | P98: 457510.7799 | Q98: 305849.7479 | R98: 2393716.622 | S98: 295739.0125 | T98: 141550.2966
B99: #73 | C99: 32 | D99: 2029 | E99: F | F99: A_VIE | G99: 0.45 | H99: 0.39 | I99: 0.6 | J99: 0.6 | K99: 85 | L99: 0 | M99: 68 | N99: 1842438.794 | O99: 3594366.459 | P99: 457510.7799 | Q99: 305849.7479 | R99: 2393716.622 | S99: 295739.0125 | T99: 141550.2966
B100: #74 | C100: 32 | D100: 2030 | E100: F | F100: A_VIE | G100: 0.45 | H100: 0.39 | I100: 0.6 | J100: 0.6 | K100: 85 | L100: 0 | M100: 68 | N100: 1842438.794 | O100: 3594366.459 | P100: 457510.7799 | Q100: 305849.7479 | R100: 2393716.622 | S100: 295739.0125 | T100: 141550.2966
B101: #75 | C101: 32 | D101: 2031 | E101: F | F101: A_VIE | G101: 0.45 | H101: 0.39 | I101: 0.6 | J101: 0.6 | K101: 85 | L101: 0 | M101: 68 | N101: 1842438.794 | O101: 3594366.459 | P101: 457510.7799 | Q101: 305849.7479 | R101: 2393716.622 | S101: 295739.0125 | T101: 141550.2966
B102: #76 | C102: 33 | D102: 2026 | E102: H | F102: A_VIE | G102: 0.45 | H102: 0.39 | I102: 0.6 | J102: 0.6 | K102: 85 | L102: 0 | M102: 68 | N102: 1842438.794 | O102: 3594366.459 | P102: 457510.7799 | Q102: 305849.7479 | R102: 2393716.622 | S102: 295739.0125 | T102: 141550.2966
B103: #77 | C103: 33 | D103: 2028 | E103: H | F103: A_VIE | G103: 0.45 | H103: 0.39 | I103: 0.6 | J103: 0.6 | K103: 85 | L103: 0 | M103: 68 | N103: 1842438.794 | O103: 3594366.459 | P103: 457510.7799 | Q103: 305849.7479 | R103: 2393716.622 | S103: 295739.0125 | T103: 141550.2966
B104: #78 | C104: 33 | D104: 2029 | E104: H | F104: A_VIE | G104: 0.45 | H104: 0.39 | I104: 0.6 | J104: 0.6 | K104: 85 | L104: 0 | M104: 68 | N104: 1842438.794 | O104: 3594366.459 | P104: 457510.7799 | Q104: 305849.7479 | R104: 2393716.622 | S104: 295739.0125 | T104: 141550.2966
B105: #79 | C105: 33 | D105: 2030 | E105: H | F105: A_VIE | G105: 0.45 | H105: 0.39 | I105: 0.6 | J105: 0.6 | K105: 85 | L105: 0 | M105: 68 | N105: 1842438.794 | O105: 3594366.459 | P105: 457510.7799 | Q105: 305849.7479 | R105: 2393716.622 | S105: 295739.0125 | T105: 141550.2966
B106: #80 | C106: 33 | D106: 2031 | E106: H | F106: A_VIE | G106: 0.45 | H106: 0.39 | I106: 0.6 | J106: 0.6 | K106: 85 | L106: 0 | M106: 68 | N106: 1842438.794 | O106: 3594366.459 | P106: 457510.7799 | Q106: 305849.7479 | R106: 2393716.622 | S106: 295739.0125 | T106: 141550.2966
B107: #81 | C107: 34 | D107: 2026 | E107: H | F107: A_VIE | G107: 0.45 | H107: 0.39 | I107: 0.6 | J107: 0.6 | K107: 85 | L107: 0 | M107: 68 | N107: 1842438.794 | O107: 3594366.459 | P107: 457510.7799 | Q107: 305849.7479 | R107: 2393716.622 | S107: 295739.0125 | T107: 141550.2966
B108: #82 | C108: 34 | D108: 2028 | E108: H | F108: A_VIE | G108: 0.45 | H108: 0.39 | I108: 0.6 | J108: 0.6 | K108: 85 | L108: 0 | M108: 68 | N108: 1842438.794 | O108: 3594366.459 | P108: 457510.7799 | Q108: 305849.7479 | R108: 2393716.622 | S108: 295739.0125 | T108: 141550.2966
B109: #83 | C109: 34 | D109: 2029 | E109: H | F109: A_VIE | G109: 0.45 | H109: 0.39 | I109: 0.6 | J109: 0.6 | K109: 85 | L109: 0 | M109: 68 | N109: 1842438.794 | O109: 3594366.459 | P109: 457510.7799 | Q109: 305849.7479 | R109: 2393716.622 | S109: 295739.0125 | T109: 141550.2966
B110: #84 | C110: 34 | D110: 2030 | E110: H | F110: A_VIE | G110: 0.45 | H110: 0.39 | I110: 0.6 | J110: 0.6 | K110: 85 | L110: 0 | M110: 68 | N110: 1842438.794 | O110: 3594366.459 | P110: 457510.7799 | Q110: 305849.7479 | R110: 2393716.622 | S110: 295739.0125 | T110: 141550.2966
B111: #85 | C111: 34 | D111: 2031 | E111: H | F111: A_VIE | G111: 0.45 | H111: 0.39 | I111: 0.6 | J111: 0.6 | K111: 85 | L111: 0 | M111: 68 | N111: 1842438.794 | O111: 3594366.459 | P111: 457510.7799 | Q111: 305849.7479 | R111: 2393716.622 | S111: 295739.0125 | T111: 141550.2966
B112: #86 | C112: 35 | D112: 2026 | E112: F | F112: A_VIE | G112: 0.45 | H112: 0.39 | I112: 0.6 | J112: 0.6 | K112: 85 | L112: 0 | M112: 68 | N112: 1842438.794 | O112: 3594366.459 | P112: 457510.7799 | Q112: 305849.7479 | R112: 2393716.622 | S112: 295739.0125 | T112: 141550.2966
B113: #87 | C113: 35 | D113: 2028 | E113: F | F113: A_VIE | G113: 0.45 | H113: 0.39 | I113: 0.6 | J113: 0.6 | K113: 85 | L113: 0 | M113: 68 | N113: 1842438.794 | O113: 3594366.459 | P113: 457510.7799 | Q113: 305849.7479 | R113: 2393716.622 | S113: 295739.0125 | T113: 141550.2966
B114: #88 | C114: 35 | D114: 2029 | E114: F | F114: A_VIE | G114: 0.45 | H114: 0.39 | I114: 0.6 | J114: 0.6 | K114: 85 | L114: 0 | M114: 68 | N114: 1842438.794 | O114: 3594366.459 | P114: 457510.7799 | Q114: 305849.7479 | R114: 2393716.622 | S114: 295739.0125 | T114: 141550.2966
B115: #89 | C115: 35 | D115: 2030 | E115: F | F115: A_VIE | G115: 0.45 | H115: 0.39 | I115: 0.6 | J115: 0.6 | K115: 85 | L115: 0 | M115: 68 | N115: 1842438.794 | O115: 3594366.459 | P115: 457510.7799 | Q115: 305849.7479 | R115: 2393716.622 | S115: 295739.0125 | T115: 141550.2966
B116: #90 | C116: 35 | D116: 2031 | E116: F | F116: A_VIE | G116: 0.45 | H116: 0.39 | I116: 0.6 | J116: 0.6 | K116: 85 | L116: 0 | M116: 68 | N116: 1842438.794 | O116: 3594366.459 | P116: 457510.7799 | Q116: 305849.7479 | R116: 2393716.622 | S116: 295739.0125 | T116: 141550.2966
B117: #91 | C117: 36 | D117: 2026 | E117: H | F117: A_VIE | G117: 0.45 | H117: 0.39 | I117: 0.6 | J117: 0.6 | K117: 85 | L117: 0 | M117: 11 | N117: 307073.1323 | O117: 599061.0765 | P117: 76251.79666 | Q117: 50974.95799 | R117: 398952.7704 | S117: 49289.83541 | T117: 23591.71609
B118: #92 | C118: 36 | D118: 2028 | E118: H | F118: A_VIE | G118: 0.45 | H118: 0.39 | I118: 0.6 | J118: 0.6 | K118: 85 | L118: 0 | M118: 11 | N118: 307073.1323 | O118: 599061.0765 | P118: 76251.79666 | Q118: 50974.95799 | R118: 398952.7704 | S118: 49289.83541 | T118: 23591.71609
B119: #93 | C119: 36 | D119: 2029 | E119: H | F119: A_VIE | G119: 0.45 | H119: 0.39 | I119: 0.6 | J119: 0.6 | K119: 85 | L119: 0 | M119: 11 | N119: 307073.1323 | O119: 599061.0765 | P119: 76251.79666 | Q119: 50974.95799 | R119: 398952.7704 | S119: 49289.83541 | T119: 23591.71609
B120: #94 | C120: 36 | D120: 2030 | E120: H | F120: A_VIE | G120: 0.45 | H120: 0.39 | I120: 0.6 | J120: 0.6 | K120: 85 | L120: 0 | M120: 11 | N120: 307073.1323 | O120: 599061.0765 | P120: 76251.79666 | Q120: 50974.95799 | R120: 398952.7704 | S120: 49289.83541 | T120: 23591.71609
B121: #95 | C121: 36 | D121: 2031 | E121: H | F121: A_VIE | G121: 0.45 | H121: 0.39 | I121: 0.6 | J121: 0.6 | K121: 85 | L121: 0 | M121: 11 | N121: 307073.1323 | O121: 599061.0765 | P121: 76251.79666 | Q121: 50974.95799 | R121: 398952.7704 | S121: 49289.83541 | T121: 23591.71609
B122: #96 | C122: 37 | D122: 2026 | E122: H | F122: A_VIE | G122: 0.45 | H122: 0.39 | I122: 0.6 | J122: 0.6 | K122: 85 | L122: 0 | M122: 11 | N122: 307073.1323 | O122: 599061.0765 | P122: 76251.79666 | Q122: 50974.95799 | R122: 398952.7704 | S122: 49289.83541 | T122: 23591.71609
B123: #97 | C123: 37 | D123: 2028 | E123: H | F123: A_VIE | G123: 0.45 | H123: 0.39 | I123: 0.6 | J123: 0.6 | K123: 85 | L123: 0 | M123: 11 | N123: 307073.1323 | O123: 599061.0765 | P123: 76251.79666 | Q123: 50974.95799 | R123: 398952.7704 | S123: 49289.83541 | T123: 23591.71609
B124: #98 | C124: 37 | D124: 2029 | E124: H | F124: A_VIE | G124: 0.45 | H124: 0.39 | I124: 0.6 | J124: 0.6 | K124: 85 | L124: 0 | M124: 11 | N124: 307073.1323 | O124: 599061.0765 | P124: 76251.79666 | Q124: 50974.95799 | R124: 398952.7704 | S124: 49289.83541 | T124: 23591.71609
B125: #99 | C125: 37 | D125: 2030 | E125: H | F125: A_VIE | G125: 0.45 | H125: 0.39 | I125: 0.6 | J125: 0.6 | K125: 85 | L125: 0 | M125: 11 | N125: 307073.1323 | O125: 599061.0765 | P125: 76251.79666 | Q125: 50974.95799 | R125: 398952.7704 | S125: 49289.83541 | T125: 23591.71609
B126: #100 | C126: 37 | D126: 2031 | E126: H | F126: A_VIE | G126: 0.45 | H126: 0.39 | I126: 0.6 | J126: 0.6 | K126: 85 | L126: 0 | M126: 11 | N126: 307073.1323 | O126: 599061.0765 | P126: 76251.79666 | Q126: 50974.95799 | R126: 398952.7704 | S126: 49289.83541 | T126: 23591.71609
B127: #101 | C127: 38 | D127: 2026 | E127: F | F127: A_VIE | G127: 0.45 | H127: 0.39 | I127: 0.6 | J127: 0.6 | K127: 85 | L127: 0 | M127: 11 | N127: 307073.1323 | O127: 599061.0765 | P127: 76251.79666 | Q127: 50974.95799 | R127: 398952.7704 | S127: 49289.83541 | T127: 23591.71609
B128: #102 | C128: 38 | D128: 2028 | E128: F | F128: A_VIE | G128: 0.45 | H128: 0.39 | I128: 0.6 | J128: 0.6 | K128: 85 | L128: 0 | M128: 11 | N128: 307073.1323 | O128: 599061.0765 | P128: 76251.79666 | Q128: 50974.95799 | R128: 398952.7704 | S128: 49289.83541 | T128: 23591.71609
B129: #103 | C129: 38 | D129: 2029 | E129: F | F129: A_VIE | G129: 0.45 | H129: 0.39 | I129: 0.6 | J129: 0.6 | K129: 85 | L129: 0 | M129: 11 | N129: 307073.1323 | O129: 599061.0765 | P129: 76251.79666 | Q129: 50974.95799 | R129: 398952.7704 | S129: 49289.83541 | T129: 23591.71609
B130: #104 | C130: 38 | D130: 2030 | E130: F | F130: A_VIE | G130: 0.45 | H130: 0.39 | I130: 0.6 | J130: 0.6 | K130: 85 | L130: 0 | M130: 11 | N130: 307073.1323 | O130: 599061.0765 | P130: 76251.79666 | Q130: 50974.95799 | R130: 398952.7704 | S130: 49289.83541 | T130: 23591.71609
B131: #105 | C131: 38 | D131: 2031 | E131: F | F131: A_VIE | G131: 0.45 | H131: 0.39 | I131: 0.6 | J131: 0.6 | K131: 85 | L131: 0 | M131: 11 | N131: 307073.1323 | O131: 599061.0765 | P131: 76251.79666 | Q131: 50974.95799 | R131: 398952.7704 | S131: 49289.83541 | T131: 23591.71609
B132: #106 | C132: 39 | D132: 2026 | E132: H | F132: A_VIE | G132: 0.45 | H132: 0.39 | I132: 0.6 | J132: 0.6 | K132: 85 | L132: 0 | M132: 11 | N132: 307073.1323 | O132: 599061.0765 | P132: 76251.79666 | Q132: 50974.95799 | R132: 398952.7704 | S132: 49289.83541 | T132: 23591.71609
B133: #107 | C133: 39 | D133: 2028 | E133: H | F133: A_VIE | G133: 0.45 | H133: 0.39 | I133: 0.6 | J133: 0.6 | K133: 85 | L133: 0 | M133: 11 | N133: 307073.1323 | O133: 599061.0765 | P133: 76251.79666 | Q133: 50974.95799 | R133: 398952.7704 | S133: 49289.83541 | T133: 23591.71609
B134: #108 | C134: 39 | D134: 2029 | E134: H | F134: A_VIE | G134: 0.45 | H134: 0.39 | I134: 0.6 | J134: 0.6 | K134: 85 | L134: 0 | M134: 11 | N134: 307073.1323 | O134: 599061.0765 | P134: 76251.79666 | Q134: 50974.95799 | R134: 398952.7704 | S134: 49289.83541 | T134: 23591.71609
B135: #109 | C135: 39 | D135: 2030 | E135: H | F135: A_VIE | G135: 0.45 | H135: 0.39 | I135: 0.6 | J135: 0.6 | K135: 85 | L135: 0 | M135: 11 | N135: 307073.1323 | O135: 599061.0765 | P135: 76251.79666 | Q135: 50974.95799 | R135: 398952.7704 | S135: 49289.83541 | T135: 23591.71609
B136: #110 | C136: 39 | D136: 2031 | E136: H | F136: A_VIE | G136: 0.45 | H136: 0.39 | I136: 0.6 | J136: 0.6 | K136: 85 | L136: 0 | M136: 11 | N136: 307073.1323 | O136: 599061.0765 | P136: 76251.79666 | Q136: 50974.95799 | R136: 398952.7704 | S136: 49289.83541 | T136: 23591.71609
B137: #111 | C137: 40 | D137: 2026 | E137: H | F137: A_VIE | G137: 0.45 | H137: 0.39 | I137: 0.6 | J137: 0.6 | K137: 85 | L137: 0 | M137: 11 | N137: 307073.1323 | O137: 599061.0765 | P137: 76251.79666 | Q137: 50974.95799 | R137: 398952.7704 | S137: 49289.83541 | T137: 23591.71609
B138: #112 | C138: 40 | D138: 2028 | E138: H | F138: A_VIE | G138: 0.45 | H138: 0.39 | I138: 0.6 | J138: 0.6 | K138: 85 | L138: 0 | M138: 11 | N138: 307073.1323 | O138: 599061.0765 | P138: 76251.79666 | Q138: 50974.95799 | R138: 398952.7704 | S138: 49289.83541 | T138: 23591.71609
